Workbook

Sheet Notes
B2: KCC Housing Led forecasts 2021 - Interactive population toolkit
B4: These forecasts are based on housing data available up to 31 March 2021, and Population estimates, fertility, mortality and migration rates provided by the
B5: Office for National Statistics up to mid-year 2020 and as such do not take account of the impact of COVID-19 on the population
B6: The interactive toolkit enables users to see how the population of Kent and individual Kent districts might look in the future based on a housing-led strategy forecast.
B7: A time series of population change between 2011 and 2040 is presented in the Population Pyramid.
B9: The 2020 data are the 2020 Mid-Year Population Estimates as published on 25 June 2021 by the Office for National Statistics (ONS).
B10: Years 2021 to 2040 are forecasts of what the population might look like if a given amount of dwellings is built and the fertility, motality and migration rates up to 2020 continue.
B11: Housing growth assumptions
B12: The housing-led forecast is based on the assumption that approximately 222,757 dwellings will be built between 2020 and 2040 in the County (Kent County Council area plus Medway Unitary Authority).
B13: As this forecast is driven by proposed housing developments, population growth is determined by the number of dwellings expected to be built in the county
B14: The Housing Trajectory is based on information provided by each Kent local authority planning department but includes some additional assumptions made at the county level.
B15: Key information used in the housing trajectory is:-
B16: - Housing completions from 2019/20
B17: - Over-all housing requirements for specified plan periods
B18: Overall housing requirements are based on individual local authority Housing Local Plan Requirements or Objective Assessed Needs (OAN) as at the end of 2021. Some local
B19: authority housing plans are currently subject to review and are in the process of being updated. For the purposes of the housing trajectory used in this population forecast we have used
B20: the most up to date plan figures as available at the end of 2021.
B21: The Housing Trajectory from 2020/21 has been calculated as follows:
B22: Dwelling completions in Kent have been relatively stable over the last three years. Therefore the first year of the forecast uses the recent average annual rate of new housing delivery.
B23: The intention of local planning authorities is to increase the supply of new dwellings, the dwelling numbers in the trajectory increase at a steady rate over the period 2020/21 to 2025/26
B24: from 8,165 in the first year to 12,946 in year 5. The total housing forecast to be delivered in each local planning authority area is consistent with, and in total agrees to, the local plan
B25: number for the planning area over the plan period
B26: From 2020/21 the forecast numbers of new dwellings used in this population forecast exceeds government expectations as published in the 2018-based sub national household
B27: projections.
B28: The forecasts have been produced using the POPGROUP and Derived Forecast model currently owned by LGA with technical maintenance undertaken by Edge Analytics.
B30: Enquiries or requests for further information should be directed to:
B31: Kent Analytics
B32: Kent County Council
B33: Tel: 03000 417444
B34: Email: research@kent.gov.uk

Sheet Summary
C2: Interactive population forecast toolkit | N2: Click here to view a population pyramid
C3: KCC Housing Led Forecast 2021
C4: Source: Kent Analytics, Kent County Council. Email: research@kent.gov.uk
C7: Select District | I7: Select district 2 | O7: Select district 3
D10: Start age | F10: End Age
O15: =Index!E7&" in "&Index!C11&", "&Index!C16&" - "&Index!C19 -> Forecast change in population aged 0-90+ in Ashford, 2020 - 2040
O17: Start Year | Q17: End Year
O21: Year | P21: Males | Q21: Females | R21: Total
O22: =Index!C16 -> 2020 | P22: =INDEX('All Districts Rounded Data'!AH12:AH27,Index!B11) -> 63700 | Q22: =INDEX('All Districts Rounded Data'!AH32:AH47,Index!B11) -> 67400 | R22: =INDEX('All Districts Rounded Data'!AH52:AH67,Index!B11) -> 131000
O23: =Index!C19 -> 2040 | P23: =INDEX('All Districts Rounded Data'!AI12:AI27,Index!B11) -> 82600 | Q23: =INDEX('All Districts Rounded Data'!AI32:AI47,Index!B11) -> 86300 | R23: =INDEX('All Districts Rounded Data'!AI52:AI67,Index!B11) -> 169000
O24: Change | P24: =INDEX('All Districts Rounded Data'!AJ12:AJ27,Index!B11) -> 19000 | Q24: =INDEX('All Districts Rounded Data'!AJ32:AJ47,Index!B11) -> 18900 | R24: =INDEX('All Districts Rounded Data'!AJ52:AJ67,Index!B11) -> 37900
O25: % change | P25: =INDEX('All Districts Rounded Data'!AK12:AK27,Index!B11) -> 0.298378451 | Q25: =INDEX('All Districts Rounded Data'!AK32:AK47,Index!B11) -> 0.2812768003 | R25: =INDEX('All Districts Rounded Data'!AK52:AK67,Index!B11) -> 0.2895853638
O26: Source: KCC Housing Led forecast 2021, Kent Analytics, Kent County Council
O27: All figures have been individually rounded to the nearest one hundred and therefore may not sum
O28: Percentages have been calculated using unrounded numbers
C31: =Index!C11&" forecast population aged "&Index!C4&" - "&Index!C7 -> Ashford forecast population aged 0 - 90+
D32: 2020 | E32: 2021 | F32: 2022 | G32: 2023 | H32: 2024 | I32: 2025 | J32: 2026 | K32: 2027 | L32: 2028 | M32: 2029 | N32: 2030 | O32: 2031 | P32: 2032 | Q32: 2033 | R32: 2034 | S32: 2035 | T32: 2036 | U32: 2037 | V32: 2038 | W32: 2039 | X32: 2040
C33: Males | D33: =INDEX('All Districts Rounded Data'!L$12:L$27,Index!$B$11) -> 63700 | E33: =INDEX('All Districts Rounded Data'!M$12:M$27,Index!$B$11) -> 64500 | F33: =INDEX('All Districts Rounded Data'!N$12:N$27,Index!$B$11) -> 65300 | G33: =INDEX('All Districts Rounded Data'!O$12:O$27,Index!$B$11) -> 66300 | H33: =INDEX('All Districts Rounded Data'!P$12:P$27,Index!$B$11) -> 67400 | I33: =INDEX('All Districts Rounded Data'!Q$12:Q$27,Index!$B$11) -> 68600 | J33: =INDEX('All Districts Rounded Data'!R$12:R$27,Index!$B$11) -> 70000 | K33: =INDEX('All Districts Rounded Data'!S$12:S$27,Index!$B$11) -> 71200 | L33: =INDEX('All Districts Rounded Data'!T$12:T$27,Index!$B$11) -> 72500 | M33: =INDEX('All Districts Rounded Data'!U$12:U$27,Index!$B$11) -> 73800 | N33: =INDEX('All Districts Rounded Data'!V$12:V$27,Index!$B$11) -> 75100 | O33: =INDEX('All Districts Rounded Data'!W$12:W$27,Index!$B$11) -> 75900 | P33: =INDEX('All Districts Rounded Data'!X$12:X$27,Index!$B$11) -> 76600 | Q33: =INDEX('All Districts Rounded Data'!Y$12:Y$27,Index!$B$11) -> 77400 | R33: =INDEX('All Districts Rounded Data'!Z$12:Z$27,Index!$B$11) -> 78100 | S33: =INDEX('All Districts Rounded Data'!AA$12:AA$27,Index!$B$11) -> 78900 | T33: =INDEX('All Districts Rounded Data'!AB$12:AB$27,Index!$B$11) -> 79600 | U33: =INDEX('All Districts Rounded Data'!AC$12:AC$27,Index!$B$11) -> 80300 | V33: =INDEX('All Districts Rounded Data'!AD$12:AD$27,Index!$B$11) -> 81100 | W33: =INDEX('All Districts Rounded Data'!AE$12:AE$27,Index!$B$11) -> 81900 | X33: =INDEX('All Districts Rounded Data'!AF$12:AF$27,Index!$B$11) -> 82600
C34: Females | D34: =INDEX('All Districts Rounded Data'!L$32:L$47,Index!$B$11) -> 67400 | E34: =INDEX('All Districts Rounded Data'!M$32:M$47,Index!$B$11) -> 68200 | F34: =INDEX('All Districts Rounded Data'!N$32:N$47,Index!$B$11) -> 69000 | G34: =INDEX('All Districts Rounded Data'!O$32:O$47,Index!$B$11) -> 70000 | H34: =INDEX('All Districts Rounded Data'!P$32:P$47,Index!$B$11) -> 71100 | I34: =INDEX('All Districts Rounded Data'!Q$32:Q$47,Index!$B$11) -> 72400 | J34: =INDEX('All Districts Rounded Data'!R$32:R$47,Index!$B$11) -> 73700 | K34: =INDEX('All Districts Rounded Data'!S$32:S$47,Index!$B$11) -> 75000 | L34: =INDEX('All Districts Rounded Data'!T$32:T$47,Index!$B$11) -> 76300 | M34: =INDEX('All Districts Rounded Data'!U$32:U$47,Index!$B$11) -> 77600 | N34: =INDEX('All Districts Rounded Data'!V$32:V$47,Index!$B$11) -> 78900 | O34: =INDEX('All Districts Rounded Data'!W$32:W$47,Index!$B$11) -> 79600 | P34: =INDEX('All Districts Rounded Data'!X$32:X$47,Index!$B$11) -> 80300 | Q34: =INDEX('All Districts Rounded Data'!Y$32:Y$47,Index!$B$11) -> 81100 | R34: =INDEX('All Districts Rounded Data'!Z$32:Z$47,Index!$B$11) -> 81800 | S34: =INDEX('All Districts Rounded Data'!AA$32:AA$47,Index!$B$11) -> 82600 | T34: =INDEX('All Districts Rounded Data'!AB$32:AB$47,Index!$B$11) -> 83300 | U34: =INDEX('All Districts Rounded Data'!AC$32:AC$47,Index!$B$11) -> 84000 | V34: =INDEX('All Districts Rounded Data'!AD$32:AD$47,Index!$B$11) -> 84800 | W34: =INDEX('All Districts Rounded Data'!AE$32:AE$47,Index!$B$11) -> 85500 | X34: =INDEX('All Districts Rounded Data'!AF$32:AF$47,Index!$B$11) -> 86300
C35: Total | D35: =INDEX('All Districts Rounded Data'!L$52:L$67,Index!$B$11) -> 131000 | E35: =INDEX('All Districts Rounded Data'!M$52:M$67,Index!$B$11) -> 132700 | F35: =INDEX('All Districts Rounded Data'!N$52:N$67,Index!$B$11) -> 134300 | G35: =INDEX('All Districts Rounded Data'!O$52:O$67,Index!$B$11) -> 136300 | H35: =INDEX('All Districts Rounded Data'!P$52:P$67,Index!$B$11) -> 138500 | I35: =INDEX('All Districts Rounded Data'!Q$52:Q$67,Index!$B$11) -> 141000 | J35: =INDEX('All Districts Rounded Data'!R$52:R$67,Index!$B$11) -> 143700 | K35: =INDEX('All Districts Rounded Data'!S$52:S$67,Index!$B$11) -> 146200 | L35: =INDEX('All Districts Rounded Data'!T$52:T$67,Index!$B$11) -> 148800 | M35: =INDEX('All Districts Rounded Data'!U$52:U$67,Index!$B$11) -> 151400 | N35: =INDEX('All Districts Rounded Data'!V$52:V$67,Index!$B$11) -> 154000 | O35: =INDEX('All Districts Rounded Data'!W$52:W$67,Index!$B$11) -> 155500 | P35: =INDEX('All Districts Rounded Data'!X$52:X$67,Index!$B$11) -> 157000 | Q35: =INDEX('All Districts Rounded Data'!Y$52:Y$67,Index!$B$11) -> 158500 | R35: =INDEX('All Districts Rounded Data'!Z$52:Z$67,Index!$B$11) -> 160000 | S35: =INDEX('All Districts Rounded Data'!AA$52:AA$67,Index!$B$11) -> 161500 | T35: =INDEX('All Districts Rounded Data'!AB$52:AB$67,Index!$B$11) -> 162900 | U35: =INDEX('All Districts Rounded Data'!AC$52:AC$67,Index!$B$11) -> 164400 | V35: =INDEX('All Districts Rounded Data'!AD$52:AD$67,Index!$B$11) -> 165900 | W35: =INDEX('All Districts Rounded Data'!AE$52:AE$67,Index!$B$11) -> 167400 | X35: =INDEX('All Districts Rounded Data'!AF$52:AF$67,Index!$B$11) -> 169000
C36: Source: KCC Housing Led forecast 2021, Kent Analytics, Kent County Council
C37: All figures have been individually rounded to the nearest one hundred and therefore may not sum
C38: =Index!C12&" forecast population aged "&Index!C4&" - "&Index!C7 -> - forecast population aged 0 - 90+
D39: =D32 -> 2020 | E39: =E32 -> 2021 | F39: 2022 | G39: 2023 | H39: 2024 | I39: 2025 | J39: 2026 | K39: 2027 | L39: 2028 | M39: 2029 | N39: 2030 | O39: 2031 | P39: 2032 | Q39: 2033 | R39: 2034 | S39: 2035 | T39: 2036 | U39: 2037 | V39: 2038 | W39: 2039 | X39: 2040
C40: Males | D40: =INDEX('All Districts Rounded Data'!L$12:L$27,Index!$B$12) -> 0 | E40: =INDEX('All Districts Rounded Data'!M$12:M$27,Index!$B$12) -> 0 | F40: =INDEX('All Districts Rounded Data'!N$12:N$27,Index!$B$12) -> 0 | G40: =INDEX('All Districts Rounded Data'!O$12:O$27,Index!$B$12) -> 0 | H40: =INDEX('All Districts Rounded Data'!P$12:P$27,Index!$B$12) -> 0 | I40: =INDEX('All Districts Rounded Data'!Q$12:Q$27,Index!$B$12) -> 0 | J40: =INDEX('All Districts Rounded Data'!R$12:R$27,Index!$B$12) -> 0 | K40: =INDEX('All Districts Rounded Data'!S$12:S$27,Index!$B$12) -> 0 | L40: =INDEX('All Districts Rounded Data'!T$12:T$27,Index!$B$12) -> 0 | M40: =INDEX('All Districts Rounded Data'!U$12:U$27,Index!$B$12) -> 0 | N40: =INDEX('All Districts Rounded Data'!V$12:V$27,Index!$B$12) -> 0 | O40: =INDEX('All Districts Rounded Data'!W$12:W$27,Index!$B$12) -> 0 | P40: =INDEX('All Districts Rounded Data'!X$12:X$27,Index!$B$12) -> 0 | Q40: =INDEX('All Districts Rounded Data'!Y$12:Y$27,Index!$B$12) -> 0 | R40: =INDEX('All Districts Rounded Data'!Z$12:Z$27,Index!$B$12) -> 0 | S40: =INDEX('All Districts Rounded Data'!AA$12:AA$27,Index!$B$12) -> 0 | T40: =INDEX('All Districts Rounded Data'!AB$12:AB$27,Index!$B$12) -> 0 | U40: =INDEX('All Districts Rounded Data'!AC$12:AC$27,Index!$B$12) -> 0 | V40: =INDEX('All Districts Rounded Data'!AD$12:AD$27,Index!$B$12) -> 0 | W40: =INDEX('All Districts Rounded Data'!AE$12:AE$27,Index!$B$12) -> 0 | X40: =INDEX('All Districts Rounded Data'!AF$12:AF$27,Index!$B$12) -> 0
C41: Females | D41: =INDEX('All Districts Rounded Data'!L$32:L$47,Index!$B$12) -> 0 | E41: =INDEX('All Districts Rounded Data'!M$32:M$47,Index!$B$12) -> 0 | F41: =INDEX('All Districts Rounded Data'!N$32:N$47,Index!$B$12) -> 0 | G41: =INDEX('All Districts Rounded Data'!O$32:O$47,Index!$B$12) -> 0 | H41: =INDEX('All Districts Rounded Data'!P$32:P$47,Index!$B$12) -> 0 | I41: =INDEX('All Districts Rounded Data'!Q$32:Q$47,Index!$B$12) -> 0 | J41: =INDEX('All Districts Rounded Data'!R$32:R$47,Index!$B$12) -> 0 | K41: =INDEX('All Districts Rounded Data'!S$32:S$47,Index!$B$12) -> 0 | L41: =INDEX('All Districts Rounded Data'!T$32:T$47,Index!$B$12) -> 0 | M41: =INDEX('All Districts Rounded Data'!U$32:U$47,Index!$B$12) -> 0 | N41: =INDEX('All Districts Rounded Data'!V$32:V$47,Index!$B$12) -> 0 | O41: =INDEX('All Districts Rounded Data'!W$32:W$47,Index!$B$12) -> 0 | P41: =INDEX('All Districts Rounded Data'!X$32:X$47,Index!$B$12) -> 0 | Q41: =INDEX('All Districts Rounded Data'!Y$32:Y$47,Index!$B$12) -> 0 | R41: =INDEX('All Districts Rounded Data'!Z$32:Z$47,Index!$B$12) -> 0 | S41: =INDEX('All Districts Rounded Data'!AA$32:AA$47,Index!$B$12) -> 0 | T41: =INDEX('All Districts Rounded Data'!AB$32:AB$47,Index!$B$12) -> 0 | U41: =INDEX('All Districts Rounded Data'!AC$32:AC$47,Index!$B$12) -> 0 | V41: =INDEX('All Districts Rounded Data'!AD$32:AD$47,Index!$B$12) -> 0 | W41: =INDEX('All Districts Rounded Data'!AE$32:AE$47,Index!$B$12) -> 0 | X41: =INDEX('All Districts Rounded Data'!AF$32:AF$47,Index!$B$12) -> 0 | Y41: =INDEX('All Districts Rounded Data'!AG$32:AG$47,Index!$B$12) -> 0
C42: Total | D42: =INDEX('All Districts Rounded Data'!L$52:L$67,Index!$B$12) -> 0 | E42: =INDEX('All Districts Rounded Data'!M$52:M$67,Index!$B$12) -> 0 | F42: =INDEX('All Districts Rounded Data'!N$52:N$67,Index!$B$12) -> 0 | G42: =INDEX('All Districts Rounded Data'!O$52:O$67,Index!$B$12) -> 0 | H42: =INDEX('All Districts Rounded Data'!P$52:P$67,Index!$B$12) -> 0 | I42: =INDEX('All Districts Rounded Data'!Q$52:Q$67,Index!$B$12) -> 0 | J42: =INDEX('All Districts Rounded Data'!R$52:R$67,Index!$B$12) -> 0 | K42: =INDEX('All Districts Rounded Data'!S$52:S$67,Index!$B$12) -> 0 | L42: =INDEX('All Districts Rounded Data'!T$52:T$67,Index!$B$12) -> 0 | M42: =INDEX('All Districts Rounded Data'!U$52:U$67,Index!$B$12) -> 0 | N42: =INDEX('All Districts Rounded Data'!V$52:V$67,Index!$B$12) -> 0 | O42: =INDEX('All Districts Rounded Data'!W$52:W$67,Index!$B$12) -> 0 | P42: =INDEX('All Districts Rounded Data'!X$52:X$67,Index!$B$12) -> 0 | Q42: =INDEX('All Districts Rounded Data'!Y$52:Y$67,Index!$B$12) -> 0 | R42: =INDEX('All Districts Rounded Data'!Z$52:Z$67,Index!$B$12) -> 0 | S42: =INDEX('All Districts Rounded Data'!AA$52:AA$67,Index!$B$12) -> 0 | T42: =INDEX('All Districts Rounded Data'!AB$52:AB$67,Index!$B$12) -> 0 | U42: =INDEX('All Districts Rounded Data'!AC$52:AC$67,Index!$B$12) -> 0 | V42: =INDEX('All Districts Rounded Data'!AD$52:AD$67,Index!$B$12) -> 0 | W42: =INDEX('All Districts Rounded Data'!AE$52:AE$67,Index!$B$12) -> 0 | X42: =INDEX('All Districts Rounded Data'!AF$52:AF$67,Index!$B$12) -> 0
C43: =C36 -> Source: KCC Housing Led forecast 2021, Kent Analytics, Kent County Council
C44: All figures have been individually rounded to the nearest one hundred and therefore may not sum
C45: =Index!C13&" forecast population aged "&Index!C4&" - "&Index!C7 -> - forecast population aged 0 - 90+
D46: =D32 -> 2020 | E46: =E32 -> 2021 | F46: 2022 | G46: 2023 | H46: 2024 | I46: 2025 | J46: 2026 | K46: 2027 | L46: 2028 | M46: 2029 | N46: 2030 | O46: 2031 | P46: 2032 | Q46: 2033 | R46: 2034 | S46: 2035 | T46: 2036 | U46: 2037 | V46: 2038 | W46: 2039 | X46: 2040
C47: Males | D47: =INDEX('All Districts Rounded Data'!L$12:L$27,Index!$B$13) -> 0 | E47: =INDEX('All Districts Rounded Data'!M$12:M$27,Index!$B$13) -> 0 | F47: =INDEX('All Districts Rounded Data'!N$12:N$27,Index!$B$13) -> 0 | G47: =INDEX('All Districts Rounded Data'!O$12:O$27,Index!$B$13) -> 0 | H47: =INDEX('All Districts Rounded Data'!P$12:P$27,Index!$B$13) -> 0 | I47: =INDEX('All Districts Rounded Data'!Q$12:Q$27,Index!$B$13) -> 0 | J47: =INDEX('All Districts Rounded Data'!R$12:R$27,Index!$B$13) -> 0 | K47: =INDEX('All Districts Rounded Data'!S$12:S$27,Index!$B$13) -> 0 | L47: =INDEX('All Districts Rounded Data'!T$12:T$27,Index!$B$13) -> 0 | M47: =INDEX('All Districts Rounded Data'!U$12:U$27,Index!$B$13) -> 0 | N47: =INDEX('All Districts Rounded Data'!V$12:V$27,Index!$B$13) -> 0 | O47: =INDEX('All Districts Rounded Data'!W$12:W$27,Index!$B$13) -> 0 | P47: =INDEX('All Districts Rounded Data'!X$12:X$27,Index!$B$13) -> 0 | Q47: =INDEX('All Districts Rounded Data'!Y$12:Y$27,Index!$B$13) -> 0 | R47: =INDEX('All Districts Rounded Data'!Z$12:Z$27,Index!$B$13) -> 0 | S47: =INDEX('All Districts Rounded Data'!AA$12:AA$27,Index!$B$13) -> 0 | T47: =INDEX('All Districts Rounded Data'!AB$12:AB$27,Index!$B$13) -> 0 | U47: =INDEX('All Districts Rounded Data'!AC$12:AC$27,Index!$B$13) -> 0 | V47: =INDEX('All Districts Rounded Data'!AD$12:AD$27,Index!$B$13) -> 0 | W47: =INDEX('All Districts Rounded Data'!AE$12:AE$27,Index!$B$13) -> 0 | X47: =INDEX('All Districts Rounded Data'!AF$12:AF$27,Index!$B$13) -> 0
C48: Females | D48: =INDEX('All Districts Rounded Data'!L$32:L$47,Index!$B$13) -> 0 | E48: =INDEX('All Districts Rounded Data'!M$32:M$47,Index!$B$13) -> 0 | F48: =INDEX('All Districts Rounded Data'!N$32:N$47,Index!$B$13) -> 0 | G48: =INDEX('All Districts Rounded Data'!O$32:O$47,Index!$B$13) -> 0 | H48: =INDEX('All Districts Rounded Data'!P$32:P$47,Index!$B$13) -> 0 | I48: =INDEX('All Districts Rounded Data'!Q$32:Q$47,Index!$B$13) -> 0 | J48: =INDEX('All Districts Rounded Data'!R$32:R$47,Index!$B$13) -> 0 | K48: =INDEX('All Districts Rounded Data'!S$32:S$47,Index!$B$13) -> 0 | L48: =INDEX('All Districts Rounded Data'!T$32:T$47,Index!$B$13) -> 0 | M48: =INDEX('All Districts Rounded Data'!U$32:U$47,Index!$B$13) -> 0 | N48: =INDEX('All Districts Rounded Data'!V$32:V$47,Index!$B$13) -> 0 | O48: =INDEX('All Districts Rounded Data'!W$32:W$47,Index!$B$13) -> 0 | P48: =INDEX('All Districts Rounded Data'!X$32:X$47,Index!$B$13) -> 0 | Q48: =INDEX('All Districts Rounded Data'!Y$32:Y$47,Index!$B$13) -> 0 | R48: =INDEX('All Districts Rounded Data'!Z$32:Z$47,Index!$B$13) -> 0 | S48: =INDEX('All Districts Rounded Data'!AA$32:AA$47,Index!$B$13) -> 0 | T48: =INDEX('All Districts Rounded Data'!AB$32:AB$47,Index!$B$13) -> 0 | U48: =INDEX('All Districts Rounded Data'!AC$32:AC$47,Index!$B$13) -> 0 | V48: =INDEX('All Districts Rounded Data'!AD$32:AD$47,Index!$B$13) -> 0 | W48: =INDEX('All Districts Rounded Data'!AE$32:AE$47,Index!$B$13) -> 0 | X48: =INDEX('All Districts Rounded Data'!AF$32:AF$47,Index!$B$13) -> 0
C49: Total | D49: =INDEX('All Districts Rounded Data'!L$52:L$67,Index!$B$13) -> 0 | E49: =INDEX('All Districts Rounded Data'!M$52:M$67,Index!$B$13) -> 0 | F49: =INDEX('All Districts Rounded Data'!N$52:N$67,Index!$B$13) -> 0 | G49: =INDEX('All Districts Rounded Data'!O$52:O$67,Index!$B$13) -> 0 | H49: =INDEX('All Districts Rounded Data'!P$52:P$67,Index!$B$13) -> 0 | I49: =INDEX('All Districts Rounded Data'!Q$52:Q$67,Index!$B$13) -> 0 | J49: =INDEX('All Districts Rounded Data'!R$52:R$67,Index!$B$13) -> 0 | K49: =INDEX('All Districts Rounded Data'!S$52:S$67,Index!$B$13) -> 0 | L49: =INDEX('All Districts Rounded Data'!T$52:T$67,Index!$B$13) -> 0 | M49: =INDEX('All Districts Rounded Data'!U$52:U$67,Index!$B$13) -> 0 | N49: =INDEX('All Districts Rounded Data'!V$52:V$67,Index!$B$13) -> 0 | O49: =INDEX('All Districts Rounded Data'!W$52:W$67,Index!$B$13) -> 0 | P49: =INDEX('All Districts Rounded Data'!X$52:X$67,Index!$B$13) -> 0 | Q49: =INDEX('All Districts Rounded Data'!Y$52:Y$67,Index!$B$13) -> 0 | R49: =INDEX('All Districts Rounded Data'!Z$52:Z$67,Index!$B$13) -> 0 | S49: =INDEX('All Districts Rounded Data'!AA$52:AA$67,Index!$B$13) -> 0 | T49: =INDEX('All Districts Rounded Data'!AB$52:AB$67,Index!$B$13) -> 0 | U49: =INDEX('All Districts Rounded Data'!AC$52:AC$67,Index!$B$13) -> 0 | V49: =INDEX('All Districts Rounded Data'!AD$52:AD$67,Index!$B$13) -> 0 | W49: =INDEX('All Districts Rounded Data'!AE$52:AE$67,Index!$B$13) -> 0 | X49: =INDEX('All Districts Rounded Data'!AF$52:AF$67,Index!$B$13) -> 0
C50: =C36 -> Source: KCC Housing Led forecast 2021, Kent Analytics, Kent County Council
C51: All figures have been individually rounded to the nearest one hundred and therefore may not sum
C52: All figures have been individually rounded to the nearest one hundred and therefore may not sum

Sheet Population Pyramid
L1: 10
C2: Interactive population forecast toolkit - Population Pyramid | N2: Click here to return to the population summary page
C3: KCC Housing Led Forecast 2021
C4: Source: Kent Analytics, Kent County Council. Email: research@kent.gov.uk
F6: Select district
F8: Select year
C10: ='All Districts unrounded'!A117&", "&'All Districts unrounded'!A118 -> Ashford, 2020
D11: Total Popuation | F11: Males | H11: Females
D12: Number | E12: % of total population | F12: Number | G12: % of total population | H12: Number | I12: % of total population
C13: All Ages | D13: =ROUND('All Districts unrounded'!B119+'All Districts unrounded'!E119,-2) -> 131000 | E13: =('All Districts unrounded'!B119+'All Districts unrounded'!E119)/'All Districts unrounded'!$C$117 -> 1 | F13: =ROUND('All Districts unrounded'!B119,-2) -> 63700 | G13: ='All Districts unrounded'!C119 -> 0.4858340075 | H13: =ROUND('All Districts unrounded'!E119,-2) -> 67400 | I13: ='All Districts unrounded'!F119 -> 0.5141659925
C14: 0-4 | D14: =ROUND('All Districts unrounded'!B120+'All Districts unrounded'!E120,-2) -> 7800 | E14: =('All Districts unrounded'!B120+'All Districts unrounded'!E120)/'All Districts unrounded'!$C$117 -> 0.05945747913 | F14: =ROUND('All Districts unrounded'!B120,-2) -> 4000 | G14: ='All Districts unrounded'!C120 -> 0.03029354745 | H14: =ROUND('All Districts unrounded'!E120,-2) -> 3800 | I14: ='All Districts unrounded'!F120 -> 0.02916393167
C15: 5-9 | D15: =ROUND('All Districts unrounded'!B121+'All Districts unrounded'!E121,-2) -> 8800 | E15: =('All Districts unrounded'!B121+'All Districts unrounded'!E121)/'All Districts unrounded'!$C$117 -> 0.06747927766 | F15: =ROUND('All Districts unrounded'!B121,-2) -> 4500 | G15: ='All Districts unrounded'!C121 -> 0.03451434154 | H15: =ROUND('All Districts unrounded'!E121,-2) -> 4300 | I15: ='All Districts unrounded'!F121 -> 0.03296493612
C16: 10-14 | D16: =ROUND('All Districts unrounded'!B122+'All Districts unrounded'!E122,-2) -> 8700 | E16: =('All Districts unrounded'!B122+'All Districts unrounded'!E122)/'All Districts unrounded'!$C$117 -> 0.06641072219 | F16: =ROUND('All Districts unrounded'!B122,-2) -> 4400 | G16: ='All Districts unrounded'!C122 -> 0.03354500908 | H16: =ROUND('All Districts unrounded'!E122,-2) -> 4300 | I16: ='All Districts unrounded'!F122 -> 0.03286571311
C17: 15-19 | D17: =ROUND('All Districts unrounded'!B123+'All Districts unrounded'!E123,-2) -> 7400 | E17: =('All Districts unrounded'!B123+'All Districts unrounded'!E123)/'All Districts unrounded'!$C$117 -> 0.05658001191 | F17: =ROUND('All Districts unrounded'!B123,-2) -> 3700 | G17: ='All Districts unrounded'!C123 -> 0.02853043093 | H17: =ROUND('All Districts unrounded'!E123,-2) -> 3700 | I17: ='All Districts unrounded'!F123 -> 0.02804958097
C18: 20-24 | D18: =ROUND('All Districts unrounded'!B124+'All Districts unrounded'!E124,-2) -> 6100 | E18: =('All Districts unrounded'!B124+'All Districts unrounded'!E124)/'All Districts unrounded'!$C$117 -> 0.04667297623 | F18: =ROUND('All Districts unrounded'!B124,-2) -> 3000 | G18: ='All Districts unrounded'!C124 -> 0.02253888779 | H18: =ROUND('All Districts unrounded'!E124,-2) -> 3200 | I18: ='All Districts unrounded'!F124 -> 0.02413408845
C19: 25-29 | D19: =ROUND('All Districts unrounded'!B125+'All Districts unrounded'!E125,-2) -> 7400 | E19: =('All Districts unrounded'!B125+'All Districts unrounded'!E125)/'All Districts unrounded'!$C$117 -> 0.05645789128 | F19: =ROUND('All Districts unrounded'!B125,-2) -> 3700 | G19: ='All Districts unrounded'!C125 -> 0.02837014761 | H19: =ROUND('All Districts unrounded'!E125,-2) -> 3700 | I19: ='All Districts unrounded'!F125 -> 0.02808774367
C20: 30-34 | D20: =ROUND('All Districts unrounded'!B126+'All Districts unrounded'!E126,-2) -> 7800 | E20: =('All Districts unrounded'!B126+'All Districts unrounded'!E126)/'All Districts unrounded'!$C$117 -> 0.05922087041 | F20: =ROUND('All Districts unrounded'!B126,-2) -> 3700 | G20: ='All Districts unrounded'!C126 -> 0.02795799051 | H20: =ROUND('All Districts unrounded'!E126,-2) -> 4100 | I20: ='All Districts unrounded'!F126 -> 0.03126287991
C21: 35-39 | D21: =ROUND('All Districts unrounded'!B127+'All Districts unrounded'!E127,-2) -> 7900 | E21: =('All Districts unrounded'!B127+'All Districts unrounded'!E127)/'All Districts unrounded'!$C$117 -> 0.06003755209 | F21: =ROUND('All Districts unrounded'!B127,-2) -> 3700 | G21: ='All Districts unrounded'!C127 -> 0.02796562304 | H21: =ROUND('All Districts unrounded'!E127,-2) -> 4200 | I21: ='All Districts unrounded'!F127 -> 0.03207192905
C22: 40-44 | D22: =ROUND('All Districts unrounded'!B128+'All Districts unrounded'!E128,-2) -> 8000 | E22: =('All Districts unrounded'!B128+'All Districts unrounded'!E128)/'All Districts unrounded'!$C$117 -> 0.06083133615 | F22: =ROUND('All Districts unrounded'!B128,-2) -> 3800 | G22: ='All Districts unrounded'!C128 -> 0.0289731182 | H22: =ROUND('All Districts unrounded'!E128,-2) -> 4200 | I22: ='All Districts unrounded'!F128 -> 0.03185821795
C23: 45-49 | D23: =ROUND('All Districts unrounded'!B129+'All Districts unrounded'!E129,-2) -> 8800 | E23: =('All Districts unrounded'!B129+'All Districts unrounded'!E129)/'All Districts unrounded'!$C$117 -> 0.06718160863 | F23: =ROUND('All Districts unrounded'!B129,-2) -> 4200 | G23: ='All Districts unrounded'!C129 -> 0.03198033858 | H23: =ROUND('All Districts unrounded'!E129,-2) -> 4600 | I23: ='All Districts unrounded'!F129 -> 0.03520127005
C24: 50-54 | D24: =ROUND('All Districts unrounded'!B130+'All Districts unrounded'!E130,-2) -> 10000 | E24: =('All Districts unrounded'!B130+'All Districts unrounded'!E130)/'All Districts unrounded'!$C$117 -> 0.07611167931 | F24: =ROUND('All Districts unrounded'!B130,-2) -> 5000 | G24: ='All Districts unrounded'!C130 -> 0.03810926743 | H24: =ROUND('All Districts unrounded'!E130,-2) -> 5000 | I24: ='All Districts unrounded'!F130 -> 0.03800241188
C25: 55-59 | D25: =ROUND('All Districts unrounded'!B131+'All Districts unrounded'!E131,-2) -> 9200 | E25: =('All Districts unrounded'!B131+'All Districts unrounded'!E131)/'All Districts unrounded'!$C$117 -> 0.07054755835 | F25: =ROUND('All Districts unrounded'!B131,-2) -> 4600 | G25: ='All Districts unrounded'!C131 -> 0.035483674 | H25: =ROUND('All Districts unrounded'!E131,-2) -> 4600 | I25: ='All Districts unrounded'!F131 -> 0.03506388435
C26: 60-64 | D26: =ROUND('All Districts unrounded'!B132+'All Districts unrounded'!E132,-2) -> 7400 | E26: =('All Districts unrounded'!B132+'All Districts unrounded'!E132)/'All Districts unrounded'!$C$117 -> 0.05629760796 | F26: =ROUND('All Districts unrounded'!B132,-2) -> 3600 | G26: ='All Districts unrounded'!C132 -> 0.02742371277 | H26: =ROUND('All Districts unrounded'!E132,-2) -> 3800 | I26: ='All Districts unrounded'!F132 -> 0.02887389519
C27: 65-69 | D27: =ROUND('All Districts unrounded'!B133+'All Districts unrounded'!E133,-2) -> 6600 | E27: =('All Districts unrounded'!B133+'All Districts unrounded'!E133)/'All Districts unrounded'!$C$117 -> 0.05047398067 | F27: =ROUND('All Districts unrounded'!B133,-2) -> 3200 | G27: ='All Districts unrounded'!C133 -> 0.02472179395 | H27: =ROUND('All Districts unrounded'!E133,-2) -> 3400 | I27: ='All Districts unrounded'!F133 -> 0.02575218672
C28: 70-74 | D28: =ROUND('All Districts unrounded'!B134+'All Districts unrounded'!E134,-2) -> 7300 | E28: =('All Districts unrounded'!B134+'All Districts unrounded'!E134)/'All Districts unrounded'!$C$117 -> 0.05577096277 | F28: =ROUND('All Districts unrounded'!B134,-2) -> 3400 | G28: ='All Districts unrounded'!C134 -> 0.02630172953 | H28: =ROUND('All Districts unrounded'!E134,-2) -> 3900 | I28: ='All Districts unrounded'!F134 -> 0.02946923324
C29: 75-79 | D29: =ROUND('All Districts unrounded'!B135+'All Districts unrounded'!E135,-2) -> 5200 | E29: =('All Districts unrounded'!B135+'All Districts unrounded'!E135)/'All Districts unrounded'!$C$117 -> 0.03955181731 | F29: =ROUND('All Districts unrounded'!B135,-2) -> 2400 | G29: ='All Districts unrounded'!C135 -> 0.01807385245 | H29: =ROUND('All Districts unrounded'!E135,-2) -> 2800 | I29: ='All Districts unrounded'!F135 -> 0.02147796486
C30: 80-84 | D30: =ROUND('All Districts unrounded'!B136+'All Districts unrounded'!E136,-2) -> 3400 | E30: =('All Districts unrounded'!B136+'All Districts unrounded'!E136)/'All Districts unrounded'!$C$117 -> 0.02616434383 | F30: =ROUND('All Districts unrounded'!B136,-2) -> 1500 | G30: ='All Districts unrounded'!C136 -> 0.01171594743 | H30: =ROUND('All Districts unrounded'!E136,-2) -> 1900 | I30: ='All Districts unrounded'!F136 -> 0.0144483964
C31: 85+ | D31: =ROUND('All Districts unrounded'!B137+'All Districts unrounded'!E137,-2) -> 3200 | E31: =('All Districts unrounded'!B137+'All Districts unrounded'!E137)/'All Districts unrounded'!$C$117 -> 0.02475232411 | F31: =ROUND('All Districts unrounded'!B137,-2) -> 1200 | G31: ='All Districts unrounded'!C137 -> 0.009334595246 | H31: =ROUND('All Districts unrounded'!E137,-2) -> 2000 | I31: ='All Districts unrounded'!F137 -> 0.01541772886
C32: Source: KCC Housing Led forecast 2021, Kent Analytics, Kent County Council
C33: All figures have been individually rounded to the nearest one hundred and therefore may not sum
C34: Percentages have been calculated using unrounded numbers
B36: =Index!E20 -> Forecast of average age of population of - Ashford
D37: 2011 | E37: 2012 | F37: 2013 | G37: 2014 | H37: 2015 | I37: 2016 | J37: 2017 | K37: 2018 | L37: 2019 | M37: 2020 | N37: 2021 | O37: 2022 | P37: 2023 | Q37: 2024 | R37: 2025 | S37: 2026 | T37: 2027 | U37: 2028 | V37: 2029 | W37: 2030 | X37: 2031 | Y37: 2032 | Z37: 2033 | AA37: 2034 | AB37: 2035 | AC37: 2036 | AD37: 2037 | AE37: 2038 | AF37: 2039 | AG37: 2040
B38: Males | D38: =INDEX('Average age'!B$21:B$36,Index!$B$11) -> 38.68075068 | E38: =INDEX('Average age'!C$21:C$36,Index!$B$11) -> 38.84859457 | F38: =INDEX('Average age'!D$21:D$36,Index!$B$11) -> 38.98502355 | G38: =INDEX('Average age'!E$21:E$36,Index!$B$11) -> 39.21577812 | H38: =INDEX('Average age'!F$21:F$36,Index!$B$11) -> 39.37936985 | I38: =INDEX('Average age'!G$21:G$36,Index!$B$11) -> 39.52606705 | J38: =INDEX('Average age'!H$21:H$36,Index!$B$11) -> 39.65413085 | K38: =INDEX('Average age'!I$21:I$36,Index!$B$11) -> 39.75880341 | L38: =INDEX('Average age'!J$21:J$36,Index!$B$11) -> 39.93752076 | M38: =INDEX('Average age'!K$21:K$36,Index!$B$11) -> 40.18558434 | N38: =INDEX('Average age'!L$21:L$36,Index!$B$11) -> 40.33949664 | O38: =INDEX('Average age'!M$21:M$36,Index!$B$11) -> 40.48518298 | P38: =INDEX('Average age'!N$21:N$36,Index!$B$11) -> 40.62612403 | Q38: =INDEX('Average age'!O$21:O$36,Index!$B$11) -> 40.75257186 | R38: =INDEX('Average age'!P$21:P$36,Index!$B$11) -> 40.86317374 | S38: =INDEX('Average age'!Q$21:Q$36,Index!$B$11) -> 40.96471281 | T38: =INDEX('Average age'!R$21:R$36,Index!$B$11) -> 41.07111577 | U38: =INDEX('Average age'!S$21:S$36,Index!$B$11) -> 41.17053261 | V38: =INDEX('Average age'!T$21:T$36,Index!$B$11) -> 41.26195002 | W38: =INDEX('Average age'!U$21:U$36,Index!$B$11) -> 41.34409855 | X38: =INDEX('Average age'!V$21:V$36,Index!$B$11) -> 41.46337956 | Y38: =INDEX('Average age'!W$21:W$36,Index!$B$11) -> 41.5791552 | Z38: =INDEX('Average age'!X$21:X$36,Index!$B$11) -> 41.6832002 | AA38: =INDEX('Average age'!Y$21:Y$36,Index!$B$11) -> 41.78181309 | AB38: =INDEX('Average age'!Z$21:Z$36,Index!$B$11) -> 41.87283884 | AC38: =INDEX('Average age'!AA$21:AA$36,Index!$B$11) -> 41.96359112 | AD38: =INDEX('Average age'!AB$21:AB$36,Index!$B$11) -> 42.04777622 | AE38: =INDEX('Average age'!AC$21:AC$36,Index!$B$11) -> 42.12195385 | AF38: =INDEX('Average age'!AD$21:AD$36,Index!$B$11) -> 42.19177669 | AG38: =INDEX('Average age'!AE$21:AE$36,Index!$B$11) -> 42.2599295
B39: Females | D39: =INDEX('Average age'!B$39:B$54,Index!$B$11) -> 40.51435273 | E39: =INDEX('Average age'!C$39:C$54,Index!$B$11) -> 40.63797006 | F39: =INDEX('Average age'!D$39:D$54,Index!$B$11) -> 40.70096396 | G39: =INDEX('Average age'!E$39:E$54,Index!$B$11) -> 40.90213001 | H39: =INDEX('Average age'!F$39:F$54,Index!$B$11) -> 41.05787444 | I39: =INDEX('Average age'!G$39:G$54,Index!$B$11) -> 41.12864449 | J39: =INDEX('Average age'!H$39:H$54,Index!$B$11) -> 41.2614396 | K39: =INDEX('Average age'!I$39:I$54,Index!$B$11) -> 41.32572702 | L39: =INDEX('Average age'!J$39:J$54,Index!$B$11) -> 41.52268882 | M39: =INDEX('Average age'!K$39:K$54,Index!$B$11) -> 41.69791435 | N39: =INDEX('Average age'!L$39:L$54,Index!$B$11) -> 41.86005206 | O39: =INDEX('Average age'!M$39:M$54,Index!$B$11) -> 42.01673468 | P39: =INDEX('Average age'!N$39:N$54,Index!$B$11) -> 42.15399032 | Q39: =INDEX('Average age'!O$39:O$54,Index!$B$11) -> 42.27637924 | R39: =INDEX('Average age'!P$39:P$54,Index!$B$11) -> 42.37821086 | S39: =INDEX('Average age'!Q$39:Q$54,Index!$B$11) -> 42.47356846 | T39: =INDEX('Average age'!R$39:R$54,Index!$B$11) -> 42.57451075 | U39: =INDEX('Average age'!S$39:S$54,Index!$B$11) -> 42.66630567 | V39: =INDEX('Average age'!T$39:T$54,Index!$B$11) -> 42.75255184 | W39: =INDEX('Average age'!U$39:U$54,Index!$B$11) -> 42.83055348 | X39: =INDEX('Average age'!V$39:V$54,Index!$B$11) -> 42.95730036 | Y39: =INDEX('Average age'!W$39:W$54,Index!$B$11) -> 43.07895017 | Z39: =INDEX('Average age'!X$39:X$54,Index!$B$11) -> 43.18789733 | AA39: =INDEX('Average age'!Y$39:Y$54,Index!$B$11) -> 43.29044797 | AB39: =INDEX('Average age'!Z$39:Z$54,Index!$B$11) -> 43.38508452 | AC39: =INDEX('Average age'!AA$39:AA$54,Index!$B$11) -> 43.47883733 | AD39: =INDEX('Average age'!AB$39:AB$54,Index!$B$11) -> 43.56443407 | AE39: =INDEX('Average age'!AC$39:AC$54,Index!$B$11) -> 43.64127697 | AF39: =INDEX('Average age'!AD$39:AD$54,Index!$B$11) -> 43.71394699 | AG39: =INDEX('Average age'!AE$39:AE$54,Index!$B$11) -> 43.78482801
B40: All persons | D40: =INDEX('Average age'!B$3:B$18,Index!$B$11) -> 40.09579681 | E40: =INDEX('Average age'!C$3:C$18,Index!$B$11) -> 39.97357446 | F40: =INDEX('Average age'!D$3:D$18,Index!$B$11) -> 40.04136413 | G40: =INDEX('Average age'!E$3:E$18,Index!$B$11) -> 40.12954331 | H40: =INDEX('Average age'!F$3:F$18,Index!$B$11) -> 40.06767379 | I40: =INDEX('Average age'!G$3:G$18,Index!$B$11) -> 40.03940259 | J40: =INDEX('Average age'!H$3:H$18,Index!$B$11) -> 40.08989031 | K40: =INDEX('Average age'!I$3:I$18,Index!$B$11) -> 40.30195135 | L40: =INDEX('Average age'!J$3:J$18,Index!$B$11) -> 40.52370703 | M40: =INDEX('Average age'!K$3:K$18,Index!$B$11) -> 40.60678692 | N40: =INDEX('Average age'!L$3:L$18,Index!$B$11) -> 40.72405881 | O40: =INDEX('Average age'!M$3:M$18,Index!$B$11) -> 40.88274122 | P40: =INDEX('Average age'!N$3:N$18,Index!$B$11) -> 40.99362266 | Q40: =INDEX('Average age'!O$3:O$18,Index!$B$11) -> 41.06863348 | R40: =INDEX('Average age'!P$3:P$18,Index!$B$11) -> 41.08312776 | S40: =INDEX('Average age'!Q$3:Q$18,Index!$B$11) -> 41.11372669 | T40: =INDEX('Average age'!R$3:R$18,Index!$B$11) -> 41.15297018 | U40: =INDEX('Average age'!S$3:S$18,Index!$B$11) -> 41.20440455 | V40: =INDEX('Average age'!T$3:T$18,Index!$B$11) -> 41.25762057 | W40: =INDEX('Average age'!U$3:U$18,Index!$B$11) -> 41.31484137 | X40: =INDEX('Average age'!V$3:V$18,Index!$B$11) -> 41.37252626 | Y40: =INDEX('Average age'!W$3:W$18,Index!$B$11) -> 41.5355375 | Z40: =INDEX('Average age'!X$3:X$18,Index!$B$11) -> 41.68901098 | AA40: =INDEX('Average age'!Y$3:Y$18,Index!$B$11) -> 41.83847598 | AB40: =INDEX('Average age'!Z$3:Z$18,Index!$B$11) -> 41.97169335 | AC40: =INDEX('Average age'!AA$3:AA$18,Index!$B$11) -> 42.10496928 | AD40: =INDEX('Average age'!AB$3:AB$18,Index!$B$11) -> 42.23449874 | AE40: =INDEX('Average age'!AC$3:AC$18,Index!$B$11) -> 42.36447695 | AF40: =INDEX('Average age'!AD$3:AD$18,Index!$B$11) -> 42.47830341 | AG40: =INDEX('Average age'!AE$3:AE$18,Index!$B$11) -> 42.58245642

Sheet Index (hidden)
A1: Index | E1: Chart Formatting
A3: Start age index | C3: Selected start age | E3: Chart Title
A4: Index 1 | B4: 1 | C4: =INDEX($A$30:$A$120,B4) -> 0 | E4: ="Forecast population aged "&C4&"-"&C7 -> Forecast population aged 0-90+
A6: End age index | C6: Selected end age | E6: Table title
A7: Index 2 | B7: 91 | C7: =INDEX($A$30:$A$120,B7) -> 90+ | E7: ="Forecast change in population aged "&C4&"-"&C7 -> Forecast change in population aged 0-90+
A9: District Select | E9: Chart Labels
A10: Index 3 | C10: Selected district | E10: =C11&" males" -> Ashford males
A11: District 1 | B11: 2 | C11: =INDEX($B$30:$B$45,$B11) -> Ashford | E11: =C11&" females" -> Ashford females
A12: District 2 | B12: 1 | C12: =INDEX($B$30:$B$45,$B12) -> - | E12: =C11&" total" -> Ashford total
A13: District 3 | B13: 1 | C13: =INDEX($B$30:$B$45,$B13) -> - | E13: =C12&" males" -> - males
E14: =C12&" females" -> - females
A15: Start year select | C15: Selected start year | E15: =C12&" total" -> - total
A16: Index 4 | B16: 10 | C16: =INDEX(C30:C59,B16) -> 2020 | E16: =C13&" males" -> - males
C17: =C16-C19 -> -20 | E17: =C13&" females" -> - females
A18: End year select | C18: Selected end year | E18: =C13&" total" -> - total
A19: Index 5 | B19: 30 | C19: =INDEX(C30:C59,B19) -> 2040
E20: ="Forecast of average age of population of - "&C11 -> Forecast of average age of population of - Ashford
A21: Pop Pyramid year select | C21: Selected pyramid year
A22: Index 6 | B22: 0 | C22: =INDEX(C30:C59,'Population Pyramid'!$L$1) -> 2020
C23: .
A27: Drop Downs
A28: Drop down 1 | B28: Drop Down 2 | C28: Drop Down 3
A29: Age selection | B29: District slection | C29: Year selection
A30: 0 | B30: - | C30: 2011
A31: 1 | B31: Ashford | C31: 2012
A32: 2 | B32: Canterbury | C32: 2013
A33: 3 | B33: Dartford | C33: 2014
A34: 4 | B34: Dover | C34: 2015
A35: 5 | B35: Gravesham | C35: 2016
A36: 6 | B36: Maidstone | C36: 2017
A37: 7 | B37: Medway | C37: 2018
A38: 8 | B38: Sevenoaks | C38: 2019
A39: 9 | B39: Folkestone & Hythe | C39: 2020
A40: 10 | B40: Swale | C40: 2021
A41: 11 | B41: Thanet | C41: 2022
A42: 12 | B42: Tonbridge & Malling | C42: 2023
A43: 13 | B43: Tunbridge Wells | C43: 2024
A44: 14 | B44: KCC Area | C44: 2025
A45: 15 | B45: Kent (Incl Medway) | C45: 2026
A46: 16 | C46: 2027
A47: 17 | C47: 2028
A48: 18 | C48: 2029
A49: 19 | C49: 2030
A50: 20 | C50: 2031
A51: 21 | C51: 2032
A52: 22 | C52: 2033
A53: 23 | C53: 2034
A54: 24 | C54: 2035
A55: 25 | C55: 2036
A56: 26 | C56: 2037
A57: 27 | C57: 2038
A58: 28 | C58: 2039
A59: 29 | C59: 2040
A60: 30
A61: 31
A62: 32
A63: 33
A64: 34
A65: 35
A66: 36
A67: 37
A68: 38
A69: 39
A70: 40
A71: 41
A72: 42
A73: 43
A74: 44
A75: 45
A76: 46
A77: 47
A78: 48
A79: 49
A80: 50
A81: 51
A82: 52
A83: 53
A84: 54
A85: 55
A86: 56
A87: 57
A88: 58
A89: 59
A90: 60
A91: 61
A92: 62
A93: 63
A94: 64
A95: 65
A96: 66
A97: 67
A98: 68
A99: 69
A100: 70
A101: 71
A102: 72
A103: 73
A104: 74
A105: 75
A106: 76
A107: 77
A108: 78
A109: 79
A110: 80
A111: 81
A112: 82
A113: 83
A114: 84
A115: 85
A116: 86
A117: 87
A118: 88
A119: 89
A120: 90+

Sheet Workbook Methodology (hidden)
A1: Created by: Jeanette Forster, Research & Evaluation, Kent County Council
A2: 29th September 2011
A4: All drop down boxes in this workbook are operated using Index functions
A6: Viewing additional districts using the additional district drop down boxes operates via a macro.
A7: This macro hides and unhides the rows in which the comparitor districts is situated
A8: Additional rows should not be added above row 50 as this will disrupt the macro
A10: When updating the data insert new columns where stated and extend the tables before pasting in the data
A11: New data can be pasted into the yellow sections of each district data worksheet
A12: New date should be added to column in index sheet
A16: The KCC worksheet summs all the district worksheets
A18: The first columns in each grey section of each district worksheet contains calculations which adds the single year data to create a cummulative age
A19: This cummulative age data is used to calculate the selectable ages
A21: The All Districts Rounded Data worksheet rounds the selected age group data calculated on each of the district sheets
A23: All Indexes and drop down lists can be found in the Index worksheet

Sheet All Districts Rounded Data (hidden)
A1: All data on this sheet is rounded from the 'All districts unrounded' worksheet | AG1: Insert column here before extending the table
A8: Selected Ages: | C8: =Index!$C$4&" : "&Index!$C$7 -> 0 : 90+
A10: Males | AH10: Change
B11: 2010 | C11: 2011 | D11: 2012 | E11: 2013 | F11: 2014 | G11: 2015 | H11: 2016 | I11: 2017 | J11: 2018 | K11: 2019 | L11: 2020 | M11: 2021 | N11: 2022 | O11: 2023 | P11: 2024 | Q11: 2025 | R11: 2026 | S11: 2027 | T11: 2028 | U11: 2029 | V11: 2030 | W11: 2031 | X11: 2032 | Y11: 2033 | Z11: 2034 | AA11: 2035 | AB11: 2036 | AC11: 2037 | AD11: 2038 | AE11: 2039 | AF11: 2040 | AH11: =Index!$C$16 -> 2020 | AI11: =Index!$C$19 -> 2040 | AJ11: Number change | AK11: % change
A12: -
A13: Ashford | B13: =ROUND('All Districts unrounded'!F13,-2) -> 56700 | C13: =ROUND('All Districts unrounded'!G13,-2) -> 57400 | D13: =ROUND('All Districts unrounded'!H13,-2) -> 58300 | E13: =ROUND('All Districts unrounded'!I13,-2) -> 59000 | F13: =ROUND('All Districts unrounded'!J13,-2) -> 59800 | G13: =ROUND('All Districts unrounded'!K13,-2) -> 60300 | H13: =ROUND('All Districts unrounded'!L13,-2) -> 61200 | I13: =ROUND('All Districts unrounded'!M13,-2) -> 62000 | J13: =ROUND('All Districts unrounded'!N13,-2) -> 62800 | K13: =ROUND('All Districts unrounded'!O13,-2) -> 63200 | L13: =ROUND('All Districts unrounded'!P13,-2) -> 63700 | M13: =ROUND('All Districts unrounded'!Q13,-2) -> 64500 | N13: =ROUND('All Districts unrounded'!R13,-2) -> 65300 | O13: =ROUND('All Districts unrounded'!S13,-2) -> 66300 | P13: =ROUND('All Districts unrounded'!T13,-2) -> 67400 | Q13: =ROUND('All Districts unrounded'!U13,-2) -> 68600 | R13: =ROUND('All Districts unrounded'!V13,-2) -> 70000 | S13: =ROUND('All Districts unrounded'!W13,-2) -> 71200 | T13: =ROUND('All Districts unrounded'!X13,-2) -> 72500 | U13: =ROUND('All Districts unrounded'!Y13,-2) -> 73800 | V13: =ROUND('All Districts unrounded'!Z13,-2) -> 75100 | W13: =ROUND('All Districts unrounded'!AA13,-2) -> 75900 | X13: =ROUND('All Districts unrounded'!AB13,-2) -> 76600 | Y13: =ROUND('All Districts unrounded'!AC13,-2) -> 77400 | Z13: =ROUND('All Districts unrounded'!AD13,-2) -> 78100 | AA13: =ROUND('All Districts unrounded'!AE13,-2) -> 78900 | AB13: =ROUND('All Districts unrounded'!AF13,-2) -> 79600 | AC13: =ROUND('All Districts unrounded'!AG13,-2) -> 80300 | AD13: =ROUND('All Districts unrounded'!AH13,-2) -> 81100 | AE13: =ROUND('All Districts unrounded'!AI13,-2) -> 81900 | AF13: =ROUND('All Districts unrounded'!AJ13,-2) -> 82600 | AH13: =INDEX($C13:AG13,Index!$B$16) -> 63700 | AI13: =INDEX($C13:AG13,Index!$B$19) -> 82600 | AJ13: =ROUND(ASH!CH$4,-2) -> 19000 | AK13: =ASH!CI$4 -> 0.298378451
A14: Canterbury | B14: =ROUND('All Districts unrounded'!F14,-2) -> 71300 | C14: =ROUND('All Districts unrounded'!G14,-2) -> 72600 | D14: =ROUND('All Districts unrounded'!H14,-2) -> 74100 | E14: =ROUND('All Districts unrounded'!I14,-2) -> 75100 | F14: =ROUND('All Districts unrounded'!J14,-2) -> 76300 | G14: =ROUND('All Districts unrounded'!K14,-2) -> 77900 | H14: =ROUND('All Districts unrounded'!L14,-2) -> 79700 | I14: =ROUND('All Districts unrounded'!M14,-2) -> 80700 | J14: =ROUND('All Districts unrounded'!N14,-2) -> 80900 | K14: =ROUND('All Districts unrounded'!O14,-2) -> 81400 | L14: =ROUND('All Districts unrounded'!P14,-2) -> 82300 | M14: =ROUND('All Districts unrounded'!Q14,-2) -> 83200 | N14: =ROUND('All Districts unrounded'!R14,-2) -> 83800 | O14: =ROUND('All Districts unrounded'!S14,-2) -> 84700 | P14: =ROUND('All Districts unrounded'!T14,-2) -> 85800 | Q14: =ROUND('All Districts unrounded'!U14,-2) -> 87200 | R14: =ROUND('All Districts unrounded'!V14,-2) -> 88600 | S14: =ROUND('All Districts unrounded'!W14,-2) -> 89800 | T14: =ROUND('All Districts unrounded'!X14,-2) -> 91100 | U14: =ROUND('All Districts unrounded'!Y14,-2) -> 92300 | V14: =ROUND('All Districts unrounded'!Z14,-2) -> 93500 | W14: =ROUND('All Districts unrounded'!AA14,-2) -> 94700 | X14: =ROUND('All Districts unrounded'!AB14,-2) -> 95100 | Y14: =ROUND('All Districts unrounded'!AC14,-2) -> 95700 | Z14: =ROUND('All Districts unrounded'!AD14,-2) -> 96200 | AA14: =ROUND('All Districts unrounded'!AE14,-2) -> 96700 | AB14: =ROUND('All Districts unrounded'!AF14,-2) -> 97200 | AC14: =ROUND('All Districts unrounded'!AG14,-2) -> 97700 | AD14: =ROUND('All Districts unrounded'!AH14,-2) -> 98200 | AE14: =ROUND('All Districts unrounded'!AI14,-2) -> 98800 | AF14: =ROUND('All Districts unrounded'!AJ14,-2) -> 99400 | AH14: =INDEX($C14:AG14,Index!$B$16) -> 82300 | AI14: =INDEX($C14:AG14,Index!$B$19) -> 99400 | AJ14: =ROUND(CAN!CH$4,-2) -> 17100 | AK14: =CAN!CI$4 -> 0.2074082068
A15: Dartford | B15: =ROUND('All Districts unrounded'!F15,-2) -> 47500 | C15: =ROUND('All Districts unrounded'!G15,-2) -> 48200 | D15: =ROUND('All Districts unrounded'!H15,-2) -> 48800 | E15: =ROUND('All Districts unrounded'!I15,-2) -> 49600 | F15: =ROUND('All Districts unrounded'!J15,-2) -> 50300 | G15: =ROUND('All Districts unrounded'!K15,-2) -> 50900 | H15: =ROUND('All Districts unrounded'!L15,-2) -> 51600 | I15: =ROUND('All Districts unrounded'!M15,-2) -> 53000 | J15: =ROUND('All Districts unrounded'!N15,-2) -> 54100 | K15: =ROUND('All Districts unrounded'!O15,-2) -> 55500 | L15: =ROUND('All Districts unrounded'!P15,-2) -> 56300 | M15: =ROUND('All Districts unrounded'!Q15,-2) -> 57400 | N15: =ROUND('All Districts unrounded'!R15,-2) -> 58600 | O15: =ROUND('All Districts unrounded'!S15,-2) -> 59700 | P15: =ROUND('All Districts unrounded'!T15,-2) -> 60700 | Q15: =ROUND('All Districts unrounded'!U15,-2) -> 61700 | R15: =ROUND('All Districts unrounded'!V15,-2) -> 62500 | S15: =ROUND('All Districts unrounded'!W15,-2) -> 63300 | T15: =ROUND('All Districts unrounded'!X15,-2) -> 64100 | U15: =ROUND('All Districts unrounded'!Y15,-2) -> 64900 | V15: =ROUND('All Districts unrounded'!Z15,-2) -> 65600 | W15: =ROUND('All Districts unrounded'!AA15,-2) -> 66300 | X15: =ROUND('All Districts unrounded'!AB15,-2) -> 67000 | Y15: =ROUND('All Districts unrounded'!AC15,-2) -> 67700 | Z15: =ROUND('All Districts unrounded'!AD15,-2) -> 68400 | AA15: =ROUND('All Districts unrounded'!AE15,-2) -> 69000 | AB15: =ROUND('All Districts unrounded'!AF15,-2) -> 69700 | AC15: =ROUND('All Districts unrounded'!AG15,-2) -> 70300 | AD15: =ROUND('All Districts unrounded'!AH15,-2) -> 71000 | AE15: =ROUND('All Districts unrounded'!AI15,-2) -> 71700 | AF15: =ROUND('All Districts unrounded'!AJ15,-2) -> 72500 | AH15: =INDEX($C15:AG15,Index!$B$16) -> 56300 | AI15: =INDEX($C15:AG15,Index!$B$19) -> 72500 | AJ15: =ROUND(DAR!CH$4,-2) -> 16200 | AK15: =DAR!CI$4 -> 0.2880949846
A16: Dover | B16: =ROUND('All Districts unrounded'!F16,-2) -> 54300 | C16: =ROUND('All Districts unrounded'!G16,-2) -> 54800 | D16: =ROUND('All Districts unrounded'!H16,-2) -> 54900 | E16: =ROUND('All Districts unrounded'!I16,-2) -> 55300 | F16: =ROUND('All Districts unrounded'!J16,-2) -> 55800 | G16: =ROUND('All Districts unrounded'!K16,-2) -> 55700 | H16: =ROUND('All Districts unrounded'!L16,-2) -> 56400 | I16: =ROUND('All Districts unrounded'!M16,-2) -> 57000 | J16: =ROUND('All Districts unrounded'!N16,-2) -> 57800 | K16: =ROUND('All Districts unrounded'!O16,-2) -> 58400 | L16: =ROUND('All Districts unrounded'!P16,-2) -> 58500 | M16: =ROUND('All Districts unrounded'!Q16,-2) -> 59000 | N16: =ROUND('All Districts unrounded'!R16,-2) -> 59600 | O16: =ROUND('All Districts unrounded'!S16,-2) -> 60400 | P16: =ROUND('All Districts unrounded'!T16,-2) -> 61300 | Q16: =ROUND('All Districts unrounded'!U16,-2) -> 62500 | R16: =ROUND('All Districts unrounded'!V16,-2) -> 63800 | S16: =ROUND('All Districts unrounded'!W16,-2) -> 64000 | T16: =ROUND('All Districts unrounded'!X16,-2) -> 64300 | U16: =ROUND('All Districts unrounded'!Y16,-2) -> 64600 | V16: =ROUND('All Districts unrounded'!Z16,-2) -> 64900 | W16: =ROUND('All Districts unrounded'!AA16,-2) -> 65200 | X16: =ROUND('All Districts unrounded'!AB16,-2) -> 65500 | Y16: =ROUND('All Districts unrounded'!AC16,-2) -> 65800 | Z16: =ROUND('All Districts unrounded'!AD16,-2) -> 66100 | AA16: =ROUND('All Districts unrounded'!AE16,-2) -> 66300 | AB16: =ROUND('All Districts unrounded'!AF16,-2) -> 66600 | AC16: =ROUND('All Districts unrounded'!AG16,-2) -> 66900 | AD16: =ROUND('All Districts unrounded'!AH16,-2) -> 67200 | AE16: =ROUND('All Districts unrounded'!AI16,-2) -> 67600 | AF16: =ROUND('All Districts unrounded'!AJ16,-2) -> 67900 | AH16: =INDEX($C16:AG16,Index!$B$16) -> 58500 | AI16: =INDEX($C16:AG16,Index!$B$19) -> 67900 | AJ16: =ROUND(DOV!CH$4,-2) -> 9400 | AK16: =DOV!CI$4 -> 0.1614602324
A17: Gravesham | B17: =ROUND('All Districts unrounded'!F17,-2) -> 49800 | C17: =ROUND('All Districts unrounded'!G17,-2) -> 50200 | D17: =ROUND('All Districts unrounded'!H17,-2) -> 50600 | E17: =ROUND('All Districts unrounded'!I17,-2) -> 51000 | F17: =ROUND('All Districts unrounded'!J17,-2) -> 51800 | G17: =ROUND('All Districts unrounded'!K17,-2) -> 52300 | H17: =ROUND('All Districts unrounded'!L17,-2) -> 52500 | I17: =ROUND('All Districts unrounded'!M17,-2) -> 52300 | J17: =ROUND('All Districts unrounded'!N17,-2) -> 52300 | K17: =ROUND('All Districts unrounded'!O17,-2) -> 52700 | L17: =ROUND('All Districts unrounded'!P17,-2) -> 52600 | M17: =ROUND('All Districts unrounded'!Q17,-2) -> 52900 | N17: =ROUND('All Districts unrounded'!R17,-2) -> 53200 | O17: =ROUND('All Districts unrounded'!S17,-2) -> 53600 | P17: =ROUND('All Districts unrounded'!T17,-2) -> 54100 | Q17: =ROUND('All Districts unrounded'!U17,-2) -> 54800 | R17: =ROUND('All Districts unrounded'!V17,-2) -> 55400 | S17: =ROUND('All Districts unrounded'!W17,-2) -> 56100 | T17: =ROUND('All Districts unrounded'!X17,-2) -> 56700 | U17: =ROUND('All Districts unrounded'!Y17,-2) -> 57000 | V17: =ROUND('All Districts unrounded'!Z17,-2) -> 57200 | W17: =ROUND('All Districts unrounded'!AA17,-2) -> 57400 | X17: =ROUND('All Districts unrounded'!AB17,-2) -> 57600 | Y17: =ROUND('All Districts unrounded'!AC17,-2) -> 57800 | Z17: =ROUND('All Districts unrounded'!AD17,-2) -> 58100 | AA17: =ROUND('All Districts unrounded'!AE17,-2) -> 58300 | AB17: =ROUND('All Districts unrounded'!AF17,-2) -> 58500 | AC17: =ROUND('All Districts unrounded'!AG17,-2) -> 58800 | AD17: =ROUND('All Districts unrounded'!AH17,-2) -> 59000 | AE17: =ROUND('All Districts unrounded'!AI17,-2) -> 59300 | AF17: =ROUND('All Districts unrounded'!AJ17,-2) -> 59500 | AH17: =INDEX($C17:AG17,Index!$B$16) -> 52600 | AI17: =INDEX($C17:AG17,Index!$B$19) -> 59500 | AJ17: =ROUND(GRA!CH$4,-2) -> 7000 | AK17: =GRA!CI$4 -> 0.1323440923
A18: Maidstone | B18: =ROUND('All Districts unrounded'!F18,-2) -> 75900 | C18: =ROUND('All Districts unrounded'!G18,-2) -> 76900 | D18: =ROUND('All Districts unrounded'!H18,-2) -> 77600 | E18: =ROUND('All Districts unrounded'!I18,-2) -> 78500 | F18: =ROUND('All Districts unrounded'!J18,-2) -> 79700 | G18: =ROUND('All Districts unrounded'!K18,-2) -> 81000 | H18: =ROUND('All Districts unrounded'!L18,-2) -> 81900 | I18: =ROUND('All Districts unrounded'!M18,-2) -> 82800 | J18: =ROUND('All Districts unrounded'!N18,-2) -> 83900 | K18: =ROUND('All Districts unrounded'!O18,-2) -> 84700 | L18: =ROUND('All Districts unrounded'!P18,-2) -> 85300 | M18: =ROUND('All Districts unrounded'!Q18,-2) -> 86300 | N18: =ROUND('All Districts unrounded'!R18,-2) -> 87300 | O18: =ROUND('All Districts unrounded'!S18,-2) -> 88300 | P18: =ROUND('All Districts unrounded'!T18,-2) -> 89200 | Q18: =ROUND('All Districts unrounded'!U18,-2) -> 90200 | R18: =ROUND('All Districts unrounded'!V18,-2) -> 90800 | S18: =ROUND('All Districts unrounded'!W18,-2) -> 91500 | T18: =ROUND('All Districts unrounded'!X18,-2) -> 92100 | U18: =ROUND('All Districts unrounded'!Y18,-2) -> 92700 | V18: =ROUND('All Districts unrounded'!Z18,-2) -> 93300 | W18: =ROUND('All Districts unrounded'!AA18,-2) -> 93900 | X18: =ROUND('All Districts unrounded'!AB18,-2) -> 94600 | Y18: =ROUND('All Districts unrounded'!AC18,-2) -> 95300 | Z18: =ROUND('All Districts unrounded'!AD18,-2) -> 96000 | AA18: =ROUND('All Districts unrounded'!AE18,-2) -> 96700 | AB18: =ROUND('All Districts unrounded'!AF18,-2) -> 97400 | AC18: =ROUND('All Districts unrounded'!AG18,-2) -> 98100 | AD18: =ROUND('All Districts unrounded'!AH18,-2) -> 98800 | AE18: =ROUND('All Districts unrounded'!AI18,-2) -> 99500 | AF18: =ROUND('All Districts unrounded'!AJ18,-2) -> 100300 | AH18: =INDEX($C18:AG18,Index!$B$16) -> 85300 | AI18: =INDEX($C18:AG18,Index!$B$19) -> 100300 | AJ18: =ROUND(MAI!CH$4,-2) -> 15000 | AK18: =MAI!CI$4 -> 0.176080984
A19: Medway | B19: =ROUND('All Districts unrounded'!F19,-2) -> 130300 | C19: =ROUND('All Districts unrounded'!G19,-2) -> 131400 | D19: =ROUND('All Districts unrounded'!H19,-2) -> 132900 | E19: =ROUND('All Districts unrounded'!I19,-2) -> 134200 | F19: =ROUND('All Districts unrounded'!J19,-2) -> 135500 | G19: =ROUND('All Districts unrounded'!K19,-2) -> 136500 | H19: =ROUND('All Districts unrounded'!L19,-2) -> 137300 | I19: =ROUND('All Districts unrounded'!M19,-2) -> 137600 | J19: =ROUND('All Districts unrounded'!N19,-2) -> 137600 | K19: =ROUND('All Districts unrounded'!O19,-2) -> 138100 | L19: =ROUND('All Districts unrounded'!P19,-2) -> 138300 | M19: =ROUND('All Districts unrounded'!Q19,-2) -> 139500 | N19: =ROUND('All Districts unrounded'!R19,-2) -> 140600 | O19: =ROUND('All Districts unrounded'!S19,-2) -> 142000 | P19: =ROUND('All Districts unrounded'!T19,-2) -> 143700 | Q19: =ROUND('All Districts unrounded'!U19,-2) -> 145600 | R19: =ROUND('All Districts unrounded'!V19,-2) -> 147500 | S19: =ROUND('All Districts unrounded'!W19,-2) -> 149300 | T19: =ROUND('All Districts unrounded'!X19,-2) -> 151100 | U19: =ROUND('All Districts unrounded'!Y19,-2) -> 152800 | V19: =ROUND('All Districts unrounded'!Z19,-2) -> 154600 | W19: =ROUND('All Districts unrounded'!AA19,-2) -> 156300 | X19: =ROUND('All Districts unrounded'!AB19,-2) -> 158000 | Y19: =ROUND('All Districts unrounded'!AC19,-2) -> 159700 | Z19: =ROUND('All Districts unrounded'!AD19,-2) -> 161300 | AA19: =ROUND('All Districts unrounded'!AE19,-2) -> 163000 | AB19: =ROUND('All Districts unrounded'!AF19,-2) -> 164600 | AC19: =ROUND('All Districts unrounded'!AG19,-2) -> 166200 | AD19: =ROUND('All Districts unrounded'!AH19,-2) -> 167600 | AE19: =ROUND('All Districts unrounded'!AI19,-2) -> 169000 | AF19: =ROUND('All Districts unrounded'!AJ19,-2) -> 170500 | AH19: =INDEX($C19:AG19,Index!$B$16) -> 138300 | AI19: =INDEX($C19:AG19,Index!$B$19) -> 170500 | AJ19: =ROUND(MED!CH$4,-2) -> 32200 | AK19: =MED!CI$4 -> 0.2331887998
A20: Sevenoaks | B20: =ROUND('All Districts unrounded'!F20,-2) -> 55500 | C20: =ROUND('All Districts unrounded'!G20,-2) -> 56000 | D20: =ROUND('All Districts unrounded'!H20,-2) -> 56400 | E20: =ROUND('All Districts unrounded'!I20,-2) -> 56700 | F20: =ROUND('All Districts unrounded'!J20,-2) -> 56900 | G20: =ROUND('All Districts unrounded'!K20,-2) -> 57200 | H20: =ROUND('All Districts unrounded'!L20,-2) -> 57700 | I20: =ROUND('All Districts unrounded'!M20,-2) -> 58000 | J20: =ROUND('All Districts unrounded'!N20,-2) -> 58400 | K20: =ROUND('All Districts unrounded'!O20,-2) -> 58600 | L20: =ROUND('All Districts unrounded'!P20,-2) -> 58800 | M20: =ROUND('All Districts unrounded'!Q20,-2) -> 59300 | N20: =ROUND('All Districts unrounded'!R20,-2) -> 59800 | O20: =ROUND('All Districts unrounded'!S20,-2) -> 60400 | P20: =ROUND('All Districts unrounded'!T20,-2) -> 61100 | Q20: =ROUND('All Districts unrounded'!U20,-2) -> 62000 | R20: =ROUND('All Districts unrounded'!V20,-2) -> 62800 | S20: =ROUND('All Districts unrounded'!W20,-2) -> 63600 | T20: =ROUND('All Districts unrounded'!X20,-2) -> 64300 | U20: =ROUND('All Districts unrounded'!Y20,-2) -> 65100 | V20: =ROUND('All Districts unrounded'!Z20,-2) -> 65900 | W20: =ROUND('All Districts unrounded'!AA20,-2) -> 66600 | X20: =ROUND('All Districts unrounded'!AB20,-2) -> 67400 | Y20: =ROUND('All Districts unrounded'!AC20,-2) -> 68200 | Z20: =ROUND('All Districts unrounded'!AD20,-2) -> 69000 | AA20: =ROUND('All Districts unrounded'!AE20,-2) -> 69700 | AB20: =ROUND('All Districts unrounded'!AF20,-2) -> 70400 | AC20: =ROUND('All Districts unrounded'!AG20,-2) -> 71100 | AD20: =ROUND('All Districts unrounded'!AH20,-2) -> 71800 | AE20: =ROUND('All Districts unrounded'!AI20,-2) -> 72500 | AF20: =ROUND('All Districts unrounded'!AJ20,-2) -> 73100 | AH20: =INDEX($C20:AG20,Index!$B$16) -> 58800 | AI20: =INDEX($C20:AG20,Index!$B$19) -> 73100 | AJ20: =ROUND(SEV!CH$4,-2) -> 14300 | AK20: =SEV!CI$4 -> 0.2433534204
A21: Folkestone & Hythe | B21: =ROUND('All Districts unrounded'!F21,-2) -> 52600 | C21: =ROUND('All Districts unrounded'!G21,-2) -> 53300 | D21: =ROUND('All Districts unrounded'!H21,-2) -> 53500 | E21: =ROUND('All Districts unrounded'!I21,-2) -> 53700 | F21: =ROUND('All Districts unrounded'!J21,-2) -> 54000 | G21: =ROUND('All Districts unrounded'!K21,-2) -> 54200 | H21: =ROUND('All Districts unrounded'!L21,-2) -> 54800 | I21: =ROUND('All Districts unrounded'!M21,-2) -> 55100 | J21: =ROUND('All Districts unrounded'!N21,-2) -> 55700 | K21: =ROUND('All Districts unrounded'!O21,-2) -> 55900 | L21: =ROUND('All Districts unrounded'!P21,-2) -> 56100 | M21: =ROUND('All Districts unrounded'!Q21,-2) -> 56300 | N21: =ROUND('All Districts unrounded'!R21,-2) -> 56700 | O21: =ROUND('All Districts unrounded'!S21,-2) -> 57100 | P21: =ROUND('All Districts unrounded'!T21,-2) -> 57800 | Q21: =ROUND('All Districts unrounded'!U21,-2) -> 58600 | R21: =ROUND('All Districts unrounded'!V21,-2) -> 59300 | S21: =ROUND('All Districts unrounded'!W21,-2) -> 59900 | T21: =ROUND('All Districts unrounded'!X21,-2) -> 60500 | U21: =ROUND('All Districts unrounded'!Y21,-2) -> 61200 | V21: =ROUND('All Districts unrounded'!Z21,-2) -> 61700 | W21: =ROUND('All Districts unrounded'!AA21,-2) -> 62200 | X21: =ROUND('All Districts unrounded'!AB21,-2) -> 62700 | Y21: =ROUND('All Districts unrounded'!AC21,-2) -> 63200 | Z21: =ROUND('All Districts unrounded'!AD21,-2) -> 63700 | AA21: =ROUND('All Districts unrounded'!AE21,-2) -> 64200 | AB21: =ROUND('All Districts unrounded'!AF21,-2) -> 64600 | AC21: =ROUND('All Districts unrounded'!AG21,-2) -> 65100 | AD21: =ROUND('All Districts unrounded'!AH21,-2) -> 65600 | AE21: =ROUND('All Districts unrounded'!AI21,-2) -> 66100 | AF21: =ROUND('All Districts unrounded'!AJ21,-2) -> 66700 | AH21: =INDEX($C21:AG21,Index!$B$16) -> 56100 | AI21: =INDEX($C21:AG21,Index!$B$19) -> 66700 | AJ21: =ROUND('F&H'!CH$4,-2) -> 10600 | AK21: ='F&H'!CI$4 -> 0.1889918841
A22: Swale | B22: =ROUND('All Districts unrounded'!F22,-2) -> 66700 | C22: =ROUND('All Districts unrounded'!G22,-2) -> 67400 | D22: =ROUND('All Districts unrounded'!H22,-2) -> 68200 | E22: =ROUND('All Districts unrounded'!I22,-2) -> 68900 | F22: =ROUND('All Districts unrounded'!J22,-2) -> 69700 | G22: =ROUND('All Districts unrounded'!K22,-2) -> 70400 | H22: =ROUND('All Districts unrounded'!L22,-2) -> 71600 | I22: =ROUND('All Districts unrounded'!M22,-2) -> 72500 | J22: =ROUND('All Districts unrounded'!N22,-2) -> 73500 | K22: =ROUND('All Districts unrounded'!O22,-2) -> 74300 | L22: =ROUND('All Districts unrounded'!P22,-2) -> 74500 | M22: =ROUND('All Districts unrounded'!Q22,-2) -> 75200 | N22: =ROUND('All Districts unrounded'!R22,-2) -> 76000 | O22: =ROUND('All Districts unrounded'!S22,-2) -> 76800 | P22: =ROUND('All Districts unrounded'!T22,-2) -> 77600 | Q22: =ROUND('All Districts unrounded'!U22,-2) -> 78500 | R22: =ROUND('All Districts unrounded'!V22,-2) -> 79200 | S22: =ROUND('All Districts unrounded'!W22,-2) -> 79900 | T22: =ROUND('All Districts unrounded'!X22,-2) -> 80600 | U22: =ROUND('All Districts unrounded'!Y22,-2) -> 81300 | V22: =ROUND('All Districts unrounded'!Z22,-2) -> 82100 | W22: =ROUND('All Districts unrounded'!AA22,-2) -> 82800 | X22: =ROUND('All Districts unrounded'!AB22,-2) -> 83300 | Y22: =ROUND('All Districts unrounded'!AC22,-2) -> 83900 | Z22: =ROUND('All Districts unrounded'!AD22,-2) -> 84500 | AA22: =ROUND('All Districts unrounded'!AE22,-2) -> 85100 | AB22: =ROUND('All Districts unrounded'!AF22,-2) -> 85700 | AC22: =ROUND('All Districts unrounded'!AG22,-2) -> 86200 | AD22: =ROUND('All Districts unrounded'!AH22,-2) -> 86800 | AE22: =ROUND('All Districts unrounded'!AI22,-2) -> 87400 | AF22: =ROUND('All Districts unrounded'!AJ22,-2) -> 88100 | AH22: =INDEX($C22:AG22,Index!$B$16) -> 74500 | AI22: =INDEX($C22:AG22,Index!$B$19) -> 88100 | AJ22: =ROUND(SWA!CH$4,-2) -> 13500 | AK22: =SWA!CI$4 -> 0.1817002267
A23: Thanet | B23: =ROUND('All Districts unrounded'!F23,-2) -> 64100 | C23: =ROUND('All Districts unrounded'!G23,-2) -> 64700 | D23: =ROUND('All Districts unrounded'!H23,-2) -> 65300 | E23: =ROUND('All Districts unrounded'!I23,-2) -> 65900 | F23: =ROUND('All Districts unrounded'!J23,-2) -> 66800 | G23: =ROUND('All Districts unrounded'!K23,-2) -> 67600 | H23: =ROUND('All Districts unrounded'!L23,-2) -> 68200 | I23: =ROUND('All Districts unrounded'!M23,-2) -> 68500 | J23: =ROUND('All Districts unrounded'!N23,-2) -> 68700 | K23: =ROUND('All Districts unrounded'!O23,-2) -> 68800 | L23: =ROUND('All Districts unrounded'!P23,-2) -> 68500 | M23: =ROUND('All Districts unrounded'!Q23,-2) -> 68800 | N23: =ROUND('All Districts unrounded'!R23,-2) -> 69200 | O23: =ROUND('All Districts unrounded'!S23,-2) -> 69800 | P23: =ROUND('All Districts unrounded'!T23,-2) -> 70700 | Q23: =ROUND('All Districts unrounded'!U23,-2) -> 72100 | R23: =ROUND('All Districts unrounded'!V23,-2) -> 73600 | S23: =ROUND('All Districts unrounded'!W23,-2) -> 75000 | T23: =ROUND('All Districts unrounded'!X23,-2) -> 76500 | U23: =ROUND('All Districts unrounded'!Y23,-2) -> 77900 | V23: =ROUND('All Districts unrounded'!Z23,-2) -> 79400 | W23: =ROUND('All Districts unrounded'!AA23,-2) -> 80800 | X23: =ROUND('All Districts unrounded'!AB23,-2) -> 81300 | Y23: =ROUND('All Districts unrounded'!AC23,-2) -> 81800 | Z23: =ROUND('All Districts unrounded'!AD23,-2) -> 82400 | AA23: =ROUND('All Districts unrounded'!AE23,-2) -> 82900 | AB23: =ROUND('All Districts unrounded'!AF23,-2) -> 83500 | AC23: =ROUND('All Districts unrounded'!AG23,-2) -> 84100 | AD23: =ROUND('All Districts unrounded'!AH23,-2) -> 84700 | AE23: =ROUND('All Districts unrounded'!AI23,-2) -> 85300 | AF23: =ROUND('All Districts unrounded'!AJ23,-2) -> 86000 | AH23: =INDEX($C23:AG23,Index!$B$16) -> 68500 | AI23: =INDEX($C23:AG23,Index!$B$19) -> 86000 | AJ23: =ROUND(THA!CH$4,-2) -> 17500 | AK23: =THA!CI$4 -> 0.254887793
A24: Tonbridge & Malling | B24: =ROUND('All Districts unrounded'!F24,-2) -> 58800 | C24: =ROUND('All Districts unrounded'!G24,-2) -> 59300 | D24: =ROUND('All Districts unrounded'!H24,-2) -> 59900 | E24: =ROUND('All Districts unrounded'!I24,-2) -> 60300 | F24: =ROUND('All Districts unrounded'!J24,-2) -> 61000 | G24: =ROUND('All Districts unrounded'!K24,-2) -> 61600 | H24: =ROUND('All Districts unrounded'!L24,-2) -> 62300 | I24: =ROUND('All Districts unrounded'!M24,-2) -> 63100 | J24: =ROUND('All Districts unrounded'!N24,-2) -> 63800 | K24: =ROUND('All Districts unrounded'!O24,-2) -> 64600 | L24: =ROUND('All Districts unrounded'!P24,-2) -> 64700 | M24: =ROUND('All Districts unrounded'!Q24,-2) -> 65500 | N24: =ROUND('All Districts unrounded'!R24,-2) -> 66100 | O24: =ROUND('All Districts unrounded'!S24,-2) -> 66900 | P24: =ROUND('All Districts unrounded'!T24,-2) -> 67700 | Q24: =ROUND('All Districts unrounded'!U24,-2) -> 68600 | R24: =ROUND('All Districts unrounded'!V24,-2) -> 69400 | S24: =ROUND('All Districts unrounded'!W24,-2) -> 70200 | T24: =ROUND('All Districts unrounded'!X24,-2) -> 71000 | U24: =ROUND('All Districts unrounded'!Y24,-2) -> 71700 | V24: =ROUND('All Districts unrounded'!Z24,-2) -> 72500 | W24: =ROUND('All Districts unrounded'!AA24,-2) -> 73300 | X24: =ROUND('All Districts unrounded'!AB24,-2) -> 74100 | Y24: =ROUND('All Districts unrounded'!AC24,-2) -> 74900 | Z24: =ROUND('All Districts unrounded'!AD24,-2) -> 75600 | AA24: =ROUND('All Districts unrounded'!AE24,-2) -> 76400 | AB24: =ROUND('All Districts unrounded'!AF24,-2) -> 77100 | AC24: =ROUND('All Districts unrounded'!AG24,-2) -> 77900 | AD24: =ROUND('All Districts unrounded'!AH24,-2) -> 78600 | AE24: =ROUND('All Districts unrounded'!AI24,-2) -> 79400 | AF24: =ROUND('All Districts unrounded'!AJ24,-2) -> 80200 | AH24: =INDEX($C24:AG24,Index!$B$16) -> 64700 | AI24: =INDEX($C24:AG24,Index!$B$19) -> 80200 | AJ24: =ROUND(TON!CH$4,-2) -> 15500 | AK24: =TON!CI$4 -> 0.2388084797
A25: Tunbridge Wells | B25: =ROUND('All Districts unrounded'!F25,-2) -> 56000 | C25: =ROUND('All Districts unrounded'!G25,-2) -> 56600 | D25: =ROUND('All Districts unrounded'!H25,-2) -> 56800 | E25: =ROUND('All Districts unrounded'!I25,-2) -> 57100 | F25: =ROUND('All Districts unrounded'!J25,-2) -> 57400 | G25: =ROUND('All Districts unrounded'!K25,-2) -> 57500 | H25: =ROUND('All Districts unrounded'!L25,-2) -> 57900 | I25: =ROUND('All Districts unrounded'!M25,-2) -> 58300 | J25: =ROUND('All Districts unrounded'!N25,-2) -> 58200 | K25: =ROUND('All Districts unrounded'!O25,-2) -> 58600 | L25: =ROUND('All Districts unrounded'!P25,-2) -> 58600 | M25: =ROUND('All Districts unrounded'!Q25,-2) -> 59100 | N25: =ROUND('All Districts unrounded'!R25,-2) -> 59500 | O25: =ROUND('All Districts unrounded'!S25,-2) -> 60000 | P25: =ROUND('All Districts unrounded'!T25,-2) -> 60600 | Q25: =ROUND('All Districts unrounded'!U25,-2) -> 61100 | R25: =ROUND('All Districts unrounded'!V25,-2) -> 61500 | S25: =ROUND('All Districts unrounded'!W25,-2) -> 61900 | T25: =ROUND('All Districts unrounded'!X25,-2) -> 62300 | U25: =ROUND('All Districts unrounded'!Y25,-2) -> 62700 | V25: =ROUND('All Districts unrounded'!Z25,-2) -> 63200 | W25: =ROUND('All Districts unrounded'!AA25,-2) -> 63600 | X25: =ROUND('All Districts unrounded'!AB25,-2) -> 64100 | Y25: =ROUND('All Districts unrounded'!AC25,-2) -> 64600 | Z25: =ROUND('All Districts unrounded'!AD25,-2) -> 65000 | AA25: =ROUND('All Districts unrounded'!AE25,-2) -> 65500 | AB25: =ROUND('All Districts unrounded'!AF25,-2) -> 66000 | AC25: =ROUND('All Districts unrounded'!AG25,-2) -> 66500 | AD25: =ROUND('All Districts unrounded'!AH25,-2) -> 67000 | AE25: =ROUND('All Districts unrounded'!AI25,-2) -> 67400 | AF25: =ROUND('All Districts unrounded'!AJ25,-2) -> 67900 | AH25: =INDEX($C25:AG25,Index!$B$16) -> 58600 | AI25: =INDEX($C25:AG25,Index!$B$19) -> 67900 | AJ25: =ROUND(TUN!CH$4,-2) -> 9300 | AK25: =TUN!CI$4 -> 0.158900063
A26: KCC Area | B26: =ROUND('All Districts unrounded'!F26,-2) -> 709200 | C26: =ROUND('All Districts unrounded'!G26,-2) -> 717200 | D26: =ROUND('All Districts unrounded'!H26,-2) -> 724300 | E26: =ROUND('All Districts unrounded'!I26,-2) -> 731200 | F26: =ROUND('All Districts unrounded'!J26,-2) -> 739500 | G26: =ROUND('All Districts unrounded'!K26,-2) -> 746500 | H26: =ROUND('All Districts unrounded'!L26,-2) -> 755700 | I26: =ROUND('All Districts unrounded'!M26,-2) -> 763300 | J26: =ROUND('All Districts unrounded'!N26,-2) -> 770100 | K26: =ROUND('All Districts unrounded'!O26,-2) -> 776700 | L26: =ROUND('All Districts unrounded'!P26,-2) -> 779800 | M26: =ROUND('All Districts unrounded'!Q26,-2) -> 787600 | N26: =ROUND('All Districts unrounded'!R26,-2) -> 795200 | O26: =ROUND('All Districts unrounded'!S26,-2) -> 804000 | P26: =ROUND('All Districts unrounded'!T26,-2) -> 814000 | Q26: =ROUND('All Districts unrounded'!U26,-2) -> 825900 | R26: =ROUND('All Districts unrounded'!V26,-2) -> 836900 | S26: =ROUND('All Districts unrounded'!W26,-2) -> 846500 | T26: =ROUND('All Districts unrounded'!X26,-2) -> 856100 | U26: =ROUND('All Districts unrounded'!Y26,-2) -> 865400 | V26: =ROUND('All Districts unrounded'!Z26,-2) -> 874500 | W26: =ROUND('All Districts unrounded'!AA26,-2) -> 882700 | X26: =ROUND('All Districts unrounded'!AB26,-2) -> 889300 | Y26: =ROUND('All Districts unrounded'!AC26,-2) -> 896100 | Z26: =ROUND('All Districts unrounded'!AD26,-2) -> 903000 | AA26: =ROUND('All Districts unrounded'!AE26,-2) -> 909800 | AB26: =ROUND('All Districts unrounded'!AF26,-2) -> 916400 | AC26: =ROUND('All Districts unrounded'!AG26,-2) -> 923000 | AD26: =ROUND('All Districts unrounded'!AH26,-2) -> 930000 | AE26: =ROUND('All Districts unrounded'!AI26,-2) -> 937000 | AF26: =ROUND('All Districts unrounded'!AJ26,-2) -> 944100 | AH26: =INDEX($C26:AG26,Index!$B$16) -> 779800 | AI26: =INDEX($C26:AG26,Index!$B$19) -> 944100 | AJ26: =ROUND(KCC!CH$4,-2) -> 164400 | AK26: =KCC!CI$4 -> 0.2107889329
A27: Kent (Incl Medway) | B27: =ROUND('All Districts unrounded'!F27,-2) -> 839600 | C27: =ROUND('All Districts unrounded'!G27,-2) -> 848600 | D27: =ROUND('All Districts unrounded'!H27,-2) -> 857200 | E27: =ROUND('All Districts unrounded'!I27,-2) -> 865400 | F27: =ROUND('All Districts unrounded'!J27,-2) -> 875000 | G27: =ROUND('All Districts unrounded'!K27,-2) -> 883100 | H27: =ROUND('All Districts unrounded'!L27,-2) -> 893100 | I27: =ROUND('All Districts unrounded'!M27,-2) -> 900900 | J27: =ROUND('All Districts unrounded'!N27,-2) -> 907700 | K27: =ROUND('All Districts unrounded'!O27,-2) -> 914800 | L27: =ROUND('All Districts unrounded'!P27,-2) -> 918000 | M27: =ROUND('All Districts unrounded'!Q27,-2) -> 927100 | N27: =ROUND('All Districts unrounded'!R27,-2) -> 935800 | O27: =ROUND('All Districts unrounded'!S27,-2) -> 946000 | P27: =ROUND('All Districts unrounded'!T27,-2) -> 957700 | Q27: =ROUND('All Districts unrounded'!U27,-2) -> 971500 | R27: =ROUND('All Districts unrounded'!V27,-2) -> 984400 | S27: =ROUND('All Districts unrounded'!W27,-2) -> 995700 | T27: =ROUND('All Districts unrounded'!X27,-2) -> 1007200 | U27: =ROUND('All Districts unrounded'!Y27,-2) -> 1018200 | V27: =ROUND('All Districts unrounded'!Z27,-2) -> 1029100 | W27: =ROUND('All Districts unrounded'!AA27,-2) -> 1039000 | X27: =ROUND('All Districts unrounded'!AB27,-2) -> 1047300 | Y27: =ROUND('All Districts unrounded'!AC27,-2) -> 1055800 | Z27: =ROUND('All Districts unrounded'!AD27,-2) -> 1064300 | AA27: =ROUND('All Districts unrounded'!AE27,-2) -> 1072800 | AB27: =ROUND('All Districts unrounded'!AF27,-2) -> 1080900 | AC27: =ROUND('All Districts unrounded'!AG27,-2) -> 1089200 | AD27: =ROUND('All Districts unrounded'!AH27,-2) -> 1097600 | AE27: =ROUND('All Districts unrounded'!AI27,-2) -> 1106000 | AF27: =ROUND('All Districts unrounded'!AJ27,-2) -> 1114600 | AH27: =INDEX($C27:AG27,Index!$B$16) -> 918000 | AI27: =INDEX($C27:AG27,Index!$B$19) -> 1114600 | AJ27: =ROUND(Kent!CH$4,-2) -> 196600 | AK27: =Kent!CI$4 -> 0.2141623585
A30: Females
B31: 2010 | C31: 2011 | D31: 2012 | E31: 2013 | F31: 2014 | G31: 2015 | H31: 2016 | I31: 2017 | J31: 2018 | K31: 2019 | L31: 2020 | M31: 2021 | N31: 2022 | O31: 2023 | P31: 2024 | Q31: 2025 | R31: 2026 | S31: 2027 | T31: 2028 | U31: 2029 | V31: 2030 | W31: 2031 | X31: 2032 | Y31: 2033 | Z31: 2034 | AA31: 2035 | AB31: 2036 | AC31: 2037 | AD31: 2038 | AE31: 2039 | AF31: 2040 | AH31: =Index!$C$16 -> 2020 | AI31: =Index!$C$19 -> 2040 | AJ31: Number change | AK31: % change
A32: -
A33: Ashford | B33: =ROUND('All Districts unrounded'!F33,-2) -> 60200 | C33: =ROUND('All Districts unrounded'!G33,-2) -> 61000 | D33: =ROUND('All Districts unrounded'!H33,-2) -> 61900 | E33: =ROUND('All Districts unrounded'!I33,-2) -> 62700 | F33: =ROUND('All Districts unrounded'!J33,-2) -> 63400 | G33: =ROUND('All Districts unrounded'!K33,-2) -> 63800 | H33: =ROUND('All Districts unrounded'!L33,-2) -> 64700 | I33: =ROUND('All Districts unrounded'!M33,-2) -> 65500 | J33: =ROUND('All Districts unrounded'!N33,-2) -> 66400 | K33: =ROUND('All Districts unrounded'!O33,-2) -> 66800 | L33: =ROUND('All Districts unrounded'!P33,-2) -> 67400 | M33: =ROUND('All Districts unrounded'!Q33,-2) -> 68200 | N33: =ROUND('All Districts unrounded'!R33,-2) -> 69000 | O33: =ROUND('All Districts unrounded'!S33,-2) -> 70000 | P33: =ROUND('All Districts unrounded'!T33,-2) -> 71100 | Q33: =ROUND('All Districts unrounded'!U33,-2) -> 72400 | R33: =ROUND('All Districts unrounded'!V33,-2) -> 73700 | S33: =ROUND('All Districts unrounded'!W33,-2) -> 75000 | T33: =ROUND('All Districts unrounded'!X33,-2) -> 76300 | U33: =ROUND('All Districts unrounded'!Y33,-2) -> 77600 | V33: =ROUND('All Districts unrounded'!Z33,-2) -> 78900 | W33: =ROUND('All Districts unrounded'!AA33,-2) -> 79600 | X33: =ROUND('All Districts unrounded'!AB33,-2) -> 80300 | Y33: =ROUND('All Districts unrounded'!AC33,-2) -> 81100 | Z33: =ROUND('All Districts unrounded'!AD33,-2) -> 81800 | AA33: =ROUND('All Districts unrounded'!AE33,-2) -> 82600 | AB33: =ROUND('All Districts unrounded'!AF33,-2) -> 83300 | AC33: =ROUND('All Districts unrounded'!AG33,-2) -> 84000 | AD33: =ROUND('All Districts unrounded'!AH33,-2) -> 84800 | AE33: =ROUND('All Districts unrounded'!AI33,-2) -> 85500 | AF33: =ROUND('All Districts unrounded'!AJ33,-2) -> 86300 | AH33: =INDEX($C33:AG33,Index!$B$16) -> 67400 | AI33: =INDEX($C33:AG33,Index!$B$19) -> 86300 | AJ33: =ROUND(ASH!CH$5,-2) -> 18900 | AK33: =ASH!CI$5 -> 0.2812768003
A34: Canterbury | B34: =ROUND('All Districts unrounded'!F34,-2) -> 77300 | C34: =ROUND('All Districts unrounded'!G34,-2) -> 78000 | D34: =ROUND('All Districts unrounded'!H34,-2) -> 79100 | E34: =ROUND('All Districts unrounded'!I34,-2) -> 79800 | F34: =ROUND('All Districts unrounded'!J34,-2) -> 80700 | G34: =ROUND('All Districts unrounded'!K34,-2) -> 81800 | H34: =ROUND('All Districts unrounded'!L34,-2) -> 82800 | I34: =ROUND('All Districts unrounded'!M34,-2) -> 83400 | J34: =ROUND('All Districts unrounded'!N34,-2) -> 83700 | K34: =ROUND('All Districts unrounded'!O34,-2) -> 84000 | L34: =ROUND('All Districts unrounded'!P34,-2) -> 84400 | M34: =ROUND('All Districts unrounded'!Q34,-2) -> 85100 | N34: =ROUND('All Districts unrounded'!R34,-2) -> 85500 | O34: =ROUND('All Districts unrounded'!S34,-2) -> 86200 | P34: =ROUND('All Districts unrounded'!T34,-2) -> 87300 | Q34: =ROUND('All Districts unrounded'!U34,-2) -> 88800 | R34: =ROUND('All Districts unrounded'!V34,-2) -> 90100 | S34: =ROUND('All Districts unrounded'!W34,-2) -> 91400 | T34: =ROUND('All Districts unrounded'!X34,-2) -> 92600 | U34: =ROUND('All Districts unrounded'!Y34,-2) -> 93800 | V34: =ROUND('All Districts unrounded'!Z34,-2) -> 94900 | W34: =ROUND('All Districts unrounded'!AA34,-2) -> 96100 | X34: =ROUND('All Districts unrounded'!AB34,-2) -> 96300 | Y34: =ROUND('All Districts unrounded'!AC34,-2) -> 96700 | Z34: =ROUND('All Districts unrounded'!AD34,-2) -> 97000 | AA34: =ROUND('All Districts unrounded'!AE34,-2) -> 97400 | AB34: =ROUND('All Districts unrounded'!AF34,-2) -> 97800 | AC34: =ROUND('All Districts unrounded'!AG34,-2) -> 98100 | AD34: =ROUND('All Districts unrounded'!AH34,-2) -> 98500 | AE34: =ROUND('All Districts unrounded'!AI34,-2) -> 98900 | AF34: =ROUND('All Districts unrounded'!AJ34,-2) -> 99400 | AH34: =INDEX($C34:AG34,Index!$B$16) -> 84400 | AI34: =INDEX($C34:AG34,Index!$B$19) -> 99400 | AJ34: =ROUND(CAN!CH$5,-2) -> 14900 | AK34: =CAN!CI$5 -> 0.1768291661
A35: Dartford | B35: =ROUND('All Districts unrounded'!F35,-2) -> 48800 | C35: =ROUND('All Districts unrounded'!G35,-2) -> 49400 | D35: =ROUND('All Districts unrounded'!H35,-2) -> 50100 | E35: =ROUND('All Districts unrounded'!I35,-2) -> 50800 | F35: =ROUND('All Districts unrounded'!J35,-2) -> 51700 | G35: =ROUND('All Districts unrounded'!K35,-2) -> 52600 | H35: =ROUND('All Districts unrounded'!L35,-2) -> 53500 | I35: =ROUND('All Districts unrounded'!M35,-2) -> 54600 | J35: =ROUND('All Districts unrounded'!N35,-2) -> 55600 | K35: =ROUND('All Districts unrounded'!O35,-2) -> 57100 | L35: =ROUND('All Districts unrounded'!P35,-2) -> 57800 | M35: =ROUND('All Districts unrounded'!Q35,-2) -> 58800 | N35: =ROUND('All Districts unrounded'!R35,-2) -> 59800 | O35: =ROUND('All Districts unrounded'!S35,-2) -> 60800 | P35: =ROUND('All Districts unrounded'!T35,-2) -> 61800 | Q35: =ROUND('All Districts unrounded'!U35,-2) -> 62700 | R35: =ROUND('All Districts unrounded'!V35,-2) -> 63300 | S35: =ROUND('All Districts unrounded'!W35,-2) -> 64000 | T35: =ROUND('All Districts unrounded'!X35,-2) -> 64700 | U35: =ROUND('All Districts unrounded'!Y35,-2) -> 65300 | V35: =ROUND('All Districts unrounded'!Z35,-2) -> 65900 | W35: =ROUND('All Districts unrounded'!AA35,-2) -> 66500 | X35: =ROUND('All Districts unrounded'!AB35,-2) -> 67100 | Y35: =ROUND('All Districts unrounded'!AC35,-2) -> 67700 | Z35: =ROUND('All Districts unrounded'!AD35,-2) -> 68200 | AA35: =ROUND('All Districts unrounded'!AE35,-2) -> 68800 | AB35: =ROUND('All Districts unrounded'!AF35,-2) -> 69400 | AC35: =ROUND('All Districts unrounded'!AG35,-2) -> 70000 | AD35: =ROUND('All Districts unrounded'!AH35,-2) -> 70600 | AE35: =ROUND('All Districts unrounded'!AI35,-2) -> 71200 | AF35: =ROUND('All Districts unrounded'!AJ35,-2) -> 71900 | AH35: =INDEX($C35:AG35,Index!$B$16) -> 57800 | AI35: =INDEX($C35:AG35,Index!$B$19) -> 71900 | AJ35: =ROUND(DAR!CH$5,-2) -> 14100 | AK35: =DAR!CI$5 -> 0.2443696752
A36: Dover | B36: =ROUND('All Districts unrounded'!F36,-2) -> 56700 | C36: =ROUND('All Districts unrounded'!G36,-2) -> 56900 | D36: =ROUND('All Districts unrounded'!H36,-2) -> 56900 | E36: =ROUND('All Districts unrounded'!I36,-2) -> 57200 | F36: =ROUND('All Districts unrounded'!J36,-2) -> 57500 | G36: =ROUND('All Districts unrounded'!K36,-2) -> 57700 | H36: =ROUND('All Districts unrounded'!L36,-2) -> 58200 | I36: =ROUND('All Districts unrounded'!M36,-2) -> 58800 | J36: =ROUND('All Districts unrounded'!N36,-2) -> 59200 | K36: =ROUND('All Districts unrounded'!O36,-2) -> 59800 | L36: =ROUND('All Districts unrounded'!P36,-2) -> 60100 | M36: =ROUND('All Districts unrounded'!Q36,-2) -> 60400 | N36: =ROUND('All Districts unrounded'!R36,-2) -> 60800 | O36: =ROUND('All Districts unrounded'!S36,-2) -> 61400 | P36: =ROUND('All Districts unrounded'!T36,-2) -> 62100 | Q36: =ROUND('All Districts unrounded'!U36,-2) -> 63100 | R36: =ROUND('All Districts unrounded'!V36,-2) -> 64200 | S36: =ROUND('All Districts unrounded'!W36,-2) -> 64300 | T36: =ROUND('All Districts unrounded'!X36,-2) -> 64400 | U36: =ROUND('All Districts unrounded'!Y36,-2) -> 64500 | V36: =ROUND('All Districts unrounded'!Z36,-2) -> 64700 | W36: =ROUND('All Districts unrounded'!AA36,-2) -> 64800 | X36: =ROUND('All Districts unrounded'!AB36,-2) -> 65000 | Y36: =ROUND('All Districts unrounded'!AC36,-2) -> 65100 | Z36: =ROUND('All Districts unrounded'!AD36,-2) -> 65300 | AA36: =ROUND('All Districts unrounded'!AE36,-2) -> 65500 | AB36: =ROUND('All Districts unrounded'!AF36,-2) -> 65600 | AC36: =ROUND('All Districts unrounded'!AG36,-2) -> 65800 | AD36: =ROUND('All Districts unrounded'!AH36,-2) -> 66000 | AE36: =ROUND('All Districts unrounded'!AI36,-2) -> 66200 | AF36: =ROUND('All Districts unrounded'!AJ36,-2) -> 66400 | AH36: =INDEX($C36:AG36,Index!$B$16) -> 60100 | AI36: =INDEX($C36:AG36,Index!$B$19) -> 66400 | AJ36: =ROUND(DOV!CH$5,-2) -> 6300 | AK36: =DOV!CI$5 -> 0.1054065865
A37: Gravesham | B37: =ROUND('All Districts unrounded'!F37,-2) -> 51300 | C37: =ROUND('All Districts unrounded'!G37,-2) -> 51600 | D37: =ROUND('All Districts unrounded'!H37,-2) -> 51900 | E37: =ROUND('All Districts unrounded'!I37,-2) -> 52400 | F37: =ROUND('All Districts unrounded'!J37,-2) -> 53000 | G37: =ROUND('All Districts unrounded'!K37,-2) -> 53500 | H37: =ROUND('All Districts unrounded'!L37,-2) -> 53800 | I37: =ROUND('All Districts unrounded'!M37,-2) -> 53800 | J37: =ROUND('All Districts unrounded'!N37,-2) -> 54100 | K37: =ROUND('All Districts unrounded'!O37,-2) -> 54300 | L37: =ROUND('All Districts unrounded'!P37,-2) -> 54300 | M37: =ROUND('All Districts unrounded'!Q37,-2) -> 54800 | N37: =ROUND('All Districts unrounded'!R37,-2) -> 55200 | O37: =ROUND('All Districts unrounded'!S37,-2) -> 55700 | P37: =ROUND('All Districts unrounded'!T37,-2) -> 56400 | Q37: =ROUND('All Districts unrounded'!U37,-2) -> 57100 | R37: =ROUND('All Districts unrounded'!V37,-2) -> 57900 | S37: =ROUND('All Districts unrounded'!W37,-2) -> 58600 | T37: =ROUND('All Districts unrounded'!X37,-2) -> 59400 | U37: =ROUND('All Districts unrounded'!Y37,-2) -> 59700 | V37: =ROUND('All Districts unrounded'!Z37,-2) -> 60000 | W37: =ROUND('All Districts unrounded'!AA37,-2) -> 60200 | X37: =ROUND('All Districts unrounded'!AB37,-2) -> 60500 | Y37: =ROUND('All Districts unrounded'!AC37,-2) -> 60700 | Z37: =ROUND('All Districts unrounded'!AD37,-2) -> 61000 | AA37: =ROUND('All Districts unrounded'!AE37,-2) -> 61300 | AB37: =ROUND('All Districts unrounded'!AF37,-2) -> 61500 | AC37: =ROUND('All Districts unrounded'!AG37,-2) -> 61800 | AD37: =ROUND('All Districts unrounded'!AH37,-2) -> 62000 | AE37: =ROUND('All Districts unrounded'!AI37,-2) -> 62300 | AF37: =ROUND('All Districts unrounded'!AJ37,-2) -> 62600 | AH37: =INDEX($C37:AG37,Index!$B$16) -> 54300 | AI37: =INDEX($C37:AG37,Index!$B$19) -> 62600 | AJ37: =ROUND(GRA!CH$5,-2) -> 8300 | AK37: =GRA!CI$5 -> 0.1532482806
A38: Maidstone | B38: =ROUND('All Districts unrounded'!F38,-2) -> 77900 | C38: =ROUND('All Districts unrounded'!G38,-2) -> 78900 | D38: =ROUND('All Districts unrounded'!H38,-2) -> 79800 | E38: =ROUND('All Districts unrounded'!I38,-2) -> 80700 | F38: =ROUND('All Districts unrounded'!J38,-2) -> 81800 | G38: =ROUND('All Districts unrounded'!K38,-2) -> 83000 | H38: =ROUND('All Districts unrounded'!L38,-2) -> 83800 | I38: =ROUND('All Districts unrounded'!M38,-2) -> 85000 | J38: =ROUND('All Districts unrounded'!N38,-2) -> 86100 | K38: =ROUND('All Districts unrounded'!O38,-2) -> 87100 | L38: =ROUND('All Districts unrounded'!P38,-2) -> 87900 | M38: =ROUND('All Districts unrounded'!Q38,-2) -> 89000 | N38: =ROUND('All Districts unrounded'!R38,-2) -> 90000 | O38: =ROUND('All Districts unrounded'!S38,-2) -> 91000 | P38: =ROUND('All Districts unrounded'!T38,-2) -> 92000 | Q38: =ROUND('All Districts unrounded'!U38,-2) -> 93000 | R38: =ROUND('All Districts unrounded'!V38,-2) -> 93700 | S38: =ROUND('All Districts unrounded'!W38,-2) -> 94400 | T38: =ROUND('All Districts unrounded'!X38,-2) -> 95100 | U38: =ROUND('All Districts unrounded'!Y38,-2) -> 95800 | V38: =ROUND('All Districts unrounded'!Z38,-2) -> 96500 | W38: =ROUND('All Districts unrounded'!AA38,-2) -> 97100 | X38: =ROUND('All Districts unrounded'!AB38,-2) -> 97900 | Y38: =ROUND('All Districts unrounded'!AC38,-2) -> 98700 | Z38: =ROUND('All Districts unrounded'!AD38,-2) -> 99400 | AA38: =ROUND('All Districts unrounded'!AE38,-2) -> 100200 | AB38: =ROUND('All Districts unrounded'!AF38,-2) -> 100900 | AC38: =ROUND('All Districts unrounded'!AG38,-2) -> 101700 | AD38: =ROUND('All Districts unrounded'!AH38,-2) -> 102400 | AE38: =ROUND('All Districts unrounded'!AI38,-2) -> 103200 | AF38: =ROUND('All Districts unrounded'!AJ38,-2) -> 103900 | AH38: =INDEX($C38:AG38,Index!$B$16) -> 87900 | AI38: =INDEX($C38:AG38,Index!$B$19) -> 103900 | AJ38: =ROUND(MAI!CH$5,-2) -> 16100 | AK38: =MAI!CI$5 -> 0.18288017
A39: Medway | B39: =ROUND('All Districts unrounded'!F39,-2) -> 132400 | C39: =ROUND('All Districts unrounded'!G39,-2) -> 133500 | D39: =ROUND('All Districts unrounded'!H39,-2) -> 135300 | E39: =ROUND('All Districts unrounded'!I39,-2) -> 136500 | F39: =ROUND('All Districts unrounded'!J39,-2) -> 137700 | G39: =ROUND('All Districts unrounded'!K39,-2) -> 138600 | H39: =ROUND('All Districts unrounded'!L39,-2) -> 139600 | I39: =ROUND('All Districts unrounded'!M39,-2) -> 140000 | J39: =ROUND('All Districts unrounded'!N39,-2) -> 140200 | K39: =ROUND('All Districts unrounded'!O39,-2) -> 140500 | L39: =ROUND('All Districts unrounded'!P39,-2) -> 140900 | M39: =ROUND('All Districts unrounded'!Q39,-2) -> 142200 | N39: =ROUND('All Districts unrounded'!R39,-2) -> 143400 | O39: =ROUND('All Districts unrounded'!S39,-2) -> 145000 | P39: =ROUND('All Districts unrounded'!T39,-2) -> 146800 | Q39: =ROUND('All Districts unrounded'!U39,-2) -> 148900 | R39: =ROUND('All Districts unrounded'!V39,-2) -> 150900 | S39: =ROUND('All Districts unrounded'!W39,-2) -> 152900 | T39: =ROUND('All Districts unrounded'!X39,-2) -> 154900 | U39: =ROUND('All Districts unrounded'!Y39,-2) -> 156800 | V39: =ROUND('All Districts unrounded'!Z39,-2) -> 158700 | W39: =ROUND('All Districts unrounded'!AA39,-2) -> 160600 | X39: =ROUND('All Districts unrounded'!AB39,-2) -> 162400 | Y39: =ROUND('All Districts unrounded'!AC39,-2) -> 164200 | Z39: =ROUND('All Districts unrounded'!AD39,-2) -> 166000 | AA39: =ROUND('All Districts unrounded'!AE39,-2) -> 167800 | AB39: =ROUND('All Districts unrounded'!AF39,-2) -> 169500 | AC39: =ROUND('All Districts unrounded'!AG39,-2) -> 171300 | AD39: =ROUND('All Districts unrounded'!AH39,-2) -> 172800 | AE39: =ROUND('All Districts unrounded'!AI39,-2) -> 174300 | AF39: =ROUND('All Districts unrounded'!AJ39,-2) -> 175800 | AH39: =INDEX($C39:AG39,Index!$B$16) -> 140900 | AI39: =INDEX($C39:AG39,Index!$B$19) -> 175800 | AJ39: =ROUND(MED!CH$5,-2) -> 34900 | AK39: =MED!CI$5 -> 0.2479361996
A40: Sevenoaks | B40: =ROUND('All Districts unrounded'!F40,-2) -> 59000 | C40: =ROUND('All Districts unrounded'!G40,-2) -> 59400 | D40: =ROUND('All Districts unrounded'!H40,-2) -> 59900 | E40: =ROUND('All Districts unrounded'!I40,-2) -> 60200 | F40: =ROUND('All Districts unrounded'!J40,-2) -> 60700 | G40: =ROUND('All Districts unrounded'!K40,-2) -> 60900 | H40: =ROUND('All Districts unrounded'!L40,-2) -> 61300 | I40: =ROUND('All Districts unrounded'!M40,-2) -> 61500 | J40: =ROUND('All Districts unrounded'!N40,-2) -> 61900 | K40: =ROUND('All Districts unrounded'!O40,-2) -> 62100 | L40: =ROUND('All Districts unrounded'!P40,-2) -> 62600 | M40: =ROUND('All Districts unrounded'!Q40,-2) -> 63000 | N40: =ROUND('All Districts unrounded'!R40,-2) -> 63500 | O40: =ROUND('All Districts unrounded'!S40,-2) -> 64000 | P40: =ROUND('All Districts unrounded'!T40,-2) -> 64700 | Q40: =ROUND('All Districts unrounded'!U40,-2) -> 65500 | R40: =ROUND('All Districts unrounded'!V40,-2) -> 66300 | S40: =ROUND('All Districts unrounded'!W40,-2) -> 67100 | T40: =ROUND('All Districts unrounded'!X40,-2) -> 67800 | U40: =ROUND('All Districts unrounded'!Y40,-2) -> 68600 | V40: =ROUND('All Districts unrounded'!Z40,-2) -> 69400 | W40: =ROUND('All Districts unrounded'!AA40,-2) -> 70100 | X40: =ROUND('All Districts unrounded'!AB40,-2) -> 70900 | Y40: =ROUND('All Districts unrounded'!AC40,-2) -> 71700 | Z40: =ROUND('All Districts unrounded'!AD40,-2) -> 72500 | AA40: =ROUND('All Districts unrounded'!AE40,-2) -> 73300 | AB40: =ROUND('All Districts unrounded'!AF40,-2) -> 73900 | AC40: =ROUND('All Districts unrounded'!AG40,-2) -> 74500 | AD40: =ROUND('All Districts unrounded'!AH40,-2) -> 75200 | AE40: =ROUND('All Districts unrounded'!AI40,-2) -> 75900 | AF40: =ROUND('All Districts unrounded'!AJ40,-2) -> 76500 | AH40: =INDEX($C40:AG40,Index!$B$16) -> 62600 | AI40: =INDEX($C40:AG40,Index!$B$19) -> 76500 | AJ40: =ROUND(SEV!CH$5,-2) -> 14000 | AK40: =SEV!CI$5 -> 0.2234873876
A41: Folkestone & Hythe | B41: =ROUND('All Districts unrounded'!F41,-2) -> 54400 | C41: =ROUND('All Districts unrounded'!G41,-2) -> 54900 | D41: =ROUND('All Districts unrounded'!H41,-2) -> 55100 | E41: =ROUND('All Districts unrounded'!I41,-2) -> 55100 | F41: =ROUND('All Districts unrounded'!J41,-2) -> 55300 | G41: =ROUND('All Districts unrounded'!K41,-2) -> 55600 | H41: =ROUND('All Districts unrounded'!L41,-2) -> 56200 | I41: =ROUND('All Districts unrounded'!M41,-2) -> 56300 | J41: =ROUND('All Districts unrounded'!N41,-2) -> 56900 | K41: =ROUND('All Districts unrounded'!O41,-2) -> 57100 | L41: =ROUND('All Districts unrounded'!P41,-2) -> 57200 | M41: =ROUND('All Districts unrounded'!Q41,-2) -> 57500 | N41: =ROUND('All Districts unrounded'!R41,-2) -> 57700 | O41: =ROUND('All Districts unrounded'!S41,-2) -> 58200 | P41: =ROUND('All Districts unrounded'!T41,-2) -> 58800 | Q41: =ROUND('All Districts unrounded'!U41,-2) -> 59600 | R41: =ROUND('All Districts unrounded'!V41,-2) -> 60200 | S41: =ROUND('All Districts unrounded'!W41,-2) -> 60800 | T41: =ROUND('All Districts unrounded'!X41,-2) -> 61500 | U41: =ROUND('All Districts unrounded'!Y41,-2) -> 62100 | V41: =ROUND('All Districts unrounded'!Z41,-2) -> 62600 | W41: =ROUND('All Districts unrounded'!AA41,-2) -> 63000 | X41: =ROUND('All Districts unrounded'!AB41,-2) -> 63500 | Y41: =ROUND('All Districts unrounded'!AC41,-2) -> 63900 | Z41: =ROUND('All Districts unrounded'!AD41,-2) -> 64400 | AA41: =ROUND('All Districts unrounded'!AE41,-2) -> 64800 | AB41: =ROUND('All Districts unrounded'!AF41,-2) -> 65200 | AC41: =ROUND('All Districts unrounded'!AG41,-2) -> 65700 | AD41: =ROUND('All Districts unrounded'!AH41,-2) -> 66100 | AE41: =ROUND('All Districts unrounded'!AI41,-2) -> 66600 | AF41: =ROUND('All Districts unrounded'!AJ41,-2) -> 67100 | AH41: =INDEX($C41:AG41,Index!$B$16) -> 57200 | AI41: =INDEX($C41:AG41,Index!$B$19) -> 67100 | AJ41: =ROUND('F&H'!CH$5,-2) -> 9800 | AK41: ='F&H'!CI$5 -> 0.1719161768
A42: Swale | B42: =ROUND('All Districts unrounded'!F42,-2) -> 68200 | C42: =ROUND('All Districts unrounded'!G42,-2) -> 68900 | D42: =ROUND('All Districts unrounded'!H42,-2) -> 69600 | E42: =ROUND('All Districts unrounded'!I42,-2) -> 70400 | F42: =ROUND('All Districts unrounded'!J42,-2) -> 71200 | G42: =ROUND('All Districts unrounded'!K42,-2) -> 72100 | H42: =ROUND('All Districts unrounded'!L42,-2) -> 73300 | I42: =ROUND('All Districts unrounded'!M42,-2) -> 74200 | J42: =ROUND('All Districts unrounded'!N42,-2) -> 75100 | K42: =ROUND('All Districts unrounded'!O42,-2) -> 75800 | L42: =ROUND('All Districts unrounded'!P42,-2) -> 76500 | M42: =ROUND('All Districts unrounded'!Q42,-2) -> 77200 | N42: =ROUND('All Districts unrounded'!R42,-2) -> 78000 | O42: =ROUND('All Districts unrounded'!S42,-2) -> 78700 | P42: =ROUND('All Districts unrounded'!T42,-2) -> 79600 | Q42: =ROUND('All Districts unrounded'!U42,-2) -> 80500 | R42: =ROUND('All Districts unrounded'!V42,-2) -> 81300 | S42: =ROUND('All Districts unrounded'!W42,-2) -> 82000 | T42: =ROUND('All Districts unrounded'!X42,-2) -> 82700 | U42: =ROUND('All Districts unrounded'!Y42,-2) -> 83500 | V42: =ROUND('All Districts unrounded'!Z42,-2) -> 84200 | W42: =ROUND('All Districts unrounded'!AA42,-2) -> 84900 | X42: =ROUND('All Districts unrounded'!AB42,-2) -> 85500 | Y42: =ROUND('All Districts unrounded'!AC42,-2) -> 86000 | Z42: =ROUND('All Districts unrounded'!AD42,-2) -> 86600 | AA42: =ROUND('All Districts unrounded'!AE42,-2) -> 87200 | AB42: =ROUND('All Districts unrounded'!AF42,-2) -> 87700 | AC42: =ROUND('All Districts unrounded'!AG42,-2) -> 88300 | AD42: =ROUND('All Districts unrounded'!AH42,-2) -> 88900 | AE42: =ROUND('All Districts unrounded'!AI42,-2) -> 89400 | AF42: =ROUND('All Districts unrounded'!AJ42,-2) -> 90000 | AH42: =INDEX($C42:AG42,Index!$B$16) -> 76500 | AI42: =INDEX($C42:AG42,Index!$B$19) -> 90000 | AJ42: =ROUND(SWA!CH$5,-2) -> 13500 | AK42: =SWA!CI$5 -> 0.1769016194
A43: Thanet | B43: =ROUND('All Districts unrounded'!F43,-2) -> 69400 | C43: =ROUND('All Districts unrounded'!G43,-2) -> 69800 | D43: =ROUND('All Districts unrounded'!H43,-2) -> 70400 | E43: =ROUND('All Districts unrounded'!I43,-2) -> 70900 | F43: =ROUND('All Districts unrounded'!J43,-2) -> 71700 | G43: =ROUND('All Districts unrounded'!K43,-2) -> 72300 | H43: =ROUND('All Districts unrounded'!L43,-2) -> 72700 | I43: =ROUND('All Districts unrounded'!M43,-2) -> 72800 | J43: =ROUND('All Districts unrounded'!N43,-2) -> 73100 | K43: =ROUND('All Districts unrounded'!O43,-2) -> 73100 | L43: =ROUND('All Districts unrounded'!P43,-2) -> 72900 | M43: =ROUND('All Districts unrounded'!Q43,-2) -> 73200 | N43: =ROUND('All Districts unrounded'!R43,-2) -> 73500 | O43: =ROUND('All Districts unrounded'!S43,-2) -> 74100 | P43: =ROUND('All Districts unrounded'!T43,-2) -> 75000 | Q43: =ROUND('All Districts unrounded'!U43,-2) -> 76400 | R43: =ROUND('All Districts unrounded'!V43,-2) -> 77900 | S43: =ROUND('All Districts unrounded'!W43,-2) -> 79400 | T43: =ROUND('All Districts unrounded'!X43,-2) -> 80900 | U43: =ROUND('All Districts unrounded'!Y43,-2) -> 82300 | V43: =ROUND('All Districts unrounded'!Z43,-2) -> 83800 | W43: =ROUND('All Districts unrounded'!AA43,-2) -> 85300 | X43: =ROUND('All Districts unrounded'!AB43,-2) -> 85700 | Y43: =ROUND('All Districts unrounded'!AC43,-2) -> 86200 | Z43: =ROUND('All Districts unrounded'!AD43,-2) -> 86800 | AA43: =ROUND('All Districts unrounded'!AE43,-2) -> 87300 | AB43: =ROUND('All Districts unrounded'!AF43,-2) -> 87900 | AC43: =ROUND('All Districts unrounded'!AG43,-2) -> 88400 | AD43: =ROUND('All Districts unrounded'!AH43,-2) -> 89000 | AE43: =ROUND('All Districts unrounded'!AI43,-2) -> 89600 | AF43: =ROUND('All Districts unrounded'!AJ43,-2) -> 90200 | AH43: =INDEX($C43:AG43,Index!$B$16) -> 72900 | AI43: =INDEX($C43:AG43,Index!$B$19) -> 90200 | AJ43: =ROUND(THA!CH$5,-2) -> 17200 | AK43: =THA!CI$5 -> 0.2364628844
A44: Tonbridge & Malling | B44: =ROUND('All Districts unrounded'!F44,-2) -> 61300 | C44: =ROUND('All Districts unrounded'!G44,-2) -> 61800 | D44: =ROUND('All Districts unrounded'!H44,-2) -> 62200 | E44: =ROUND('All Districts unrounded'!I44,-2) -> 62800 | F44: =ROUND('All Districts unrounded'!J44,-2) -> 63600 | G44: =ROUND('All Districts unrounded'!K44,-2) -> 64200 | H44: =ROUND('All Districts unrounded'!L44,-2) -> 65000 | I44: =ROUND('All Districts unrounded'!M44,-2) -> 65800 | J44: =ROUND('All Districts unrounded'!N44,-2) -> 66700 | K44: =ROUND('All Districts unrounded'!O44,-2) -> 67600 | L44: =ROUND('All Districts unrounded'!P44,-2) -> 67900 | M44: =ROUND('All Districts unrounded'!Q44,-2) -> 68600 | N44: =ROUND('All Districts unrounded'!R44,-2) -> 69300 | O44: =ROUND('All Districts unrounded'!S44,-2) -> 70100 | P44: =ROUND('All Districts unrounded'!T44,-2) -> 70900 | Q44: =ROUND('All Districts unrounded'!U44,-2) -> 71800 | R44: =ROUND('All Districts unrounded'!V44,-2) -> 72600 | S44: =ROUND('All Districts unrounded'!W44,-2) -> 73400 | T44: =ROUND('All Districts unrounded'!X44,-2) -> 74300 | U44: =ROUND('All Districts unrounded'!Y44,-2) -> 75100 | V44: =ROUND('All Districts unrounded'!Z44,-2) -> 75900 | W44: =ROUND('All Districts unrounded'!AA44,-2) -> 76800 | X44: =ROUND('All Districts unrounded'!AB44,-2) -> 77600 | Y44: =ROUND('All Districts unrounded'!AC44,-2) -> 78400 | Z44: =ROUND('All Districts unrounded'!AD44,-2) -> 79200 | AA44: =ROUND('All Districts unrounded'!AE44,-2) -> 80000 | AB44: =ROUND('All Districts unrounded'!AF44,-2) -> 80800 | AC44: =ROUND('All Districts unrounded'!AG44,-2) -> 81600 | AD44: =ROUND('All Districts unrounded'!AH44,-2) -> 82400 | AE44: =ROUND('All Districts unrounded'!AI44,-2) -> 83200 | AF44: =ROUND('All Districts unrounded'!AJ44,-2) -> 83900 | AH44: =INDEX($C44:AG44,Index!$B$16) -> 67900 | AI44: =INDEX($C44:AG44,Index!$B$19) -> 83900 | AJ44: =ROUND(TON!CH$5,-2) -> 16100 | AK44: =TON!CI$5 -> 0.2371896991
A45: Tunbridge Wells | B45: =ROUND('All Districts unrounded'!F45,-2) -> 58100 | C45: =ROUND('All Districts unrounded'!G45,-2) -> 58700 | D45: =ROUND('All Districts unrounded'!H45,-2) -> 59000 | E45: =ROUND('All Districts unrounded'!I45,-2) -> 59000 | F45: =ROUND('All Districts unrounded'!J45,-2) -> 59100 | G45: =ROUND('All Districts unrounded'!K45,-2) -> 59100 | H45: =ROUND('All Districts unrounded'!L45,-2) -> 59400 | I45: =ROUND('All Districts unrounded'!M45,-2) -> 59700 | J45: =ROUND('All Districts unrounded'!N45,-2) -> 59800 | K45: =ROUND('All Districts unrounded'!O45,-2) -> 60100 | L45: =ROUND('All Districts unrounded'!P45,-2) -> 60300 | M45: =ROUND('All Districts unrounded'!Q45,-2) -> 60900 | N45: =ROUND('All Districts unrounded'!R45,-2) -> 61400 | O45: =ROUND('All Districts unrounded'!S45,-2) -> 62000 | P45: =ROUND('All Districts unrounded'!T45,-2) -> 62600 | Q45: =ROUND('All Districts unrounded'!U45,-2) -> 63200 | R45: =ROUND('All Districts unrounded'!V45,-2) -> 63700 | S45: =ROUND('All Districts unrounded'!W45,-2) -> 64100 | T45: =ROUND('All Districts unrounded'!X45,-2) -> 64600 | U45: =ROUND('All Districts unrounded'!Y45,-2) -> 65000 | V45: =ROUND('All Districts unrounded'!Z45,-2) -> 65500 | W45: =ROUND('All Districts unrounded'!AA45,-2) -> 66000 | X45: =ROUND('All Districts unrounded'!AB45,-2) -> 66500 | Y45: =ROUND('All Districts unrounded'!AC45,-2) -> 67000 | Z45: =ROUND('All Districts unrounded'!AD45,-2) -> 67500 | AA45: =ROUND('All Districts unrounded'!AE45,-2) -> 68000 | AB45: =ROUND('All Districts unrounded'!AF45,-2) -> 68500 | AC45: =ROUND('All Districts unrounded'!AG45,-2) -> 69100 | AD45: =ROUND('All Districts unrounded'!AH45,-2) -> 69600 | AE45: =ROUND('All Districts unrounded'!AI45,-2) -> 70100 | AF45: =ROUND('All Districts unrounded'!AJ45,-2) -> 70600 | AH45: =INDEX($C45:AG45,Index!$B$16) -> 60300 | AI45: =INDEX($C45:AG45,Index!$B$19) -> 70600 | AJ45: =ROUND(TUN!CH$5,-2) -> 10200 | AK45: =TUN!CI$5 -> 0.1694646774
A46: KCC Area | B46: =ROUND('All Districts unrounded'!F46,-2) -> 742700 | C46: =ROUND('All Districts unrounded'!G46,-2) -> 749200 | D46: =ROUND('All Districts unrounded'!H46,-2) -> 755900 | E46: =ROUND('All Districts unrounded'!I46,-2) -> 761900 | F46: =ROUND('All Districts unrounded'!J46,-2) -> 769800 | G46: =ROUND('All Districts unrounded'!K46,-2) -> 776600 | H46: =ROUND('All Districts unrounded'!L46,-2) -> 784700 | I46: =ROUND('All Districts unrounded'!M46,-2) -> 791400 | J46: =ROUND('All Districts unrounded'!N46,-2) -> 798600 | K46: =ROUND('All Districts unrounded'!O46,-2) -> 804900 | L46: =ROUND('All Districts unrounded'!P46,-2) -> 809300 | M46: =ROUND('All Districts unrounded'!Q46,-2) -> 816600 | N46: =ROUND('All Districts unrounded'!R46,-2) -> 823800 | O46: =ROUND('All Districts unrounded'!S46,-2) -> 832300 | P46: =ROUND('All Districts unrounded'!T46,-2) -> 842200 | Q46: =ROUND('All Districts unrounded'!U46,-2) -> 854100 | R46: =ROUND('All Districts unrounded'!V46,-2) -> 865100 | S46: =ROUND('All Districts unrounded'!W46,-2) -> 874600 | T46: =ROUND('All Districts unrounded'!X46,-2) -> 884100 | U46: =ROUND('All Districts unrounded'!Y46,-2) -> 893300 | V46: =ROUND('All Districts unrounded'!Z46,-2) -> 902200 | W46: =ROUND('All Districts unrounded'!AA46,-2) -> 910300 | X46: =ROUND('All Districts unrounded'!AB46,-2) -> 916700 | Y46: =ROUND('All Districts unrounded'!AC46,-2) -> 923300 | Z46: =ROUND('All Districts unrounded'!AD46,-2) -> 929800 | AA46: =ROUND('All Districts unrounded'!AE46,-2) -> 936400 | AB46: =ROUND('All Districts unrounded'!AF46,-2) -> 942600 | AC46: =ROUND('All Districts unrounded'!AG46,-2) -> 948900 | AD46: =ROUND('All Districts unrounded'!AH46,-2) -> 955500 | AE46: =ROUND('All Districts unrounded'!AI46,-2) -> 962200 | AF46: =ROUND('All Districts unrounded'!AJ46,-2) -> 968900 | AH46: =INDEX($C46:AG46,Index!$B$16) -> 809300 | AI46: =INDEX($C46:AG46,Index!$B$19) -> 968900 | AJ46: =ROUND(KCC!CH$5,-2) -> 159600 | AK46: =KCC!CI$5 -> 0.197272526
A47: Kent (Incl Medway) | B47: =ROUND('All Districts unrounded'!F47,-2) -> 875100 | C47: =ROUND('All Districts unrounded'!G47,-2) -> 882700 | D47: =ROUND('All Districts unrounded'!H47,-2) -> 891100 | E47: =ROUND('All Districts unrounded'!I47,-2) -> 898400 | F47: =ROUND('All Districts unrounded'!J47,-2) -> 907500 | G47: =ROUND('All Districts unrounded'!K47,-2) -> 915200 | H47: =ROUND('All Districts unrounded'!L47,-2) -> 924300 | I47: =ROUND('All Districts unrounded'!M47,-2) -> 931300 | J47: =ROUND('All Districts unrounded'!N47,-2) -> 938800 | K47: =ROUND('All Districts unrounded'!O47,-2) -> 945400 | L47: =ROUND('All Districts unrounded'!P47,-2) -> 950200 | M47: =ROUND('All Districts unrounded'!Q47,-2) -> 958900 | N47: =ROUND('All Districts unrounded'!R47,-2) -> 967200 | O47: =ROUND('All Districts unrounded'!S47,-2) -> 977300 | P47: =ROUND('All Districts unrounded'!T47,-2) -> 989000 | Q47: =ROUND('All Districts unrounded'!U47,-2) -> 1003000 | R47: =ROUND('All Districts unrounded'!V47,-2) -> 1016000 | S47: =ROUND('All Districts unrounded'!W47,-2) -> 1027400 | T47: =ROUND('All Districts unrounded'!X47,-2) -> 1039000 | U47: =ROUND('All Districts unrounded'!Y47,-2) -> 1050000 | V47: =ROUND('All Districts unrounded'!Z47,-2) -> 1061000 | W47: =ROUND('All Districts unrounded'!AA47,-2) -> 1070900 | X47: =ROUND('All Districts unrounded'!AB47,-2) -> 1079200 | Y47: =ROUND('All Districts unrounded'!AC47,-2) -> 1087500 | Z47: =ROUND('All Districts unrounded'!AD47,-2) -> 1095900 | AA47: =ROUND('All Districts unrounded'!AE47,-2) -> 1104200 | AB47: =ROUND('All Districts unrounded'!AF47,-2) -> 1112200 | AC47: =ROUND('All Districts unrounded'!AG47,-2) -> 1120200 | AD47: =ROUND('All Districts unrounded'!AH47,-2) -> 1128300 | AE47: =ROUND('All Districts unrounded'!AI47,-2) -> 1136500 | AF47: =ROUND('All Districts unrounded'!AJ47,-2) -> 1144700 | AH47: =INDEX($C47:AG47,Index!$B$16) -> 950200 | AI47: =INDEX($C47:AG47,Index!$B$19) -> 1144700 | AJ47: =ROUND(Kent!CH$5,-2) -> 194600 | AK47: =Kent!CI$5 -> 0.2047846895
A50: Total
B51: 2010 | C51: 2011 | D51: 2012 | E51: 2013 | F51: 2014 | G51: 2015 | H51: 2016 | I51: 2017 | J51: 2018 | K51: 2019 | L51: 2020 | M51: 2021 | N51: 2022 | O51: 2023 | P51: 2024 | Q51: 2025 | R51: 2026 | S51: 2027 | T51: 2028 | U51: 2029 | V51: 2030 | W51: 2031 | X51: 2032 | Y51: 2033 | Z51: 2034 | AA51: 2035 | AB51: 2036 | AC51: 2037 | AD51: 2038 | AE51: 2039 | AF51: 2040 | AH51: =Index!$C$16 -> 2020 | AI51: =Index!$C$19 -> 2040 | AJ51: Number change | AK51: % change
A52: -
A53: Ashford | B53: =ROUND('All Districts unrounded'!F53,-2) -> 117000 | C53: =ROUND('All Districts unrounded'!G53,-2) -> 118400 | D53: =ROUND('All Districts unrounded'!H53,-2) -> 120100 | E53: =ROUND('All Districts unrounded'!I53,-2) -> 121700 | F53: =ROUND('All Districts unrounded'!J53,-2) -> 123200 | G53: =ROUND('All Districts unrounded'!K53,-2) -> 124000 | H53: =ROUND('All Districts unrounded'!L53,-2) -> 125900 | I53: =ROUND('All Districts unrounded'!M53,-2) -> 127500 | J53: =ROUND('All Districts unrounded'!N53,-2) -> 129300 | K53: =ROUND('All Districts unrounded'!O53,-2) -> 130000 | L53: =ROUND('All Districts unrounded'!P53,-2) -> 131000 | M53: =ROUND('All Districts unrounded'!Q53,-2) -> 132700 | N53: =ROUND('All Districts unrounded'!R53,-2) -> 134300 | O53: =ROUND('All Districts unrounded'!S53,-2) -> 136300 | P53: =ROUND('All Districts unrounded'!T53,-2) -> 138500 | Q53: =ROUND('All Districts unrounded'!U53,-2) -> 141000 | R53: =ROUND('All Districts unrounded'!V53,-2) -> 143700 | S53: =ROUND('All Districts unrounded'!W53,-2) -> 146200 | T53: =ROUND('All Districts unrounded'!X53,-2) -> 148800 | U53: =ROUND('All Districts unrounded'!Y53,-2) -> 151400 | V53: =ROUND('All Districts unrounded'!Z53,-2) -> 154000 | W53: =ROUND('All Districts unrounded'!AA53,-2) -> 155500 | X53: =ROUND('All Districts unrounded'!AB53,-2) -> 157000 | Y53: =ROUND('All Districts unrounded'!AC53,-2) -> 158500 | Z53: =ROUND('All Districts unrounded'!AD53,-2) -> 160000 | AA53: =ROUND('All Districts unrounded'!AE53,-2) -> 161500 | AB53: =ROUND('All Districts unrounded'!AF53,-2) -> 162900 | AC53: =ROUND('All Districts unrounded'!AG53,-2) -> 164400 | AD53: =ROUND('All Districts unrounded'!AH53,-2) -> 165900 | AE53: =ROUND('All Districts unrounded'!AI53,-2) -> 167400 | AF53: =ROUND('All Districts unrounded'!AJ53,-2) -> 169000 | AH53: =INDEX($C53:AG53,Index!$B$16) -> 131000 | AI53: =INDEX($C53:AG53,Index!$B$19) -> 169000 | AJ53: =ROUND(ASH!CH$6,-2) -> 37900 | AK53: =ASH!CI$6 -> 0.2895853638
A54: Canterbury | B54: =ROUND('All Districts unrounded'!F54,-2) -> 148700 | C54: =ROUND('All Districts unrounded'!G54,-2) -> 150600 | D54: =ROUND('All Districts unrounded'!H54,-2) -> 153200 | E54: =ROUND('All Districts unrounded'!I54,-2) -> 154900 | F54: =ROUND('All Districts unrounded'!J54,-2) -> 157000 | G54: =ROUND('All Districts unrounded'!K54,-2) -> 159700 | H54: =ROUND('All Districts unrounded'!L54,-2) -> 162500 | I54: =ROUND('All Districts unrounded'!M54,-2) -> 164100 | J54: =ROUND('All Districts unrounded'!N54,-2) -> 164600 | K54: =ROUND('All Districts unrounded'!O54,-2) -> 165400 | L54: =ROUND('All Districts unrounded'!P54,-2) -> 166800 | M54: =ROUND('All Districts unrounded'!Q54,-2) -> 168300 | N54: =ROUND('All Districts unrounded'!R54,-2) -> 169300 | O54: =ROUND('All Districts unrounded'!S54,-2) -> 170900 | P54: =ROUND('All Districts unrounded'!T54,-2) -> 173100 | Q54: =ROUND('All Districts unrounded'!U54,-2) -> 176000 | R54: =ROUND('All Districts unrounded'!V54,-2) -> 178700 | S54: =ROUND('All Districts unrounded'!W54,-2) -> 181200 | T54: =ROUND('All Districts unrounded'!X54,-2) -> 183700 | U54: =ROUND('All Districts unrounded'!Y54,-2) -> 186100 | V54: =ROUND('All Districts unrounded'!Z54,-2) -> 188500 | W54: =ROUND('All Districts unrounded'!AA54,-2) -> 190800 | X54: =ROUND('All Districts unrounded'!AB54,-2) -> 191500 | Y54: =ROUND('All Districts unrounded'!AC54,-2) -> 192300 | Z54: =ROUND('All Districts unrounded'!AD54,-2) -> 193200 | AA54: =ROUND('All Districts unrounded'!AE54,-2) -> 194100 | AB54: =ROUND('All Districts unrounded'!AF54,-2) -> 195000 | AC54: =ROUND('All Districts unrounded'!AG54,-2) -> 195900 | AD54: =ROUND('All Districts unrounded'!AH54,-2) -> 196700 | AE54: =ROUND('All Districts unrounded'!AI54,-2) -> 197700 | AF54: =ROUND('All Districts unrounded'!AJ54,-2) -> 198800 | AH54: =INDEX($C54:AG54,Index!$B$16) -> 166800 | AI54: =INDEX($C54:AG54,Index!$B$19) -> 198800 | AJ54: =ROUND(CAN!CH$6,-2) -> 32000 | AK54: =CAN!CI$6 -> 0.1919230313
A55: Dartford | B55: =ROUND('All Districts unrounded'!F55,-2) -> 96300 | C55: =ROUND('All Districts unrounded'!G55,-2) -> 97600 | D55: =ROUND('All Districts unrounded'!H55,-2) -> 98900 | E55: =ROUND('All Districts unrounded'!I55,-2) -> 100400 | F55: =ROUND('All Districts unrounded'!J55,-2) -> 102000 | G55: =ROUND('All Districts unrounded'!K55,-2) -> 103500 | H55: =ROUND('All Districts unrounded'!L55,-2) -> 105100 | I55: =ROUND('All Districts unrounded'!M55,-2) -> 107500 | J55: =ROUND('All Districts unrounded'!N55,-2) -> 109700 | K55: =ROUND('All Districts unrounded'!O55,-2) -> 112600 | L55: =ROUND('All Districts unrounded'!P55,-2) -> 114100 | M55: =ROUND('All Districts unrounded'!Q55,-2) -> 116300 | N55: =ROUND('All Districts unrounded'!R55,-2) -> 118400 | O55: =ROUND('All Districts unrounded'!S55,-2) -> 120500 | P55: =ROUND('All Districts unrounded'!T55,-2) -> 122500 | Q55: =ROUND('All Districts unrounded'!U55,-2) -> 124400 | R55: =ROUND('All Districts unrounded'!V55,-2) -> 125900 | S55: =ROUND('All Districts unrounded'!W55,-2) -> 127400 | T55: =ROUND('All Districts unrounded'!X55,-2) -> 128800 | U55: =ROUND('All Districts unrounded'!Y55,-2) -> 130200 | V55: =ROUND('All Districts unrounded'!Z55,-2) -> 131500 | W55: =ROUND('All Districts unrounded'!AA55,-2) -> 132800 | X55: =ROUND('All Districts unrounded'!AB55,-2) -> 134100 | Y55: =ROUND('All Districts unrounded'!AC55,-2) -> 135300 | Z55: =ROUND('All Districts unrounded'!AD55,-2) -> 136600 | AA55: =ROUND('All Districts unrounded'!AE55,-2) -> 137800 | AB55: =ROUND('All Districts unrounded'!AF55,-2) -> 139100 | AC55: =ROUND('All Districts unrounded'!AG55,-2) -> 140300 | AD55: =ROUND('All Districts unrounded'!AH55,-2) -> 141600 | AE55: =ROUND('All Districts unrounded'!AI55,-2) -> 143000 | AF55: =ROUND('All Districts unrounded'!AJ55,-2) -> 144400 | AH55: =INDEX($C55:AG55,Index!$B$16) -> 114100 | AI55: =INDEX($C55:AG55,Index!$B$19) -> 144400 | AJ55: =ROUND(DAR!CH$6,-2) -> 30300 | AK55: =DAR!CI$6 -> 0.2659434502
A56: Dover | B56: =ROUND('All Districts unrounded'!F56,-2) -> 111100 | C56: =ROUND('All Districts unrounded'!G56,-2) -> 111700 | D56: =ROUND('All Districts unrounded'!H56,-2) -> 111800 | E56: =ROUND('All Districts unrounded'!I56,-2) -> 112500 | F56: =ROUND('All Districts unrounded'!J56,-2) -> 113300 | G56: =ROUND('All Districts unrounded'!K56,-2) -> 113400 | H56: =ROUND('All Districts unrounded'!L56,-2) -> 114600 | I56: =ROUND('All Districts unrounded'!M56,-2) -> 115800 | J56: =ROUND('All Districts unrounded'!N56,-2) -> 117000 | K56: =ROUND('All Districts unrounded'!O56,-2) -> 118100 | L56: =ROUND('All Districts unrounded'!P56,-2) -> 118500 | M56: =ROUND('All Districts unrounded'!Q56,-2) -> 119500 | N56: =ROUND('All Districts unrounded'!R56,-2) -> 120400 | O56: =ROUND('All Districts unrounded'!S56,-2) -> 121800 | P56: =ROUND('All Districts unrounded'!T56,-2) -> 123500 | Q56: =ROUND('All Districts unrounded'!U56,-2) -> 125700 | R56: =ROUND('All Districts unrounded'!V56,-2) -> 128000 | S56: =ROUND('All Districts unrounded'!W56,-2) -> 128300 | T56: =ROUND('All Districts unrounded'!X56,-2) -> 128700 | U56: =ROUND('All Districts unrounded'!Y56,-2) -> 129200 | V56: =ROUND('All Districts unrounded'!Z56,-2) -> 129600 | W56: =ROUND('All Districts unrounded'!AA56,-2) -> 130000 | X56: =ROUND('All Districts unrounded'!AB56,-2) -> 130500 | Y56: =ROUND('All Districts unrounded'!AC56,-2) -> 130900 | Z56: =ROUND('All Districts unrounded'!AD56,-2) -> 131400 | AA56: =ROUND('All Districts unrounded'!AE56,-2) -> 131800 | AB56: =ROUND('All Districts unrounded'!AF56,-2) -> 132300 | AC56: =ROUND('All Districts unrounded'!AG56,-2) -> 132700 | AD56: =ROUND('All Districts unrounded'!AH56,-2) -> 133300 | AE56: =ROUND('All Districts unrounded'!AI56,-2) -> 133800 | AF56: =ROUND('All Districts unrounded'!AJ56,-2) -> 134300 | AH56: =INDEX($C56:AG56,Index!$B$16) -> 118500 | AI56: =INDEX($C56:AG56,Index!$B$19) -> 134300 | AJ56: =ROUND(DOV!CH$6,-2) -> 15800 | AK56: =DOV!CI$6 -> 0.133053141
A57: Gravesham | B57: =ROUND('All Districts unrounded'!F57,-2) -> 101100 | C57: =ROUND('All Districts unrounded'!G57,-2) -> 101800 | D57: =ROUND('All Districts unrounded'!H57,-2) -> 102600 | E57: =ROUND('All Districts unrounded'!I57,-2) -> 103400 | F57: =ROUND('All Districts unrounded'!J57,-2) -> 104800 | G57: =ROUND('All Districts unrounded'!K57,-2) -> 105700 | H57: =ROUND('All Districts unrounded'!L57,-2) -> 106200 | I57: =ROUND('All Districts unrounded'!M57,-2) -> 106100 | J57: =ROUND('All Districts unrounded'!N57,-2) -> 106400 | K57: =ROUND('All Districts unrounded'!O57,-2) -> 106900 | L57: =ROUND('All Districts unrounded'!P57,-2) -> 106900 | M57: =ROUND('All Districts unrounded'!Q57,-2) -> 107700 | N57: =ROUND('All Districts unrounded'!R57,-2) -> 108400 | O57: =ROUND('All Districts unrounded'!S57,-2) -> 109400 | P57: =ROUND('All Districts unrounded'!T57,-2) -> 110500 | Q57: =ROUND('All Districts unrounded'!U57,-2) -> 111900 | R57: =ROUND('All Districts unrounded'!V57,-2) -> 113300 | S57: =ROUND('All Districts unrounded'!W57,-2) -> 114700 | T57: =ROUND('All Districts unrounded'!X57,-2) -> 116100 | U57: =ROUND('All Districts unrounded'!Y57,-2) -> 116600 | V57: =ROUND('All Districts unrounded'!Z57,-2) -> 117200 | W57: =ROUND('All Districts unrounded'!AA57,-2) -> 117600 | X57: =ROUND('All Districts unrounded'!AB57,-2) -> 118100 | Y57: =ROUND('All Districts unrounded'!AC57,-2) -> 118600 | Z57: =ROUND('All Districts unrounded'!AD57,-2) -> 119000 | AA57: =ROUND('All Districts unrounded'!AE57,-2) -> 119600 | AB57: =ROUND('All Districts unrounded'!AF57,-2) -> 120000 | AC57: =ROUND('All Districts unrounded'!AG57,-2) -> 120500 | AD57: =ROUND('All Districts unrounded'!AH57,-2) -> 121100 | AE57: =ROUND('All Districts unrounded'!AI57,-2) -> 121600 | AF57: =ROUND('All Districts unrounded'!AJ57,-2) -> 122200 | AH57: =INDEX($C57:AG57,Index!$B$16) -> 106900 | AI57: =INDEX($C57:AG57,Index!$B$19) -> 122200 | AJ57: =ROUND(GRA!CH$6,-2) -> 15300 | AK57: =GRA!CI$6 -> 0.1429657433
A58: Maidstone | B58: =ROUND('All Districts unrounded'!F58,-2) -> 153700 | C58: =ROUND('All Districts unrounded'!G58,-2) -> 155800 | D58: =ROUND('All Districts unrounded'!H58,-2) -> 157400 | E58: =ROUND('All Districts unrounded'!I58,-2) -> 159200 | F58: =ROUND('All Districts unrounded'!J58,-2) -> 161500 | G58: =ROUND('All Districts unrounded'!K58,-2) -> 164000 | H58: =ROUND('All Districts unrounded'!L58,-2) -> 165700 | I58: =ROUND('All Districts unrounded'!M58,-2) -> 167700 | J58: =ROUND('All Districts unrounded'!N58,-2) -> 170000 | K58: =ROUND('All Districts unrounded'!O58,-2) -> 171800 | L58: =ROUND('All Districts unrounded'!P58,-2) -> 173100 | M58: =ROUND('All Districts unrounded'!Q58,-2) -> 175300 | N58: =ROUND('All Districts unrounded'!R58,-2) -> 177300 | O58: =ROUND('All Districts unrounded'!S58,-2) -> 179300 | P58: =ROUND('All Districts unrounded'!T58,-2) -> 181200 | Q58: =ROUND('All Districts unrounded'!U58,-2) -> 183200 | R58: =ROUND('All Districts unrounded'!V58,-2) -> 184600 | S58: =ROUND('All Districts unrounded'!W58,-2) -> 185900 | T58: =ROUND('All Districts unrounded'!X58,-2) -> 187200 | U58: =ROUND('All Districts unrounded'!Y58,-2) -> 188500 | V58: =ROUND('All Districts unrounded'!Z58,-2) -> 189800 | W58: =ROUND('All Districts unrounded'!AA58,-2) -> 191000 | X58: =ROUND('All Districts unrounded'!AB58,-2) -> 192500 | Y58: =ROUND('All Districts unrounded'!AC58,-2) -> 194000 | Z58: =ROUND('All Districts unrounded'!AD58,-2) -> 195400 | AA58: =ROUND('All Districts unrounded'!AE58,-2) -> 196900 | AB58: =ROUND('All Districts unrounded'!AF58,-2) -> 198300 | AC58: =ROUND('All Districts unrounded'!AG58,-2) -> 199800 | AD58: =ROUND('All Districts unrounded'!AH58,-2) -> 201200 | AE58: =ROUND('All Districts unrounded'!AI58,-2) -> 202700 | AF58: =ROUND('All Districts unrounded'!AJ58,-2) -> 204200 | AH58: =INDEX($C58:AG58,Index!$B$16) -> 173100 | AI58: =INDEX($C58:AG58,Index!$B$19) -> 204200 | AJ58: =ROUND(MAI!CH$6,-2) -> 31100 | AK58: =MAI!CI$6 -> 0.1795321014
A59: Medway | B59: =ROUND('All Districts unrounded'!F59,-2) -> 262700 | C59: =ROUND('All Districts unrounded'!G59,-2) -> 264900 | D59: =ROUND('All Districts unrounded'!H59,-2) -> 268100 | E59: =ROUND('All Districts unrounded'!I59,-2) -> 270700 | F59: =ROUND('All Districts unrounded'!J59,-2) -> 273200 | G59: =ROUND('All Districts unrounded'!K59,-2) -> 275200 | H59: =ROUND('All Districts unrounded'!L59,-2) -> 277000 | I59: =ROUND('All Districts unrounded'!M59,-2) -> 277600 | J59: =ROUND('All Districts unrounded'!N59,-2) -> 277900 | K59: =ROUND('All Districts unrounded'!O59,-2) -> 278600 | L59: =ROUND('All Districts unrounded'!P59,-2) -> 279100 | M59: =ROUND('All Districts unrounded'!Q59,-2) -> 281700 | N59: =ROUND('All Districts unrounded'!R59,-2) -> 284000 | O59: =ROUND('All Districts unrounded'!S59,-2) -> 287000 | P59: =ROUND('All Districts unrounded'!T59,-2) -> 290400 | Q59: =ROUND('All Districts unrounded'!U59,-2) -> 294500 | R59: =ROUND('All Districts unrounded'!V59,-2) -> 298400 | S59: =ROUND('All Districts unrounded'!W59,-2) -> 302200 | T59: =ROUND('All Districts unrounded'!X59,-2) -> 305900 | U59: =ROUND('All Districts unrounded'!Y59,-2) -> 309600 | V59: =ROUND('All Districts unrounded'!Z59,-2) -> 313400 | W59: =ROUND('All Districts unrounded'!AA59,-2) -> 316900 | X59: =ROUND('All Districts unrounded'!AB59,-2) -> 320400 | Y59: =ROUND('All Districts unrounded'!AC59,-2) -> 323900 | Z59: =ROUND('All Districts unrounded'!AD59,-2) -> 327400 | AA59: =ROUND('All Districts unrounded'!AE59,-2) -> 330800 | AB59: =ROUND('All Districts unrounded'!AF59,-2) -> 334100 | AC59: =ROUND('All Districts unrounded'!AG59,-2) -> 337500 | AD59: =ROUND('All Districts unrounded'!AH59,-2) -> 340400 | AE59: =ROUND('All Districts unrounded'!AI59,-2) -> 343300 | AF59: =ROUND('All Districts unrounded'!AJ59,-2) -> 346300 | AH59: =INDEX($C59:AG59,Index!$B$16) -> 279100 | AI59: =INDEX($C59:AG59,Index!$B$19) -> 346300 | AJ59: =ROUND(MED!CH$6,-2) -> 67200 | AK59: =MED!CI$6 -> 0.2406319727
A60: Sevenoaks | B60: =ROUND('All Districts unrounded'!F60,-2) -> 114500 | C60: =ROUND('All Districts unrounded'!G60,-2) -> 115400 | D60: =ROUND('All Districts unrounded'!H60,-2) -> 116300 | E60: =ROUND('All Districts unrounded'!I60,-2) -> 116900 | F60: =ROUND('All Districts unrounded'!J60,-2) -> 117600 | G60: =ROUND('All Districts unrounded'!K60,-2) -> 118200 | H60: =ROUND('All Districts unrounded'!L60,-2) -> 119000 | I60: =ROUND('All Districts unrounded'!M60,-2) -> 119400 | J60: =ROUND('All Districts unrounded'!N60,-2) -> 120300 | K60: =ROUND('All Districts unrounded'!O60,-2) -> 120800 | L60: =ROUND('All Districts unrounded'!P60,-2) -> 121400 | M60: =ROUND('All Districts unrounded'!Q60,-2) -> 122300 | N60: =ROUND('All Districts unrounded'!R60,-2) -> 123300 | O60: =ROUND('All Districts unrounded'!S60,-2) -> 124400 | P60: =ROUND('All Districts unrounded'!T60,-2) -> 125800 | Q60: =ROUND('All Districts unrounded'!U60,-2) -> 127500 | R60: =ROUND('All Districts unrounded'!V60,-2) -> 129100 | S60: =ROUND('All Districts unrounded'!W60,-2) -> 130600 | T60: =ROUND('All Districts unrounded'!X60,-2) -> 132200 | U60: =ROUND('All Districts unrounded'!Y60,-2) -> 133700 | V60: =ROUND('All Districts unrounded'!Z60,-2) -> 135300 | W60: =ROUND('All Districts unrounded'!AA60,-2) -> 136800 | X60: =ROUND('All Districts unrounded'!AB60,-2) -> 138300 | Y60: =ROUND('All Districts unrounded'!AC60,-2) -> 139900 | Z60: =ROUND('All Districts unrounded'!AD60,-2) -> 141500 | AA60: =ROUND('All Districts unrounded'!AE60,-2) -> 143000 | AB60: =ROUND('All Districts unrounded'!AF60,-2) -> 144300 | AC60: =ROUND('All Districts unrounded'!AG60,-2) -> 145600 | AD60: =ROUND('All Districts unrounded'!AH60,-2) -> 147000 | AE60: =ROUND('All Districts unrounded'!AI60,-2) -> 148300 | AF60: =ROUND('All Districts unrounded'!AJ60,-2) -> 149700 | AH60: =INDEX($C60:AG60,Index!$B$16) -> 121400 | AI60: =INDEX($C60:AG60,Index!$B$19) -> 149700 | AJ60: =ROUND(SEV!CH$6,-2) -> 28300 | AK60: =SEV!CI$6 -> 0.2331141169
A61: Folkestone & Hythe | B61: =ROUND('All Districts unrounded'!F61,-2) -> 107000 | C61: =ROUND('All Districts unrounded'!G61,-2) -> 108200 | D61: =ROUND('All Districts unrounded'!H61,-2) -> 108600 | E61: =ROUND('All Districts unrounded'!I61,-2) -> 108800 | F61: =ROUND('All Districts unrounded'!J61,-2) -> 109300 | G61: =ROUND('All Districts unrounded'!K61,-2) -> 109800 | H61: =ROUND('All Districts unrounded'!L61,-2) -> 111000 | I61: =ROUND('All Districts unrounded'!M61,-2) -> 111400 | J61: =ROUND('All Districts unrounded'!N61,-2) -> 112600 | K61: =ROUND('All Districts unrounded'!O61,-2) -> 113000 | L61: =ROUND('All Districts unrounded'!P61,-2) -> 113300 | M61: =ROUND('All Districts unrounded'!Q61,-2) -> 113800 | N61: =ROUND('All Districts unrounded'!R61,-2) -> 114400 | O61: =ROUND('All Districts unrounded'!S61,-2) -> 115300 | P61: =ROUND('All Districts unrounded'!T61,-2) -> 116500 | Q61: =ROUND('All Districts unrounded'!U61,-2) -> 118200 | R61: =ROUND('All Districts unrounded'!V61,-2) -> 119500 | S61: =ROUND('All Districts unrounded'!W61,-2) -> 120700 | T61: =ROUND('All Districts unrounded'!X61,-2) -> 122000 | U61: =ROUND('All Districts unrounded'!Y61,-2) -> 123300 | V61: =ROUND('All Districts unrounded'!Z61,-2) -> 124300 | W61: =ROUND('All Districts unrounded'!AA61,-2) -> 125200 | X61: =ROUND('All Districts unrounded'!AB61,-2) -> 126200 | Y61: =ROUND('All Districts unrounded'!AC61,-2) -> 127100 | Z61: =ROUND('All Districts unrounded'!AD61,-2) -> 128100 | AA61: =ROUND('All Districts unrounded'!AE61,-2) -> 129000 | AB61: =ROUND('All Districts unrounded'!AF61,-2) -> 129900 | AC61: =ROUND('All Districts unrounded'!AG61,-2) -> 130800 | AD61: =ROUND('All Districts unrounded'!AH61,-2) -> 131800 | AE61: =ROUND('All Districts unrounded'!AI61,-2) -> 132700 | AF61: =ROUND('All Districts unrounded'!AJ61,-2) -> 133800 | AH61: =INDEX($C61:AG61,Index!$B$16) -> 113300 | AI61: =INDEX($C61:AG61,Index!$B$19) -> 133800 | AJ61: =ROUND('F&H'!CH$6,-2) -> 20400 | AK61: ='F&H'!CI$6 -> 0.1803661807
A62: Swale | B62: =ROUND('All Districts unrounded'!F62,-2) -> 135000 | C62: =ROUND('All Districts unrounded'!G62,-2) -> 136300 | D62: =ROUND('All Districts unrounded'!H62,-2) -> 137800 | E62: =ROUND('All Districts unrounded'!I62,-2) -> 139300 | F62: =ROUND('All Districts unrounded'!J62,-2) -> 140900 | G62: =ROUND('All Districts unrounded'!K62,-2) -> 142500 | H62: =ROUND('All Districts unrounded'!L62,-2) -> 144900 | I62: =ROUND('All Districts unrounded'!M62,-2) -> 146700 | J62: =ROUND('All Districts unrounded'!N62,-2) -> 148500 | K62: =ROUND('All Districts unrounded'!O62,-2) -> 150100 | L62: =ROUND('All Districts unrounded'!P62,-2) -> 151000 | M62: =ROUND('All Districts unrounded'!Q62,-2) -> 152500 | N62: =ROUND('All Districts unrounded'!R62,-2) -> 153900 | O62: =ROUND('All Districts unrounded'!S62,-2) -> 155500 | P62: =ROUND('All Districts unrounded'!T62,-2) -> 157200 | Q62: =ROUND('All Districts unrounded'!U62,-2) -> 159000 | R62: =ROUND('All Districts unrounded'!V62,-2) -> 160400 | S62: =ROUND('All Districts unrounded'!W62,-2) -> 161900 | T62: =ROUND('All Districts unrounded'!X62,-2) -> 163300 | U62: =ROUND('All Districts unrounded'!Y62,-2) -> 164800 | V62: =ROUND('All Districts unrounded'!Z62,-2) -> 166300 | W62: =ROUND('All Districts unrounded'!AA62,-2) -> 167700 | X62: =ROUND('All Districts unrounded'!AB62,-2) -> 168800 | Y62: =ROUND('All Districts unrounded'!AC62,-2) -> 170000 | Z62: =ROUND('All Districts unrounded'!AD62,-2) -> 171100 | AA62: =ROUND('All Districts unrounded'!AE62,-2) -> 172300 | AB62: =ROUND('All Districts unrounded'!AF62,-2) -> 173400 | AC62: =ROUND('All Districts unrounded'!AG62,-2) -> 174500 | AD62: =ROUND('All Districts unrounded'!AH62,-2) -> 175700 | AE62: =ROUND('All Districts unrounded'!AI62,-2) -> 176900 | AF62: =ROUND('All Districts unrounded'!AJ62,-2) -> 178100 | AH62: =INDEX($C62:AG62,Index!$B$16) -> 151000 | AI62: =INDEX($C62:AG62,Index!$B$19) -> 178100 | AJ62: =ROUND(SWA!CH$6,-2) -> 27100 | AK62: =SWA!CI$6 -> 0.1792695763
A63: Thanet | B63: =ROUND('All Districts unrounded'!F63,-2) -> 133500 | C63: =ROUND('All Districts unrounded'!G63,-2) -> 134400 | D63: =ROUND('All Districts unrounded'!H63,-2) -> 135700 | E63: =ROUND('All Districts unrounded'!I63,-2) -> 136800 | F63: =ROUND('All Districts unrounded'!J63,-2) -> 138500 | G63: =ROUND('All Districts unrounded'!K63,-2) -> 139800 | H63: =ROUND('All Districts unrounded'!L63,-2) -> 140800 | I63: =ROUND('All Districts unrounded'!M63,-2) -> 141300 | J63: =ROUND('All Districts unrounded'!N63,-2) -> 141800 | K63: =ROUND('All Districts unrounded'!O63,-2) -> 141900 | L63: =ROUND('All Districts unrounded'!P63,-2) -> 141500 | M63: =ROUND('All Districts unrounded'!Q63,-2) -> 142000 | N63: =ROUND('All Districts unrounded'!R63,-2) -> 142700 | O63: =ROUND('All Districts unrounded'!S63,-2) -> 143900 | P63: =ROUND('All Districts unrounded'!T63,-2) -> 145700 | Q63: =ROUND('All Districts unrounded'!U63,-2) -> 148500 | R63: =ROUND('All Districts unrounded'!V63,-2) -> 151500 | S63: =ROUND('All Districts unrounded'!W63,-2) -> 154400 | T63: =ROUND('All Districts unrounded'!X63,-2) -> 157300 | U63: =ROUND('All Districts unrounded'!Y63,-2) -> 160200 | V63: =ROUND('All Districts unrounded'!Z63,-2) -> 163200 | W63: =ROUND('All Districts unrounded'!AA63,-2) -> 166000 | X63: =ROUND('All Districts unrounded'!AB63,-2) -> 167000 | Y63: =ROUND('All Districts unrounded'!AC63,-2) -> 168000 | Z63: =ROUND('All Districts unrounded'!AD63,-2) -> 169200 | AA63: =ROUND('All Districts unrounded'!AE63,-2) -> 170300 | AB63: =ROUND('All Districts unrounded'!AF63,-2) -> 171400 | AC63: =ROUND('All Districts unrounded'!AG63,-2) -> 172500 | AD63: =ROUND('All Districts unrounded'!AH63,-2) -> 173700 | AE63: =ROUND('All Districts unrounded'!AI63,-2) -> 174900 | AF63: =ROUND('All Districts unrounded'!AJ63,-2) -> 176200 | AH63: =INDEX($C63:AG63,Index!$B$16) -> 141500 | AI63: =INDEX($C63:AG63,Index!$B$19) -> 176200 | AJ63: =ROUND(THA!CH$6,-2) -> 34700 | AK63: =THA!CI$6 -> 0.2453868349
A64: Tonbridge & Malling | B64: =ROUND('All Districts unrounded'!F64,-2) -> 120100 | C64: =ROUND('All Districts unrounded'!G64,-2) -> 121100 | D64: =ROUND('All Districts unrounded'!H64,-2) -> 122000 | E64: =ROUND('All Districts unrounded'!I64,-2) -> 123200 | F64: =ROUND('All Districts unrounded'!J64,-2) -> 124600 | G64: =ROUND('All Districts unrounded'!K64,-2) -> 125800 | H64: =ROUND('All Districts unrounded'!L64,-2) -> 127300 | I64: =ROUND('All Districts unrounded'!M64,-2) -> 128900 | J64: =ROUND('All Districts unrounded'!N64,-2) -> 130500 | K64: =ROUND('All Districts unrounded'!O64,-2) -> 132200 | L64: =ROUND('All Districts unrounded'!P64,-2) -> 132600 | M64: =ROUND('All Districts unrounded'!Q64,-2) -> 134000 | N64: =ROUND('All Districts unrounded'!R64,-2) -> 135500 | O64: =ROUND('All Districts unrounded'!S64,-2) -> 137000 | P64: =ROUND('All Districts unrounded'!T64,-2) -> 138600 | Q64: =ROUND('All Districts unrounded'!U64,-2) -> 140300 | R64: =ROUND('All Districts unrounded'!V64,-2) -> 142000 | S64: =ROUND('All Districts unrounded'!W64,-2) -> 143600 | T64: =ROUND('All Districts unrounded'!X64,-2) -> 145200 | U64: =ROUND('All Districts unrounded'!Y64,-2) -> 146800 | V64: =ROUND('All Districts unrounded'!Z64,-2) -> 148500 | W64: =ROUND('All Districts unrounded'!AA64,-2) -> 150100 | X64: =ROUND('All Districts unrounded'!AB64,-2) -> 151700 | Y64: =ROUND('All Districts unrounded'!AC64,-2) -> 153300 | Z64: =ROUND('All Districts unrounded'!AD64,-2) -> 154800 | AA64: =ROUND('All Districts unrounded'!AE64,-2) -> 156400 | AB64: =ROUND('All Districts unrounded'!AF64,-2) -> 157900 | AC64: =ROUND('All Districts unrounded'!AG64,-2) -> 159500 | AD64: =ROUND('All Districts unrounded'!AH64,-2) -> 161000 | AE64: =ROUND('All Districts unrounded'!AI64,-2) -> 162600 | AF64: =ROUND('All Districts unrounded'!AJ64,-2) -> 164100 | AH64: =INDEX($C64:AG64,Index!$B$16) -> 132600 | AI64: =INDEX($C64:AG64,Index!$B$19) -> 164100 | AJ64: =ROUND(TON!CH$6,-2) -> 31500 | AK64: =TON!CI$6 -> 0.2379799736
A65: Tunbridge Wells | B65: =ROUND('All Districts unrounded'!F65,-2) -> 114000 | C65: =ROUND('All Districts unrounded'!G65,-2) -> 115200 | D65: =ROUND('All Districts unrounded'!H65,-2) -> 115800 | E65: =ROUND('All Districts unrounded'!I65,-2) -> 116100 | F65: =ROUND('All Districts unrounded'!J65,-2) -> 116500 | G65: =ROUND('All Districts unrounded'!K65,-2) -> 116600 | H65: =ROUND('All Districts unrounded'!L65,-2) -> 117400 | I65: =ROUND('All Districts unrounded'!M65,-2) -> 118100 | J65: =ROUND('All Districts unrounded'!N65,-2) -> 118100 | K65: =ROUND('All Districts unrounded'!O65,-2) -> 118700 | L65: =ROUND('All Districts unrounded'!P65,-2) -> 118900 | M65: =ROUND('All Districts unrounded'!Q65,-2) -> 120000 | N65: =ROUND('All Districts unrounded'!R65,-2) -> 121000 | O65: =ROUND('All Districts unrounded'!S65,-2) -> 122100 | P65: =ROUND('All Districts unrounded'!T65,-2) -> 123200 | Q65: =ROUND('All Districts unrounded'!U65,-2) -> 124300 | R65: =ROUND('All Districts unrounded'!V65,-2) -> 125100 | S65: =ROUND('All Districts unrounded'!W65,-2) -> 126000 | T65: =ROUND('All Districts unrounded'!X65,-2) -> 126900 | U65: =ROUND('All Districts unrounded'!Y65,-2) -> 127800 | V65: =ROUND('All Districts unrounded'!Z65,-2) -> 128700 | W65: =ROUND('All Districts unrounded'!AA65,-2) -> 129600 | X65: =ROUND('All Districts unrounded'!AB65,-2) -> 130600 | Y65: =ROUND('All Districts unrounded'!AC65,-2) -> 131600 | Z65: =ROUND('All Districts unrounded'!AD65,-2) -> 132500 | AA65: =ROUND('All Districts unrounded'!AE65,-2) -> 133500 | AB65: =ROUND('All Districts unrounded'!AF65,-2) -> 134500 | AC65: =ROUND('All Districts unrounded'!AG65,-2) -> 135500 | AD65: =ROUND('All Districts unrounded'!AH65,-2) -> 136500 | AE65: =ROUND('All Districts unrounded'!AI65,-2) -> 137500 | AF65: =ROUND('All Districts unrounded'!AJ65,-2) -> 138500 | AH65: =INDEX($C65:AG65,Index!$B$16) -> 118900 | AI65: =INDEX($C65:AG65,Index!$B$19) -> 138500 | AJ65: =ROUND(TUN!CH$6,-2) -> 19500 | AK65: =TUN!CI$6 -> 0.1642596913
A66: KCC Area | B66: =ROUND('All Districts unrounded'!F66,-2) -> 1451900 | C66: =ROUND('All Districts unrounded'!G66,-2) -> 1466500 | D66: =ROUND('All Districts unrounded'!H66,-2) -> 1480200 | E66: =ROUND('All Districts unrounded'!I66,-2) -> 1493100 | F66: =ROUND('All Districts unrounded'!J66,-2) -> 1509300 | G66: =ROUND('All Districts unrounded'!K66,-2) -> 1523100 | H66: =ROUND('All Districts unrounded'!L66,-2) -> 1540400 | I66: =ROUND('All Districts unrounded'!M66,-2) -> 1554600 | J66: =ROUND('All Districts unrounded'!N66,-2) -> 1568600 | K66: =ROUND('All Districts unrounded'!O66,-2) -> 1581600 | L66: =ROUND('All Districts unrounded'!P66,-2) -> 1589100 | M66: =ROUND('All Districts unrounded'!Q66,-2) -> 1604300 | N66: =ROUND('All Districts unrounded'!R66,-2) -> 1619000 | O66: =ROUND('All Districts unrounded'!S66,-2) -> 1636300 | P66: =ROUND('All Districts unrounded'!T66,-2) -> 1656200 | Q66: =ROUND('All Districts unrounded'!U66,-2) -> 1680100 | R66: =ROUND('All Districts unrounded'!V66,-2) -> 1701900 | S66: =ROUND('All Districts unrounded'!W66,-2) -> 1721000 | T66: =ROUND('All Districts unrounded'!X66,-2) -> 1740300 | U66: =ROUND('All Districts unrounded'!Y66,-2) -> 1758600 | V66: =ROUND('All Districts unrounded'!Z66,-2) -> 1776700 | W66: =ROUND('All Districts unrounded'!AA66,-2) -> 1793000 | X66: =ROUND('All Districts unrounded'!AB66,-2) -> 1806100 | Y66: =ROUND('All Districts unrounded'!AC66,-2) -> 1819400 | Z66: =ROUND('All Districts unrounded'!AD66,-2) -> 1832800 | AA66: =ROUND('All Districts unrounded'!AE66,-2) -> 1846200 | AB66: =ROUND('All Districts unrounded'!AF66,-2) -> 1859000 | AC66: =ROUND('All Districts unrounded'!AG66,-2) -> 1872000 | AD66: =ROUND('All Districts unrounded'!AH66,-2) -> 1885500 | AE66: =ROUND('All Districts unrounded'!AI66,-2) -> 1899200 | AF66: =ROUND('All Districts unrounded'!AJ66,-2) -> 1913100 | AH66: =INDEX($C66:AG66,Index!$B$16) -> 1589100 | AI66: =INDEX($C66:AG66,Index!$B$19) -> 1913100 | AJ66: =ROUND(KCC!CH$6,-2) -> 324000 | AK66: =KCC!CI$6 -> 0.2039052542
A67: Kent (Incl Medway) | B67: =ROUND('All Districts unrounded'!F67,-2) -> 1714600 | C67: =ROUND('All Districts unrounded'!G67,-2) -> 1731400 | D67: =ROUND('All Districts unrounded'!H67,-2) -> 1748300 | E67: =ROUND('All Districts unrounded'!I67,-2) -> 1763800 | F67: =ROUND('All Districts unrounded'!J67,-2) -> 1782500 | G67: =ROUND('All Districts unrounded'!K67,-2) -> 1798300 | H67: =ROUND('All Districts unrounded'!L67,-2) -> 1817400 | I67: =ROUND('All Districts unrounded'!M67,-2) -> 1832300 | J67: =ROUND('All Districts unrounded'!N67,-2) -> 1846500 | K67: =ROUND('All Districts unrounded'!O67,-2) -> 1860100 | L67: =ROUND('All Districts unrounded'!P67,-2) -> 1868200 | M67: =ROUND('All Districts unrounded'!Q67,-2) -> 1886000 | N67: =ROUND('All Districts unrounded'!R67,-2) -> 1903000 | O67: =ROUND('All Districts unrounded'!S67,-2) -> 1923200 | P67: =ROUND('All Districts unrounded'!T67,-2) -> 1946600 | Q67: =ROUND('All Districts unrounded'!U67,-2) -> 1974600 | R67: =ROUND('All Districts unrounded'!V67,-2) -> 2000400 | S67: =ROUND('All Districts unrounded'!W67,-2) -> 2023200 | T67: =ROUND('All Districts unrounded'!X67,-2) -> 2046200 | U67: =ROUND('All Districts unrounded'!Y67,-2) -> 2068300 | V67: =ROUND('All Districts unrounded'!Z67,-2) -> 2090100 | W67: =ROUND('All Districts unrounded'!AA67,-2) -> 2109900 | X67: =ROUND('All Districts unrounded'!AB67,-2) -> 2126500 | Y67: =ROUND('All Districts unrounded'!AC67,-2) -> 2143300 | Z67: =ROUND('All Districts unrounded'!AD67,-2) -> 2160100 | AA67: =ROUND('All Districts unrounded'!AE67,-2) -> 2177000 | AB67: =ROUND('All Districts unrounded'!AF67,-2) -> 2193100 | AC67: =ROUND('All Districts unrounded'!AG67,-2) -> 2209400 | AD67: =ROUND('All Districts unrounded'!AH67,-2) -> 2225800 | AE67: =ROUND('All Districts unrounded'!AI67,-2) -> 2242500 | AF67: =ROUND('All Districts unrounded'!AJ67,-2) -> 2259400 | AH67: =INDEX($C67:AG67,Index!$B$16) -> 1868200 | AI67: =INDEX($C67:AG67,Index!$B$19) -> 2259400 | AJ67: =ROUND(Kent!CH$6,-2) -> 391200 | AK67: =Kent!CI$6 -> 0.2093928761

Sheet All Districts unrounded (hidden)
A1: All data on this sheet is rounded from each of the district worksheets | AK1: Insert column here before extending the table
A8: Selected Ages: | C8: =Index!$C$4&" : "&Index!$C$7 -> 0 : 90+
A10: Males | AL10: Change
B11: 2006 | C11: 2007 | D11: 2008 | E11: 2009 | F11: 2010 | G11: 2011 | H11: 2012 | I11: 2013 | J11: 2014 | K11: 2015 | L11: 2016 | M11: 2017 | N11: 2018 | O11: 2019 | P11: 2020 | Q11: 2021 | R11: 2022 | S11: 2023 | T11: 2024 | U11: 2025 | V11: 2026 | W11: 2027 | X11: 2028 | Y11: 2029 | Z11: 2030 | AA11: 2031 | AB11: 2032 | AC11: 2033 | AD11: 2034 | AE11: 2035 | AF11: 2036 | AG11: 2037 | AH11: 2038 | AI11: 2039 | AJ11: 2040 | AL11: =Index!$C$16 -> 2020 | AM11: =Index!$C$19 -> 2040 | AN11: Number change | AO11: % change
A12: -
A13: Ashford | B13: =ASH!AS$4 -> 54010 | C13: =ASH!AT$4 -> 54954 | D13: =ASH!AU$4 -> 55603 | E13: =ASH!AV$4 -> 56188 | F13: =ASH!AW$4 -> 56737 | G13: =ASH!AX$4 -> 57441 | H13: =ASH!AY$4 -> 58274 | I13: =ASH!AZ$4 -> 59026 | J13: =ASH!BA$4 -> 59779 | K13: =ASH!BB$4 -> 60271 | L13: =ASH!BC$4 -> 61150 | M13: =ASH!BD$4 -> 62009 | N13: =ASH!BE$4 -> 62845 | O13: =ASH!BF$4 -> 63237 | P13: =ASH!BG$4 -> 63653 | Q13: =ASH!BH$4 -> 64470.20023 | R13: =ASH!BI$4 -> 65301.73873 | S13: =ASH!BJ$4 -> 66278.98777 | T13: =ASH!BK$4 -> 67388.41618 | U13: =ASH!BL$4 -> 68648.03061 | V13: =ASH!BM$4 -> 69992.33159 | W13: =ASH!BN$4 -> 71245.59808 | X13: =ASH!BO$4 -> 72538.99338 | Y13: =ASH!BP$4 -> 73831.24064 | Z13: =ASH!BQ$4 -> 75144.28819 | AA13: =ASH!BR$4 -> 75891.22852 | AB13: =ASH!BS$4 -> 76616.45594 | AC13: =ASH!BT$4 -> 77374.12524 | AD13: =ASH!BU$4 -> 78119.75133 | AE13: =ASH!BV$4 -> 78876.43664 | AF13: =ASH!BW$4 -> 79610.03006 | AG13: =ASH!BX$4 -> 80345.45365 | AH13: =ASH!BY$4 -> 81100.04572 | AI13: =ASH!BZ$4 -> 81870.52822 | AJ13: =ASH!CA$4 -> 82645.68354 | AL13: =INDEX(G13:AK13,Index!$B$16) -> 63653 | AM13: =INDEX(G13:AK13,Index!$B$19) -> 82645.68354 | AN13: =ASH!CH$4 -> 18992.68354 | AO13: =ASH!CI$4 -> 0.298378451
A14: Canterbury | B14: =CAN!AS$4 -> 68324 | C14: =CAN!AT$4 -> 69323 | D14: =CAN!AU$4 -> 69802 | E14: =CAN!AV$4 -> 70065 | F14: =CAN!AW$4 -> 71332 | G14: =CAN!AX$4 -> 72565 | H14: =CAN!AY$4 -> 74122 | I14: =CAN!AZ$4 -> 75137 | J14: =CAN!BA$4 -> 76347 | K14: =CAN!BB$4 -> 77890 | L14: =CAN!BC$4 -> 79671 | M14: =CAN!BD$4 -> 80698 | N14: =CAN!BE$4 -> 80878 | O14: =CAN!BF$4 -> 81420 | P14: =CAN!BG$4 -> 82314 | Q14: =CAN!BH$4 -> 83212.13796 | R14: =CAN!BI$4 -> 83815.24223 | S14: =CAN!BJ$4 -> 84678.38899 | T14: =CAN!BK$4 -> 85776.78226 | U14: =CAN!BL$4 -> 87245.64717 | V14: =CAN!BM$4 -> 88588.5105 | W14: =CAN!BN$4 -> 89849.55041 | X14: =CAN!BO$4 -> 91077.06838 | Y14: =CAN!BP$4 -> 92319.05968 | Z14: =CAN!BQ$4 -> 93526.00609 | AA14: =CAN!BR$4 -> 94696.38517 | AB14: =CAN!BS$4 -> 95143.4751 | AC14: =CAN!BT$4 -> 95668.47801 | AD14: =CAN!BU$4 -> 96178.43371 | AE14: =CAN!BV$4 -> 96714.10668 | AF14: =CAN!BW$4 -> 97216.85894 | AG14: =CAN!BX$4 -> 97740.15763 | AH14: =CAN!BY$4 -> 98249.38665 | AI14: =CAN!BZ$4 -> 98810.32148 | AJ14: =CAN!CA$4 -> 99386.59914 | AL14: =INDEX(G14:AK14,Index!$B$16) -> 82314 | AM14: =INDEX(G14:AK14,Index!$B$19) -> 99386.59914 | AN14: =CAN!CH$4 -> 17072.59914 | AO14: =CAN!CI$4 -> 0.2074082068
A15: Dartford | B15: =DAR!AS$4 -> 44802 | C15: =DAR!AT$4 -> 45375 | D15: =DAR!AU$4 -> 46200 | E15: =DAR!AV$4 -> 46885 | F15: =DAR!AW$4 -> 47544 | G15: =DAR!AX$4 -> 48187 | H15: =DAR!AY$4 -> 48793 | I15: =DAR!AZ$4 -> 49590 | J15: =DAR!BA$4 -> 50276 | K15: =DAR!BB$4 -> 50937 | L15: =DAR!BC$4 -> 51643 | M15: =DAR!BD$4 -> 52957 | N15: =DAR!BE$4 -> 54077 | O15: =DAR!BF$4 -> 55487 | P15: =DAR!BG$4 -> 56272 | Q15: =DAR!BH$4 -> 57426.4442 | R15: =DAR!BI$4 -> 58561.87912 | S15: =DAR!BJ$4 -> 59673.22955 | T15: =DAR!BK$4 -> 60717.04972 | U15: =DAR!BL$4 -> 61725.12889 | V15: =DAR!BM$4 -> 62533.8895 | W15: =DAR!BN$4 -> 63333.29999 | X15: =DAR!BO$4 -> 64113.71594 | Y15: =DAR!BP$4 -> 64877.42285 | Z15: =DAR!BQ$4 -> 65598.96547 | AA15: =DAR!BR$4 -> 66291.37146 | AB15: =DAR!BS$4 -> 66992.27792 | AC15: =DAR!BT$4 -> 67681.85417 | AD15: =DAR!BU$4 -> 68357.34557 | AE15: =DAR!BV$4 -> 69019.60012 | AF15: =DAR!BW$4 -> 69666.86318 | AG15: =DAR!BX$4 -> 70309.32355 | AH15: =DAR!BY$4 -> 71030.71682 | AI15: =DAR!BZ$4 -> 71746.73704 | AJ15: =DAR!CA$4 -> 72483.68097 | AL15: =INDEX(G15:AK15,Index!$B$16) -> 56272 | AM15: =INDEX(G15:AK15,Index!$B$19) -> 72483.68097 | AN15: =DAR!CH$4 -> 16211.68097 | AO15: =DAR!CI$4 -> 0.2880949846
A16: Dover | B16: =DOV!AS$4 -> 52336 | C16: =DOV!AT$4 -> 52976 | D16: =DOV!AU$4 -> 53517 | E16: =DOV!AV$4 -> 53704 | F16: =DOV!AW$4 -> 54347 | G16: =DOV!AX$4 -> 54780 | H16: =DOV!AY$4 -> 54867 | I16: =DOV!AZ$4 -> 55265 | J16: =DOV!BA$4 -> 55770 | K16: =DOV!BB$4 -> 55744 | L16: =DOV!BC$4 -> 56381 | M16: =DOV!BD$4 -> 56997 | N16: =DOV!BE$4 -> 57761 | O16: =DOV!BF$4 -> 58368 | P16: =DOV!BG$4 -> 58453 | Q16: =DOV!BH$4 -> 59045.015 | R16: =DOV!BI$4 -> 59635.16691 | S16: =DOV!BJ$4 -> 60395.26427 | T16: =DOV!BK$4 -> 61338.09149 | U16: =DOV!BL$4 -> 62524.07773 | V16: =DOV!BM$4 -> 63771.25123 | W16: =DOV!BN$4 -> 64042.27202 | X16: =DOV!BO$4 -> 64333.08432 | Y16: =DOV!BP$4 -> 64617.35344 | Z16: =DOV!BQ$4 -> 64925.57368 | AA16: =DOV!BR$4 -> 65204.78411 | AB16: =DOV!BS$4 -> 65475.12098 | AC16: =DOV!BT$4 -> 65768.21076 | AD16: =DOV!BU$4 -> 66061.41284 | AE16: =DOV!BV$4 -> 66347.43903 | AF16: =DOV!BW$4 -> 66632.16647 | AG16: =DOV!BX$4 -> 66925.92557 | AH16: =DOV!BY$4 -> 67249.90354 | AI16: =DOV!BZ$4 -> 67571.46919 | AJ16: =DOV!CA$4 -> 67890.83497 | AL16: =INDEX(G16:AK16,Index!$B$16) -> 58453 | AM16: =INDEX(G16:AK16,Index!$B$19) -> 67890.83497 | AN16: =DOV!CH$4 -> 9437.834966 | AO16: =DOV!CI$4 -> 0.1614602324
A17: Gravesham | B17: =GRA!AS$4 -> 48034 | C17: =GRA!AT$4 -> 48478 | D17: =GRA!AU$4 -> 48882 | E17: =GRA!AV$4 -> 49256 | F17: =GRA!AW$4 -> 49777 | G17: =GRA!AX$4 -> 50180 | H17: =GRA!AY$4 -> 50639 | I17: =GRA!AZ$4 -> 51003 | J17: =GRA!BA$4 -> 51768 | K17: =GRA!BB$4 -> 52264 | L17: =GRA!BC$4 -> 52457 | M17: =GRA!BD$4 -> 52338 | N17: =GRA!BE$4 -> 52331 | O17: =GRA!BF$4 -> 52665 | P17: =GRA!BG$4 -> 52578 | Q17: =GRA!BH$4 -> 52899.76344 | R17: =GRA!BI$4 -> 53213.6805 | S17: =GRA!BJ$4 -> 53610.0112 | T17: =GRA!BK$4 -> 54128.08063 | U17: =GRA!BL$4 -> 54774.13047 | V17: =GRA!BM$4 -> 55427.70487 | W17: =GRA!BN$4 -> 56075.94654 | X17: =GRA!BO$4 -> 56736.78807 | Y17: =GRA!BP$4 -> 56974.40009 | Z17: =GRA!BQ$4 -> 57204.01976 | AA17: =GRA!BR$4 -> 57408.14732 | AB17: =GRA!BS$4 -> 57629.04623 | AC17: =GRA!BT$4 -> 57836.21258 | AD17: =GRA!BU$4 -> 58067.16581 | AE17: =GRA!BV$4 -> 58304.79039 | AF17: =GRA!BW$4 -> 58522.04011 | AG17: =GRA!BX$4 -> 58760.69563 | AH17: =GRA!BY$4 -> 59001.27169 | AI17: =GRA!BZ$4 -> 59267.18142 | AJ17: =GRA!CA$4 -> 59536.38768 | AL17: =INDEX(G17:AK17,Index!$B$16) -> 52578 | AM17: =INDEX(G17:AK17,Index!$B$19) -> 59536.38768 | AN17: =GRA!CH$4 -> 6958.387683 | AO17: =GRA!CI$4 -> 0.1323440923
A18: Maidstone | B18: =MAI!AS$4 -> 71538 | C18: =MAI!AT$4 -> 72812 | D18: =MAI!AU$4 -> 73935 | E18: =MAI!AV$4 -> 74791 | F18: =MAI!AW$4 -> 75863 | G18: =MAI!AX$4 -> 76868 | H18: =MAI!AY$4 -> 77579 | I18: =MAI!AZ$4 -> 78521 | J18: =MAI!BA$4 -> 79718 | K18: =MAI!BB$4 -> 81000 | L18: =MAI!BC$4 -> 81895 | M18: =MAI!BD$4 -> 82764 | N18: =MAI!BE$4 -> 83857 | O18: =MAI!BF$4 -> 84696 | P18: =MAI!BG$4 -> 85254 | Q18: =MAI!BH$4 -> 86321.15155 | R18: =MAI!BI$4 -> 87322.75641 | S18: =MAI!BJ$4 -> 88293.17765 | T18: =MAI!BK$4 -> 89233.74124 | U18: =MAI!BL$4 -> 90187.31535 | V18: =MAI!BM$4 -> 90844.77828 | W18: =MAI!BN$4 -> 91486.44552 | X18: =MAI!BO$4 -> 92103.46341 | Y18: =MAI!BP$4 -> 92720.01401 | Z18: =MAI!BQ$4 -> 93331.49289 | AA18: =MAI!BR$4 -> 93902.75362 | AB18: =MAI!BS$4 -> 94622.98793 | AC18: =MAI!BT$4 -> 95321.58433 | AD18: =MAI!BU$4 -> 96011.59498 | AE18: =MAI!BV$4 -> 96707.8749 | AF18: =MAI!BW$4 -> 97387.59037 | AG18: =MAI!BX$4 -> 98084.61097 | AH18: =MAI!BY$4 -> 98791.88048 | AI18: =MAI!BZ$4 -> 99516.6281 | AJ18: =MAI!CA$4 -> 100265.6082 | AL18: =INDEX(G18:AK18,Index!$B$16) -> 85254 | AM18: =INDEX(G18:AK18,Index!$B$19) -> 100265.6082 | AN18: =MAI!CH$4 -> 15011.60821 | AO18: =MAI!CI$4 -> 0.176080984
A19: Medway | B19: =MED!AS$4 -> 124859 | C19: =MED!AT$4 -> 126260 | D19: =MED!AU$4 -> 127647 | E19: =MED!AV$4 -> 128802 | F19: =MED!AW$4 -> 130339 | G19: =MED!AX$4 -> 131368 | H19: =MED!AY$4 -> 132858 | I19: =MED!AZ$4 -> 134213 | J19: =MED!BA$4 -> 135539 | K19: =MED!BB$4 -> 136543 | L19: =MED!BC$4 -> 137348 | M19: =MED!BD$4 -> 137636 | N19: =MED!BE$4 -> 137618 | O19: =MED!BF$4 -> 138052 | P19: =MED!BG$4 -> 138256 | Q19: =MED!BH$4 -> 139492.9783 | R19: =MED!BI$4 -> 140582.4564 | S19: =MED!BJ$4 -> 142021.3796 | T19: =MED!BK$4 -> 143650.0046 | U19: =MED!BL$4 -> 145615.4978 | V19: =MED!BM$4 -> 147497.3793 | W19: =MED!BN$4 -> 149272.3962 | X19: =MED!BO$4 -> 151075.5733 | Y19: =MED!BP$4 -> 152838.1953 | Z19: =MED!BQ$4 -> 154628.693 | AA19: =MED!BR$4 -> 156324.0641 | AB19: =MED!BS$4 -> 157992.6593 | AC19: =MED!BT$4 -> 159659.2469 | AD19: =MED!BU$4 -> 161311.7781 | AE19: =MED!BV$4 -> 162973.9596 | AF19: =MED!BW$4 -> 164574.5556 | AG19: =MED!BX$4 -> 166190.1723 | AH19: =MED!BY$4 -> 167603.1354 | AI19: =MED!BZ$4 -> 169035.8304 | AJ19: =MED!CA$4 -> 170495.7507 | AL19: =INDEX(G19:AK19,Index!$B$16) -> 138256 | AM19: =INDEX(G19:AK19,Index!$B$19) -> 170495.7507 | AN19: =MED!CH$4 -> 32239.75071 | AO19: =MED!CI$4 -> 0.2331887998
A20: Sevenoaks | B20: =SEV!AS$4 -> 54290 | C20: =SEV!AT$4 -> 54676 | D20: =SEV!AU$4 -> 54792 | E20: =SEV!AV$4 -> 55086 | F20: =SEV!AW$4 -> 55478 | G20: =SEV!AX$4 -> 55975 | H20: =SEV!AY$4 -> 56366 | I20: =SEV!AZ$4 -> 56697 | J20: =SEV!BA$4 -> 56927 | K20: =SEV!BB$4 -> 57247 | L20: =SEV!BC$4 -> 57680 | M20: =SEV!BD$4 -> 57961 | N20: =SEV!BE$4 -> 58409 | O20: =SEV!BF$4 -> 58617 | P20: =SEV!BG$4 -> 58822 | Q20: =SEV!BH$4 -> 59317.47386 | R20: =SEV!BI$4 -> 59830.14944 | S20: =SEV!BJ$4 -> 60415.79333 | T20: =SEV!BK$4 -> 61118.51777 | U20: =SEV!BL$4 -> 62005.32273 | V20: =SEV!BM$4 -> 62798.57946 | W20: =SEV!BN$4 -> 63569.22005 | X20: =SEV!BO$4 -> 64341.36779 | Y20: =SEV!BP$4 -> 65109.60024 | Z20: =SEV!BQ$4 -> 65869.81125 | AA20: =SEV!BR$4 -> 66625.03797 | AB20: =SEV!BS$4 -> 67392.97369 | AC20: =SEV!BT$4 -> 68178.00696 | AD20: =SEV!BU$4 -> 68972.98539 | AE20: =SEV!BV$4 -> 69744.85009 | AF20: =SEV!BW$4 -> 70412.67213 | AG20: =SEV!BX$4 -> 71082.532 | AH20: =SEV!BY$4 -> 71766.8947 | AI20: =SEV!BZ$4 -> 72452.13218 | AJ20: =SEV!CA$4 -> 73136.5349 | AL20: =INDEX(G20:AK20,Index!$B$16) -> 58822 | AM20: =INDEX(G20:AK20,Index!$B$19) -> 73136.5349 | AN20: =SEV!CH$4 -> 14314.5349 | AO20: =SEV!CI$4 -> 0.2433534204
A21: Folkestone & Hythe | B21: ='F&H'!AS$4 -> 49903 | C21: ='F&H'!AT$4 -> 50723 | D21: ='F&H'!AU$4 -> 51297 | E21: ='F&H'!AV$4 -> 51867 | F21: ='F&H'!AW$4 -> 52557 | G21: ='F&H'!AX$4 -> 53287 | H21: ='F&H'!AY$4 -> 53537 | I21: ='F&H'!AZ$4 -> 53711 | J21: ='F&H'!BA$4 -> 54002 | K21: ='F&H'!BB$4 -> 54218 | L21: ='F&H'!BC$4 -> 54827 | M21: ='F&H'!BD$4 -> 55089 | N21: ='F&H'!BE$4 -> 55713 | O21: ='F&H'!BF$4 -> 55920 | P21: ='F&H'!BG$4 -> 56077 | Q21: ='F&H'!BH$4 -> 56337.83865 | R21: ='F&H'!BI$4 -> 56654.06416 | S21: ='F&H'!BJ$4 -> 57136.85132 | T21: ='F&H'!BK$4 -> 57756.12338 | U21: ='F&H'!BL$4 -> 58592.08794 | V21: ='F&H'!BM$4 -> 59256.64692 | W21: ='F&H'!BN$4 -> 59894.76124 | X21: ='F&H'!BO$4 -> 60547.76273 | Y21: ='F&H'!BP$4 -> 61200.09932 | Z21: ='F&H'!BQ$4 -> 61707.38491 | AA21: ='F&H'!BR$4 -> 62200.59423 | AB21: ='F&H'!BS$4 -> 62696.59321 | AC21: ='F&H'!BT$4 -> 63195.29552 | AD21: ='F&H'!BU$4 -> 63694.58394 | AE21: ='F&H'!BV$4 -> 64178.13559 | AF21: ='F&H'!BW$4 -> 64646.26199 | AG21: ='F&H'!BX$4 -> 65121.93358 | AH21: ='F&H'!BY$4 -> 65630.59672 | AI21: ='F&H'!BZ$4 -> 66145.12565 | AJ21: ='F&H'!CA$4 -> 66675.09789 | AL21: =INDEX(G21:AK21,Index!$B$16) -> 56077 | AM21: =INDEX(G21:AK21,Index!$B$19) -> 66675.09789 | AN21: ='F&H'!CH$4 -> 10598.09789 | AO21: ='F&H'!CI$4 -> 0.1889918841
A22: Swale | B22: =SWA!AS$4 -> 62828 | C22: =SWA!AT$4 -> 63946 | D22: =SWA!AU$4 -> 64953 | E22: =SWA!AV$4 -> 65616 | F22: =SWA!AW$4 -> 66742 | G22: =SWA!AX$4 -> 67418 | H22: =SWA!AY$4 -> 68159 | I22: =SWA!AZ$4 -> 68890 | J22: =SWA!BA$4 -> 69676 | K22: =SWA!BB$4 -> 70370 | L22: =SWA!BC$4 -> 71649 | M22: =SWA!BD$4 -> 72541 | N22: =SWA!BE$4 -> 73451 | O22: =SWA!BF$4 -> 74268 | P22: =SWA!BG$4 -> 74521 | Q22: =SWA!BH$4 -> 75247.99231 | R22: =SWA!BI$4 -> 75981.94653 | S22: =SWA!BJ$4 -> 76753.73507 | T22: =SWA!BK$4 -> 77580.41219 | U22: =SWA!BL$4 -> 78459.85902 | V22: =SWA!BM$4 -> 79182.7076 | W22: =SWA!BN$4 -> 79879.80287 | X22: =SWA!BO$4 -> 80604.24354 | Y22: =SWA!BP$4 -> 81337.26714 | Z22: =SWA!BQ$4 -> 82060.04801 | AA22: =SWA!BR$4 -> 82760.59991 | AB22: =SWA!BS$4 -> 83334.16339 | AC22: =SWA!BT$4 -> 83913.43234 | AD22: =SWA!BU$4 -> 84501.94418 | AE22: =SWA!BV$4 -> 85090.71248 | AF22: =SWA!BW$4 -> 85656.40051 | AG22: =SWA!BX$4 -> 86239.84558 | AH22: =SWA!BY$4 -> 86839.86731 | AI22: =SWA!BZ$4 -> 87440.79153 | AJ22: =SWA!CA$4 -> 88061.4826 | AL22: =INDEX(G22:AK22,Index!$B$16) -> 74521 | AM22: =INDEX(G22:AK22,Index!$B$19) -> 88061.4826 | AN22: =SWA!CH$4 -> 13540.4826 | AO22: =SWA!CI$4 -> 0.1817002267
A23: Thanet | B23: =THA!AS$4 -> 61965 | C23: =THA!AT$4 -> 62557 | D23: =THA!AU$4 -> 63171 | E23: =THA!AV$4 -> 63544 | F23: =THA!AW$4 -> 64105 | G23: =THA!AX$4 -> 64652 | H23: =THA!AY$4 -> 65299 | I23: =THA!AZ$4 -> 65920 | J23: =THA!BA$4 -> 66820 | K23: =THA!BB$4 -> 67560 | L23: =THA!BC$4 -> 68150 | M23: =THA!BD$4 -> 68527 | N23: =THA!BE$4 -> 68704 | O23: =THA!BF$4 -> 68803 | P23: =THA!BG$4 -> 68514 | Q23: =THA!BH$4 -> 68791.36243 | R23: =THA!BI$4 -> 69177.62886 | S23: =THA!BJ$4 -> 69777.46677 | T23: =THA!BK$4 -> 70706.97097 | U23: =THA!BL$4 -> 72088.39995 | V23: =THA!BM$4 -> 73598.7518 | W23: =THA!BN$4 -> 75020.76347 | X23: =THA!BO$4 -> 76463.06105 | Y23: =THA!BP$4 -> 77913.84971 | Z23: =THA!BQ$4 -> 79367.93915 | AA23: =THA!BR$4 -> 80782.66632 | AB23: =THA!BS$4 -> 81270.07039 | AC23: =THA!BT$4 -> 81801.74141 | AD23: =THA!BU$4 -> 82369.35269 | AE23: =THA!BV$4 -> 82939.60702 | AF23: =THA!BW$4 -> 83512.6177 | AG23: =THA!BX$4 -> 84086.96535 | AH23: =THA!BY$4 -> 84699.73996 | AI23: =THA!BZ$4 -> 85331.32732 | AJ23: =THA!CA$4 -> 85977.38225 | AL23: =INDEX(G23:AK23,Index!$B$16) -> 68514 | AM23: =INDEX(G23:AK23,Index!$B$19) -> 85977.38225 | AN23: =THA!CH$4 -> 17463.38225 | AO23: =THA!CI$4 -> 0.254887793
A24: Tonbridge & Malling | B24: =TON!AS$4 -> 55687 | C24: =TON!AT$4 -> 56548 | D24: =TON!AU$4 -> 57227 | E24: =TON!AV$4 -> 57999 | F24: =TON!AW$4 -> 58779 | G24: =TON!AX$4 -> 59318 | H24: =TON!AY$4 -> 59868 | I24: =TON!AZ$4 -> 60331 | J24: =TON!BA$4 -> 61005 | K24: =TON!BB$4 -> 61552 | L24: =TON!BC$4 -> 62299 | M24: =TON!BD$4 -> 63061 | N24: =TON!BE$4 -> 63821 | O24: =TON!BF$4 -> 64603 | P24: =TON!BG$4 -> 64720 | Q24: =TON!BH$4 -> 65451.64995 | R24: =TON!BI$4 -> 66140.03684 | S24: =TON!BJ$4 -> 66899.95547 | T24: =TON!BK$4 -> 67693.84546 | U24: =TON!BL$4 -> 68578.23181 | V24: =TON!BM$4 -> 69388.52889 | W24: =TON!BN$4 -> 70164.79073 | X24: =TON!BO$4 -> 70957.9287 | Y24: =TON!BP$4 -> 71743.5752 | Z24: =TON!BQ$4 -> 72535.27581 | AA24: =TON!BR$4 -> 73314.67468 | AB24: =TON!BS$4 -> 74072.06661 | AC24: =TON!BT$4 -> 74850.58374 | AD24: =TON!BU$4 -> 75617.44893 | AE24: =TON!BV$4 -> 76390.79686 | AF24: =TON!BW$4 -> 77144.69389 | AG24: =TON!BX$4 -> 77879.89898 | AH24: =TON!BY$4 -> 78645.15476 | AI24: =TON!BZ$4 -> 79426.82276 | AJ24: =TON!CA$4 -> 80175.6848 | AL24: =INDEX(G24:AK24,Index!$B$16) -> 64720 | AM24: =INDEX(G24:AK24,Index!$B$19) -> 80175.6848 | AN24: =TON!CH$4 -> 15455.6848 | AO24: =TON!CI$4 -> 0.2388084797
A25: Tunbridge Wells | B25: =TUN!AS$4 -> 51924 | C25: =TUN!AT$4 -> 53035 | D25: =TUN!AU$4 -> 54278 | E25: =TUN!AV$4 -> 55205 | F25: =TUN!AW$4 -> 55953 | G25: =TUN!AX$4 -> 56563 | H25: =TUN!AY$4 -> 56797 | I25: =TUN!AZ$4 -> 57078 | J25: =TUN!BA$4 -> 57397 | K25: =TUN!BB$4 -> 57482 | L25: =TUN!BC$4 -> 57919 | M25: =TUN!BD$4 -> 58335 | N25: =TUN!BE$4 -> 58206 | O25: =TUN!BF$4 -> 58619 | P25: =TUN!BG$4 -> 58599 | Q25: =TUN!BH$4 -> 59096.30327 | R25: =TUN!BI$4 -> 59547.90939 | S25: =TUN!BJ$4 -> 60046.77756 | T25: =TUN!BK$4 -> 60564.77941 | U25: =TUN!BL$4 -> 61088.66102 | V25: =TUN!BM$4 -> 61473.99274 | W25: =TUN!BN$4 -> 61890.66812 | X25: =TUN!BO$4 -> 62317.28984 | Y25: =TUN!BP$4 -> 62745.97765 | Z25: =TUN!BQ$4 -> 63179.85846 | AA25: =TUN!BR$4 -> 63606.45381 | AB25: =TUN!BS$4 -> 64078.29973 | AC25: =TUN!BT$4 -> 64555.23026 | AD25: =TUN!BU$4 -> 65023.34619 | AE25: =TUN!BV$4 -> 65493.08892 | AF25: =TUN!BW$4 -> 65964.98266 | AG25: =TUN!BX$4 -> 66458.60757 | AH25: =TUN!BY$4 -> 66956.95849 | AI25: =TUN!BZ$4 -> 67430.34234 | AJ25: =TUN!CA$4 -> 67910.38479 | AL25: =INDEX(G25:AK25,Index!$B$16) -> 58599 | AM25: =INDEX(G25:AK25,Index!$B$19) -> 67910.38479 | AN25: =TUN!CH$4 -> 9311.384791 | AO25: =TUN!CI$4 -> 0.158900063
A26: KCC Area | B26: =KCC!AS$4 -> 675641 | C26: =KCC!AT$4 -> 685403 | D26: =KCC!AU$4 -> 693657 | E26: =KCC!AV$4 -> 700206 | F26: =KCC!AW$4 -> 709214 | G26: =KCC!AX$4 -> 717234 | H26: =KCC!AY$4 -> 724300 | I26: =KCC!AZ$4 -> 731169 | J26: =KCC!BA$4 -> 739485 | K26: =KCC!BB$4 -> 746535 | L26: =KCC!BC$4 -> 755721 | M26: =KCC!BD$4 -> 763277 | N26: =KCC!BE$4 -> 770053 | O26: =KCC!BF$4 -> 776703 | P26: =KCC!BG$4 -> 779777 | Q26: =KCC!BH$4 -> 787617.3329 | R26: =KCC!BI$4 -> 795182.1991 | S26: =KCC!BJ$4 -> 803959.6389 | T26: =KCC!BK$4 -> 814002.8107 | U26: =KCC!BL$4 -> 825916.8927 | V26: =KCC!BM$4 -> 836857.6734 | W26: =KCC!BN$4 -> 846453.1191 | X26: =KCC!BO$4 -> 856134.7671 | Y26: =KCC!BP$4 -> 865389.86 | Z26: =KCC!BQ$4 -> 874450.6637 | AA26: =KCC!BR$4 -> 882684.6971 | AB26: =KCC!BS$4 -> 889323.5311 | AC26: =KCC!BT$4 -> 896144.7553 | AD26: =KCC!BU$4 -> 902975.3656 | AE26: =KCC!BV$4 -> 909807.4387 | AF26: =KCC!BW$4 -> 916373.178 | AG26: =KCC!BX$4 -> 923035.9501 | AH26: =KCC!BY$4 -> 929962.4168 | AI26: =KCC!BZ$4 -> 937009.4072 | AJ26: =KCC!CA$4 -> 944145.3617 | AL26: =INDEX(G26:AK26,Index!$B$16) -> 779777 | AM26: =INDEX(G26:AK26,Index!$B$19) -> 944145.3617 | AN26: =KCC!CH$4 -> 164368.3617 | AO26: =KCC!CI$4 -> 0.2107889329
A27: Kent (Incl Medway) | B27: =ROUND(Kent!AS$4,-2) -> 800500 | C27: =ROUND(Kent!AT$4,-2) -> 811700 | D27: =ROUND(Kent!AU$4,-2) -> 821300 | E27: =ROUND(Kent!AV$4,-2) -> 829000 | F27: =ROUND(Kent!AW$4,-2) -> 839600 | G27: =ROUND(Kent!AX$4,-2) -> 848600 | H27: =ROUND(Kent!AY$4,-2) -> 857200 | I27: =ROUND(Kent!AZ$4,-2) -> 865400 | J27: =ROUND(Kent!BA$4,-2) -> 875000 | K27: =ROUND(Kent!BB$4,-2) -> 883100 | L27: =ROUND(Kent!BC$4,-2) -> 893100 | M27: =ROUND(Kent!BD$4,-2) -> 900900 | N27: =ROUND(Kent!BE$4,-2) -> 907700 | O27: =ROUND(Kent!BF$4,-2) -> 914800 | P27: =ROUND(Kent!BG$4,-2) -> 918000 | Q27: =ROUND(Kent!BH$4,-2) -> 927100 | R27: =ROUND(Kent!BI$4,-2) -> 935800 | S27: =ROUND(Kent!BJ$4,-2) -> 946000 | T27: =ROUND(Kent!BK$4,-2) -> 957700 | U27: =ROUND(Kent!BL$4,-2) -> 971500 | V27: =ROUND(Kent!BM$4,-2) -> 984400 | W27: =ROUND(Kent!BN$4,-2) -> 995700 | X27: =ROUND(Kent!BO$4,-2) -> 1007200 | Y27: =ROUND(Kent!BP$4,-2) -> 1018200 | Z27: =ROUND(Kent!BQ$4,-2) -> 1029100 | AA27: =ROUND(Kent!BR$4,-2) -> 1039000 | AB27: =ROUND(Kent!BS$4,-2) -> 1047300 | AC27: =ROUND(Kent!BT$4,-2) -> 1055800 | AD27: =ROUND(Kent!BU$4,-2) -> 1064300 | AE27: =ROUND(Kent!BV$4,-2) -> 1072800 | AF27: =ROUND(Kent!BW$4,-2) -> 1080900 | AG27: =ROUND(Kent!BX$4,-2) -> 1089200 | AH27: =ROUND(Kent!BY$4,-2) -> 1097600 | AI27: =ROUND(Kent!BZ$4,-2) -> 1106000 | AJ27: =ROUND(Kent!CA$4,-2) -> 1114600 | AL27: =INDEX(G27:AK27,Index!$B$16) -> 918000 | AM27: =INDEX(G27:AK27,Index!$B$19) -> 1114600 | AN27: =Kent!CH$4 -> 196608.1124 | AO27: =Kent!CI$4 -> 0.2141623585
A30: Females
B31: 2006 | C31: 2007 | D31: 2008 | E31: 2009 | F31: 2010 | G31: 2011 | H31: 2012 | I31: 2013 | J31: 2014 | K31: 2015 | L31: 2016 | M31: 2017 | N31: 2018 | O31: 2019 | P31: 2020 | Q31: 2021 | R31: 2022 | S31: 2023 | T31: 2024 | U31: 2025 | V31: 2026 | W31: 2027 | X31: 2028 | Y31: 2029 | Z31: 2030 | AA31: 2031 | AB31: 2032 | AC31: 2033 | AD31: 2034 | AE31: 2035 | AF31: 2036 | AG31: 2037 | AH31: 2038 | AI31: 2039 | AJ31: 2040 | AL31: =Index!$C$16 -> 2020 | AM31: =Index!$C$19 -> 2040 | AN31: Number change | AO31: % change
A32: -
A33: Ashford | B33: =ASH!AS$5 -> 57449 | C33: =ASH!AT$5 -> 58332 | D33: =ASH!AU$5 -> 58953 | E33: =ASH!AV$5 -> 59506 | F33: =ASH!AW$5 -> 60238 | G33: =ASH!AX$5 -> 60964 | H33: =ASH!AY$5 -> 61854 | I33: =ASH!AZ$5 -> 62658 | J33: =ASH!BA$5 -> 63380 | K33: =ASH!BB$5 -> 63776 | L33: =ASH!BC$5 -> 64721 | M33: =ASH!BD$5 -> 65518 | N33: =ASH!BE$5 -> 66436 | O33: =ASH!BF$5 -> 66795 | P33: =ASH!BG$5 -> 67365 | Q33: =ASH!BH$5 -> 68184.13071 | R33: =ASH!BI$5 -> 68996.84299 | S33: =ASH!BJ$5 -> 69974.16321 | T33: =ASH!BK$5 -> 71089.30681 | U33: =ASH!BL$5 -> 72374.43187 | V33: =ASH!BM$5 -> 73733.2225 | W33: =ASH!BN$5 -> 74989.09743 | X33: =ASH!BO$5 -> 76287.37448 | Y33: =ASH!BP$5 -> 77578.34655 | Z33: =ASH!BQ$5 -> 78905.35216 | AA33: =ASH!BR$5 -> 79628.71828 | AB33: =ASH!BS$5 -> 80336.03649 | AC33: =ASH!BT$5 -> 81088.16971 | AD33: =ASH!BU$5 -> 81830.37677 | AE33: =ASH!BV$5 -> 82587.32596 | AF33: =ASH!BW$5 -> 83303.4156 | AG33: =ASH!BX$5 -> 84031.18849 | AH33: =ASH!BY$5 -> 84780.30987 | AI33: =ASH!BZ$5 -> 85545.79489 | AJ33: =ASH!CA$5 -> 86313.21165 | AL33: =INDEX(G33:AK33,Index!$B$16) -> 67365 | AM33: =INDEX(G33:AK33,Index!$B$19) -> 86313.21165 | AN33: =ASH!CH$5 -> 18948.21165 | AO33: =ASH!CI$5 -> 0.2812768003
A34: Canterbury | B34: =CAN!AS$5 -> 75166 | C34: =CAN!AT$5 -> 75874 | D34: =CAN!AU$5 -> 76271 | E34: =CAN!AV$5 -> 76331 | F34: =CAN!AW$5 -> 77321 | G34: =CAN!AX$5 -> 78035 | H34: =CAN!AY$5 -> 79101 | I34: =CAN!AZ$5 -> 79804 | J34: =CAN!BA$5 -> 80697 | K34: =CAN!BB$5 -> 81773 | L34: =CAN!BC$5 -> 82831 | M34: =CAN!BD$5 -> 83402 | N34: =CAN!BE$5 -> 83675 | O34: =CAN!BF$5 -> 83974 | P34: =CAN!BG$5 -> 84448 | Q34: =CAN!BH$5 -> 85107.34211 | R34: =CAN!BI$5 -> 85492.99883 | S34: =CAN!BJ$5 -> 86246.34398 | T34: =CAN!BK$5 -> 87292.41186 | U34: =CAN!BL$5 -> 88774.30286 | V34: =CAN!BM$5 -> 90117.09293 | W34: =CAN!BN$5 -> 91380.67807 | X34: =CAN!BO$5 -> 92590.40558 | Y34: =CAN!BP$5 -> 93801.60583 | Z34: =CAN!BQ$5 -> 94949.48186 | AA34: =CAN!BR$5 -> 96053.82136 | AB34: =CAN!BS$5 -> 96319.63567 | AC34: =CAN!BT$5 -> 96663.62129 | AD34: =CAN!BU$5 -> 97002.48921 | AE34: =CAN!BV$5 -> 97397.88525 | AF34: =CAN!BW$5 -> 97752.28029 | AG34: =CAN!BX$5 -> 98111.19183 | AH34: =CAN!BY$5 -> 98466.46401 | AI34: =CAN!BZ$5 -> 98904.78349 | AJ34: =CAN!CA$5 -> 99380.86942 | AL34: =INDEX(G34:AK34,Index!$B$16) -> 84448 | AM34: =INDEX(G34:AK34,Index!$B$19) -> 99380.86942 | AN34: =CAN!CH$5 -> 14932.86942 | AO34: =CAN!CI$5 -> 0.1768291661
A35: Dartford | B35: =DAR!AS$5 -> 46372 | C35: =DAR!AT$5 -> 46867 | D35: =DAR!AU$5 -> 47746 | E35: =DAR!AV$5 -> 48381 | F35: =DAR!AW$5 -> 48793 | G35: =DAR!AX$5 -> 49417 | H35: =DAR!AY$5 -> 50058 | I35: =DAR!AZ$5 -> 50809 | J35: =DAR!BA$5 -> 51734 | K35: =DAR!BB$5 -> 52594 | L35: =DAR!BC$5 -> 53474 | M35: =DAR!BD$5 -> 54559 | N35: =DAR!BE$5 -> 55632 | O35: =DAR!BF$5 -> 57119 | P35: =DAR!BG$5 -> 57779 | Q35: =DAR!BH$5 -> 58828.45103 | R35: =DAR!BI$5 -> 59846.7414 | S35: =DAR!BJ$5 -> 60836.28177 | T35: =DAR!BK$5 -> 61779.15099 | U35: =DAR!BL$5 -> 62674.69949 | V35: =DAR!BM$5 -> 63347.11682 | W35: =DAR!BN$5 -> 64018.1797 | X35: =DAR!BO$5 -> 64663.47762 | Y35: =DAR!BP$5 -> 65292.21087 | Z35: =DAR!BQ$5 -> 65891.05505 | AA35: =DAR!BR$5 -> 66486.10711 | AB35: =DAR!BS$5 -> 67081.56528 | AC35: =DAR!BT$5 -> 67664.79299 | AD35: =DAR!BU$5 -> 68239.62871 | AE35: =DAR!BV$5 -> 68822.37044 | AF35: =DAR!BW$5 -> 69387.94193 | AG35: =DAR!BX$5 -> 69950.00695 | AH35: =DAR!BY$5 -> 70596.01876 | AI35: =DAR!BZ$5 -> 71235.31568 | AJ35: =DAR!CA$5 -> 71898.43546 | AL35: =INDEX(G35:AK35,Index!$B$16) -> 57779 | AM35: =INDEX(G35:AK35,Index!$B$19) -> 71898.43546 | AN35: =DAR!CH$5 -> 14119.43546 | AO35: =DAR!CI$5 -> 0.2443696752
A36: Dover | B36: =DOV!AS$5 -> 55568 | C36: =DOV!AT$5 -> 56065 | D36: =DOV!AU$5 -> 56331 | E36: =DOV!AV$5 -> 56357 | F36: =DOV!AW$5 -> 56725 | G36: =DOV!AX$5 -> 56938 | H36: =DOV!AY$5 -> 56931 | I36: =DOV!AZ$5 -> 57225 | J36: =DOV!BA$5 -> 57522 | K36: =DOV!BB$5 -> 57702 | L36: =DOV!BC$5 -> 58191 | M36: =DOV!BD$5 -> 58806 | N36: =DOV!BE$5 -> 59208 | O36: =DOV!BF$5 -> 59763 | P36: =DOV!BG$5 -> 60061 | Q36: =DOV!BH$5 -> 60443.41812 | R36: =DOV!BI$5 -> 60812.69886 | S36: =DOV!BJ$5 -> 61368.5761 | T36: =DOV!BK$5 -> 62124.06854 | U36: =DOV!BL$5 -> 63137.4903 | V36: =DOV!BM$5 -> 64205.51916 | W36: =DOV!BN$5 -> 64275.51707 | X36: =DOV!BO$5 -> 64396.93329 | Y36: =DOV!BP$5 -> 64533.02846 | Z36: =DOV!BQ$5 -> 64699.76488 | AA36: =DOV!BR$5 -> 64835.62456 | AB36: =DOV!BS$5 -> 64980.82044 | AC36: =DOV!BT$5 -> 65149.39443 | AD36: =DOV!BU$5 -> 65316.19855 | AE36: =DOV!BV$5 -> 65475.71761 | AF36: =DOV!BW$5 -> 65631.03684 | AG36: =DOV!BX$5 -> 65803.12953 | AH36: =DOV!BY$5 -> 66003.47972 | AI36: =DOV!BZ$5 -> 66200.27426 | AJ36: =DOV!CA$5 -> 66391.82499 | AL36: =INDEX(G36:AK36,Index!$B$16) -> 60061 | AM36: =INDEX(G36:AK36,Index!$B$19) -> 66391.82499 | AN36: =DOV!CH$5 -> 6330.824989 | AO36: =DOV!CI$5 -> 0.1054065865
A37: Gravesham | B37: =GRA!AS$5 -> 49540 | C37: =GRA!AT$5 -> 50018 | D37: =GRA!AU$5 -> 50512 | E37: =GRA!AV$5 -> 50932 | F37: =GRA!AW$5 -> 51299 | G37: =GRA!AX$5 -> 51586 | H37: =GRA!AY$5 -> 51920 | I37: =GRA!AZ$5 -> 52380 | J37: =GRA!BA$5 -> 53034 | K37: =GRA!BB$5 -> 53451 | L37: =GRA!BC$5 -> 53758 | M37: =GRA!BD$5 -> 53783 | N37: =GRA!BE$5 -> 54054 | O37: =GRA!BF$5 -> 54274 | P37: =GRA!BG$5 -> 54312 | Q37: =GRA!BH$5 -> 54763.94353 | R37: =GRA!BI$5 -> 55217.81811 | S37: =GRA!BJ$5 -> 55746.40039 | T37: =GRA!BK$5 -> 56368.41674 | U37: =GRA!BL$5 -> 57124.96271 | V37: =GRA!BM$5 -> 57889.32671 | W37: =GRA!BN$5 -> 58634.29232 | X37: =GRA!BO$5 -> 59368.07337 | Y37: =GRA!BP$5 -> 59653.78605 | Z37: =GRA!BQ$5 -> 59950.43871 | AA37: =GRA!BR$5 -> 60208.75322 | AB37: =GRA!BS$5 -> 60473.90868 | AC37: =GRA!BT$5 -> 60716.88116 | AD37: =GRA!BU$5 -> 60982.46768 | AE37: =GRA!BV$5 -> 61258.3656 | AF37: =GRA!BW$5 -> 61507.24308 | AG37: =GRA!BX$5 -> 61779.90782 | AH37: =GRA!BY$5 -> 62049.84106 | AI37: =GRA!BZ$5 -> 62342.91052 | AJ37: =GRA!CA$5 -> 62635.22062 | AL37: =INDEX(G37:AK37,Index!$B$16) -> 54312 | AM37: =INDEX(G37:AK37,Index!$B$19) -> 62635.22062 | AN37: =GRA!CH$5 -> 8323.220618 | AO37: =GRA!CI$5 -> 0.1532482806
A38: Maidstone | B38: =MAI!AS$5 -> 73769 | C38: =MAI!AT$5 -> 74929 | D38: =MAI!AU$5 -> 75788 | E38: =MAI!AV$5 -> 76803 | F38: =MAI!AW$5 -> 77876 | G38: =MAI!AX$5 -> 78896 | H38: =MAI!AY$5 -> 79789 | I38: =MAI!AZ$5 -> 80709 | J38: =MAI!BA$5 -> 81792 | K38: =MAI!BB$5 -> 83019 | L38: =MAI!BC$5 -> 83824 | M38: =MAI!BD$5 -> 84966 | N38: =MAI!BE$5 -> 86098 | O38: =MAI!BF$5 -> 87130 | P38: =MAI!BG$5 -> 87878 | Q38: =MAI!BH$5 -> 88957.8542 | R38: =MAI!BI$5 -> 90001.1627 | S38: =MAI!BJ$5 -> 91007.97981 | T38: =MAI!BK$5 -> 92004.24261 | U38: =MAI!BL$5 -> 93036.63716 | V38: =MAI!BM$5 -> 93741.61529 | W38: =MAI!BN$5 -> 94419.36849 | X38: =MAI!BO$5 -> 95093.48536 | Y38: =MAI!BP$5 -> 95770.51021 | Z38: =MAI!BQ$5 -> 96457.31449 | AA38: =MAI!BR$5 -> 97105.03583 | AB38: =MAI!BS$5 -> 97902.83925 | AC38: =MAI!BT$5 -> 98680.33594 | AD38: =MAI!BU$5 -> 99433.16054 | AE38: =MAI!BV$5 -> 100188.488 | AF38: =MAI!BW$5 -> 100922.4834 | AG38: =MAI!BX$5 -> 101677.8644 | AH38: =MAI!BY$5 -> 102426.2265 | AI38: =MAI!BZ$5 -> 103179.5713 | AJ38: =MAI!CA$5 -> 103949.1436 | AL38: =INDEX(G38:AK38,Index!$B$16) -> 87878 | AM38: =INDEX(G38:AK38,Index!$B$19) -> 103949.1436 | AN38: =MAI!CH$5 -> 16071.14358 | AO38: =MAI!CI$5 -> 0.18288017
A39: Medway | B39: =MED!AS$5 -> 128619 | C39: =MED!AT$5 -> 129564 | D39: =MED!AU$5 -> 130577 | E39: =MED!AV$5 -> 131428 | F39: =MED!AW$5 -> 132399 | G39: =MED!AX$5 -> 133517 | H39: =MED!AY$5 -> 135272 | I39: =MED!AZ$5 -> 136476 | J39: =MED!BA$5 -> 137673 | K39: =MED!BB$5 -> 138633 | L39: =MED!BC$5 -> 139609 | M39: =MED!BD$5 -> 139980 | N39: =MED!BE$5 -> 140237 | O39: =MED!BF$5 -> 140504 | P39: =MED!BG$5 -> 140886 | Q39: =MED!BH$5 -> 142241.7762 | R39: =MED!BI$5 -> 143419.8848 | S39: =MED!BJ$5 -> 144972.0326 | T39: =MED!BK$5 -> 146755.5621 | U39: =MED!BL$5 -> 148893.0219 | V39: =MED!BM$5 -> 150949.9657 | W39: =MED!BN$5 -> 152881.7034 | X39: =MED!BO$5 -> 154856.2613 | Y39: =MED!BP$5 -> 156785.2323 | Z39: =MED!BQ$5 -> 158729.4466 | AA39: =MED!BR$5 -> 160583.9346 | AB39: =MED!BS$5 -> 162407.008 | AC39: =MED!BT$5 -> 164234.4318 | AD39: =MED!BU$5 -> 166038.3972 | AE39: =MED!BV$5 -> 167833.1916 | AF39: =MED!BW$5 -> 169547.2974 | AG39: =MED!BX$5 -> 171278.2192 | AH39: =MED!BY$5 -> 172775.6778 | AI39: =MED!BZ$5 -> 174283.2505 | AJ39: =MED!CA$5 -> 175816.7394 | AL39: =INDEX(G39:AK39,Index!$B$16) -> 140886 | AM39: =INDEX(G39:AK39,Index!$B$19) -> 175816.7394 | AN39: =MED!CH$5 -> 34930.73941 | AO39: =MED!CI$5 -> 0.2479361996
A40: Sevenoaks | B40: =SEV!AS$5 -> 58210 | C40: =SEV!AT$5 -> 58456 | D40: =SEV!AU$5 -> 58506 | E40: =SEV!AV$5 -> 58668 | F40: =SEV!AW$5 -> 59031 | G40: =SEV!AX$5 -> 59376 | H40: =SEV!AY$5 -> 59940 | I40: =SEV!AZ$5 -> 60192 | J40: =SEV!BA$5 -> 60698 | K40: =SEV!BB$5 -> 60918 | L40: =SEV!BC$5 -> 61331 | M40: =SEV!BD$5 -> 61468 | N40: =SEV!BE$5 -> 61884 | O40: =SEV!BF$5 -> 62133 | P40: =SEV!BG$5 -> 62565 | Q40: =SEV!BH$5 -> 62999.82711 | R40: =SEV!BI$5 -> 63461.50628 | S40: =SEV!BJ$5 -> 63983.15544 | T40: =SEV!BK$5 -> 64652.43883 | U40: =SEV!BL$5 -> 65519.17544 | V40: =SEV!BM$5 -> 66307.66372 | W40: =SEV!BN$5 -> 67073.0082 | X40: =SEV!BO$5 -> 67836.05922 | Y40: =SEV!BP$5 -> 68618.66817 | Z40: =SEV!BQ$5 -> 69382.8439 | AA40: =SEV!BR$5 -> 70136.83572 | AB40: =SEV!BS$5 -> 70916.84554 | AC40: =SEV!BT$5 -> 71701.85458 | AD40: =SEV!BU$5 -> 72493.16967 | AE40: =SEV!BV$5 -> 73253.45654 | AF40: =SEV!BW$5 -> 73896.33568 | AG40: =SEV!BX$5 -> 74547.72097 | AH40: =SEV!BY$5 -> 75221.42714 | AI40: =SEV!BZ$5 -> 75887.31693 | AJ40: =SEV!CA$5 -> 76547.48841 | AL40: =INDEX(G40:AK40,Index!$B$16) -> 62565 | AM40: =INDEX(G40:AK40,Index!$B$19) -> 76547.48841 | AN40: =SEV!CH$5 -> 13982.48841 | AO40: =SEV!CI$5 -> 0.2234873876
A41: Folkestone & Hythe | B41: ='F&H'!AS$5 -> 52566 | C41: ='F&H'!AT$5 -> 53179 | D41: ='F&H'!AU$5 -> 53485 | E41: ='F&H'!AV$5 -> 53849 | F41: ='F&H'!AW$5 -> 54405 | G41: ='F&H'!AX$5 -> 54912 | H41: ='F&H'!AY$5 -> 55074 | I41: ='F&H'!AZ$5 -> 55056 | J41: ='F&H'!BA$5 -> 55322 | K41: ='F&H'!BB$5 -> 55620 | L41: ='F&H'!BC$5 -> 56197 | M41: ='F&H'!BD$5 -> 56338 | N41: ='F&H'!BE$5 -> 56865 | O41: ='F&H'!BF$5 -> 57076 | P41: ='F&H'!BG$5 -> 57243 | Q41: ='F&H'!BH$5 -> 57459.82803 | R41: ='F&H'!BI$5 -> 57710.66089 | S41: ='F&H'!BJ$5 -> 58171.78307 | T41: ='F&H'!BK$5 -> 58772.81689 | U41: ='F&H'!BL$5 -> 59599.59634 | V41: ='F&H'!BM$5 -> 60233.64926 | W41: ='F&H'!BN$5 -> 60837.29974 | X41: ='F&H'!BO$5 -> 61470.92794 | Y41: ='F&H'!BP$5 -> 62097.01723 | Z41: ='F&H'!BQ$5 -> 62569.45121 | AA41: ='F&H'!BR$5 -> 63017.08062 | AB41: ='F&H'!BS$5 -> 63466.7639 | AC41: ='F&H'!BT$5 -> 63915.65032 | AD41: ='F&H'!BU$5 -> 64368.32773 | AE41: ='F&H'!BV$5 -> 64810.79758 | AF41: ='F&H'!BW$5 -> 65241.62017 | AG41: ='F&H'!BX$5 -> 65674.94232 | AH41: ='F&H'!BY$5 -> 66137.94635 | AI41: ='F&H'!BZ$5 -> 66603.03789 | AJ41: ='F&H'!CA$5 -> 67083.99771 | AL41: =INDEX(G41:AK41,Index!$B$16) -> 57243 | AM41: =INDEX(G41:AK41,Index!$B$19) -> 67083.99771 | AN41: ='F&H'!CH$5 -> 9840.99771 | AO41: ='F&H'!CI$5 -> 0.1719161768
A42: Swale | B42: =SWA!AS$5 -> 64740 | C42: =SWA!AT$5 -> 65775 | D42: =SWA!AU$5 -> 66767 | E42: =SWA!AV$5 -> 67414 | F42: =SWA!AW$5 -> 68238 | G42: =SWA!AX$5 -> 68906 | H42: =SWA!AY$5 -> 69635 | I42: =SWA!AZ$5 -> 70384 | J42: =SWA!BA$5 -> 71225 | K42: =SWA!BB$5 -> 72095 | L42: =SWA!BC$5 -> 73268 | M42: =SWA!BD$5 -> 74153 | N42: =SWA!BE$5 -> 75068 | O42: =SWA!BF$5 -> 75814 | P42: =SWA!BG$5 -> 76494 | Q42: =SWA!BH$5 -> 77212.38467 | R42: =SWA!BI$5 -> 77952.46913 | S42: =SWA!BJ$5 -> 78744.62722 | T42: =SWA!BK$5 -> 79590.22785 | U42: =SWA!BL$5 -> 80512.30564 | V42: =SWA!BM$5 -> 81265.17963 | W42: =SWA!BN$5 -> 81985.67062 | X42: =SWA!BO$5 -> 82720.49873 | Y42: =SWA!BP$5 -> 83461.5927 | Z42: =SWA!BQ$5 -> 84193.22848 | AA42: =SWA!BR$5 -> 84891.33274 | AB42: =SWA!BS$5 -> 85461.4827 | AC42: =SWA!BT$5 -> 86042.28849 | AD42: =SWA!BU$5 -> 86615.48753 | AE42: =SWA!BV$5 -> 87188.3171 | AF42: =SWA!BW$5 -> 87727.93516 | AG42: =SWA!BX$5 -> 88284.64217 | AH42: =SWA!BY$5 -> 88857.25842 | AI42: =SWA!BZ$5 -> 89430.64961 | AJ42: =SWA!CA$5 -> 90025.91247 | AL42: =INDEX(G42:AK42,Index!$B$16) -> 76494 | AM42: =INDEX(G42:AK42,Index!$B$19) -> 90025.91247 | AN42: =SWA!CH$5 -> 13531.91247 | AO42: =SWA!CI$5 -> 0.1769016194
A43: Thanet | B43: =THA!AS$5 -> 67636 | C43: =THA!AT$5 -> 68080 | D43: =THA!AU$5 -> 68579 | E43: =THA!AV$5 -> 68793 | F43: =THA!AW$5 -> 69403 | G43: =THA!AX$5 -> 69750 | H43: =THA!AY$5 -> 70388 | I43: =THA!AZ$5 -> 70872 | J43: =THA!BA$5 -> 71706 | K43: =THA!BB$5 -> 72262 | L43: =THA!BC$5 -> 72678 | M43: =THA!BD$5 -> 72810 | N43: =THA!BE$5 -> 73115 | O43: =THA!BF$5 -> 73119 | P43: =THA!BG$5 -> 72944 | Q43: =THA!BH$5 -> 73180.48581 | R43: =THA!BI$5 -> 73527.69769 | S43: =THA!BJ$5 -> 74111.96677 | T43: =THA!BK$5 -> 75039.23807 | U43: =THA!BL$5 -> 76418.30339 | V43: =THA!BM$5 -> 77935.90785 | W43: =THA!BN$5 -> 79381.02393 | X43: =THA!BO$5 -> 80852.32779 | Y43: =THA!BP$5 -> 82323.89885 | Z43: =THA!BQ$5 -> 83813.72434 | AA43: =THA!BR$5 -> 85253.79866 | AB43: =THA!BS$5 -> 85733.59412 | AC43: =THA!BT$5 -> 86248.231 | AD43: =THA!BU$5 -> 86792.24528 | AE43: =THA!BV$5 -> 87346.91318 | AF43: =THA!BW$5 -> 87892.98488 | AG43: =THA!BX$5 -> 88433.35927 | AH43: =THA!BY$5 -> 89008.11675 | AI43: =THA!BZ$5 -> 89594.88654 | AJ43: =THA!CA$5 -> 90192.54864 | AL43: =INDEX(G43:AK43,Index!$B$16) -> 72944 | AM43: =INDEX(G43:AK43,Index!$B$19) -> 90192.54864 | AN43: =THA!CH$5 -> 17248.54864 | AO43: =THA!CI$5 -> 0.2364628844
A44: Tonbridge & Malling | B44: =TON!AS$5 -> 57849 | C44: =TON!AT$5 -> 58921 | D44: =TON!AU$5 -> 59740 | E44: =TON!AV$5 -> 60460 | F44: =TON!AW$5 -> 61275 | G44: =TON!AX$5 -> 61769 | H44: =TON!AY$5 -> 62162 | I44: =TON!AZ$5 -> 62840 | J44: =TON!BA$5 -> 63578 | K44: =TON!BB$5 -> 64227 | L44: =TON!BC$5 -> 65006 | M44: =TON!BD$5 -> 65830 | N44: =TON!BE$5 -> 66687 | O44: =TON!BF$5 -> 67550 | P44: =TON!BG$5 -> 67851 | Q44: =TON!BH$5 -> 68592.98627 | R44: =TON!BI$5 -> 69312.37404 | S44: =TON!BJ$5 -> 70086.44344 | T44: =TON!BK$5 -> 70881.07959 | U44: =TON!BL$5 -> 71763.8002 | V44: =TON!BM$5 -> 72621.7159 | W44: =TON!BN$5 -> 73439.51401 | X44: =TON!BO$5 -> 74266.76832 | Y44: =TON!BP$5 -> 75088.35042 | Z44: =TON!BQ$5 -> 75934.01909 | AA44: =TON!BR$5 -> 76773.3099 | AB44: =TON!BS$5 -> 77584.79531 | AC44: =TON!BT$5 -> 78411.21654 | AD44: =TON!BU$5 -> 79225.75069 | AE44: =TON!BV$5 -> 80025.27938 | AF44: =TON!BW$5 -> 80802.72455 | AG44: =TON!BX$5 -> 81577.61999 | AH44: =TON!BY$5 -> 82372.6331 | AI44: =TON!BZ$5 -> 83179.58381 | AJ44: =TON!CA$5 -> 83944.55827 | AL44: =INDEX(G44:AK44,Index!$B$16) -> 67851 | AM44: =INDEX(G44:AK44,Index!$B$19) -> 83944.55827 | AN44: =TON!CH$5 -> 16093.55827 | AO44: =TON!CI$5 -> 0.2371896991
A45: Tunbridge Wells | B45: =TUN!AS$5 -> 55128 | C45: =TUN!AT$5 -> 55892 | D45: =TUN!AU$5 -> 56973 | E45: =TUN!AV$5 -> 57569 | F45: =TUN!AW$5 -> 58087 | G45: =TUN!AX$5 -> 58683 | H45: =TUN!AY$5 -> 58999 | I45: =TUN!AZ$5 -> 59016 | J45: =TUN!BA$5 -> 59128 | K45: =TUN!BB$5 -> 59128 | L45: =TUN!BC$5 -> 59438 | M45: =TUN!BD$5 -> 59726 | N45: =TUN!BE$5 -> 59848 | O45: =TUN!BF$5 -> 60105 | P45: =TUN!BG$5 -> 60340 | Q45: =TUN!BH$5 -> 60904.10813 | R45: =TUN!BI$5 -> 61446.43622 | S45: =TUN!BJ$5 -> 62018.97205 | T45: =TUN!BK$5 -> 62604.25144 | U45: =TUN!BL$5 -> 63201.55569 | V45: =TUN!BM$5 -> 63657.33565 | W45: =TUN!BN$5 -> 64127.52526 | X45: =TUN!BO$5 -> 64593.99609 | Y45: =TUN!BP$5 -> 65039.9526 | Z45: =TUN!BQ$5 -> 65498.64701 | AA45: =TUN!BR$5 -> 65956.64722 | AB45: =TUN!BS$5 -> 66486.84955 | AC45: =TUN!BT$5 -> 67004.69435 | AD45: =TUN!BU$5 -> 67522.08231 | AE45: =TUN!BV$5 -> 68039.76115 | AF45: =TUN!BW$5 -> 68538.12376 | AG45: =TUN!BX$5 -> 69056.07689 | AH45: =TUN!BY$5 -> 69581.02346 | AI45: =TUN!BZ$5 -> 70070.01855 | AJ45: =TUN!CA$5 -> 70565.49863 | AL45: =INDEX(G45:AK45,Index!$B$16) -> 60340 | AM45: =INDEX(G45:AK45,Index!$B$19) -> 70565.49863 | AN45: =TUN!CH$5 -> 10225.49863 | AO45: =TUN!CI$5 -> 0.1694646774
A46: KCC Area | B46: =KCC!AS$5 -> 713993 | C46: =KCC!AT$5 -> 722388 | D46: =KCC!AU$5 -> 729651 | E46: =KCC!AV$5 -> 735063 | F46: =KCC!AW$5 -> 742691 | G46: =KCC!AX$5 -> 749232 | H46: =KCC!AY$5 -> 755851 | I46: =KCC!AZ$5 -> 761945 | J46: =KCC!BA$5 -> 769816 | K46: =KCC!BB$5 -> 776565 | L46: =KCC!BC$5 -> 784717 | M46: =KCC!BD$5 -> 791359 | N46: =KCC!BE$5 -> 798570 | O46: =KCC!BF$5 -> 804852 | P46: =KCC!BG$5 -> 809280 | Q46: =KCC!BH$5 -> 816634.7597 | R46: =KCC!BI$5 -> 823779.4071 | S46: =KCC!BJ$5 -> 832296.6932 | T46: =KCC!BK$5 -> 842197.6502 | U46: =KCC!BL$5 -> 854137.2611 | V46: =KCC!BM$5 -> 865055.3454 | W46: =KCC!BN$5 -> 874561.1748 | X46: =KCC!BO$5 -> 884140.3278 | Y46: =KCC!BP$5 -> 893258.9679 | Z46: =KCC!BQ$5 -> 902245.3212 | AA46: =KCC!BR$5 -> 910347.0652 | AB46: =KCC!BS$5 -> 916745.1369 | AC46: =KCC!BT$5 -> 923287.1308 | AD46: =KCC!BU$5 -> 929821.3847 | AE46: =KCC!BV$5 -> 936394.6778 | AF46: =KCC!BW$5 -> 942604.1254 | AG46: =KCC!BX$5 -> 948927.6506 | AH46: =KCC!BY$5 -> 955500.7451 | AI46: =KCC!BZ$5 -> 962174.1435 | AJ46: =KCC!CA$5 -> 968928.7099 | AL46: =INDEX(G46:AK46,Index!$B$16) -> 809280 | AM46: =INDEX(G46:AK46,Index!$B$19) -> 968928.7099 | AN46: =KCC!CH$5 -> 159648.7099 | AO46: =KCC!CI$5 -> 0.197272526
A47: Kent (Incl Medway) | B47: =ROUND(Kent!AS$5,-2) -> 842600 | C47: =ROUND(Kent!AT$5,-2) -> 852000 | D47: =ROUND(Kent!AU$5,-2) -> 860200 | E47: =ROUND(Kent!AV$5,-2) -> 866500 | F47: =ROUND(Kent!AW$5,-2) -> 875100 | G47: =ROUND(Kent!AX$5,-2) -> 882700 | H47: =ROUND(Kent!AY$5,-2) -> 891100 | I47: =ROUND(Kent!AZ$5,-2) -> 898400 | J47: =ROUND(Kent!BA$5,-2) -> 907500 | K47: =ROUND(Kent!BB$5,-2) -> 915200 | L47: =ROUND(Kent!BC$5,-2) -> 924300 | M47: =ROUND(Kent!BD$5,-2) -> 931300 | N47: =ROUND(Kent!BE$5,-2) -> 938800 | O47: =ROUND(Kent!BF$5,-2) -> 945400 | P47: =ROUND(Kent!BG$5,-2) -> 950200 | Q47: =ROUND(Kent!BH$5,-2) -> 958900 | R47: =ROUND(Kent!BI$5,-2) -> 967200 | S47: =ROUND(Kent!BJ$5,-2) -> 977300 | T47: =ROUND(Kent!BK$5,-2) -> 989000 | U47: =ROUND(Kent!BL$5,-2) -> 1003000 | V47: =ROUND(Kent!BM$5,-2) -> 1016000 | W47: =ROUND(Kent!BN$5,-2) -> 1027400 | X47: =ROUND(Kent!BO$5,-2) -> 1039000 | Y47: =ROUND(Kent!BP$5,-2) -> 1050000 | Z47: =ROUND(Kent!BQ$5,-2) -> 1061000 | AA47: =ROUND(Kent!BR$5,-2) -> 1070900 | AB47: =ROUND(Kent!BS$5,-2) -> 1079200 | AC47: =ROUND(Kent!BT$5,-2) -> 1087500 | AD47: =ROUND(Kent!BU$5,-2) -> 1095900 | AE47: =ROUND(Kent!BV$5,-2) -> 1104200 | AF47: =ROUND(Kent!BW$5,-2) -> 1112200 | AG47: =ROUND(Kent!BX$5,-2) -> 1120200 | AH47: =ROUND(Kent!BY$5,-2) -> 1128300 | AI47: =ROUND(Kent!BZ$5,-2) -> 1136500 | AJ47: =ROUND(Kent!CA$5,-2) -> 1144700 | AL47: =INDEX(G47:AK47,Index!$B$16) -> 950200 | AM47: =INDEX(G47:AK47,Index!$B$19) -> 1144700 | AN47: =Kent!CH$5 -> 194579.4493 | AO47: =Kent!CI$5 -> 0.2047846895
A50: Total
B51: 2006 | C51: 2007 | D51: 2008 | E51: 2009 | F51: 2010 | G51: 2011 | H51: 2012 | I51: 2013 | J51: 2014 | K51: 2015 | L51: 2016 | M51: 2017 | N51: 2018 | O51: 2019 | P51: 2020 | Q51: 2021 | R51: 2022 | S51: 2023 | T51: 2024 | U51: 2025 | V51: 2026 | W51: 2027 | X51: 2028 | Y51: 2029 | Z51: 2030 | AA51: 2031 | AB51: 2032 | AC51: 2033 | AD51: 2034 | AE51: 2035 | AF51: 2036 | AG51: 2037 | AH51: 2038 | AI51: 2039 | AJ51: 2040 | AL51: =Index!$C$16 -> 2020 | AM51: =Index!$C$19 -> 2040 | AN51: Number change | AO51: % change
A52: -
A53: Ashford | B53: =ASH!AS$6 -> 111459 | C53: =ASH!AT$6 -> 113286 | D53: =ASH!AU$6 -> 114556 | E53: =ASH!AV$6 -> 115694 | F53: =ASH!AW$6 -> 116975 | G53: =ASH!AX$6 -> 118405 | H53: =ASH!AY$6 -> 120128 | I53: =ASH!AZ$6 -> 121684 | J53: =ASH!BA$6 -> 123159 | K53: =ASH!BB$6 -> 124047 | L53: =ASH!BC$6 -> 125871 | M53: =ASH!BD$6 -> 127527 | N53: =ASH!BE$6 -> 129281 | O53: =ASH!BF$6 -> 130032 | P53: =ASH!BG$6 -> 131018 | Q53: =ASH!BH$6 -> 132654.3309 | R53: =ASH!BI$6 -> 134298.5817 | S53: =ASH!BJ$6 -> 136253.151 | T53: =ASH!BK$6 -> 138477.723 | U53: =ASH!BL$6 -> 141022.4625 | V53: =ASH!BM$6 -> 143725.5541 | W53: =ASH!BN$6 -> 146234.6955 | X53: =ASH!BO$6 -> 148826.3679 | Y53: =ASH!BP$6 -> 151409.5872 | Z53: =ASH!BQ$6 -> 154049.6403 | AA53: =ASH!BR$6 -> 155519.9468 | AB53: =ASH!BS$6 -> 156952.4924 | AC53: =ASH!BT$6 -> 158462.295 | AD53: =ASH!BU$6 -> 159950.1281 | AE53: =ASH!BV$6 -> 161463.7626 | AF53: =ASH!BW$6 -> 162913.4457 | AG53: =ASH!BX$6 -> 164376.6421 | AH53: =ASH!BY$6 -> 165880.3556 | AI53: =ASH!BZ$6 -> 167416.3231 | AJ53: =ASH!CA$6 -> 168958.8952 | AL53: =INDEX(G53:AK53,Index!$B$16) -> 131018 | AM53: =INDEX(G53:AK53,Index!$B$19) -> 168958.8952 | AN53: =ASH!CH$6 -> 37940.8952 | AO53: =ASH!CI$6 -> 0.2895853638
A54: Canterbury | B54: =CAN!AS$6 -> 143490 | C54: =CAN!AT$6 -> 145197 | D54: =CAN!AU$6 -> 146073 | E54: =CAN!AV$6 -> 146396 | F54: =CAN!AW$6 -> 148653 | G54: =CAN!AX$6 -> 150600 | H54: =CAN!AY$6 -> 153223 | I54: =CAN!AZ$6 -> 154941 | J54: =CAN!BA$6 -> 157044 | K54: =CAN!BB$6 -> 159663 | L54: =CAN!BC$6 -> 162502 | M54: =CAN!BD$6 -> 164100 | N54: =CAN!BE$6 -> 164553 | O54: =CAN!BF$6 -> 165394 | P54: =CAN!BG$6 -> 166762 | Q54: =CAN!BH$6 -> 168319.4801 | R54: =CAN!BI$6 -> 169308.2411 | S54: =CAN!BJ$6 -> 170924.733 | T54: =CAN!BK$6 -> 173069.1941 | U54: =CAN!BL$6 -> 176019.95 | V54: =CAN!BM$6 -> 178705.6034 | W54: =CAN!BN$6 -> 181230.2285 | X54: =CAN!BO$6 -> 183667.474 | Y54: =CAN!BP$6 -> 186120.6655 | Z54: =CAN!BQ$6 -> 188475.488 | AA54: =CAN!BR$6 -> 190750.2065 | AB54: =CAN!BS$6 -> 191463.1108 | AC54: =CAN!BT$6 -> 192332.0993 | AD54: =CAN!BU$6 -> 193180.9229 | AE54: =CAN!BV$6 -> 194111.9919 | AF54: =CAN!BW$6 -> 194969.1392 | AG54: =CAN!BX$6 -> 195851.3495 | AH54: =CAN!BY$6 -> 196715.8507 | AI54: =CAN!BZ$6 -> 197715.105 | AJ54: =CAN!CA$6 -> 198767.4686 | AL54: =INDEX(G54:AK54,Index!$B$16) -> 166762 | AM54: =INDEX(G54:AK54,Index!$B$19) -> 198767.4686 | AN54: =CAN!CH$6 -> 32005.46855 | AO54: =CAN!CI$6 -> 0.1919230313
A55: Dartford | B55: =DAR!AS$6 -> 91174 | C55: =DAR!AT$6 -> 92242 | D55: =DAR!AU$6 -> 93946 | E55: =DAR!AV$6 -> 95266 | F55: =DAR!AW$6 -> 96337 | G55: =DAR!AX$6 -> 97604 | H55: =DAR!AY$6 -> 98851 | I55: =DAR!AZ$6 -> 100399 | J55: =DAR!BA$6 -> 102010 | K55: =DAR!BB$6 -> 103531 | L55: =DAR!BC$6 -> 105117 | M55: =DAR!BD$6 -> 107516 | N55: =DAR!BE$6 -> 109709 | O55: =DAR!BF$6 -> 112606 | P55: =DAR!BG$6 -> 114051 | Q55: =DAR!BH$6 -> 116254.8952 | R55: =DAR!BI$6 -> 118408.6205 | S55: =DAR!BJ$6 -> 120509.5113 | T55: =DAR!BK$6 -> 122496.2007 | U55: =DAR!BL$6 -> 124399.8284 | V55: =DAR!BM$6 -> 125881.0063 | W55: =DAR!BN$6 -> 127351.4797 | X55: =DAR!BO$6 -> 128777.1936 | Y55: =DAR!BP$6 -> 130169.6337 | Z55: =DAR!BQ$6 -> 131490.0205 | AA55: =DAR!BR$6 -> 132777.4786 | AB55: =DAR!BS$6 -> 134073.8432 | AC55: =DAR!BT$6 -> 135346.6472 | AD55: =DAR!BU$6 -> 136596.9743 | AE55: =DAR!BV$6 -> 137841.9706 | AF55: =DAR!BW$6 -> 139054.8051 | AG55: =DAR!BX$6 -> 140259.3305 | AH55: =DAR!BY$6 -> 141626.7356 | AI55: =DAR!BZ$6 -> 142982.0527 | AJ55: =DAR!CA$6 -> 144382.1164 | AL55: =INDEX(G55:AK55,Index!$B$16) -> 114051 | AM55: =INDEX(G55:AK55,Index!$B$19) -> 144382.1164 | AN55: =DAR!CH$6 -> 30331.11643 | AO55: =DAR!CI$6 -> 0.2659434502
A56: Dover | B56: =DOV!AS$6 -> 107904 | C56: =DOV!AT$6 -> 109041 | D56: =DOV!AU$6 -> 109848 | E56: =DOV!AV$6 -> 110061 | F56: =DOV!AW$6 -> 111072 | G56: =DOV!AX$6 -> 111718 | H56: =DOV!AY$6 -> 111798 | I56: =DOV!AZ$6 -> 112490 | J56: =DOV!BA$6 -> 113292 | K56: =DOV!BB$6 -> 113446 | L56: =DOV!BC$6 -> 114572 | M56: =DOV!BD$6 -> 115803 | N56: =DOV!BE$6 -> 116969 | O56: =DOV!BF$6 -> 118131 | P56: =DOV!BG$6 -> 118514 | Q56: =DOV!BH$6 -> 119488.4331 | R56: =DOV!BI$6 -> 120447.8658 | S56: =DOV!BJ$6 -> 121763.8404 | T56: =DOV!BK$6 -> 123462.16 | U56: =DOV!BL$6 -> 125661.568 | V56: =DOV!BM$6 -> 127976.7704 | W56: =DOV!BN$6 -> 128317.7891 | X56: =DOV!BO$6 -> 128730.0176 | Y56: =DOV!BP$6 -> 129150.3819 | Z56: =DOV!BQ$6 -> 129625.3386 | AA56: =DOV!BR$6 -> 130040.4087 | AB56: =DOV!BS$6 -> 130455.9414 | AC56: =DOV!BT$6 -> 130917.6052 | AD56: =DOV!BU$6 -> 131377.6114 | AE56: =DOV!BV$6 -> 131823.1566 | AF56: =DOV!BW$6 -> 132263.2033 | AG56: =DOV!BX$6 -> 132729.0551 | AH56: =DOV!BY$6 -> 133253.3833 | AI56: =DOV!BZ$6 -> 133771.7434 | AJ56: =DOV!CA$6 -> 134282.66 | AL56: =INDEX(G56:AK56,Index!$B$16) -> 118514 | AM56: =INDEX(G56:AK56,Index!$B$19) -> 134282.66 | AN56: =DOV!CH$6 -> 15768.65995 | AO56: =DOV!CI$6 -> 0.133053141
A57: Gravesham | B57: =GRA!AS$6 -> 97574 | C57: =GRA!AT$6 -> 98496 | D57: =GRA!AU$6 -> 99394 | E57: =GRA!AV$6 -> 100188 | F57: =GRA!AW$6 -> 101076 | G57: =GRA!AX$6 -> 101766 | H57: =GRA!AY$6 -> 102559 | I57: =GRA!AZ$6 -> 103383 | J57: =GRA!BA$6 -> 104802 | K57: =GRA!BB$6 -> 105715 | L57: =GRA!BC$6 -> 106215 | M57: =GRA!BD$6 -> 106121 | N57: =GRA!BE$6 -> 106385 | O57: =GRA!BF$6 -> 106939 | P57: =GRA!BG$6 -> 106890 | Q57: =GRA!BH$6 -> 107663.707 | R57: =GRA!BI$6 -> 108431.4986 | S57: =GRA!BJ$6 -> 109356.4116 | T57: =GRA!BK$6 -> 110496.4974 | U57: =GRA!BL$6 -> 111899.0932 | V57: =GRA!BM$6 -> 113317.0316 | W57: =GRA!BN$6 -> 114710.2389 | X57: =GRA!BO$6 -> 116104.8614 | Y57: =GRA!BP$6 -> 116628.1861 | Z57: =GRA!BQ$6 -> 117154.4585 | AA57: =GRA!BR$6 -> 117616.9005 | AB57: =GRA!BS$6 -> 118102.9549 | AC57: =GRA!BT$6 -> 118553.0937 | AD57: =GRA!BU$6 -> 119049.6335 | AE57: =GRA!BV$6 -> 119563.156 | AF57: =GRA!BW$6 -> 120029.2832 | AG57: =GRA!BX$6 -> 120540.6035 | AH57: =GRA!BY$6 -> 121051.1127 | AI57: =GRA!BZ$6 -> 121610.0919 | AJ57: =GRA!CA$6 -> 122171.6083 | AL57: =INDEX(G57:AK57,Index!$B$16) -> 106890 | AM57: =INDEX(G57:AK57,Index!$B$19) -> 122171.6083 | AN57: =GRA!CH$6 -> 15281.6083 | AO57: =GRA!CI$6 -> 0.1429657433
A58: Maidstone | B58: =MAI!AS$6 -> 145307 | C58: =MAI!AT$6 -> 147741 | D58: =MAI!AU$6 -> 149723 | E58: =MAI!AV$6 -> 151594 | F58: =MAI!AW$6 -> 153739 | G58: =MAI!AX$6 -> 155764 | H58: =MAI!AY$6 -> 157368 | I58: =MAI!AZ$6 -> 159230 | J58: =MAI!BA$6 -> 161510 | K58: =MAI!BB$6 -> 164019 | L58: =MAI!BC$6 -> 165719 | M58: =MAI!BD$6 -> 167730 | N58: =MAI!BE$6 -> 169955 | O58: =MAI!BF$6 -> 171826 | P58: =MAI!BG$6 -> 173132 | Q58: =MAI!BH$6 -> 175279.0057 | R58: =MAI!BI$6 -> 177323.9191 | S58: =MAI!BJ$6 -> 179301.1575 | T58: =MAI!BK$6 -> 181237.9838 | U58: =MAI!BL$6 -> 183223.9525 | V58: =MAI!BM$6 -> 184586.3936 | W58: =MAI!BN$6 -> 185905.814 | X58: =MAI!BO$6 -> 187196.9488 | Y58: =MAI!BP$6 -> 188490.5242 | Z58: =MAI!BQ$6 -> 189788.8074 | AA58: =MAI!BR$6 -> 191007.7894 | AB58: =MAI!BS$6 -> 192525.8272 | AC58: =MAI!BT$6 -> 194001.9203 | AD58: =MAI!BU$6 -> 195444.7555 | AE58: =MAI!BV$6 -> 196896.3629 | AF58: =MAI!BW$6 -> 198310.0738 | AG58: =MAI!BX$6 -> 199762.4754 | AH58: =MAI!BY$6 -> 201218.1069 | AI58: =MAI!BZ$6 -> 202696.1994 | AJ58: =MAI!CA$6 -> 204214.7518 | AL58: =INDEX(G58:AK58,Index!$B$16) -> 173132 | AM58: =INDEX(G58:AK58,Index!$B$19) -> 204214.7518 | AN58: =MAI!CH$6 -> 31082.75179 | AO58: =MAI!CI$6 -> 0.1795321014
A59: Medway | B59: =MED!AS$6 -> 253478 | C59: =MED!AT$6 -> 255824 | D59: =MED!AU$6 -> 258224 | E59: =MED!AV$6 -> 260230 | F59: =MED!AW$6 -> 262738 | G59: =MED!AX$6 -> 264885 | H59: =MED!AY$6 -> 268130 | I59: =MED!AZ$6 -> 270689 | J59: =MED!BA$6 -> 273212 | K59: =MED!BB$6 -> 275176 | L59: =MED!BC$6 -> 276957 | M59: =MED!BD$6 -> 277616 | N59: =MED!BE$6 -> 277855 | O59: =MED!BF$6 -> 278556 | P59: =MED!BG$6 -> 279142 | Q59: =MED!BH$6 -> 281734.7546 | R59: =MED!BI$6 -> 284002.3412 | S59: =MED!BJ$6 -> 286993.4122 | T59: =MED!BK$6 -> 290405.5667 | U59: =MED!BL$6 -> 294508.5197 | V59: =MED!BM$6 -> 298447.345 | W59: =MED!BN$6 -> 302154.0996 | X59: =MED!BO$6 -> 305931.8346 | Y59: =MED!BP$6 -> 309623.4276 | Z59: =MED!BQ$6 -> 313358.1395 | AA59: =MED!BR$6 -> 316907.9987 | AB59: =MED!BS$6 -> 320399.6673 | AC59: =MED!BT$6 -> 323893.6787 | AD59: =MED!BU$6 -> 327350.1753 | AE59: =MED!BV$6 -> 330807.1512 | AF59: =MED!BW$6 -> 334121.853 | AG59: =MED!BX$6 -> 337468.3915 | AH59: =MED!BY$6 -> 340378.8132 | AI59: =MED!BZ$6 -> 343319.0808 | AJ59: =MED!CA$6 -> 346312.4901 | AL59: =INDEX(G59:AK59,Index!$B$16) -> 279142 | AM59: =INDEX(G59:AK59,Index!$B$19) -> 346312.4901 | AN59: =MED!CH$6 -> 67170.49012 | AO59: =MED!CI$6 -> 0.2406319727
A60: Sevenoaks | B60: =SEV!AS$6 -> 112500 | C60: =SEV!AT$6 -> 113132 | D60: =SEV!AU$6 -> 113298 | E60: =SEV!AV$6 -> 113754 | F60: =SEV!AW$6 -> 114509 | G60: =SEV!AX$6 -> 115351 | H60: =SEV!AY$6 -> 116306 | I60: =SEV!AZ$6 -> 116889 | J60: =SEV!BA$6 -> 117625 | K60: =SEV!BB$6 -> 118165 | L60: =SEV!BC$6 -> 119011 | M60: =SEV!BD$6 -> 119429 | N60: =SEV!BE$6 -> 120293 | O60: =SEV!BF$6 -> 120750 | P60: =SEV!BG$6 -> 121387 | Q60: =SEV!BH$6 -> 122317.301 | R60: =SEV!BI$6 -> 123291.6557 | S60: =SEV!BJ$6 -> 124398.9488 | T60: =SEV!BK$6 -> 125770.9566 | U60: =SEV!BL$6 -> 127524.4982 | V60: =SEV!BM$6 -> 129106.2432 | W60: =SEV!BN$6 -> 130642.2282 | X60: =SEV!BO$6 -> 132177.427 | Y60: =SEV!BP$6 -> 133728.2684 | Z60: =SEV!BQ$6 -> 135252.6551 | AA60: =SEV!BR$6 -> 136761.8737 | AB60: =SEV!BS$6 -> 138309.8192 | AC60: =SEV!BT$6 -> 139879.8615 | AD60: =SEV!BU$6 -> 141466.1551 | AE60: =SEV!BV$6 -> 142998.3066 | AF60: =SEV!BW$6 -> 144309.0078 | AG60: =SEV!BX$6 -> 145630.253 | AH60: =SEV!BY$6 -> 146988.3218 | AI60: =SEV!BZ$6 -> 148339.4491 | AJ60: =SEV!CA$6 -> 149684.0233 | AL60: =INDEX(G60:AK60,Index!$B$16) -> 121387 | AM60: =INDEX(G60:AK60,Index!$B$19) -> 149684.0233 | AN60: =SEV!CH$6 -> 28297.0233 | AO60: =SEV!CI$6 -> 0.2331141169
A61: Folkestone & Hythe | B61: ='F&H'!AS$6 -> 102469 | C61: ='F&H'!AT$6 -> 103902 | D61: ='F&H'!AU$6 -> 104782 | E61: ='F&H'!AV$6 -> 105716 | F61: ='F&H'!AW$6 -> 106962 | G61: ='F&H'!AX$6 -> 108199 | H61: ='F&H'!AY$6 -> 108611 | I61: ='F&H'!AZ$6 -> 108767 | J61: ='F&H'!BA$6 -> 109324 | K61: ='F&H'!BB$6 -> 109838 | L61: ='F&H'!BC$6 -> 111024 | M61: ='F&H'!BD$6 -> 111427 | N61: ='F&H'!BE$6 -> 112578 | O61: ='F&H'!BF$6 -> 112996 | P61: ='F&H'!BG$6 -> 113320 | Q61: ='F&H'!BH$6 -> 113797.6667 | R61: ='F&H'!BI$6 -> 114364.7251 | S61: ='F&H'!BJ$6 -> 115308.6344 | T61: ='F&H'!BK$6 -> 116528.9403 | U61: ='F&H'!BL$6 -> 118191.6843 | V61: ='F&H'!BM$6 -> 119490.2962 | W61: ='F&H'!BN$6 -> 120732.061 | X61: ='F&H'!BO$6 -> 122018.6907 | Y61: ='F&H'!BP$6 -> 123297.1166 | Z61: ='F&H'!BQ$6 -> 124276.8361 | AA61: ='F&H'!BR$6 -> 125217.6749 | AB61: ='F&H'!BS$6 -> 126163.3571 | AC61: ='F&H'!BT$6 -> 127110.9458 | AD61: ='F&H'!BU$6 -> 128062.9117 | AE61: ='F&H'!BV$6 -> 128988.9332 | AF61: ='F&H'!BW$6 -> 129887.8822 | AG61: ='F&H'!BX$6 -> 130796.8759 | AH61: ='F&H'!BY$6 -> 131768.5431 | AI61: ='F&H'!BZ$6 -> 132748.1635 | AJ61: ='F&H'!CA$6 -> 133759.0956 | AL61: =INDEX(G61:AK61,Index!$B$16) -> 113320 | AM61: =INDEX(G61:AK61,Index!$B$19) -> 133759.0956 | AN61: ='F&H'!CH$6 -> 20439.0956 | AO61: ='F&H'!CI$6 -> 0.1803661807
A62: Swale | B62: =SWA!AS$6 -> 127568 | C62: =SWA!AT$6 -> 129721 | D62: =SWA!AU$6 -> 131720 | E62: =SWA!AV$6 -> 133030 | F62: =SWA!AW$6 -> 134980 | G62: =SWA!AX$6 -> 136324 | H62: =SWA!AY$6 -> 137794 | I62: =SWA!AZ$6 -> 139274 | J62: =SWA!BA$6 -> 140901 | K62: =SWA!BB$6 -> 142465 | L62: =SWA!BC$6 -> 144917 | M62: =SWA!BD$6 -> 146694 | N62: =SWA!BE$6 -> 148519 | O62: =SWA!BF$6 -> 150082 | P62: =SWA!BG$6 -> 151015 | Q62: =SWA!BH$6 -> 152460.377 | R62: =SWA!BI$6 -> 153934.4157 | S62: =SWA!BJ$6 -> 155498.3623 | T62: =SWA!BK$6 -> 157170.64 | U62: =SWA!BL$6 -> 158972.1647 | V62: =SWA!BM$6 -> 160447.8872 | W62: =SWA!BN$6 -> 161865.4735 | X62: =SWA!BO$6 -> 163324.7423 | Y62: =SWA!BP$6 -> 164798.8598 | Z62: =SWA!BQ$6 -> 166253.2765 | AA62: =SWA!BR$6 -> 167651.9327 | AB62: =SWA!BS$6 -> 168795.6461 | AC62: =SWA!BT$6 -> 169955.7208 | AD62: =SWA!BU$6 -> 171117.4317 | AE62: =SWA!BV$6 -> 172279.0296 | AF62: =SWA!BW$6 -> 173384.3357 | AG62: =SWA!BX$6 -> 174524.4878 | AH62: =SWA!BY$6 -> 175697.1257 | AI62: =SWA!BZ$6 -> 176871.4411 | AJ62: =SWA!CA$6 -> 178087.3951 | AL62: =INDEX(G62:AK62,Index!$B$16) -> 151015 | AM62: =INDEX(G62:AK62,Index!$B$19) -> 178087.3951 | AN62: =SWA!CH$6 -> 27072.39507 | AO62: =SWA!CI$6 -> 0.1792695763
A63: Thanet | B63: =THA!AS$6 -> 129601 | C63: =THA!AT$6 -> 130637 | D63: =THA!AU$6 -> 131750 | E63: =THA!AV$6 -> 132337 | F63: =THA!AW$6 -> 133508 | G63: =THA!AX$6 -> 134402 | H63: =THA!AY$6 -> 135687 | I63: =THA!AZ$6 -> 136792 | J63: =THA!BA$6 -> 138526 | K63: =THA!BB$6 -> 139822 | L63: =THA!BC$6 -> 140828 | M63: =THA!BD$6 -> 141337 | N63: =THA!BE$6 -> 141819 | O63: =THA!BF$6 -> 141922 | P63: =THA!BG$6 -> 141458 | Q63: =THA!BH$6 -> 141971.8482 | R63: =THA!BI$6 -> 142705.3265 | S63: =THA!BJ$6 -> 143889.4335 | T63: =THA!BK$6 -> 145746.209 | U63: =THA!BL$6 -> 148506.7033 | V63: =THA!BM$6 -> 151534.6597 | W63: =THA!BN$6 -> 154401.7874 | X63: =THA!BO$6 -> 157315.3888 | Y63: =THA!BP$6 -> 160237.7486 | Z63: =THA!BQ$6 -> 163181.6635 | AA63: =THA!BR$6 -> 166036.465 | AB63: =THA!BS$6 -> 167003.6645 | AC63: =THA!BT$6 -> 168049.9724 | AD63: =THA!BU$6 -> 169161.598 | AE63: =THA!BV$6 -> 170286.5202 | AF63: =THA!BW$6 -> 171405.6026 | AG63: =THA!BX$6 -> 172520.3246 | AH63: =THA!BY$6 -> 173707.8567 | AI63: =THA!BZ$6 -> 174926.2139 | AJ63: =THA!CA$6 -> 176169.9309 | AL63: =INDEX(G63:AK63,Index!$B$16) -> 141458 | AM63: =INDEX(G63:AK63,Index!$B$19) -> 176169.9309 | AN63: =THA!CH$6 -> 34711.93089 | AO63: =THA!CI$6 -> 0.2453868349
A64: Tonbridge & Malling | B64: =TON!AS$6 -> 113536 | C64: =TON!AT$6 -> 115469 | D64: =TON!AU$6 -> 116967 | E64: =TON!AV$6 -> 118459 | F64: =TON!AW$6 -> 120054 | G64: =TON!AX$6 -> 121087 | H64: =TON!AY$6 -> 122030 | I64: =TON!AZ$6 -> 123171 | J64: =TON!BA$6 -> 124583 | K64: =TON!BB$6 -> 125779 | L64: =TON!BC$6 -> 127305 | M64: =TON!BD$6 -> 128891 | N64: =TON!BE$6 -> 130508 | O64: =TON!BF$6 -> 132153 | P64: =TON!BG$6 -> 132571 | Q64: =TON!BH$6 -> 134044.6362 | R64: =TON!BI$6 -> 135452.4109 | S64: =TON!BJ$6 -> 136986.3989 | T64: =TON!BK$6 -> 138574.9251 | U64: =TON!BL$6 -> 140342.032 | V64: =TON!BM$6 -> 142010.2448 | W64: =TON!BN$6 -> 143604.3047 | X64: =TON!BO$6 -> 145224.697 | Y64: =TON!BP$6 -> 146831.9256 | Z64: =TON!BQ$6 -> 148469.2949 | AA64: =TON!BR$6 -> 150087.9846 | AB64: =TON!BS$6 -> 151656.8619 | AC64: =TON!BT$6 -> 153261.8003 | AD64: =TON!BU$6 -> 154843.1996 | AE64: =TON!BV$6 -> 156416.0762 | AF64: =TON!BW$6 -> 157947.4184 | AG64: =TON!BX$6 -> 159457.519 | AH64: =TON!BY$6 -> 161017.7879 | AI64: =TON!BZ$6 -> 162606.4066 | AJ64: =TON!CA$6 -> 164120.2431 | AL64: =INDEX(G64:AK64,Index!$B$16) -> 132571 | AM64: =INDEX(G64:AK64,Index!$B$19) -> 164120.2431 | AN64: =TON!CH$6 -> 31549.24308 | AO64: =TON!CI$6 -> 0.2379799736
A65: Tunbridge Wells | B65: =TUN!AS$6 -> 107052 | C65: =TUN!AT$6 -> 108927 | D65: =TUN!AU$6 -> 111251 | E65: =TUN!AV$6 -> 112774 | F65: =TUN!AW$6 -> 114040 | G65: =TUN!AX$6 -> 115246 | H65: =TUN!AY$6 -> 115796 | I65: =TUN!AZ$6 -> 116094 | J65: =TUN!BA$6 -> 116525 | K65: =TUN!BB$6 -> 116610 | L65: =TUN!BC$6 -> 117357 | M65: =TUN!BD$6 -> 118061 | N65: =TUN!BE$6 -> 118054 | O65: =TUN!BF$6 -> 118724 | P65: =TUN!BG$6 -> 118939 | Q65: =TUN!BH$6 -> 120000.4114 | R65: =TUN!BI$6 -> 120994.3456 | S65: =TUN!BJ$6 -> 122065.7496 | T65: =TUN!BK$6 -> 123169.0308 | U65: =TUN!BL$6 -> 124290.2167 | V65: =TUN!BM$6 -> 125131.3284 | W65: =TUN!BN$6 -> 126018.1934 | X65: =TUN!BO$6 -> 126911.2859 | Y65: =TUN!BP$6 -> 127785.9303 | Z65: =TUN!BQ$6 -> 128678.5055 | AA65: =TUN!BR$6 -> 129563.101 | AB65: =TUN!BS$6 -> 130565.1493 | AC65: =TUN!BT$6 -> 131559.9246 | AD65: =TUN!BU$6 -> 132545.4285 | AE65: =TUN!BV$6 -> 133532.8501 | AF65: =TUN!BW$6 -> 134503.1064 | AG65: =TUN!BX$6 -> 135514.6845 | AH65: =TUN!BY$6 -> 136537.982 | AI65: =TUN!BZ$6 -> 137500.3609 | AJ65: =TUN!CA$6 -> 138475.8834 | AL65: =INDEX(G65:AK65,Index!$B$16) -> 118939 | AM65: =INDEX(G65:AK65,Index!$B$19) -> 138475.8834 | AN65: =TUN!CH$6 -> 19536.88342 | AO65: =TUN!CI$6 -> 0.1642596913
A66: KCC Area | B66: =KCC!AS$6 -> 1389634 | C66: =KCC!AT$6 -> 1407791 | D66: =KCC!AU$6 -> 1423308 | E66: =KCC!AV$6 -> 1435269 | F66: =KCC!AW$6 -> 1451905 | G66: =KCC!AX$6 -> 1466466 | H66: =KCC!AY$6 -> 1480151 | I66: =KCC!AZ$6 -> 1493114 | J66: =KCC!BA$6 -> 1509301 | K66: =KCC!BB$6 -> 1523100 | L66: =KCC!BC$6 -> 1540438 | M66: =KCC!BD$6 -> 1554636 | N66: =KCC!BE$6 -> 1568623 | O66: =KCC!BF$6 -> 1581555 | P66: =KCC!BG$6 -> 1589057 | Q66: =KCC!BH$6 -> 1604252.093 | R66: =KCC!BI$6 -> 1618961.606 | S66: =KCC!BJ$6 -> 1636256.332 | T66: =KCC!BK$6 -> 1656200.461 | U66: =KCC!BL$6 -> 1680054.154 | V66: =KCC!BM$6 -> 1701913.019 | W66: =KCC!BN$6 -> 1721014.294 | X66: =KCC!BO$6 -> 1740275.095 | Y66: =KCC!BP$6 -> 1758648.828 | Z66: =KCC!BQ$6 -> 1776695.985 | AA66: =KCC!BR$6 -> 1793031.762 | AB66: =KCC!BS$6 -> 1806068.668 | AC66: =KCC!BT$6 -> 1819431.886 | AD66: =KCC!BU$6 -> 1832796.75 | AE66: =KCC!BV$6 -> 1846202.116 | AF66: =KCC!BW$6 -> 1858977.303 | AG66: =KCC!BX$6 -> 1871963.601 | AH66: =KCC!BY$6 -> 1885463.162 | AI66: =KCC!BZ$6 -> 1899183.551 | AJ66: =KCC!CA$6 -> 1913074.072 | AL66: =INDEX(G66:AK66,Index!$B$16) -> 1589057 | AM66: =INDEX(G66:AK66,Index!$B$19) -> 1913074.072 | AN66: =KCC!CH$6 -> 324017.0716 | AO66: =KCC!CI$6 -> 0.2039052542
A67: Kent (Incl Medway) | B67: =Kent!AS$6 -> 1643112 | C67: =Kent!AT$6 -> 1663615 | D67: =Kent!AU$6 -> 1681532 | E67: =Kent!AV$6 -> 1695499 | F67: =Kent!AW$6 -> 1714643 | G67: =Kent!AX$6 -> 1731351 | H67: =Kent!AY$6 -> 1748281 | I67: =Kent!AZ$6 -> 1763803 | J67: =Kent!BA$6 -> 1782513 | K67: =Kent!BB$6 -> 1798276 | L67: =Kent!BC$6 -> 1817395 | M67: =Kent!BD$6 -> 1832252 | N67: =Kent!BE$6 -> 1846478 | O67: =Kent!BF$6 -> 1860111 | P67: =Kent!BG$6 -> 1868199 | Q67: =Kent!BH$6 -> 1885986.847 | R67: =Kent!BI$6 -> 1902963.947 | S67: =Kent!BJ$6 -> 1923249.744 | T67: =Kent!BK$6 -> 1946606.028 | U67: =Kent!BL$6 -> 1974562.673 | V67: =Kent!BM$6 -> 2000360.364 | W67: =Kent!BN$6 -> 2023168.394 | X67: =Kent!BO$6 -> 2046206.93 | Y67: =Kent!BP$6 -> 2068272.256 | Z67: =Kent!BQ$6 -> 2090054.124 | AA67: =Kent!BR$6 -> 2109939.761 | AB67: =Kent!BS$6 -> 2126468.335 | AC67: =Kent!BT$6 -> 2143325.565 | AD67: =Kent!BU$6 -> 2160146.926 | AE67: =Kent!BV$6 -> 2177009.268 | AF67: =Kent!BW$6 -> 2193099.156 | AG67: =Kent!BX$6 -> 2209431.992 | AH67: =Kent!BY$6 -> 2225841.975 | AI67: =Kent!BZ$6 -> 2242502.632 | AJ67: =Kent!CA$6 -> 2259386.562 | AL67: =INDEX(G67:AK67,Index!$B$16) -> 1868199 | AM67: =INDEX(G67:AK67,Index!$B$19) -> 2259386.562 | AN67: =Kent!CH$6 -> 391187.5617 | AO67: =Kent!CI$6 -> 0.2093928761
A72: Population by 5 year
A73: =INDEX(Index!C30:C58,'Population Pyramid'!L1) -> 2020 | C73: - | D73: Ashford | E73: Canterbury | F73: Dartford | G73: Dover | H73: Gravesham | I73: Maidstone | J73: Medway | K73: Sevenoaks | L73: Folkestone & Hythe | M73: Swale | N73: Thanet | O73: Tonbridge & Malling | P73: Tunbridge Wells | Q73: KCC Area | R73: Kent (Incl Medway)
A74: Males | B74: All Ages | C74: - | D74: =ASH!$DL$15 -> 63653 | E74: =CAN!$DL$15 -> 82314 | F74: =DAR!$DL$15 -> 56272 | G74: =DOV!$DL$15 -> 58453 | H74: =GRA!$DL$15 -> 52578 | I74: =MAI!$DL$15 -> 85254 | J74: =MED!$DL$15 -> 138256 | K74: =SEV!$DL$15 -> 58822 | L74: ='F&H'!$DL$15 -> 56077 | M74: =SWA!$DL$15 -> 74521 | N74: =THA!$DL$15 -> 68514 | O74: =TON!$DL$15 -> 64720 | P74: =TUN!$DL$15 -> 58599 | Q74: =KCC!$DL$15 -> 779777 | R74: =Kent!$DL$15 -> 918033
A75: Males | B75: 0-4 | C75: - | D75: =ASH!$DL$16 -> 3969 | E75: =CAN!$DL$16 -> 3678 | F75: =DAR!$DL$16 -> 4415 | G75: =DOV!$DL$16 -> 3031 | H75: =GRA!$DL$16 -> 3547 | I75: =MAI!$DL$16 -> 5416 | J75: =MED!$DL$16 -> 9192 | K75: =SEV!$DL$16 -> 3449 | L75: ='F&H'!$DL$16 -> 2742 | M75: =SWA!$DL$16 -> 4758 | N75: =THA!$DL$16 -> 4028 | O75: =TON!$DL$16 -> 3930 | P75: =TUN!$DL$16 -> 3225 | Q75: =KCC!$DL$16 -> 46188 | R75: =Kent!$DL$16 -> 55380
A76: Males | B76: 5-9 | C76: - | D76: =ASH!$DL$17 -> 4522 | E76: =CAN!$DL$17 -> 4486 | F76: =DAR!$DL$17 -> 4234 | G76: =DOV!$DL$17 -> 3468 | H76: =GRA!$DL$17 -> 3771 | I76: =MAI!$DL$17 -> 5940 | J76: =MED!$DL$17 -> 9872 | K76: =SEV!$DL$17 -> 4168 | L76: ='F&H'!$DL$17 -> 3159 | M76: =SWA!$DL$17 -> 5131 | N76: =THA!$DL$17 -> 4481 | O76: =TON!$DL$17 -> 4467 | P76: =TUN!$DL$17 -> 3855 | Q76: =KCC!$DL$17 -> 51682 | R76: =Kent!$DL$17 -> 61554
A77: Males | B77: 10-14 | C77: - | D77: =ASH!$DL$18 -> 4395 | E77: =CAN!$DL$18 -> 4665 | F77: =DAR!$DL$18 -> 4003 | G77: =DOV!$DL$18 -> 3556 | H77: =GRA!$DL$18 -> 3661 | I77: =MAI!$DL$18 -> 5573 | J77: =MED!$DL$18 -> 9353 | K77: =SEV!$DL$18 -> 4196 | L77: ='F&H'!$DL$18 -> 3316 | M77: =SWA!$DL$18 -> 5153 | N77: =THA!$DL$18 -> 4517 | O77: =TON!$DL$18 -> 4671 | P77: =TUN!$DL$18 -> 4323 | Q77: =KCC!$DL$18 -> 52029 | R77: =Kent!$DL$18 -> 61382
A78: Males | B78: 15-19 | C78: - | D78: =ASH!$DL$19 -> 3738 | E78: =CAN!$DL$19 -> 5753 | F78: =DAR!$DL$19 -> 3094 | G78: =DOV!$DL$19 -> 2960 | H78: =GRA!$DL$19 -> 3279 | I78: =MAI!$DL$19 -> 4678 | J78: =MED!$DL$19 -> 8311 | K78: =SEV!$DL$19 -> 3206 | L78: ='F&H'!$DL$19 -> 2841 | M78: =SWA!$DL$19 -> 4266 | N78: =THA!$DL$19 -> 3935 | O78: =TON!$DL$19 -> 4167 | P78: =TUN!$DL$19 -> 3497 | Q78: =KCC!$DL$19 -> 45414 | R78: =Kent!$DL$19 -> 53725
A79: Males | B79: 20-24 | C79: - | D79: =ASH!$DL$20 -> 2953 | E79: =CAN!$DL$20 -> 9790 | F79: =DAR!$DL$20 -> 2769 | G79: =DOV!$DL$20 -> 2988 | H79: =GRA!$DL$20 -> 2739 | I79: =MAI!$DL$20 -> 4483 | J79: =MED!$DL$20 -> 8266 | K79: =SEV!$DL$20 -> 2585 | L79: ='F&H'!$DL$20 -> 2807 | M79: =SWA!$DL$20 -> 4294 | N79: =THA!$DL$20 -> 3576 | O79: =TON!$DL$20 -> 3120 | P79: =TUN!$DL$20 -> 2334 | Q79: =KCC!$DL$20 -> 44438 | R79: =Kent!$DL$20 -> 52704
A80: Males | B80: 25-29 | C80: - | D80: =ASH!$DL$21 -> 3717 | E80: =CAN!$DL$21 -> 7515 | F80: =DAR!$DL$21 -> 3304 | G80: =DOV!$DL$21 -> 3242 | H80: =GRA!$DL$21 -> 2996 | I80: =MAI!$DL$21 -> 5232 | J80: =MED!$DL$21 -> 9369 | K80: =SEV!$DL$21 -> 2743 | L80: ='F&H'!$DL$21 -> 3041 | M80: =SWA!$DL$21 -> 4628 | N80: =THA!$DL$21 -> 3931 | O80: =TON!$DL$21 -> 3284 | P80: =TUN!$DL$21 -> 2722 | Q80: =KCC!$DL$21 -> 46355 | R80: =Kent!$DL$21 -> 55724
A81: Males | B81: 30-34 | C81: - | D81: =ASH!$DL$22 -> 3663 | E81: =CAN!$DL$22 -> 5020 | F81: =DAR!$DL$22 -> 4350 | G81: =DOV!$DL$22 -> 3308 | H81: =GRA!$DL$22 -> 3340 | I81: =MAI!$DL$22 -> 5422 | J81: =MED!$DL$22 -> 10033 | K81: =SEV!$DL$22 -> 3111 | L81: ='F&H'!$DL$22 -> 3166 | M81: =SWA!$DL$22 -> 4531 | N81: =THA!$DL$22 -> 3606 | O81: =TON!$DL$22 -> 3602 | P81: =TUN!$DL$22 -> 3236 | Q81: =KCC!$DL$22 -> 46355 | R81: =Kent!$DL$22 -> 56388
A82: Males | B82: 35-39 | C82: - | D82: =ASH!$DL$23 -> 3664 | E82: =CAN!$DL$23 -> 3957 | F82: =DAR!$DL$23 -> 4601 | G82: =DOV!$DL$23 -> 3202 | H82: =GRA!$DL$23 -> 3475 | I82: =MAI!$DL$23 -> 5428 | J82: =MED!$DL$23 -> 9165 | K82: =SEV!$DL$23 -> 3382 | L82: ='F&H'!$DL$23 -> 3041 | M82: =SWA!$DL$23 -> 4367 | N82: =THA!$DL$23 -> 3690 | O82: =TON!$DL$23 -> 3677 | P82: =TUN!$DL$23 -> 3860 | Q82: =KCC!$DL$23 -> 46344 | R82: =Kent!$DL$23 -> 55509
A83: Males | B83: 40-44 | C83: - | D83: =ASH!$DL$24 -> 3796 | E83: =CAN!$DL$24 -> 3622 | F83: =DAR!$DL$24 -> 4330 | G83: =DOV!$DL$24 -> 3047 | H83: =GRA!$DL$24 -> 3263 | I83: =MAI!$DL$24 -> 5165 | J83: =MED!$DL$24 -> 8639 | K83: =SEV!$DL$24 -> 3828 | L83: ='F&H'!$DL$24 -> 3033 | M83: =SWA!$DL$24 -> 4266 | N83: =THA!$DL$24 -> 3551 | O83: =TON!$DL$24 -> 4097 | P83: =TUN!$DL$24 -> 4028 | Q83: =KCC!$DL$24 -> 46026 | R83: =Kent!$DL$24 -> 54665
A84: Males | B84: 45-49 | C84: - | D84: =ASH!$DL$25 -> 4190 | E84: =CAN!$DL$25 -> 4144 | F84: =DAR!$DL$25 -> 3933 | G84: =DOV!$DL$25 -> 3607 | H84: =GRA!$DL$25 -> 3601 | I84: =MAI!$DL$25 -> 5652 | J84: =MED!$DL$25 -> 9005 | K84: =SEV!$DL$25 -> 4103 | L84: ='F&H'!$DL$25 -> 3602 | M84: =SWA!$DL$25 -> 4625 | N84: =THA!$DL$25 -> 4142 | O84: =TON!$DL$25 -> 4780 | P84: =TUN!$DL$25 -> 4643 | Q84: =KCC!$DL$25 -> 51022 | R84: =Kent!$DL$25 -> 60027
A85: Males | B85: 50-54 | C85: - | D85: =ASH!$DL$26 -> 4993 | E85: =CAN!$DL$26 -> 4885 | F85: =DAR!$DL$26 -> 3829 | G85: =DOV!$DL$26 -> 4296 | H85: =GRA!$DL$26 -> 3864 | I85: =MAI!$DL$26 -> 6346 | J85: =MED!$DL$26 -> 9598 | K85: =SEV!$DL$26 -> 4334 | L85: ='F&H'!$DL$26 -> 4278 | M85: =SWA!$DL$26 -> 5225 | N85: =THA!$DL$26 -> 4554 | O85: =TON!$DL$26 -> 4888 | P85: =TUN!$DL$26 -> 4781 | Q85: =KCC!$DL$26 -> 56273 | R85: =Kent!$DL$26 -> 65871
A86: Males | B86: 55-59 | C86: - | D86: =ASH!$DL$27 -> 4649 | E86: =CAN!$DL$27 -> 4926 | F86: =DAR!$DL$27 -> 3438 | G86: =DOV!$DL$27 -> 4484 | H86: =GRA!$DL$27 -> 3576 | I86: =MAI!$DL$27 -> 5891 | J86: =MED!$DL$27 -> 9048 | K86: =SEV!$DL$27 -> 4339 | L86: ='F&H'!$DL$27 -> 4236 | M86: =SWA!$DL$27 -> 5265 | N86: =THA!$DL$27 -> 4851 | O86: =TON!$DL$27 -> 4661 | P86: =TUN!$DL$27 -> 4181 | Q86: =KCC!$DL$27 -> 54497 | R86: =Kent!$DL$27 -> 63545
A87: Males | B87: 60-64 | C87: - | D87: =ASH!$DL$28 -> 3593 | E87: =CAN!$DL$28 -> 4409 | F87: =DAR!$DL$28 -> 2716 | G87: =DOV!$DL$28 -> 4054 | H87: =GRA!$DL$28 -> 2964 | I87: =MAI!$DL$28 -> 4835 | J87: =MED!$DL$28 -> 7495 | K87: =SEV!$DL$28 -> 3477 | L87: ='F&H'!$DL$28 -> 3665 | M87: =SWA!$DL$28 -> 4476 | N87: =THA!$DL$28 -> 4300 | O87: =TON!$DL$28 -> 3807 | P87: =TUN!$DL$28 -> 3345 | Q87: =KCC!$DL$28 -> 45641 | R87: =Kent!$DL$28 -> 53136
A88: Males | B88: 65-69 | C88: - | D88: =ASH!$DL$29 -> 3239 | E88: =CAN!$DL$29 -> 4145 | F88: =DAR!$DL$29 -> 2090 | G88: =DOV!$DL$29 -> 3668 | H88: =GRA!$DL$29 -> 2392 | I88: =MAI!$DL$29 -> 4012 | J88: =MED!$DL$29 -> 6181 | K88: =SEV!$DL$29 -> 3129 | L88: ='F&H'!$DL$29 -> 3436 | M88: =SWA!$DL$29 -> 3843 | N88: =THA!$DL$29 -> 4268 | O88: =TON!$DL$29 -> 3166 | P88: =TUN!$DL$29 -> 2686 | Q88: =KCC!$DL$29 -> 40074 | R88: =Kent!$DL$29 -> 46255
A89: Males | B89: 70-74 | C89: - | D89: =ASH!$DL$30 -> 3446 | E89: =CAN!$DL$30 -> 4476 | F89: =DAR!$DL$30 -> 1995 | G89: =DOV!$DL$30 -> 3932 | H89: =GRA!$DL$30 -> 2248 | I89: =MAI!$DL$30 -> 4455 | J89: =MED!$DL$30 -> 6120 | K89: =SEV!$DL$30 -> 3309 | L89: ='F&H'!$DL$30 -> 3955 | M89: =SWA!$DL$30 -> 4033 | N89: =THA!$DL$30 -> 4504 | O89: =TON!$DL$30 -> 3235 | P89: =TUN!$DL$30 -> 2983 | Q89: =KCC!$DL$30 -> 42571 | R89: =Kent!$DL$30 -> 48691
A90: Males | B90: 75-79 | C90: - | D90: =ASH!$DL$31 -> 2368 | E90: =CAN!$DL$31 -> 2991 | F90: =DAR!$DL$31 -> 1334 | G90: =DOV!$DL$31 -> 2605 | H90: =GRA!$DL$31 -> 1682 | I90: =MAI!$DL$31 -> 3025 | J90: =MED!$DL$31 -> 4084 | K90: =SEV!$DL$31 -> 2342 | L90: ='F&H'!$DL$31 -> 2607 | M90: =SWA!$DL$31 -> 2742 | N90: =THA!$DL$31 -> 3071 | O90: =TON!$DL$31 -> 2320 | P90: =TUN!$DL$31 -> 2083 | Q90: =KCC!$DL$31 -> 29170 | R90: =Kent!$DL$31 -> 33254
A91: Males | B91: 80-84 | C91: - | D91: =ASH!$DL$32 -> 1535 | E91: =CAN!$DL$32 -> 2104 | F91: =DAR!$DL$32 -> 951 | G91: =DOV!$DL$32 -> 1664 | H91: =GRA!$DL$32 -> 1164 | I91: =MAI!$DL$32 -> 2057 | J91: =MED!$DL$32 -> 2627 | K91: =SEV!$DL$32 -> 1642 | L91: ='F&H'!$DL$32 -> 1698 | M91: =SWA!$DL$32 -> 1738 | N91: =THA!$DL$32 -> 1977 | O91: =TON!$DL$32 -> 1630 | P91: =TUN!$DL$32 -> 1413 | Q91: =KCC!$DL$32 -> 19573 | R91: =Kent!$DL$32 -> 22200
A92: Males | B92: 85+ | C92: - | D92: =ASH!$DL$33 -> 1223 | E92: =CAN!$DL$33 -> 1748 | F92: =DAR!$DL$33 -> 886 | G92: =DOV!$DL$33 -> 1341 | H92: =GRA!$DL$33 -> 1016 | I92: =MAI!$DL$33 -> 1644 | J92: =MED!$DL$33 -> 1898 | K92: =SEV!$DL$33 -> 1479 | L92: ='F&H'!$DL$33 -> 1454 | M92: =SWA!$DL$33 -> 1180 | N92: =THA!$DL$33 -> 1532 | O92: =TON!$DL$33 -> 1218 | P92: =TUN!$DL$33 -> 1404 | Q92: =KCC!$DL$33 -> 16125 | R92: =Kent!$DL$33 -> 18023
A94: Females | B94: All Ages | C94: - | D94: =ASH!$DL$35 -> 67365 | E94: =CAN!$DL$35 -> 84448 | F94: =DAR!$DL$35 -> 57779 | G94: =DOV!$DL$35 -> 60061 | H94: =GRA!$DL$35 -> 54312 | I94: =MAI!$DL$35 -> 87878 | J94: =MED!$DL$35 -> 140886 | K94: =SEV!$DL$35 -> 62565 | L94: ='F&H'!$DL$35 -> 57243 | M94: =SWA!$DL$35 -> 76494 | N94: =THA!$DL$35 -> 72944 | O94: =TON!$DL$35 -> 67851 | P94: =TUN!$DL$35 -> 60340 | Q94: =KCC!$DL$35 -> 809280 | R94: =Kent!$DL$35 -> 950166
A95: Females | B95: 0-4 | C95: - | D95: =ASH!$DL$36 -> 3821 | E95: =CAN!$DL$36 -> 3477 | F95: =DAR!$DL$36 -> 4017 | G95: =DOV!$DL$36 -> 2803 | H95: =GRA!$DL$36 -> 3379 | I95: =MAI!$DL$36 -> 5057 | J95: =MED!$DL$36 -> 8893 | K95: =SEV!$DL$36 -> 3362 | L95: ='F&H'!$DL$36 -> 2564 | M95: =SWA!$DL$36 -> 4404 | N95: =THA!$DL$36 -> 3620 | O95: =TON!$DL$36 -> 3805 | P95: =TUN!$DL$36 -> 3040 | Q95: =KCC!$DL$36 -> 43349 | R95: =Kent!$DL$36 -> 52242
A96: Females | B96: 5-9 | C96: - | D96: =ASH!$DL$37 -> 4319 | E96: =CAN!$DL$37 -> 4056 | F96: =DAR!$DL$37 -> 4123 | G96: =DOV!$DL$37 -> 3214 | H96: =GRA!$DL$37 -> 3683 | I96: =MAI!$DL$37 -> 5477 | J96: =MED!$DL$37 -> 9314 | K96: =SEV!$DL$37 -> 3928 | L96: ='F&H'!$DL$37 -> 3078 | M96: =SWA!$DL$37 -> 4873 | N96: =THA!$DL$37 -> 4207 | O96: =TON!$DL$37 -> 4133 | P96: =TUN!$DL$37 -> 3668 | Q96: =KCC!$DL$37 -> 48759 | R96: =Kent!$DL$37 -> 58073
A97: Females | B97: 10-14 | C97: - | D97: =ASH!$DL$38 -> 4306 | E97: =CAN!$DL$38 -> 4265 | F97: =DAR!$DL$38 -> 3897 | G97: =DOV!$DL$38 -> 3390 | H97: =GRA!$DL$38 -> 3592 | I97: =MAI!$DL$38 -> 5265 | J97: =MED!$DL$38 -> 8798 | K97: =SEV!$DL$38 -> 3968 | L97: ='F&H'!$DL$38 -> 3081 | M97: =SWA!$DL$38 -> 4827 | N97: =THA!$DL$38 -> 4246 | O97: =TON!$DL$38 -> 4366 | P97: =TUN!$DL$38 -> 4193 | Q97: =KCC!$DL$38 -> 49396 | R97: =Kent!$DL$38 -> 58194
A98: Females | B98: 15-19 | C98: - | D98: =ASH!$DL$39 -> 3675 | E98: =CAN!$DL$39 -> 5972 | F98: =DAR!$DL$39 -> 2844 | G98: =DOV!$DL$39 -> 2966 | H98: =GRA!$DL$39 -> 2904 | I98: =MAI!$DL$39 -> 4416 | J98: =MED!$DL$39 -> 7732 | K98: =SEV!$DL$39 -> 3226 | L98: ='F&H'!$DL$39 -> 2501 | M98: =SWA!$DL$39 -> 4021 | N98: =THA!$DL$39 -> 3472 | O98: =TON!$DL$39 -> 3624 | P98: =TUN!$DL$39 -> 3557 | Q98: =KCC!$DL$39 -> 43178 | R98: =Kent!$DL$39 -> 50910
A99: Females | B99: 20-24 | C99: - | D99: =ASH!$DL$40 -> 3162 | E99: =CAN!$DL$40 -> 9506 | F99: =DAR!$DL$40 -> 2727 | G99: =DOV!$DL$40 -> 2634 | H99: =GRA!$DL$40 -> 2519 | I99: =MAI!$DL$40 -> 4015 | J99: =MED!$DL$40 -> 7680 | K99: =SEV!$DL$40 -> 2491 | L99: ='F&H'!$DL$40 -> 2470 | M99: =SWA!$DL$40 -> 3869 | N99: =THA!$DL$40 -> 3347 | O99: =TON!$DL$40 -> 3035 | P99: =TUN!$DL$40 -> 2307 | Q99: =KCC!$DL$40 -> 42082 | R99: =Kent!$DL$40 -> 49762
A100: Females | B100: 25-29 | C100: - | D100: =ASH!$DL$41 -> 3680 | E100: =CAN!$DL$41 -> 5945 | F100: =DAR!$DL$41 -> 3661 | G100: =DOV!$DL$41 -> 3360 | H100: =GRA!$DL$41 -> 3302 | I100: =MAI!$DL$41 -> 4992 | J100: =MED!$DL$41 -> 9898 | K100: =SEV!$DL$41 -> 3022 | L100: ='F&H'!$DL$41 -> 2820 | M100: =SWA!$DL$41 -> 4317 | N100: =THA!$DL$41 -> 3674 | O100: =TON!$DL$41 -> 3705 | P100: =TUN!$DL$41 -> 2733 | Q100: =KCC!$DL$41 -> 45211 | R100: =Kent!$DL$41 -> 55109
A101: Females | B101: 30-34 | C101: - | D101: =ASH!$DL$42 -> 4096 | E101: =CAN!$DL$42 -> 4083 | F101: =DAR!$DL$42 -> 5154 | G101: =DOV!$DL$42 -> 3252 | H101: =GRA!$DL$42 -> 3792 | I101: =MAI!$DL$42 -> 5728 | J101: =MED!$DL$42 -> 10222 | K101: =SEV!$DL$42 -> 3263 | L101: ='F&H'!$DL$42 -> 3191 | M101: =SWA!$DL$42 -> 4788 | N101: =THA!$DL$42 -> 4043 | O101: =TON!$DL$42 -> 3967 | P101: =TUN!$DL$42 -> 3300 | Q101: =KCC!$DL$42 -> 48657 | R101: =Kent!$DL$42 -> 58879
A102: Females | B102: 35-39 | C102: - | D102: =ASH!$DL$43 -> 4202 | E102: =CAN!$DL$43 -> 4283 | F102: =DAR!$DL$43 -> 4939 | G102: =DOV!$DL$43 -> 3370 | H102: =GRA!$DL$43 -> 3690 | I102: =MAI!$DL$43 -> 6072 | J102: =MED!$DL$43 -> 9525 | K102: =SEV!$DL$43 -> 3752 | L102: ='F&H'!$DL$43 -> 3234 | M102: =SWA!$DL$43 -> 5060 | N102: =THA!$DL$43 -> 4265 | O102: =TON!$DL$43 -> 4472 | P102: =TUN!$DL$43 -> 3919 | Q102: =KCC!$DL$43 -> 51258 | R102: =Kent!$DL$43 -> 60783
A103: Females | B103: 40-44 | C103: - | D103: =ASH!$DL$44 -> 4174 | E103: =CAN!$DL$44 -> 4092 | F103: =DAR!$DL$44 -> 4038 | G103: =DOV!$DL$44 -> 3235 | H103: =GRA!$DL$44 -> 3444 | I103: =MAI!$DL$44 -> 5462 | J103: =MED!$DL$44 -> 8961 | K103: =SEV!$DL$44 -> 4149 | L103: ='F&H'!$DL$44 -> 3101 | M103: =SWA!$DL$44 -> 4583 | N103: =THA!$DL$44 -> 4030 | O103: =TON!$DL$44 -> 4563 | P103: =TUN!$DL$44 -> 4027 | Q103: =KCC!$DL$44 -> 48898 | R103: =Kent!$DL$44 -> 57859
A104: Females | B104: 45-49 | C104: - | D104: =ASH!$DL$45 -> 4612 | E104: =CAN!$DL$45 -> 4488 | F104: =DAR!$DL$45 -> 3780 | G104: =DOV!$DL$45 -> 3715 | H104: =GRA!$DL$45 -> 3635 | I104: =MAI!$DL$45 -> 5959 | J104: =MED!$DL$45 -> 8969 | K104: =SEV!$DL$45 -> 4405 | L104: ='F&H'!$DL$45 -> 3598 | M104: =SWA!$DL$45 -> 4750 | N104: =THA!$DL$45 -> 4443 | O104: =TON!$DL$45 -> 4923 | P104: =TUN!$DL$45 -> 4486 | Q104: =KCC!$DL$45 -> 52794 | R104: =Kent!$DL$45 -> 61763
A105: Females | B105: 50-54 | C105: - | D105: =ASH!$DL$46 -> 4979 | E105: =CAN!$DL$46 -> 5173 | F105: =DAR!$DL$46 -> 3932 | G105: =DOV!$DL$46 -> 4313 | H105: =GRA!$DL$46 -> 3809 | I105: =MAI!$DL$46 -> 6326 | J105: =MED!$DL$46 -> 9604 | K105: =SEV!$DL$46 -> 4642 | L105: ='F&H'!$DL$46 -> 4220 | M105: =SWA!$DL$46 -> 5506 | N105: =THA!$DL$46 -> 5069 | O105: =TON!$DL$46 -> 5069 | P105: =TUN!$DL$46 -> 4546 | Q105: =KCC!$DL$46 -> 57584 | R105: =Kent!$DL$46 -> 67188
A106: Females | B106: 55-59 | C106: - | D106: =ASH!$DL$47 -> 4594 | E106: =CAN!$DL$47 -> 5181 | F106: =DAR!$DL$47 -> 3325 | G106: =DOV!$DL$47 -> 4566 | H106: =GRA!$DL$47 -> 3560 | I106: =MAI!$DL$47 -> 5979 | J106: =MED!$DL$47 -> 9180 | K106: =SEV!$DL$47 -> 4244 | L106: ='F&H'!$DL$47 -> 4289 | M106: =SWA!$DL$47 -> 5412 | N106: =THA!$DL$47 -> 5080 | O106: =TON!$DL$47 -> 4760 | P106: =TUN!$DL$47 -> 4232 | Q106: =KCC!$DL$47 -> 55222 | R106: =Kent!$DL$47 -> 64402
A107: Females | B107: 60-64 | C107: - | D107: =ASH!$DL$48 -> 3783 | E107: =CAN!$DL$48 -> 4766 | F107: =DAR!$DL$48 -> 2733 | G107: =DOV!$DL$48 -> 4252 | H107: =GRA!$DL$48 -> 2902 | I107: =MAI!$DL$48 -> 4928 | J107: =MED!$DL$48 -> 7747 | K107: =SEV!$DL$48 -> 3738 | L107: ='F&H'!$DL$48 -> 3948 | M107: =SWA!$DL$48 -> 4510 | N107: =THA!$DL$48 -> 4768 | O107: =TON!$DL$48 -> 3811 | P107: =TUN!$DL$48 -> 3491 | Q107: =KCC!$DL$48 -> 47630 | R107: =Kent!$DL$48 -> 55377
A108: Females | B108: 65-69 | C108: - | D108: =ASH!$DL$49 -> 3374 | E108: =CAN!$DL$49 -> 4491 | F108: =DAR!$DL$49 -> 2114 | G108: =DOV!$DL$49 -> 3879 | H108: =GRA!$DL$49 -> 2514 | I108: =MAI!$DL$49 -> 4430 | J108: =MED!$DL$49 -> 6424 | K108: =SEV!$DL$49 -> 3441 | L108: ='F&H'!$DL$49 -> 3715 | M108: =SWA!$DL$49 -> 3931 | N108: =THA!$DL$49 -> 4692 | O108: =TON!$DL$49 -> 3141 | P108: =TUN!$DL$49 -> 3003 | Q108: =KCC!$DL$49 -> 42725 | R108: =Kent!$DL$49 -> 49149
A109: Females | B109: 70-74 | C109: - | D109: =ASH!$DL$50 -> 3861 | E109: =CAN!$DL$50 -> 5067 | F109: =DAR!$DL$50 -> 2205 | G109: =DOV!$DL$50 -> 4074 | H109: =GRA!$DL$50 -> 2606 | I109: =MAI!$DL$50 -> 4865 | J109: =MED!$DL$50 -> 6682 | K109: =SEV!$DL$50 -> 3806 | L109: ='F&H'!$DL$50 -> 4204 | M109: =SWA!$DL$50 -> 4390 | N109: =THA!$DL$50 -> 5023 | O109: =TON!$DL$50 -> 3644 | P109: =TUN!$DL$50 -> 3203 | Q109: =KCC!$DL$50 -> 46948 | R109: =Kent!$DL$50 -> 53630
A110: Females | B110: 75-79 | C110: - | D110: =ASH!$DL$51 -> 2814 | E110: =CAN!$DL$51 -> 3661 | F110: =DAR!$DL$51 -> 1622 | G110: =DOV!$DL$51 -> 2825 | H110: =GRA!$DL$51 -> 1874 | I110: =MAI!$DL$51 -> 3378 | J110: =MED!$DL$51 -> 4623 | K110: =SEV!$DL$51 -> 2711 | L110: ='F&H'!$DL$51 -> 2781 | M110: =SWA!$DL$51 -> 3060 | N110: =THA!$DL$51 -> 3598 | O110: =TON!$DL$51 -> 2760 | P110: =TUN!$DL$51 -> 2430 | Q110: =KCC!$DL$51 -> 33514 | R110: =Kent!$DL$51 -> 38137
A111: Females | B111: 80-84 | C111: - | D111: =ASH!$DL$52 -> 1893 | E111: =CAN!$DL$52 -> 2682 | F111: =DAR!$DL$52 -> 1267 | G111: =DOV!$DL$52 -> 2007 | H111: =GRA!$DL$52 -> 1552 | I111: =MAI!$DL$52 -> 2676 | J111: =MED!$DL$52 -> 3380 | K111: =SEV!$DL$52 -> 2046 | L111: ='F&H'!$DL$52 -> 2050 | M111: =SWA!$DL$52 -> 2106 | N111: =THA!$DL$52 -> 2561 | O111: =TON!$DL$52 -> 1993 | P111: =TUN!$DL$52 -> 1779 | Q111: =KCC!$DL$52 -> 24612 | R111: =Kent!$DL$52 -> 27992
A112: Females | B112: 85+ | C112: - | D112: =ASH!$DL$53 -> 2020 | E112: =CAN!$DL$53 -> 3260 | F112: =DAR!$DL$53 -> 1401 | G112: =DOV!$DL$53 -> 2206 | H112: =GRA!$DL$53 -> 1555 | I112: =MAI!$DL$53 -> 2853 | J112: =MED!$DL$53 -> 3254 | K112: =SEV!$DL$53 -> 2371 | L112: ='F&H'!$DL$53 -> 2398 | M112: =SWA!$DL$53 -> 2087 | N112: =THA!$DL$53 -> 2806 | O112: =ASH!$DL$53 -> 2020 | P112: =TUN!$DL$53 -> 2426 | Q112: =KCC!$DL$53 -> 27463 | R112: =Kent!$DL$53 -> 30717
A116: Selected district | I116: KCC Area
A117: =INDEX(C73:R73,Index!B11) -> Ashford | B117: Total Pop | C117: =SUM(B119,E119) -> 131018 | H117: KCC | I117: Total Pop | J117: =SUM(I119,L119) -> 1589057
A118: =Index!C22 -> 2020 | B118: Males | E118: Females | I118: Males | L118: Females
A119: All Ages | B119: =INDEX(C74:R74,Index!$B$11) -> 63653 | C119: =B119/C117 -> 0.4858340075 | E119: =INDEX(C94:R94,Index!$B$11) -> 67365 | F119: =E119/C117 -> 0.5141659925 | H119: All Ages | I119: =KCC!DL15 -> 779777 | L119: =KCC!DL35 -> 809280
A120: 0-4 | B120: =INDEX(C75:R75,Index!$B$11) -> 3969 | C120: =B120/$C$117 -> 0.03029354745 | D120: =C120*-1 -> -0.03029354745 | E120: =INDEX(C95:R95,Index!$B$11) -> 3821 | F120: =E120/$C$117 -> 0.02916393167 | H120: 0-4 | I120: =KCC!DL16 -> 46188 | J120: =I120/$J$117 -> 0.02906629529 | K120: =J120*-1 -> -0.02906629529 | L120: =KCC!DL36 -> 43349 | M120: =L120/$J$117 -> 0.02727970111
A121: 5-9 | B121: =INDEX(C76:R76,Index!$B$11) -> 4522 | C121: =B121/$C$117 -> 0.03451434154 | D121: =C121*-1 -> -0.03451434154 | E121: =INDEX(C96:R96,Index!$B$11) -> 4319 | F121: =E121/$C$117 -> 0.03296493612 | H121: 5-9 | I121: =KCC!DL17 -> 51682 | J121: =I121/$J$117 -> 0.03252369172 | K121: =J121*-1 -> -0.03252369172 | L121: =KCC!DL37 -> 48759 | M121: =L121/$J$117 -> 0.030684236
A122: 10-14 | B122: =INDEX(C77:R77,Index!$B$11) -> 4395 | C122: 0.03354500908 | D122: -0.03354500908 | E122: =INDEX(C97:R97,Index!$B$11) -> 4306 | F122: 0.03286571311 | H122: 10-14 | I122: =KCC!DL18 -> 52029 | J122: 0.03274206023 | K122: -0.03274206023 | L122: =KCC!DL38 -> 49396 | M122: 0.03108510267
A123: 15-19 | B123: =INDEX(C78:R78,Index!$B$11) -> 3738 | C123: 0.02853043093 | D123: -0.02853043093 | E123: =INDEX(C98:R98,Index!$B$11) -> 3675 | F123: 0.02804958097 | H123: 15-19 | I123: =KCC!DL19 -> 45414 | J123: 0.02857921396 | K123: -0.02857921396 | L123: =KCC!DL39 -> 43178 | M123: 0.02717209011
A124: 20-24 | B124: =INDEX(C79:R79,Index!$B$11) -> 2953 | C124: 0.02253888779 | D124: -0.02253888779 | E124: =INDEX(C99:R99,Index!$B$11) -> 3162 | F124: 0.02413408845 | H124: 20-24 | I124: =KCC!DL20 -> 44438 | J124: 0.02796501321 | K124: -0.02796501321 | L124: =KCC!DL40 -> 42082 | M124: 0.02648237288
A125: 25-29 | B125: =INDEX(C80:R80,Index!$B$11) -> 3717 | C125: 0.02837014761 | D125: -0.02837014761 | E125: =INDEX(C100:R100,Index!$B$11) -> 3680 | F125: 0.02808774367 | H125: 25-29 | I125: =KCC!DL21 -> 46355 | J125: 0.02917138907 | K125: -0.02917138907 | L125: =KCC!DL41 -> 45211 | M125: 0.02845146524
A126: 30-34 | B126: =INDEX(C81:R81,Index!$B$11) -> 3663 | C126: 0.02795799051 | D126: -0.02795799051 | E126: =INDEX(C101:R101,Index!$B$11) -> 4096 | F126: 0.03126287991 | H126: 30-34 | I126: =KCC!DL22 -> 46355 | J126: 0.02917138907 | K126: -0.02917138907 | L126: =KCC!DL42 -> 48657 | M126: 0.03062004698
A127: 35-39 | B127: =INDEX(C82:R82,Index!$B$11) -> 3664 | C127: 0.02796562304 | D127: -0.02796562304 | E127: =INDEX(C102:R102,Index!$B$11) -> 4202 | F127: 0.03207192905 | H127: 35-39 | I127: =KCC!DL23 -> 46344 | J127: 0.02916446672 | K127: -0.02916446672 | L127: =KCC!DL43 -> 51258 | M127: 0.03225686681
A128: 40-44 | B128: =INDEX(C83:R83,Index!$B$11) -> 3796 | C128: 0.0289731182 | D128: -0.0289731182 | E128: =INDEX(C103:R103,Index!$B$11) -> 4174 | F128: 0.03185821795 | H128: 40-44 | I128: =KCC!DL24 -> 46026 | J128: 0.02896434804 | K128: -0.02896434804 | L128: =KCC!DL44 -> 48898 | M128: 0.03077170926
A129: 45-49 | B129: =INDEX(C84:R84,Index!$B$11) -> 4190 | C129: 0.03198033858 | D129: -0.03198033858 | E129: =INDEX(C104:R104,Index!$B$11) -> 4612 | F129: 0.03520127005 | H129: 45-49 | I129: =KCC!DL25 -> 51022 | J129: 0.03210835105 | K129: -0.03210835105 | L129: =KCC!DL45 -> 52794 | M129: 0.03322347782
A130: 50-54 | B130: =INDEX(C85:R85,Index!$B$11) -> 4993 | C130: 0.03810926743 | D130: -0.03810926743 | E130: =INDEX(C105:R105,Index!$B$11) -> 4979 | F130: 0.03800241188 | H130: 50-54 | I130: =KCC!DL26 -> 56273 | J130: 0.0354128266 | K130: -0.0354128266 | L130: =KCC!DL46 -> 57584 | M130: 0.03623784421
A131: 55-59 | B131: =INDEX(C86:R86,Index!$B$11) -> 4649 | C131: 0.035483674 | D131: -0.035483674 | E131: =INDEX(C106:R106,Index!$B$11) -> 4594 | F131: 0.03506388435 | H131: 55-59 | I131: =KCC!DL27 -> 54497 | J131: 0.03429518261 | K131: -0.03429518261 | L131: =KCC!DL47 -> 55222 | M131: 0.03475142805
A132: 60-64 | B132: =INDEX(C87:R87,Index!$B$11) -> 3593 | C132: 0.02742371277 | D132: -0.02742371277 | E132: =INDEX(C107:R107,Index!$B$11) -> 3783 | F132: 0.02887389519 | H132: 60-64 | I132: =KCC!DL28 -> 45641 | J132: 0.02872206598 | K132: -0.02872206598 | L132: =KCC!DL48 -> 47630 | M132: 0.02997375173
A133: 65-69 | B133: =INDEX(C88:R88,Index!$B$11) -> 3239 | C133: 0.02472179395 | D133: -0.02472179395 | E133: =INDEX(C108:R108,Index!$B$11) -> 3374 | F133: 0.02575218672 | H133: 65-69 | I133: =KCC!DL29 -> 40074 | J133: 0.02521873035 | K133: -0.02521873035 | L133: =KCC!DL49 -> 42725 | M133: 0.02688701538
A134: 70-74 | B134: =INDEX(C89:R89,Index!$B$11) -> 3446 | C134: 0.02630172953 | D134: -0.02630172953 | E134: =INDEX(C109:R109,Index!$B$11) -> 3861 | F134: 0.02946923324 | H134: 70-74 | I134: =KCC!DL30 -> 42571 | J134: 0.02679010256 | K134: -0.02679010256 | L134: =KCC!DL50 -> 46948 | M134: 0.02954456637
A135: 75-79 | B135: =INDEX(C90:R90,Index!$B$11) -> 2368 | C135: 0.01807385245 | D135: -0.01807385245 | E135: =INDEX(C110:R110,Index!$B$11) -> 2814 | F135: 0.02147796486 | H135: 75-79 | I135: =KCC!DL31 -> 29170 | J135: 0.01835679903 | K135: -0.01835679903 | L135: =KCC!DL51 -> 33514 | M135: 0.02109049581
A136: 80-84 | B136: =INDEX(C91:R91,Index!$B$11) -> 1535 | C136: 0.01171594743 | D136: -0.01171594743 | E136: =INDEX(C111:R111,Index!$B$11) -> 1893 | F136: 0.0144483964 | H136: 80-84 | I136: =KCC!DL32 -> 19573 | J136: 0.0123173681 | K136: -0.0123173681 | L136: =KCC!DL52 -> 24612 | M136: 0.01548843119
A137: 85+ | B137: =INDEX(C92:R92,Index!$B$11) -> 1223 | C137: 0.009334595246 | D137: -0.009334595246 | E137: =INDEX(C112:R112,Index!$B$11) -> 2020 | F137: 0.01541772886 | H137: 85+ | I137: =KCC!DL33 -> 16125 | J137: 0.01014752775 | K137: -0.01014752775 | L137: =KCC!DL53 -> 27463 | M137: 0.01728257703

Sheet Average age (hidden)
A1: Average age forecast | B1: Total population
B2: 2011 | C2: 2012 | D2: 2013 | E2: 2014 | F2: 2015 | G2: 2016 | H2: 2017 | I2: 2018 | J2: 2019 | K2: 2020 | L2: 2021 | M2: 2022 | N2: 2023 | O2: 2024 | P2: 2025 | Q2: 2026 | R2: 2027 | S2: 2028 | T2: 2029 | U2: 2030 | V2: 2031 | W2: 2032 | X2: 2033 | Y2: 2034 | Z2: 2035 | AA2: 2036 | AB2: 2037 | AC2: 2038 | AD2: 2039 | AE2: 2040 | AF2: 2041 | AG2: 2042 | AH2: 2043 | AI2: 2044
A3: - | B3: 39.61829315 | C3: 39.76994539 | D3: 39.86860228 | E3: 40.08360737 | F3: 40.24233557 | G3: 40.35008858 | H3: 40.47989837 | I3: 40.5640272 | J3: 40.75179187 | K3: 40.963173 | L3: 41.12105989 | M3: 41.27202846 | N3: 41.41077499 | O3: 41.53483783 | P3: 41.6407091 | Q3: 41.73877689 | R3: 41.84205615 | S3: 41.93725561 | T3: 42.02569575 | U3: 42.10547163 | V3: 42.22829108 | W3: 42.34682433 | X3: 42.45318233 | Y3: 42.55362967 | Z3: 42.6463395 | AA3: 42.73839018 | AB3: 42.82310878 | AC3: 42.89846946 | AD3: 42.96956984 | AE3: 43.03892896 | AF3: 43.11039288 | AG3: 43.17296701 | AH3: 43.23374433 | AI3: 43.36201596
A4: Ashford | B4: 40.09579681 | C4: 39.97357446 | D4: 40.04136413 | E4: 40.12954331 | F4: 40.06767379 | G4: 40.03940259 | H4: 40.08989031 | I4: 40.30195135 | J4: 40.52370703 | K4: 40.60678692 | L4: 40.72405881 | M4: 40.88274122 | N4: 40.99362266 | O4: 41.06863348 | P4: 41.08312776 | Q4: 41.11372669 | R4: 41.15297018 | S4: 41.20440455 | T4: 41.25762057 | U4: 41.31484137 | V4: 41.37252626 | W4: 41.5355375 | X4: 41.68901098 | Y4: 41.83847598 | Z4: 41.97169335 | AA4: 42.10496928 | AB4: 42.23449874 | AC4: 42.36447695 | AD4: 42.47830341 | AE4: 42.58245642 | AF4: 42.68715162 | AG4: 42.76822205 | AH4: 42.84683268 | AI4: 43.22267973
A5: Canterbury | B5: 37.87065079 | C5: 37.88826618 | D5: 37.90778793 | E5: 37.94034899 | F5: 37.96957433 | G5: 37.97295395 | H5: 37.83185758 | I5: 37.66604381 | J5: 37.5279026 | K5: 37.46048698 | L5: 37.44030655 | M5: 37.44473653 | N5: 37.46954563 | O5: 37.52212265 | P5: 37.59256591 | Q5: 37.69431357 | R5: 37.80575319 | S5: 37.92458815 | T5: 38.05147276 | U5: 38.18596497 | V5: 38.32164143 | W5: 38.45544052 | X5: 38.58694049 | Y5: 38.7163485 | Z5: 38.84128601 | AA5: 38.96083661 | AB5: 39.07446376 | AC5: 39.17030088 | AD5: 39.26025081 | AE5: 39.34237664 | AF5: 39.41891556 | AG5: 39.48112845 | AH5: 39.53836299 | AI5: 39.66950795
A6: Dartford | B6: 42.1985356 | C6: 42.44575037 | D6: 42.63822562 | E6: 42.83464852 | F6: 43.06199425 | G6: 43.29711448 | H6: 43.39861662 | I6: 43.54420402 | J6: 43.69763229 | K6: 43.86476703 | L6: 44.03183514 | M6: 44.2032718 | N6: 44.35533598 | O6: 44.48006813 | P6: 44.57465354 | Q6: 44.66391724 | R6: 44.87809437 | S6: 45.08494724 | T6: 45.28469268 | U6: 45.4782444 | V6: 45.67125406 | W6: 45.8557279 | X6: 46.02804084 | Y6: 46.19107284 | Z6: 46.34936528 | AA6: 46.49854333 | AB6: 46.636418 | AC6: 46.76155076 | AD6: 46.88096511 | AE6: 46.99761075 | AF6: 47.11327485 | AG6: 47.21426172 | AH6: 47.30719219 | AI6: 47.33249274
A7: Dover | B7: 42.41755469 | C7: 42.67335721 | D7: 42.98459091 | E7: 43.26349201 | F7: 43.49736885 | G7: 43.64365362 | H7: 43.9590584 | I7: 44.11496918 | J7: 44.4006071 | K7: 44.63052418 | L7: 44.89762329 | M7: 45.16000407 | N7: 45.3958554 | O7: 45.61178721 | P7: 45.80066474 | Q7: 46.00722657 | R7: 46.21144528 | S7: 46.40737604 | T7: 46.59454132 | U7: 46.79189382 | V7: 46.98311929 | W7: 47.16575429 | X7: 47.33796821 | Y7: 47.50060208 | Z7: 47.65752152 | AA7: 47.805461 | AB7: 47.9437809 | AC7: 48.06756427 | AD7: 48.18285654 | AE7: 48.28970029 | AF7: 48.39284976 | AG7: 48.47897137 | AH7: 48.55693111 | AI7: 48.67737876
A8: Folkestone & Hythe | B8: 38.76802665 | C8: 38.85561482 | D8: 38.92199878 | E8: 38.91621343 | F8: 38.97793123 | G8: 39.13627077 | H8: 39.28158423 | I8: 39.40027259 | J8: 39.47282095 | K8: 39.56283095 | L8: 39.66663152 | M8: 39.76415535 | N8: 39.85452204 | O8: 39.92980652 | P8: 39.98874678 | Q8: 40.04793548 | R8: 40.10731995 | S8: 40.16470684 | T8: 40.28224173 | U8: 40.39667056 | V8: 40.51628223 | W8: 40.62812607 | X8: 40.74037047 | Y8: 40.84340156 | Z8: 40.94258687 | AA8: 41.04134697 | AB8: 41.13008015 | AC8: 41.21284999 | AD8: 41.28872075 | AE8: 41.36312275 | AF8: 41.43800628 | AG8: 41.5011645 | AH8: 41.55892151 | AI8: 41.73479054
A9: Gravesham | B9: 40.15138286 | C9: 40.25559834 | D9: 40.37325253 | E9: 40.44215838 | F9: 40.51629384 | G9: 40.60485521 | H9: 40.62704346 | I9: 40.66741196 | J9: 40.78859428 | K9: 40.88192824 | L9: 40.97000572 | M9: 41.06210485 | N9: 41.16490775 | O9: 41.27388426 | P9: 41.38554139 | Q9: 41.52007916 | R9: 41.65792898 | S9: 41.79632485 | T9: 41.9316565 | U9: 42.06797182 | V9: 42.19974542 | W9: 42.31586975 | X9: 42.42625964 | Y9: 42.53066577 | Z9: 42.62620303 | AA9: 42.71691812 | AB9: 42.79676944 | AC9: 42.86706219 | AD9: 42.93211291 | AE9: 42.99249669 | AF9: 43.0536312 | AG9: 43.1025488 | AH9: 43.1479809 | AI9: 43.28429899
A10: Maidstone | B10: 41.37943321 | C10: 41.5125273 | D10: 41.58934545 | E10: 41.72007651 | F10: 41.82852791 | G10: 41.88811118 | H10: 41.99228831 | I10: 42.07997972 | J10: 42.22734576 | K10: 42.29885408 | L10: 42.39242112 | M10: 42.47586572 | N10: 42.55813326 | O10: 42.62651007 | P10: 42.66937718 | Q10: 42.72488706 | R10: 42.782003 | S10: 42.83610777 | T10: 42.88873381 | U10: 42.94007603 | V10: 42.98803393 | W10: 43.0257445 | X10: 43.05561553 | Y10: 43.08136415 | Z10: 43.10472747 | AA10: 43.13520918 | AB10: 43.15952302 | AC10: 43.17529082 | AD10: 43.19134571 | AE10: 43.20834784 | AF10: 43.2296769 | AG10: 43.24311691 | AH10: 43.25780449 | AI10: 43.47192961
A11: Sevenoaks | B11: 39.62635339 | C11: 39.81912855 | D11: 39.9522883 | E11: 40.11905522 | F11: 40.24912084 | G11: 40.31423504 | H11: 40.37948382 | I11: 40.46270848 | J11: 40.52244107 | K11: 40.58443863 | L11: 40.7133436 | M11: 40.843221 | N11: 40.97377228 | O11: 41.09991486 | P11: 41.22225858 | Q11: 41.35583441 | R11: 41.48952648 | S11: 41.61686178 | T11: 41.74046663 | U11: 41.85642837 | V11: 41.97055046 | W11: 42.08554048 | X11: 42.19234819 | Y11: 42.2919395 | Z11: 42.38432341 | AA11: 42.47245928 | AB11: 42.55291248 | AC11: 42.62510656 | AD11: 42.69338201 | AE11: 42.75771365 | AF11: 42.82096112 | AG11: 42.87398393 | AH11: 42.92426043 | AI11: 43.00162631
A12: Swale | B12: 41.92529873 | C12: 41.99298385 | D12: 42.0559755 | E12: 42.13576513 | F12: 42.27527142 | G12: 42.44229131 | H12: 42.60044433 | I12: 42.71352217 | J12: 43.00045095 | K12: 43.18879102 | L12: 43.38594245 | M12: 43.57791398 | N12: 43.75183702 | O12: 43.89813352 | P12: 44.00087164 | Q12: 44.09047622 | R12: 44.1837333 | S12: 44.26889627 | T12: 44.34998963 | U12: 44.42267879 | V12: 44.49290753 | W12: 44.63492885 | X12: 44.76469446 | Y12: 44.88321312 | Z12: 44.99480256 | AA12: 45.10103357 | AB12: 45.20083229 | AC12: 45.29093989 | AD12: 45.37767799 | AE12: 45.46266981 | AF12: 45.54922906 | AG12: 45.62536454 | AH12: 45.70055682 | AI12: 45.84929075
A13: Thanet | B13: 39.83495338 | C13: 40.02504302 | D13: 40.15639233 | E13: 40.3016784 | F13: 40.43070783 | G13: 40.50798476 | H13: 40.57883793 | I13: 40.67193582 | J13: 40.72456925 | K13: 40.93230797 | L13: 41.05616414 | M13: 41.17823765 | N13: 41.28881135 | O13: 41.39998206 | P13: 41.50368489 | Q13: 41.61175154 | R13: 41.72286372 | S13: 41.82904058 | T13: 41.93615247 | U13: 42.03773952 | V13: 42.13821806 | W13: 42.2375362 | X13: 42.32472602 | Y13: 42.40903519 | Z13: 42.49145203 | AA13: 42.5727627 | AB13: 42.64655651 | AC13: 42.7083181 | AD13: 42.76562243 | AE13: 42.82435695 | AF13: 42.88279155 | AG13: 42.92954338 | AH13: 42.97205385 | AI13: 43.12259357
A14: Tonbridge & Malling | B14: 39.67128577 | C14: 39.96573284 | D14: 40.17912209 | E14: 40.40046342 | F14: 40.64744019 | G14: 40.7973619 | H14: 41.00673381 | I14: 41.25575584 | J14: 41.46901216 | K14: 41.72057105 | L14: 41.91562787 | M14: 42.11483685 | N14: 42.30918852 | O14: 42.49405481 | P14: 42.67796841 | Q14: 42.87965765 | R14: 43.07211284 | S14: 43.25661797 | T14: 43.43334525 | U14: 43.60014417 | V14: 43.75664957 | W14: 43.89019986 | X14: 44.0109945 | Y14: 44.12420105 | Z14: 44.22799812 | AA14: 44.32531021 | AB14: 44.41325828 | AC14: 44.48937943 | AD14: 44.56396885 | AE14: 44.63239866 | AF14: 44.69769056 | AG14: 44.73869658 | AH14: 44.77593309 | AI14: 44.9945136
A15: Tunbridge Wells
A16: KCC area | B16: 40.3320152 | C16: 40.4504358 | D16: 40.56940059 | E16: 40.69932571 | F16: 40.81292561 | G16: 40.90922777 | H16: 41.00415724 | I16: 41.10523115 | J16: 41.2408895 | K16: 41.36753999 | L16: 41.49588982 | M16: 41.6294414 | N16: 41.75431325 | O16: 41.86974729 | P16: 41.96919007 | Q16: 42.07871973 | R16: 42.19658828 | S16: 42.31198114 | T16: 42.42967847 | U16: 42.54437024 | V16: 42.66082601 | W16: 42.78788113 | X16: 42.90608617 | Y16: 43.01780143 | Z16: 43.12229209 | AA16: 43.22368677 | AB16: 43.31717816 | AC16: 43.40090676 | AD16: 43.47881386 | AE16: 43.55274329 | AF16: 43.62630707 | AG16: 43.68608424 | AH16: 43.74239525 | AI16: 43.90677571
A17: Medway | B17: 37.75827246 | C17: 37.82868385 | D17: 37.96296118 | E17: 38.08494868 | F17: 38.15155755 | G17: 38.26721838 | H17: 38.38328843 | I17: 38.49863778 | J17: 38.63575008 | K17: 38.76120039 | L17: 38.82950127 | M17: 38.90887711 | N17: 38.96722517 | O17: 39.01441897 | P17: 39.04329206 | Q17: 39.07628523 | R17: 39.11502501 | S17: 39.15132597 | T17: 39.18862393 | U17: 39.22352356 | V17: 39.26148138 | W17: 39.29663043 | X17: 39.32916249 | Y17: 39.36012452 | Z17: 39.38852792 | AA17: 39.4170192 | AB17: 39.44184158 | AC17: 39.47378823 | AD17: 39.50347452 | AE17: 39.53184655 | AF17: 39.56352563 | AG17: 39.58460148 | AH17: 39.60607317 | AI17: 39.78087509
A18: Kent (Incl Medway) | B18: 39.93824996 | C18: 40.04834349 | D18: 40.16939307 | E18: 40.29861101 | F18: 40.40567744 | G18: 40.50660588 | H18: 40.60705296 | I18: 40.71299523 | J18: 40.85076374 | K18: 40.97810672 | L18: 41.09757616 | M18: 41.22341866 | N18: 41.33841514 | O18: 41.44377345 | P18: 41.53278868 | Q18: 41.63076614 | R18: 41.7363661 | S18: 41.83942628 | T18: 41.94448779 | U18: 42.04648154 | V18: 42.15025243 | W18: 42.2618467 | X18: 42.36555095 | Y18: 42.46351451 | Z18: 42.55492845 | AA18: 42.64373542 | AB18: 42.72525969 | AC18: 42.80036639 | AD18: 42.87020371 | AE18: 42.93643142 | AF18: 43.0028946 | AG18: 43.0560259 | AH18: 43.10629293 | AI18: 43.27466522
A19: Average age forecast | B19: Males
B20: 2011 | C20: 2012 | D20: 2013 | E20: 2014 | F20: 2015 | G20: 2016 | H20: 2017 | I20: 2018 | J20: 2019 | K20: 2020 | L20: 2021 | M20: 2022 | N20: 2023 | O20: 2024 | P20: 2025 | Q20: 2026 | R20: 2027 | S20: 2028 | T20: 2029 | U20: 2030 | V20: 2031 | W20: 2032 | X20: 2033 | Y20: 2034 | Z20: 2035 | AA20: 2036 | AB20: 2037 | AC20: 2038 | AD20: 2039 | AE20: 2040 | AF20: 2041 | AG20: 2042 | AH20: 2043 | AI20: 2044
A21: -
A22: Ashford | B22: 38.68075068 | C22: 38.84859457 | D22: 38.98502355 | E22: 39.21577812 | F22: 39.37936985 | G22: 39.52606705 | H22: 39.65413085 | I22: 39.75880341 | J22: 39.93752076 | K22: 40.18558434 | L22: 40.33949664 | M22: 40.48518298 | N22: 40.62612403 | O22: 40.75257186 | P22: 40.86317374 | Q22: 40.96471281 | R22: 41.07111577 | S22: 41.17053261 | T22: 41.26195002 | U22: 41.34409855 | V22: 41.46337956 | W22: 41.5791552 | X22: 41.6832002 | Y22: 41.78181309 | Z22: 41.87283884 | AA22: 41.96359112 | AB22: 42.04777622 | AC22: 42.12195385 | AD22: 42.19177669 | AE22: 42.2599295 | AF22: 42.33008619 | AG22: 42.39254927 | AH22: 42.45319412 | AI22: 42.55543932
A23: Canterbury | B23: 38.78234686 | C23: 38.65891368 | D23: 38.72763086 | E23: 38.79925865 | F23: 38.73868276 | G23: 38.67556576 | H23: 38.70283031 | I23: 38.95981602 | J23: 39.17557111 | K23: 39.2254659 | L23: 39.35596301 | M23: 39.52219531 | N23: 39.65070355 | O23: 39.75106306 | P23: 39.79762398 | Q23: 39.85330464 | R23: 39.91479028 | S23: 39.98446562 | T23: 40.0547435 | U23: 40.12401665 | V23: 40.1953383 | W23: 40.35428022 | X23: 40.50527817 | Y23: 40.65533632 | Z23: 40.79205555 | AA23: 40.92844472 | AB23: 41.05864278 | AC23: 41.19041516 | AD23: 41.30974896 | AE23: 41.4212623 | AF23: 41.53289219 | AG23: 41.62402894 | AH23: 41.71289973 | AI23: 42.046847
A24: Dartford | B24: 37.1736568 | C24: 37.16582297 | D24: 37.20387175 | E24: 37.27351022 | F24: 37.34089169 | G24: 37.35948725 | H24: 37.26187284 | I24: 37.10455462 | J24: 36.93820174 | K24: 36.80299261 | L24: 36.82104509 | M24: 36.85974423 | N24: 36.91272965 | O24: 36.99211255 | P24: 37.08355741 | Q24: 37.20335206 | R24: 37.33169801 | S24: 37.46550378 | T24: 37.60652212 | U24: 37.75448249 | V24: 37.90538396 | W24: 38.05256944 | X24: 38.19667647 | Y24: 38.33706036 | Z24: 38.47447073 | AA24: 38.60777532 | AB24: 38.73499529 | AC24: 38.84407525 | AD24: 38.94656427 | AE24: 39.04053086 | AF24: 39.1283781 | AG24: 39.20220876 | AH24: 39.27071312 | AI24: 39.3922596
A25: Dover | B25: 41.08809785 | C25: 41.40058687 | D25: 41.62815525 | E25: 41.86021158 | F25: 42.1423651 | G25: 42.40550895 | H25: 42.54153727 | I25: 42.68033794 | J25: 42.81998698 | K25: 42.98812721 | L25: 43.15508918 | M25: 43.32468607 | N25: 43.47518206 | O25: 43.59716957 | P25: 43.69380949 | Q25: 43.78580057 | R25: 43.98527079 | S25: 44.18334335 | T25: 44.37450872 | U25: 44.56247993 | V25: 44.74703681 | W25: 44.92500686 | X25: 45.09324363 | Y25: 45.25475554 | Z25: 45.41353433 | AA25: 45.56472869 | AB25: 45.70682822 | AC25: 45.83720493 | AD25: 45.96101577 | AE25: 46.08214926 | AF25: 46.20228997 | AG25: 46.30994825 | AH25: 46.40973283 | AI25: 46.42855171
A26: Folkestone & Hythe | B26: 41.16321054 | C26: 41.43941573 | D26: 41.79983616 | E26: 42.11229214 | F26: 42.37707035 | G26: 42.57672315 | H26: 42.90858429 | I26: 43.0909662 | J26: 43.37398069 | K26: 43.59871248 | L26: 43.8787131 | M26: 44.15189172 | N26: 44.40051758 | O26: 44.62879588 | P26: 44.83230372 | Q26: 45.0505469 | R26: 45.26360405 | S26: 45.47003048 | T26: 45.66573515 | U26: 45.86693649 | V26: 46.0594321 | W26: 46.24141891 | X26: 46.41095252 | Y26: 46.57051775 | Z26: 46.72513594 | AA26: 46.87472214 | AB26: 47.01622621 | AC26: 47.14422534 | AD26: 47.26508613 | AE26: 47.37829895 | AF26: 47.48830432 | AG26: 47.58272769 | AH26: 47.66953673 | AI26: 47.77815093
A27: Gravesham | B27: 37.80093663 | C27: 37.91107644 | D27: 38.0345862 | E27: 38.08868413 | F27: 38.1873565 | G27: 38.39514269 | H27: 38.5447285 | I27: 38.64034702 | J27: 38.72921295 | K27: 38.81627297 | L27: 38.92317069 | M27: 39.02599312 | N27: 39.12484735 | O27: 39.20682706 | P27: 39.27219009 | Q27: 39.33881437 | R27: 39.40254569 | S27: 39.46121968 | T27: 39.57496776 | U27: 39.68802662 | V27: 39.80357269 | W27: 39.91078279 | X27: 40.01895712 | Y27: 40.11568837 | Z27: 40.21140533 | AA27: 40.30663154 | AB27: 40.39454406 | AC27: 40.47564889 | AD27: 40.54876069 | AE27: 40.61990073 | AF27: 40.68968623 | AG27: 40.74906362 | AH27: 40.80320239 | AI27: 40.95846559
A28: Maidstone | B28: 39.05613519 | C28: 39.17437709 | D28: 39.30822328 | E28: 39.35212875 | F28: 39.45032099 | G28: 39.53546615 | H28: 39.56414625 | I28: 39.61420036 | J28: 39.74720176 | K28: 39.85115068 | L28: 39.93619397 | M28: 40.02155364 | N28: 40.11865488 | O28: 40.22174954 | P28: 40.32690752 | Q28: 40.44974326 | R28: 40.57368212 | S28: 40.69918253 | T28: 40.8229184 | U28: 40.95188809 | V28: 41.07605772 | W28: 41.18251692 | X28: 41.28433082 | Y28: 41.37821354 | Z28: 41.46403714 | AA28: 41.5431197 | AB28: 41.61457311 | AC28: 41.67731825 | AD28: 41.73581073 | AE28: 41.79029346 | AF28: 41.8454753 | AG28: 41.89038579 | AH28: 41.93177859 | AI28: 42.05067044
A29: Sevenoaks | B29: 40.36600268 | C29: 40.5279956 | D29: 40.54845935 | E29: 40.70630808 | F29: 40.82565025 | G29: 40.86777046 | H29: 40.95793723 | I29: 41.10137136 | J29: 41.24416125 | K29: 41.33164462 | L29: 41.41901663 | M29: 41.50157273 | N29: 41.57929245 | O29: 41.64495222 | P29: 41.68496811 | Q29: 41.74191002 | R29: 41.80319685 | S29: 41.85757612 | T29: 41.9143817 | U29: 41.97092132 | V29: 42.02232878 | W29: 42.06122288 | X29: 42.09050409 | Y29: 42.11732956 | Z29: 42.14020026 | AA29: 42.16720257 | AB29: 42.18999586 | AC29: 42.20594132 | AD29: 42.22285494 | AE29: 42.24194137 | AF29: 42.26614968 | AG29: 42.28298144 | AH29: 42.30059729 | AI29: 42.48978682
A30: Swale | B30: 38.7177015 | C30: 38.91965845 | D30: 39.04166062 | E30: 39.20964177 | F30: 39.37892568 | G30: 39.43863836 | H30: 39.50634813 | I30: 39.56018298 | J30: 39.6050789 | K30: 39.67222662 | L30: 39.79115914 | M30: 39.90530512 | N30: 40.02109978 | O30: 40.13297276 | P30: 40.24407076 | Q30: 40.36212926 | R30: 40.47925824 | S30: 40.58923547 | T30: 40.69617897 | U30: 40.79593226 | V30: 40.89407796 | W30: 40.99264255 | X30: 41.0848421 | Y30: 41.17127493 | Z30: 41.2524599 | AA30: 41.33122518 | AB30: 41.40662078 | AC30: 41.47455717 | AD30: 41.53850045 | AE30: 41.59880686 | AF30: 41.65730081 | AG30: 41.70692724 | AH30: 41.75380884 | AI30: 41.81139481
A31: Thanet | B31: 40.37189878 | C31: 40.48074243 | D31: 40.58172027 | E31: 40.71034122 | F31: 40.89532268 | G31: 41.04161409 | H31: 41.22289025 | I31: 41.3862075 | J31: 41.62931849 | K31: 41.81100213 | L31: 42.04166898 | M31: 42.26618534 | N31: 42.46524121 | O31: 42.63895542 | P31: 42.7685111 | Q31: 42.88344798 | R31: 42.99693963 | S31: 43.10211039 | T31: 43.20078433 | U31: 43.28995146 | V31: 43.37401456 | W31: 43.52318666 | X31: 43.66050296 | Y31: 43.78445271 | Z31: 43.90327055 | AA31: 44.01720082 | AB31: 44.12507274 | AC31: 44.22395496 | AD31: 44.31929529 | AE31: 44.41325912 | AF31: 44.50833047 | AG31: 44.5940466 | AH31: 44.68004476 | AI31: 44.81365124
A32: Tonbridge & Malling | B32: 38.85803635 | C32: 39.06504309 | D32: 39.21043908 | E32: 39.37300221 | F32: 39.56217507 | G32: 39.67749081 | H32: 39.72662977 | I32: 39.82106203 | J32: 39.83414083 | K32: 40.03113412 | L32: 40.15611978 | M32: 40.28087537 | N32: 40.39259288 | O32: 40.4999163 | P32: 40.5973598 | Q32: 40.70566128 | R32: 40.81744502 | S32: 40.92446322 | T32: 41.03068174 | U32: 41.13380056 | V32: 41.23741906 | W32: 41.34110449 | X32: 41.43171046 | Y32: 41.51617318 | Z32: 41.59825676 | AA32: 41.67912576 | AB32: 41.75264415 | AC32: 41.81282778 | AD32: 41.86744787 | AE32: 41.92340223 | AF32: 41.9793809 | AG32: 42.02424158 | AH32: 42.06470792 | AI32: 42.19615847
A33: Tunbridge Wells | B33: 38.66426816 | C33: 38.98197088 | D33: 39.19035355 | E33: 39.40383644 | F33: 39.65015135 | G33: 39.84773563 | H33: 40.05281563 | I33: 40.32692506 | J33: 40.51382658 | K33: 40.82279561 | L33: 41.02388494 | M33: 41.23533565 | N33: 41.43607738 | O33: 41.63029365 | P33: 41.82321395 | Q33: 42.02937097 | R33: 42.2225288 | S33: 42.40432955 | T33: 42.57428656 | U33: 42.73663807 | V33: 42.88924334 | W33: 43.02588878 | X33: 43.14377984 | Y33: 43.25812409 | Z33: 43.36090335 | AA33: 43.45433471 | AB33: 43.53872953 | AC33: 43.61296669 | AD33: 43.68561379 | AE33: 43.75219002 | AF33: 43.81604587 | AG33: 43.85722949 | AH33: 43.89453655 | AI33: 44.09856299
A34: KCC area | B34: 39.23755148 | C34: 39.38286622 | D34: 39.51788574 | E34: 39.66426094 | F34: 39.80568493 | G34: 39.91493289 | H34: 40.01451504 | I34: 40.13314798 | J34: 40.25630518 | K34: 40.38204641 | L34: 40.51765157 | M34: 40.6574976 | N34: 40.78874306 | O34: 40.91104882 | P34: 41.01806051 | Q34: 41.13347183 | R34: 41.25439493 | S34: 41.37220503 | T34: 41.49131234 | U34: 41.60780081 | V34: 41.7250646 | W34: 41.85080182 | X34: 41.96761293 | Y34: 42.07810184 | Z34: 42.18234036 | AA34: 42.28350719 | AB34: 42.3779898 | AC34: 42.46327985 | AD34: 42.54307515 | AE34: 42.61928825 | AF34: 42.69497265 | AG34: 42.75829011 | AH34: 42.81824269 | AI34: 42.96310806
A35: Medway | B35: 36.89160222 | C35: 36.98772374 | D35: 37.12907841 | E35: 37.25114543 | F35: 37.34948697 | G35: 37.47154673 | H35: 37.5966317 | I35: 37.72549376 | J35: 37.84719526 | K35: 37.98991002 | L35: 38.0564925 | M35: 38.13320262 | N35: 38.19027246 | O35: 38.23646306 | P35: 38.26601996 | Q35: 38.29945354 | R35: 38.3375098 | S35: 38.37314459 | T35: 38.40847904 | U35: 38.44021534 | V35: 38.4743812 | W35: 38.50645729 | X35: 38.53641136 | Y35: 38.56351805 | Z35: 38.58800897 | AA35: 38.61193726 | AB35: 38.63267004 | AC35: 38.65861652 | AD35: 38.68210421 | AE35: 38.70423687 | AF35: 38.72967856 | AG35: 38.74600916 | AH35: 38.76252412 | AI35: 38.90167421
A36: Kent (Incl Medway) | B36: 38.87438634 | C36: 39.01162329 | D36: 39.14740311 | E36: 39.29047546 | F36: 39.42590349 | G36: 39.53915655 | H36: 39.64512556 | I36: 39.76810761 | J36: 39.89272975 | K36: 40.02179007 | L36: 40.14734568 | M36: 40.27826594 | N36: 40.39863124 | O36: 40.50985514 | P36: 40.60557837 | Q36: 40.70881787 | R36: 40.81711536 | S36: 40.92236377 | T36: 41.02857251 | U36: 41.13184179 | V36: 41.23598303 | W36: 41.34629145 | X36: 41.44874479 | Y36: 41.54540372 | Z36: 41.63629956 | AA36: 41.72450977 | AB36: 41.80654249 | AC36: 41.88229085 | AD36: 41.95300668 | AE36: 42.02044112 | AF36: 42.08794956 | AG36: 42.14355492 | AH36: 42.19634048 | AI36: 42.34250779
A37: Average age forecast | B37: Females
B38: 2011 | C38: 2012 | D38: 2013 | E38: 2014 | F38: 2015 | G38: 2016 | H38: 2017 | I38: 2018 | J38: 2019 | K38: 2020 | L38: 2021 | M38: 2022 | N38: 2023 | O38: 2024 | P38: 2025 | Q38: 2026 | R38: 2027 | S38: 2028 | T38: 2029 | U38: 2030 | V38: 2031 | W38: 2032 | X38: 2033 | Y38: 2034 | Z38: 2035 | AA38: 2036 | AB38: 2037 | AC38: 2038 | AD38: 2039 | AE38: 2040 | AF38: 2041 | AG38: 2042 | AH38: 2043 | AI38: 2044
A39: -
A40: Ashford | B40: 40.51435273 | C40: 40.63797006 | D40: 40.70096396 | E40: 40.90213001 | F40: 41.05787444 | G40: 41.12864449 | H40: 41.2614396 | I40: 41.32572702 | J40: 41.52268882 | K40: 41.69791435 | L40: 41.86005206 | M40: 42.01673468 | N40: 42.15399032 | O40: 42.27637924 | P40: 42.37821086 | Q40: 42.47356846 | R40: 42.57451075 | S40: 42.66630567 | T40: 42.75255184 | U40: 42.83055348 | V40: 42.95730036 | W40: 43.07895017 | X40: 43.18789733 | Y40: 43.29044797 | Z40: 43.38508452 | AA40: 43.47883733 | AB40: 43.56443407 | AC40: 43.64127697 | AD40: 43.71394699 | AE40: 43.78482801 | AF40: 43.85795437 | AG40: 43.92104462 | AH40: 43.98235194 | AI40: 44.13531659
A41: Canterbury | B41: 41.32763504 | C41: 41.20548413 | D41: 41.27826926 | E41: 41.38811852 | F41: 41.33355753 | G41: 41.35120909 | H41: 41.43198005 | I41: 41.59922318 | J41: 41.8308405 | K41: 41.95320197 | L41: 42.0616893 | M41: 42.21658712 | N41: 42.31212755 | O41: 42.36332735 | P41: 42.34649572 | Q41: 42.35276924 | R41: 42.37040377 | S41: 42.40440427 | T41: 42.44148601 | U41: 42.48781333 | V41: 42.53307816 | W41: 42.70237043 | X41: 42.86055737 | Y41: 43.01156465 | Z41: 43.14304954 | AA41: 43.27504963 | AB41: 43.40590788 | AC41: 43.53595042 | AD41: 43.6457418 | AE41: 43.74371748 | AF41: 43.8425548 | AG41: 43.91437433 | AH41: 43.98341553 | AI41: 44.40212001
A42: Dartford | B42: 38.56466398 | C42: 38.59245275 | D42: 38.59481588 | E42: 38.58839448 | F42: 38.57845001 | G42: 38.56541497 | H42: 38.38510603 | I42: 38.21183851 | J42: 38.10075457 | K42: 38.10083248 | L42: 38.04480969 | M42: 38.0171695 | N42: 38.01571655 | O42: 38.04302087 | P42: 38.09386252 | Q42: 38.17897229 | R42: 38.27473682 | S42: 38.37976944 | T42: 38.49359672 | U42: 38.61553472 | V42: 38.73667969 | W42: 38.85777536 | X42: 38.97730292 | Y42: 39.09629093 | Z42: 39.20915249 | AA42: 39.31531711 | AB42: 39.415676 | AC42: 39.49853525 | AD42: 39.5761894 | AE42: 39.6466794 | AF42: 39.71208524 | AG42: 39.76278317 | AH42: 39.80882707 | AI42: 39.94971721
A43: Dover | B43: 43.27842566 | C43: 43.45302208 | D43: 43.61370031 | E43: 43.77940614 | F43: 43.95041766 | G43: 44.16098709 | H43: 44.22933034 | I43: 44.38695784 | J43: 44.55479143 | K43: 44.71793676 | L43: 44.88829694 | M43: 45.06484526 | N43: 45.22153057 | O43: 45.35179649 | P43: 45.44693974 | Q43: 45.53609458 | R43: 45.76767804 | S43: 45.9856572 | T43: 46.19606597 | U43: 46.39720498 | V43: 46.6007336 | W43: 46.7935288 | X43: 46.97171714 | Y43: 47.13807291 | Z43: 47.29765556 | AA43: 47.44660229 | AB43: 47.58186934 | AC43: 47.70335214 | AD43: 47.81996919 | AE43: 47.93374175 | AF43: 48.04653818 | AG43: 48.14235833 | AH43: 48.22988124 | AI43: 48.2614371
A44: Folkestone & Hythe | B44: 43.64552375 | C44: 43.87286197 | D44: 44.1404025 | E44: 44.38722389 | F44: 44.58942826 | G44: 44.68457391 | H44: 44.98624374 | I44: 45.11822738 | J44: 45.40644054 | K44: 45.64131859 | L44: 45.89663774 | M44: 46.14965938 | N44: 46.37348521 | O44: 46.57777407 | P44: 46.75265599 | Q44: 46.9483887 | R44: 47.14460181 | S44: 47.33064463 | T44: 47.50993199 | U44: 47.70410731 | V44: 47.89483866 | W44: 48.07887283 | X44: 48.25453607 | Y44: 48.42095122 | Z44: 48.58080546 | AA44: 48.72770645 | AB44: 48.86352522 | AC44: 48.98382019 | AD44: 49.09431704 | AE44: 49.19554633 | AF44: 49.29258684 | AG44: 49.37107594 | AH44: 49.44082251 | AI44: 49.57242889
A45: Gravesham | B45: 39.72178498 | C45: 39.776849 | D45: 39.78608247 | E45: 39.72398838 | F45: 39.75094947 | G45: 39.85946278 | H45: 39.99864269 | I45: 40.13597514 | J45: 40.19438405 | K45: 40.28555384 | L45: 40.38478473 | M45: 40.47552588 | N45: 40.55623316 | O45: 40.6240515 | P45: 40.67581541 | Q45: 40.7269027 | R45: 40.78134333 | S45: 40.83701435 | T45: 40.95774806 | U45: 41.07285048 | V45: 41.19584013 | W45: 41.3117235 | X45: 41.42755688 | Y45: 41.53632599 | Z45: 41.63851444 | AA45: 41.74040359 | AB45: 41.82967026 | AC45: 41.91383168 | AD45: 41.99217439 | AE45: 42.06957439 | AF45: 42.14920117 | AG45: 42.21587009 | AH45: 42.27702724 | AI45: 42.47130229
A46: Maidstone | B46: 41.2321157 | C46: 41.30687187 | D46: 41.40940911 | E46: 41.50454812 | F46: 41.55634252 | G46: 41.64963495 | H46: 41.66239437 | I46: 41.69321006 | J46: 41.80089521 | K46: 41.88192722 | L46: 41.97317538 | M46: 42.07168959 | N46: 42.17995049 | O46: 42.29433631 | P46: 42.41175374 | Q46: 42.55733915 | R46: 42.70849617 | S46: 42.85896975 | T46: 43.00507891 | U46: 43.14788744 | V46: 43.2863767 | W46: 43.41125402 | X46: 43.529321 | Y46: 43.6434613 | Z46: 43.74799453 | AA46: 43.84960329 | AB46: 43.93718743 | AC46: 44.01459096 | AD46: 44.08594556 | AE46: 44.15209871 | AF46: 44.21906757 | AG46: 44.27190367 | AH46: 44.32129467 | AI46: 44.47305152
A47: Sevenoaks | B47: 42.34690784 | C47: 42.43835502 | D47: 42.56979333 | E47: 42.6708623 | F47: 42.77097081 | G47: 42.8477116 | H47: 42.96762543 | I47: 43.00363583 | J47: 43.15489353 | K47: 43.20819947 | L47: 43.30892992 | M47: 43.39440828 | N47: 43.48239909 | O47: 43.55441569 | P47: 43.60099149 | Q47: 43.65584373 | R47: 43.70967786 | S47: 43.76422868 | T47: 43.81325885 | U47: 43.86015993 | V47: 43.90538558 | W47: 43.94233886 | X47: 43.97329576 | Y47: 43.99858634 | Z47: 44.02305692 | AA47: 44.05758146 | AB47: 44.0839838 | AC47: 44.10012309 | AD47: 44.11599588 | AE47: 44.13169127 | AF47: 44.15103948 | AG47: 44.16188582 | AH47: 44.17438144 | AI47: 44.41376113
A48: Swale | B48: 40.52858967 | C48: 40.69953328 | D48: 40.84358661 | E48: 41.00869077 | F48: 41.09849504 | G48: 41.1704837 | H48: 41.23363856 | I48: 41.34579315 | J48: 41.42109637 | K48: 41.47312207 | L48: 41.61206638 | M48: 41.75742775 | N48: 41.90235847 | O48: 42.04243971 | P48: 42.17551011 | Q48: 42.32407522 | R48: 42.47384516 | S48: 42.61819811 | T48: 42.75817432 | U48: 42.89005499 | V48: 43.020004 | W48: 43.15123384 | X48: 43.27245241 | Y48: 43.38525823 | Z48: 43.48895619 | AA48: 43.58674523 | AB48: 43.67265445 | AC48: 43.74953419 | AD48: 43.82256712 | AE48: 43.89133226 | AF48: 43.95971496 | AG48: 44.01641905 | AH48: 44.07036212 | AI48: 44.16680646
A49: Thanet | B49: 43.37767742 | C49: 43.39589135 | D49: 43.42722091 | E49: 43.46406158 | F49: 43.56542858 | G49: 43.75570324 | H49: 43.8969647 | I49: 43.96076045 | J49: 44.29064949 | K49: 44.48290469 | L49: 44.64959085 | M49: 44.81203773 | N49: 44.96318519 | O49: 45.08461503 | P49: 45.16340595 | Q49: 45.23033299 | R49: 45.30533847 | S49: 45.37234033 | T49: 45.4376326 | U49: 45.49532214 | V49: 45.5531202 | W49: 45.68879073 | X49: 45.81195985 | Y49: 45.92598121 | Z49: 46.0312586 | AA49: 46.13085079 | AB49: 46.22371956 | AC49: 46.30627816 | AD49: 46.38569535 | AE49: 46.46303608 | AF49: 46.54236717 | AG49: 46.61025916 | AH49: 46.67605621 | AI49: 46.8375093
A50: Tonbridge & Malling | B50: 40.78498923 | C50: 40.94961552 | D50: 41.0645767 | E50: 41.19277108 | F50: 41.26306693 | G50: 41.30389503 | H50: 41.39519976 | I50: 41.4862417 | J50: 41.576151 | K50: 41.79189695 | L50: 41.91498939 | M50: 42.03452881 | N50: 42.14428315 | O50: 42.25957553 | P50: 42.36977854 | Q50: 42.47750181 | R50: 42.58790912 | S50: 42.69331592 | T50: 42.80128943 | U50: 42.90121893 | V50: 42.9984361 | W50: 43.09338107 | X50: 43.17718997 | Y50: 43.26123218 | Z50: 43.34408133 | AA50: 43.42594369 | AB50: 43.49994994 | AC50: 43.56328622 | AD50: 43.6232746 | AE50: 43.68486135 | AF50: 43.74588832 | AG50: 43.79471366 | AH50: 43.83944418 | AI50: 44.00801361
A51: Tunbridge Wells | B51: 40.65460184 | C51: 40.91277818 | D51: 41.1354209 | E51: 41.36791368 | F51: 41.61696658 | G51: 41.72271947 | H51: 41.93843552 | I51: 42.15910306 | J51: 42.40058231 | K51: 42.59244282 | L51: 42.78090136 | M51: 42.96716386 | N51: 43.15453485 | O51: 43.32967705 | P51: 43.50414752 | Q51: 43.70078088 | R51: 43.8920622 | S51: 44.07886629 | T51: 44.26210474 | U51: 44.43308035 | V51: 44.59314805 | W51: 44.72320043 | X51: 44.84650675 | Y51: 44.95822779 | Z51: 45.06263824 | AA51: 45.16358649 | AB51: 45.25489258 | AC51: 45.33274056 | AD51: 45.40923454 | AE51: 45.47948836 | AF51: 45.54622172 | AG51: 45.58701532 | AH51: 45.62416611 | AI51: 45.85700149
A52: KCC area | B52: 41.37741581 | C52: 41.47344252 | D52: 41.57844333 | E52: 41.6936086 | F52: 41.781216 | G52: 41.86678255 | H52: 41.95868121 | I52: 42.04260115 | J52: 42.19103885 | K52: 42.31710656 | L52: 42.43936841 | M52: 42.56764451 | N52: 42.68700884 | O52: 42.79635074 | P52: 42.88889468 | Q52: 42.99315597 | R52: 43.1084999 | S52: 43.2219894 | T52: 43.33876818 | U52: 43.45208762 | V52: 43.56815279 | W52: 43.6969306 | X52: 43.81697061 | Y52: 43.9303698 | Z52: 44.03555558 | AA52: 44.13770287 | AB52: 44.23074056 | AC52: 44.31347306 | AD52: 44.39007922 | AE52: 44.46232234 | AF52: 44.53436441 | AG52: 44.59116878 | AH52: 44.64439455 | AI52: 44.82754482
A53: Medway | B53: 38.62401792 | C53: 38.65463658 | D53: 38.78301679 | E53: 38.90582758 | F53: 38.94153629 | G53: 39.05000394 | H53: 39.1567724 | I53: 39.25734293 | J53: 39.41054347 | K53: 39.51809264 | L53: 39.58757178 | M53: 39.66920561 | N53: 39.72836435 | O53: 39.77591222 | P53: 39.80345436 | Q53: 39.83534893 | R53: 39.87418426 | S53: 39.9105087 | T53: 39.94912883 | U53: 39.98659512 | V53: 40.02770187 | W53: 40.06532606 | X53: 40.09982944 | Y53: 40.13405396 | Z53: 40.16586964 | AA53: 40.19848847 | AB53: 40.22697562 | AC53: 40.26455541 | AD53: 40.30011455 | AE53: 40.33440913 | AF53: 40.3720869 | AG53: 40.39766585 | AH53: 40.42386002 | AI53: 40.63350535
A54: Kent (Incl Medway) | B54: 40.96096059 | C54: 41.04554927 | D54: 41.15379983 | E54: 41.27068097 | F54: 41.35106502 | G54: 41.44133996 | H54: 41.53755507 | I54: 41.62654518 | J54: 41.77778636 | K54: 41.90208237 | L54: 42.01632685 | M54: 42.13785328 | N54: 42.24811143 | O54: 42.34813322 | P54: 42.43088206 | Q54: 42.52399418 | R54: 42.62723939 | S54: 42.7284329 | T54: 42.83265102 | U54: 42.93362505 | V54: 43.03726934 | W54: 43.15039225 | X54: 43.25561846 | Y54: 43.35517377 | Z54: 43.44739641 | AA54: 43.5371703 | AB54: 43.6185694 | AC54: 43.69345258 | AD54: 43.76285611 | AE54: 43.82833315 | AF54: 43.89422203 | AG54: 43.94532418 | AH54: 43.99351069 | AI54: 44.18335068

Sheet Kent (hidden)
A1: Population Estimates and Forecasts | I1: Kent (inc.Medway) | AQ1: Insert column here before extending the table | CB1: Insert column here before extending the table | DK1: Insert column here before extending the table
A2: Source: fore_KCC_HLF_2021v6 | AR2: Selected Ages: | AT2: =Index!$C$4&" : "&Index!$C$7 -> 0 : 90+ | CF2: Start year | CG2: End Year | CH2: Number change | CI2: % Change
AS3: =AS13 -> 2006 | AT3: =AT13 -> 2007 | AU3: =AU13 -> 2008 | AV3: =AV13 -> 2009 | AW3: =AW13 -> 2010 | AX3: =AX13 -> 2011 | AY3: 2012 | AZ3: 2013 | BA3: 2014 | BB3: 2015 | BC3: 2016 | BD3: 2017 | BE3: 2018 | BF3: 2019 | BG3: 2020 | BH3: 2021 | BI3: 2022 | BJ3: 2023 | BK3: 2024 | BL3: 2025 | BM3: 2026 | BN3: 2027 | BO3: 2028 | BP3: 2029 | BQ3: 2030 | BR3: 2031 | BS3: =BS13 -> 2032 | BT3: 2033 | BU3: 2034 | BV3: 2035 | BW3: 2036 | BX3: 2037 | BY3: =BY13 -> 2038 | BZ3: =BZ13 -> 2039 | CA3: =CA13 -> 2040 | CF3: =INDEX($BD3:BX3,Index!$B$16) -> 2026 | CG3: =INDEX($BD3:CA3,Index!$B$19) -> 
AR4: Males | AS4: =OFFSET(AS16,Index!$B$7-1,0)-IF(Index!$B$4-2=-1,0,OFFSET(AS16,Index!$B$4-2,0)) -> 800500 | AT4: =OFFSET(AT16,Index!$B$7-1,0)-IF(Index!$B$4-2=-1,0,OFFSET(AT16,Index!$B$4-2,0)) -> 811663 | AU4: =OFFSET(AU16,Index!$B$7-1,0)-IF(Index!$B$4-2=-1,0,OFFSET(AU16,Index!$B$4-2,0)) -> 821304 | AV4: =OFFSET(AV16,Index!$B$7-1,0)-IF(Index!$B$4-2=-1,0,OFFSET(AV16,Index!$B$4-2,0)) -> 829008 | AW4: =OFFSET(AW16,Index!$B$7-1,0)-IF(Index!$B$4-2=-1,0,OFFSET(AW16,Index!$B$4-2,0)) -> 839553 | AX4: =OFFSET(AX16,Index!$B$7-1,0)-IF(Index!$B$4-2=-1,0,OFFSET(AX16,Index!$B$4-2,0)) -> 848602 | AY4: =OFFSET(AY16,Index!$B$7-1,0)-IF(Index!$B$4-2=-1,0,OFFSET(AY16,Index!$B$4-2,0)) -> 857158 | AZ4: =OFFSET(AZ16,Index!$B$7-1,0)-IF(Index!$B$4-2=-1,0,OFFSET(AZ16,Index!$B$4-2,0)) -> 865382 | BA4: =OFFSET(BA16,Index!$B$7-1,0)-IF(Index!$B$4-2=-1,0,OFFSET(BA16,Index!$B$4-2,0)) -> 875024 | BB4: =OFFSET(BB16,Index!$B$7-1,0)-IF(Index!$B$4-2=-1,0,OFFSET(BB16,Index!$B$4-2,0)) -> 883078 | BC4: =OFFSET(BC16,Index!$B$7-1,0)-IF(Index!$B$4-2=-1,0,OFFSET(BC16,Index!$B$4-2,0)) -> 893069 | BD4: =OFFSET(BD16,Index!$B$7-1,0)-IF(Index!$B$4-2=-1,0,OFFSET(BD16,Index!$B$4-2,0)) -> 900913 | BE4: =OFFSET(BE16,Index!$B$7-1,0)-IF(Index!$B$4-2=-1,0,OFFSET(BE16,Index!$B$4-2,0)) -> 907671 | BF4: =OFFSET(BF16,Index!$B$7-1,0)-IF(Index!$B$4-2=-1,0,OFFSET(BF16,Index!$B$4-2,0)) -> 914755 | BG4: =OFFSET(BG16,Index!$B$7-1,0)-IF(Index!$B$4-2=-1,0,OFFSET(BG16,Index!$B$4-2,0)) -> 918033 | BH4: =OFFSET(BH16,Index!$B$7-1,0)-IF(Index!$B$4-2=-1,0,OFFSET(BH16,Index!$B$4-2,0)) -> 927110.3112 | BI4: =OFFSET(BI16,Index!$B$7-1,0)-IF(Index!$B$4-2=-1,0,OFFSET(BI16,Index!$B$4-2,0)) -> 935764.6556 | BJ4: =OFFSET(BJ16,Index!$B$7-1,0)-IF(Index!$B$4-2=-1,0,OFFSET(BJ16,Index!$B$4-2,0)) -> 945981.0185 | BK4: =OFFSET(BK16,Index!$B$7-1,0)-IF(Index!$B$4-2=-1,0,OFFSET(BK16,Index!$B$4-2,0)) -> 957652.8153 | BL4: =OFFSET(BL16,Index!$B$7-1,0)-IF(Index!$B$4-2=-1,0,OFFSET(BL16,Index!$B$4-2,0)) -> 971532.3905 | BM4: =OFFSET(BM16,Index!$B$7-1,0)-IF(Index!$B$4-2=-1,0,OFFSET(BM16,Index!$B$4-2,0)) -> 984355.0527 | BN4: =OFFSET(BN16,Index!$B$7-1,0)-IF(Index!$B$4-2=-1,0,OFFSET(BN16,Index!$B$4-2,0)) -> 995725.5153 | BO4: =OFFSET(BO16,Index!$B$7-1,0)-IF(Index!$B$4-2=-1,0,OFFSET(BO16,Index!$B$4-2,0)) -> 1007210.34 | BP4: =OFFSET(BP16,Index!$B$7-1,0)-IF(Index!$B$4-2=-1,0,OFFSET(BP16,Index!$B$4-2,0)) -> 1018228.055 | BQ4: =OFFSET(BQ16,Index!$B$7-1,0)-IF(Index!$B$4-2=-1,0,OFFSET(BQ16,Index!$B$4-2,0)) -> 1029079.357 | BR4: =OFFSET(BR16,Index!$B$7-1,0)-IF(Index!$B$4-2=-1,0,OFFSET(BR16,Index!$B$4-2,0)) -> 1039008.761 | BS4: =OFFSET(BS16,Index!$B$7-1,0)-IF(Index!$B$4-2=-1,0,OFFSET(BS16,Index!$B$4-2,0)) -> 1047316.19 | BT4: =OFFSET(BT16,Index!$B$7-1,0)-IF(Index!$B$4-2=-1,0,OFFSET(BT16,Index!$B$4-2,0)) -> 1055804.002 | BU4: =OFFSET(BU16,Index!$B$7-1,0)-IF(Index!$B$4-2=-1,0,OFFSET(BU16,Index!$B$4-2,0)) -> 1064287.144 | BV4: =OFFSET(BV16,Index!$B$7-1,0)-IF(Index!$B$4-2=-1,0,OFFSET(BV16,Index!$B$4-2,0)) -> 1072781.398 | BW4: =OFFSET(BW16,Index!$B$7-1,0)-IF(Index!$B$4-2=-1,0,OFFSET(BW16,Index!$B$4-2,0)) -> 1080947.734 | BX4: =OFFSET(BX16,Index!$B$7-1,0)-IF(Index!$B$4-2=-1,0,OFFSET(BX16,Index!$B$4-2,0)) -> 1089226.122 | BY4: =OFFSET(BY16,Index!$B$7-1,0)-IF(Index!$B$4-2=-1,0,OFFSET(BY16,Index!$B$4-2,0)) -> 1097565.552 | BZ4: =OFFSET(BZ16,Index!$B$7-1,0)-IF(Index!$B$4-2=-1,0,OFFSET(BZ16,Index!$B$4-2,0)) -> 1106045.238 | CA4: =OFFSET(CA16,Index!$B$7-1,0)-IF(Index!$B$4-2=-1,0,OFFSET(CA16,Index!$B$4-2,0)) -> 1114641.112 | CF4: =INDEX($AX4:CB4,Index!$B$16) -> 918033 | CG4: =INDEX($AX4:$CB4,Index!$B$19) -> 1114641.112 | CH4: =CG4-CF4 -> 196608.1124 | CI4: =CH4/CF4 -> 0.2141623585
AR5: Females | AS5: =OFFSET(AS109,Index!$B$7-1,0)-IF(Index!$B$4-2=-1,0,OFFSET(AS109,Index!$B$4-2,0)) -> 842612 | AT5: =OFFSET(AT109,Index!$B$7-1,0)-IF(Index!$B$4-2=-1,0,OFFSET(AT109,Index!$B$4-2,0)) -> 851952 | AU5: =OFFSET(AU109,Index!$B$7-1,0)-IF(Index!$B$4-2=-1,0,OFFSET(AU109,Index!$B$4-2,0)) -> 860228 | AV5: =OFFSET(AV109,Index!$B$7-1,0)-IF(Index!$B$4-2=-1,0,OFFSET(AV109,Index!$B$4-2,0)) -> 866491 | AW5: =OFFSET(AW109,Index!$B$7-1,0)-IF(Index!$B$4-2=-1,0,OFFSET(AW109,Index!$B$4-2,0)) -> 875090 | AX5: =OFFSET(AX109,Index!$B$7-1,0)-IF(Index!$B$4-2=-1,0,OFFSET(AX109,Index!$B$4-2,0)) -> 882749 | AY5: =OFFSET(AY109,Index!$B$7-1,0)-IF(Index!$B$4-2=-1,0,OFFSET(AY109,Index!$B$4-2,0)) -> 891123 | AZ5: =OFFSET(AZ109,Index!$B$7-1,0)-IF(Index!$B$4-2=-1,0,OFFSET(AZ109,Index!$B$4-2,0)) -> 898421 | BA5: =OFFSET(BA109,Index!$B$7-1,0)-IF(Index!$B$4-2=-1,0,OFFSET(BA109,Index!$B$4-2,0)) -> 907489 | BB5: =OFFSET(BB109,Index!$B$7-1,0)-IF(Index!$B$4-2=-1,0,OFFSET(BB109,Index!$B$4-2,0)) -> 915198 | BC5: =OFFSET(BC109,Index!$B$7-1,0)-IF(Index!$B$4-2=-1,0,OFFSET(BC109,Index!$B$4-2,0)) -> 924326 | BD5: =OFFSET(BD109,Index!$B$7-1,0)-IF(Index!$B$4-2=-1,0,OFFSET(BD109,Index!$B$4-2,0)) -> 931339 | BE5: =OFFSET(BE109,Index!$B$7-1,0)-IF(Index!$B$4-2=-1,0,OFFSET(BE109,Index!$B$4-2,0)) -> 938807 | BF5: =OFFSET(BF109,Index!$B$7-1,0)-IF(Index!$B$4-2=-1,0,OFFSET(BF109,Index!$B$4-2,0)) -> 945356 | BG5: =OFFSET(BG109,Index!$B$7-1,0)-IF(Index!$B$4-2=-1,0,OFFSET(BG109,Index!$B$4-2,0)) -> 950166 | BH5: =OFFSET(BH109,Index!$B$7-1,0)-IF(Index!$B$4-2=-1,0,OFFSET(BH109,Index!$B$4-2,0)) -> 958876.536 | BI5: =OFFSET(BI109,Index!$B$7-1,0)-IF(Index!$B$4-2=-1,0,OFFSET(BI109,Index!$B$4-2,0)) -> 967199.2919 | BJ5: =OFFSET(BJ109,Index!$B$7-1,0)-IF(Index!$B$4-2=-1,0,OFFSET(BJ109,Index!$B$4-2,0)) -> 977268.7259 | BK5: =OFFSET(BK109,Index!$B$7-1,0)-IF(Index!$B$4-2=-1,0,OFFSET(BK109,Index!$B$4-2,0)) -> 988953.2123 | BL5: =OFFSET(BL109,Index!$B$7-1,0)-IF(Index!$B$4-2=-1,0,OFFSET(BL109,Index!$B$4-2,0)) -> 1003030.283 | BM5: =OFFSET(BM109,Index!$B$7-1,0)-IF(Index!$B$4-2=-1,0,OFFSET(BM109,Index!$B$4-2,0)) -> 1016005.311 | BN5: =OFFSET(BN109,Index!$B$7-1,0)-IF(Index!$B$4-2=-1,0,OFFSET(BN109,Index!$B$4-2,0)) -> 1027442.878 | BO5: =OFFSET(BO109,Index!$B$7-1,0)-IF(Index!$B$4-2=-1,0,OFFSET(BO109,Index!$B$4-2,0)) -> 1038996.589 | BP5: =OFFSET(BP109,Index!$B$7-1,0)-IF(Index!$B$4-2=-1,0,OFFSET(BP109,Index!$B$4-2,0)) -> 1050044.2 | BQ5: =OFFSET(BQ109,Index!$B$7-1,0)-IF(Index!$B$4-2=-1,0,OFFSET(BQ109,Index!$B$4-2,0)) -> 1060974.768 | BR5: =OFFSET(BR109,Index!$B$7-1,0)-IF(Index!$B$4-2=-1,0,OFFSET(BR109,Index!$B$4-2,0)) -> 1070931 | BS5: =OFFSET(BS109,Index!$B$7-1,0)-IF(Index!$B$4-2=-1,0,OFFSET(BS109,Index!$B$4-2,0)) -> 1079152.145 | BT5: =OFFSET(BT109,Index!$B$7-1,0)-IF(Index!$B$4-2=-1,0,OFFSET(BT109,Index!$B$4-2,0)) -> 1087521.563 | BU5: =OFFSET(BU109,Index!$B$7-1,0)-IF(Index!$B$4-2=-1,0,OFFSET(BU109,Index!$B$4-2,0)) -> 1095859.782 | BV5: =OFFSET(BV109,Index!$B$7-1,0)-IF(Index!$B$4-2=-1,0,OFFSET(BV109,Index!$B$4-2,0)) -> 1104227.869 | BW5: =OFFSET(BW109,Index!$B$7-1,0)-IF(Index!$B$4-2=-1,0,OFFSET(BW109,Index!$B$4-2,0)) -> 1112151.423 | BX5: =OFFSET(BX109,Index!$B$7-1,0)-IF(Index!$B$4-2=-1,0,OFFSET(BX109,Index!$B$4-2,0)) -> 1120205.87 | BY5: =OFFSET(BY109,Index!$B$7-1,0)-IF(Index!$B$4-2=-1,0,OFFSET(BY109,Index!$B$4-2,0)) -> 1128276.423 | BZ5: =OFFSET(BZ109,Index!$B$7-1,0)-IF(Index!$B$4-2=-1,0,OFFSET(BZ109,Index!$B$4-2,0)) -> 1136457.394 | CA5: =OFFSET(CA109,Index!$B$7-1,0)-IF(Index!$B$4-2=-1,0,OFFSET(CA109,Index!$B$4-2,0)) -> 1144745.449 | CF5: =INDEX($AX5:CB5,Index!$B$16) -> 950166 | CG5: =INDEX($AX5:$CB5,Index!$B$19) -> 1144745.449 | CH5: =CG5-CF5 -> 194579.4493 | CI5: =CH5/CF5 -> 0.2047846895
AR6: Total | AS6: =SUM(AS4:AS5) -> 1643112 | AT6: =SUM(AT4:AT5) -> 1663615 | AU6: =SUM(AU4:AU5) -> 1681532 | AV6: =SUM(AV4:AV5) -> 1695499 | AW6: =SUM(AW4:AW5) -> 1714643 | AX6: =SUM(AX4:AX5) -> 1731351 | AY6: 1748281 | AZ6: 1763803 | BA6: 1782513 | BB6: 1798276 | BC6: 1817395 | BD6: 1832252 | BE6: 1846478 | BF6: 1860111 | BG6: 1868199 | BH6: 1885986.847 | BI6: 1902963.947 | BJ6: 1923249.744 | BK6: 1946606.028 | BL6: 1974562.673 | BM6: 2000360.364 | BN6: =SUM(BN4:BN5) -> 2023168.394 | BO6: 2046206.93 | BP6: 2068272.256 | BQ6: 2090054.124 | BR6: 2109939.761 | BS6: 2126468.335 | BT6: 2143325.565 | BU6: =SUM(BU4:BU5) -> 2160146.926 | BV6: 2177009.268 | BW6: 2193099.156 | BX6: 2209431.992 | BY6: 2225841.975 | BZ6: 2242502.632 | CA6: =SUM(CA4:CA5) -> 2259386.562 | CF6: =INDEX($AX6:CB6,Index!$B$16) -> 1868199 | CG6: =INDEX($AX6:$CB6,Index!$B$19) -> 2259386.562 | CH6: =CG6-CF6 -> 391187.5617 | CI6: =CH6/CF6 -> 0.2093928761
D12: Forecasts for . . . . . . | H12: Kent (inc. Medway) | AW12: Cummulative Ages | CC12: Population Pyramid Data
A13: Population at mid-year | C13: Base Year | D13: Estimated and Forecast Years . . . . . . . . . . . . . . . . . . . . . . . . . . . . . . . . . . | AS13: =H14 -> 2006 | AT13: 2007 | AU13: 2008 | AV13: 2009 | AW13: 2010 | AX13: 2011 | AY13: 2012 | AZ13: 2013 | BA13: 2014 | BB13: 2015 | BC13: 2016 | BD13: 2017 | BE13: 2018 | BF13: 2019 | BG13: 2020 | BH13: 2021 | BI13: 2022 | BJ13: 2023 | BK13: 2024 | BL13: 2025 | BM13: 2026 | BN13: 2027 | BO13: 2028 | BP13: 2029 | BQ13: 2030 | BR13: 2031 | BS13: 2032 | BT13: 2033 | BU13: 2034 | BV13: 2035 | BW13: 2036 | BX13: 2037 | BY13: 2038 | BZ13: 2039 | CA13: 2040
A14: Sex | B14: Age | C14: 2001 | D14: 2002 | E14: 2003 | F14: 2004 | G14: 2005 | H14: 2006 | I14: 2007 | J14: 2008 | K14: 2009 | L14: 2010 | M14: 2011 | N14: 2012 | O14: 2013 | P14: 2014 | Q14: 2015 | R14: 2016 | S14: 2017 | T14: 2018 | U14: 2019 | V14: 2020 | W14: 2021 | X14: 2022 | Y14: 2023 | Z14: 2024 | AA14: 2025 | AB14: 2026 | AC14: 2027 | AD14: 2028 | AE14: 2029 | AF14: 2030 | AG14: 2031 | AH14: 2032 | AI14: 2033 | AJ14: 2034 | AK14: 2035 | AL14: 2036 | AM14: 2037 | AN14: 2038 | AO14: 2039 | AP14: 2040 | CF14: 2010 | CG14: 2011 | CH14: 2012 | CI14: 2013 | CJ14: 2014 | CK14: 2015 | CL14: 2016 | CM14: 2017 | CN14: 2018 | CO14: 2019 | CP14: 2020 | CQ14: 2021 | CR14: 2022 | CS14: 2023 | CT14: 2024 | CU14: 2025 | CV14: 2026 | CW14: 2027 | CX14: 2028 | CY14: 2029 | CZ14: 2030 | DA14: 2031 | DB14: 2032 | DC14: 2033 | DD14: 2034 | DE14: 2035 | DF14: 2036 | DG14: 2037 | DH14: 2038 | DI14: 2039 | DJ14: 2040 | DL14: =INDEX(CG14:DJ14,'Population Pyramid'!$L$1) -> 2020
B15: All persons | C15: 1580898 | D15: 1589230 | E15: 1600205 | F15: 1612843 | G15: 1627315 | H15: 1643112 | I15: 1663615 | J15: 1681532 | K15: 1695499 | L15: 1714643 | M15: 1731351 | N15: 1748281 | O15: 1763803 | P15: 1782513 | Q15: 1798276 | R15: 1817395 | S15: 1832252 | T15: 1846478 | U15: 1860111 | V15: 1868199 | W15: 1885986.847 | X15: 1902963.947 | Y15: 1923249.744 | Z15: 1946606.028 | AA15: 1974562.673 | AB15: 2000360.364 | AC15: 2023168.394 | AD15: 2046206.93 | AE15: 2068272.256 | AF15: 2090054.124 | AG15: 2109939.761 | AH15: 2126468.335 | AI15: 2143325.565 | AJ15: 2160146.926 | AK15: 2177009.268 | AL15: 2193099.156 | AM15: 2209431.992 | AN15: 2225841.975 | AO15: 2242502.632 | AP15: 2259386.562 | CC15: Males | CD15: All Ages | CF15: =L107 -> 839553 | CG15: 848602 | CH15: 857158 | CI15: 865382 | CJ15: 875024 | CK15: 883078 | CL15: 893069 | CM15: 900913 | CN15: 907671 | CO15: 914755 | CP15: 918033 | CQ15: 927110.3112 | CR15: 935764.6556 | CS15: 945981.0185 | CT15: 957652.8153 | CU15: 971532.3905 | CV15: 984355.0527 | CW15: 995725.5153 | CX15: 1007210.34 | CY15: 1018228.055 | CZ15: 1029079.357 | DA15: 1039008.761 | DB15: 1047316.19 | DC15: 1055804.002 | DD15: 1064287.144 | DE15: 1072781.398 | DF15: 1080947.734 | DG15: 1089226.122 | DH15: 1097565.552 | DI15: 1106045.238 | DJ15: 1114641.112 | DL15: =INDEX(CG15:DJ15,'Population Pyramid'!$L$1) -> 918033
A16: male | B16: 0 | C16: 8828 | D16: 9166 | E16: 9246 | F16: 9592 | G16: 9571 | H16: 9965 | I16: 10361 | J16: 10408 | K16: 10587 | L16: 10703 | M16: 11013 | N16: 11225 | O16: 10856 | P16: 10653 | Q16: 10646 | R16: 10805 | S16: 10780 | T16: 10803 | U16: 10489 | V16: 10147 | W16: 10299.2599 | X16: 10335.47642 | Y16: 10363.42508 | Z16: 10430.76227 | AA16: 10572.96495 | AB16: 10735.22298 | AC16: 10879.71257 | AD16: 11003.89406 | AE16: 11136.80858 | AF16: 11285.48352 | AG16: 11438.84705 | AH16: 11581.87506 | AI16: 11716.87922 | AJ16: 11857.44786 | AK16: 12002.07138 | AL16: 12152.28436 | AM16: 12303.27346 | AN16: 12454.57809 | AO16: 12597.12188 | AP16: 12720.52093 | AR16: 0 | AS16: =H16 -> 9965 | AT16: 10361 | AU16: 10408 | AV16: 10587 | AW16: 10703 | AX16: 11013 | AY16: 11225 | AZ16: 10856 | BA16: 10653 | BB16: 10646 | BC16: 10805 | BD16: 10780 | BE16: 10803 | BF16: 10489 | BG16: 10147 | BH16: 10299.2599 | BI16: 10335.47642 | BJ16: 10363.42508 | BK16: 10430.76227 | BL16: 10572.96495 | BM16: 10735.22298 | BN16: 10879.71257 | BO16: 11003.89406 | BP16: 11136.80858 | BQ16: 11285.48352 | BR16: 11438.84705 | BS16: 11581.87506 | BT16: 11716.87922 | BU16: 11857.44786 | BV16: 12002.07138 | BW16: 12152.28436 | BX16: 12303.27346 | BY16: 12454.57809 | BZ16: 12597.12188 | CA16: 12720.52093 | CC16: Males | CD16: 0-4 | CF16: =SUM(L16:L20) -> 53756 | CG16: 54626 | CH16: 55707 | CI16: 56220 | CJ16: 56517 | CK16: 56731 | CL16: 56641 | CM16: 56317 | CN16: 56357 | CO16: 56100 | CP16: 55380 | CQ16: 54836.51452 | CR16: 54298.01811 | CS16: 54021.49985 | CT16: 54127.40073 | CU16: 54720.17734 | CV16: 55230.83058 | CW16: 55747.97185 | CX16: 56346.22504 | CY16: 56967.70754 | CZ16: 57631.16662 | DA16: 58272.54022 | DB16: 58876.08014 | DC16: 59524.87041 | DD16: 60206.08037 | DE16: 60911.13059 | DF16: 61613.2675 | DG16: 62332.69625 | DH16: 63067.35893 | DI16: 63816.52979 | DJ16: 64558.03439 | DL16: =INDEX(CG16:DJ16,'Population Pyramid'!$L$1) -> 55380
A17: male | B17: 1 | C17: 9466 | D17: 9000 | E17: 9277 | F17: 9390 | G17: 9681 | H17: 9722 | I17: 10176 | J17: 10537 | K17: 10525 | L17: 10725 | M17: 10811 | N17: 11261 | O17: 11432 | P17: 11074 | Q17: 10960 | R17: 10925 | S17: 11040 | T17: 11054 | U17: 11052 | V17: 10712 | W17: 10382.73643 | X17: 10520.85196 | Y17: 10574.01623 | Z17: 10620.01328 | AA17: 10721.70066 | AB17: 10846.20633 | AC17: 10987.83324 | AD17: 11132.67724 | AE17: 11248.75698 | AF17: 11380.99195 | AG17: 11517.33608 | AH17: 11653.73743 | AI17: 11798.46568 | AJ17: 11935.09647 | AK17: 12076.64824 | AL17: 12217.08749 | AM17: 12369.61199 | AN17: 12521.15891 | AO17: 12675.76821 | AP17: 12821.98173 | AR17: 1 | AS17: =AS16+H17 -> 19687 | AT17: =AT16+I17 -> 20537 | AU17: =AU16+J17 -> 20945 | AV17: =AV16+K17 -> 21112 | AW17: =AW16+L17 -> 21428 | AX17: =AX16+M17 -> 21824 | AY17: =AY16+N17 -> 22486 | AZ17: =AZ16+O17 -> 22288 | BA17: =BA16+P17 -> 21727 | BB17: =BB16+Q17 -> 21606 | BC17: =BC16+R17 -> 21730 | BD17: =BD16+S17 -> 21820 | BE17: =BE16+T17 -> 21857 | BF17: =BF16+U17 -> 21541 | BG17: =BG16+V17 -> 20859 | BH17: =BH16+W17 -> 20681.99633 | BI17: =BI16+X17 -> 20856.32838 | BJ17: =BJ16+Y17 -> 20937.44131 | BK17: =BK16+Z17 -> 21050.77555 | BL17: =BL16+AA17 -> 21294.66561 | BM17: =BM16+AB17 -> 21581.42931 | BN17: =BN16+AC17 -> 21867.54581 | BO17: =BO16+AD17 -> 22136.57129 | BP17: =BP16+AE17 -> 22385.56556 | BQ17: =BQ16+AF17 -> 22666.47547 | BR17: =BR16+AG17 -> 22956.18314 | BS17: =BS16+AH17 -> 23235.61249 | BT17: =BT16+AI17 -> 23515.3449 | BU17: =BU16+AJ17 -> 23792.54433 | BV17: =BV16+AK17 -> 24078.71962 | BW17: =BW16+AL17 -> 24369.37184 | BX17: =BX16+AM17 -> 24672.88545 | BY17: =BY16+AN17 -> 24975.737 | BZ17: =BZ16+AO17 -> 25272.89009 | CA17: 25542.50266 | CC17: Males | CD17: 5-9 | CF17: =SUM(L21:L25) -> 50660 | CG17: 51687 | CH17: 53068 | CI17: 54589 | CJ17: 56038 | CK17: 57540 | CL17: 58913 | CM17: 60188 | CN17: 60951 | CO17: 61486 | CP17: 61554 | CQ17: 61602.14956 | CR17: 61372.01475 | CS17: 61428.4431 | CT17: 61328.38584 | CU17: 60981.55517 | CV17: 60552.6754 | CW17: 60141.1096 | CX17: 59937.42404 | CY17: 60053.93527 | CZ17: 60447.22827 | DA17: 60794.44176 | DB17: 61175.10507 | DC17: 61628.839 | DD17: 62135.47681 | DE17: 62678.74822 | DF17: 63234.839 | DG17: 63827.13374 | DH17: 64458.52115 | DI17: 65127.63733 | DJ17: 65828.54684 | DL17: =INDEX(CG17:DJ17,'Population Pyramid'!$L$1) -> 61554
A18: male | B18: 2 | C18: 9967 | D18: 9615 | E18: 9234 | F18: 9425 | G18: 9494 | H18: 9825 | I18: 9905 | J18: 10435 | K18: 10635 | L18: 10741 | M18: 10891 | N18: 11018 | O18: 11442 | P18: 11676 | Q18: 11306 | R18: 11257 | S18: 11224 | T18: 11316 | U18: 11296 | V18: 11196 | W18: 10968.02733 | X18: 10659.14826 | Y18: 10810.78623 | Z18: 10876.89576 | AA18: 10953.02158 | AB18: 11041.25206 | AC18: 11148.20294 | AD18: 11290.17096 | AE18: 11426.64148 | AF18: 11542.1147 | AG18: 11663.22532 | AH18: 11784.39564 | AI18: 11921.99399 | AJ18: 12067.10436 | AK18: 12204.6239 | AL18: 12342.36874 | AM18: 12484.92171 | AN18: 12637.28409 | AO18: 12792.1158 | AP18: 12950.44453 | AR18: 2 | AS18: 29512 | AT18: 30442 | AU18: 31380 | AV18: 31747 | AW18: 32169 | AX18: 32715 | AY18: 33504 | AZ18: 33730 | BA18: 33403 | BB18: 32912 | BC18: 32987 | BD18: 33044 | BE18: 33173 | BF18: 32837 | BG18: 32055 | BH18: 31650.02366 | BI18: 31515.47664 | BJ18: 31748.22754 | BK18: 31927.67131 | BL18: 32247.68719 | BM18: 32622.68137 | BN18: 33015.74875 | BO18: 33426.74226 | BP18: 33812.20705 | BQ18: 34208.59017 | BR18: 34619.40845 | BS18: 35020.00813 | BT18: 35437.33889 | BU18: 35859.64869 | BV18: 36283.34353 | BW18: 36711.74058 | BX18: 37157.80716 | BY18: 37613.02109 | BZ18: 38065.00589 | CA18: 38492.9472 | CC18: Males | CD18: 10-14 | CF18: =SUM(L26:L30) -> 55636 | CG18: 54901 | CH18: 54016 | CI18: 53177 | CJ18: 52865 | CK18: 53115 | CL18: 54299 | CM18: 56206 | CN18: 58072 | CO18: 59628 | CP18: 61382 | CQ18: 62977.20961 | CR18: 64416.12384 | CS18: 65250.09915 | CT18: 65930.96965 | CU18: 66550.2323 | CV18: 66802.09702 | CW18: 66636.41859 | CX18: 66652.03776 | CY18: 66398.00776 | CZ18: 65865.57217 | DA18: 65230.8594 | DB18: 64650.40352 | DC18: 64307.82358 | DD18: 64347.02848 | DE18: 64620.26216 | DF18: 64884.52588 | DG18: 65244.58348 | DH18: 65674.49153 | DI18: 66157.97732 | DJ18: 66682.36909 | DL18: =INDEX(CG18:DJ18,'Population Pyramid'!$L$1) -> 61382
A19: male | B19: 3 | C19: 9933 | D19: 10143 | E19: 9801 | F19: 9403 | G19: 9487 | H19: 9641 | I19: 9964 | J19: 10013 | K19: 10581 | L19: 10844 | M19: 10927 | N19: 11077 | O19: 11239 | P19: 11660 | Q19: 11917 | R19: 11566 | S19: 11476 | T19: 11472 | U19: 11539 | V19: 11565 | W19: 11421.74544 | X19: 11174.7276 | Y19: 10906.47823 | Z19: 11068.21033 | AA19: 11157.51853 | AB19: 11219.40084 | AC19: 11294.20007 | AD19: 11403.16281 | AE19: 11536.69646 | AF19: 11671.71669 | AG19: 11777.32513 | AH19: 11886.42772 | AI19: 12008.31052 | AJ19: 12145.62156 | AK19: 12290.44145 | AL19: 12423.9191 | AM19: 12562.94618 | AN19: 12704.54148 | AO19: 12858.72426 | AP19: 13016.23961 | AR19: 3 | AS19: 39153 | AT19: 40406 | AU19: 41393 | AV19: 42328 | AW19: 43013 | AX19: 43642 | AY19: 44581 | AZ19: 44969 | BA19: 45063 | BB19: 44829 | BC19: 44553 | BD19: 44520 | BE19: 44645 | BF19: 44376 | BG19: 43620 | BH19: 43071.7691 | BI19: 42690.20424 | BJ19: 42654.70577 | BK19: 42995.88164 | BL19: 43405.20572 | BM19: 43842.08221 | BN19: 44309.94882 | BO19: 44829.90507 | BP19: 45348.90351 | BQ19: 45880.30687 | BR19: 46396.73358 | BS19: 46906.43584 | BT19: 47445.64941 | BU19: 48005.27025 | BV19: 48573.78498 | BW19: 49135.65968 | BX19: 49720.75334 | BY19: 50317.56257 | BZ19: 50923.73015 | CA19: 51509.18681 | CC19: Males | CD19: 15-19 | CF19: =SUM(L31:L35) -> 59110 | CG19: 59039 | CH19: 58091 | CI19: 58018 | CJ19: 57606 | CK19: 56995 | CL19: 55981 | CM19: 54662 | CN19: 53888 | CO19: 53556 | CP19: 53725 | CQ19: 55132.18047 | CR19: 56981.38525 | CS19: 59164.05791 | CT19: 61221.62644 | CU19: 63323.63874 | CV19: 65031.76768 | CW19: 66563.69405 | CX19: 67446.15265 | CY19: 68045.41661 | CZ19: 68438.92393 | DA19: 68517.34729 | DB19: 68083.64226 | DC19: 67925.73158 | DD19: 67466.20135 | DE19: 66836.63058 | DF19: 66059.378 | DG19: 65472.49262 | DH19: 65194.39292 | DI19: 65237.43571 | DJ19: 65464.71081 | DL19: =INDEX(CG19:DJ19,'Population Pyramid'!$L$1) -> 53725
A20: male | B20: 4 | C20: 10279 | D20: 10103 | E20: 10310 | F20: 9937 | G20: 9532 | H20: 9554 | I20: 9781 | J20: 10067 | K20: 10111 | L20: 10743 | M20: 10984 | N20: 11126 | O20: 11251 | P20: 11454 | Q20: 11902 | R20: 12088 | S20: 11797 | T20: 11712 | U20: 11724 | V20: 11760 | W20: 11764.74543 | X20: 11607.81387 | Y20: 11366.79408 | Z20: 11131.51908 | AA20: 11314.97162 | AB20: 11388.74837 | AC20: 11438.02303 | AD20: 11516.31997 | AE20: 11618.80403 | AF20: 11750.85976 | AG20: 11875.80664 | AH20: 11969.6443 | AI20: 12079.221 | AJ20: 12200.81012 | AK20: 12337.34561 | AL20: 12477.60782 | AM20: 12611.94291 | AN20: 12749.79635 | AO20: 12892.79964 | AP20: 13048.84757 | AR20: 4 | AS20: 48707 | AT20: 50187 | AU20: 51460 | AV20: 52439 | AW20: 53756 | AX20: 54626 | AY20: 55707 | AZ20: 56220 | BA20: 56517 | BB20: 56731 | BC20: 56641 | BD20: 56317 | BE20: 56357 | BF20: 56100 | BG20: 55380 | BH20: 54836.51452 | BI20: 54298.01811 | BJ20: 54021.49985 | BK20: 54127.40073 | BL20: 54720.17734 | BM20: 55230.83058 | BN20: 55747.97185 | BO20: 56346.22504 | BP20: 56967.70754 | BQ20: 57631.16662 | BR20: 58272.54022 | BS20: 58876.08014 | BT20: 59524.87041 | BU20: 60206.08037 | BV20: 60911.13059 | BW20: 61613.2675 | BX20: 62332.69625 | BY20: 63067.35893 | BZ20: 63816.52979 | CA20: 64558.03439 | CC20: Males | CD20: 20-24 | CF20: =SUM(L36:L40) -> 52126 | CG20: 53958 | CH20: 55275 | CI20: 55959 | CJ20: 57067 | CK20: 56425 | CL20: 56243 | CM20: 55220 | CN20: 53984 | CO20: 53221 | CP20: 52704 | CQ20: 51829.28428 | CR20: 50777.58854 | CS20: 50203.92266 | CT20: 50271.17448 | CU20: 51262.39393 | CV20: 53045.0693 | CW20: 55115.81244 | CX20: 57274.37285 | CY20: 59101.17346 | CZ20: 60779.90168 | DA20: 62113.63879 | DB20: 62984.11241 | DC20: 63135.40408 | DD20: 63254.23222 | DE20: 63274.67274 | DF20: 63146.55664 | DG20: 62688.60136 | DH20: 62314.4419 | DI20: 61819.43176 | DJ20: 61217.77035 | DL20: =INDEX(CG20:DJ20,'Population Pyramid'!$L$1) -> 52704
A21: male | B21: 5 | C21: 10306 | D21: 10412 | E21: 10272 | F21: 10473 | G21: 10011 | H21: 9665 | I21: 9716 | J21: 9867 | K21: 10141 | L21: 10228 | M21: 10865 | N21: 11090 | O21: 11268 | P21: 11406 | Q21: 11634 | R21: 12077 | S21: 12276 | T21: 11984 | U21: 11877 | V21: 11851 | W21: 11987.64189 | X21: 11974.88003 | Y21: 11829.86175 | Z21: 11595.82578 | AA21: 11396.26163 | AB21: 11564.68588 | AC21: 11623.07443 | AD21: 11671.97307 | AE21: 11742.95773 | AF21: 11843.94381 | AG21: 11966.25284 | AH21: 12078.40838 | AI21: 12172.55573 | AJ21: 12282.13037 | AK21: 12403.75753 | AL21: 12537.07849 | AM21: 12678.3853 | AN21: 12812.65308 | AO21: 12952.41681 | AP21: 13097.73297 | AR21: 5 | AS21: 58372 | AT21: 59903 | AU21: 61327 | AV21: 62580 | AW21: 63984 | AX21: 65491 | AY21: 66797 | AZ21: 67488 | BA21: 67923 | BB21: 68365 | BC21: 68718 | BD21: 68593 | BE21: 68341 | BF21: 67977 | BG21: 67231 | BH21: 66824.15642 | BI21: 66272.89814 | BJ21: 65851.36159 | BK21: 65723.2265 | BL21: 66116.43897 | BM21: 66795.51646 | BN21: 67371.04628 | BO21: 68018.19811 | BP21: 68710.66527 | BQ21: 69475.11044 | BR21: 70238.79306 | BS21: 70954.48852 | BT21: 71697.42615 | BU21: 72488.21074 | BV21: 73314.88812 | BW21: 74150.346 | BX21: 75011.08155 | BY21: 75880.01201 | BZ21: 76768.94661 | CA21: 77655.76736 | CC21: Males | CD21: 25-29 | CF21: =SUM(L41:L45) -> 49221 | CG21: 50060 | CH21: 51057 | CI21: 52167 | CJ21: 53387 | CK21: 54094 | CL21: 55370 | CM21: 56586 | CN21: 56456 | CO21: 56743 | CP21: 55724 | CQ21: 55386.13914 | CR21: 54764.26714 | CS21: 54820.87146 | CT21: 54648.21525 | CU21: 54952.14624 | CV21: 54645.2682 | CW21: 54013.30082 | CX21: 53710.194 | CY21: 53805.19233 | CZ21: 54440.89659 | DA21: 55844.53327 | DB21: 57607.46593 | DC21: 59516.32071 | DD21: 61022.47413 | DE21: 62349.12558 | DF21: 63390.9325 | DG21: 64302.6978 | DH21: 64523.86129 | DI21: 64649.74794 | DJ21: 64661.61485 | DL21: =INDEX(CG21:DJ21,'Population Pyramid'!$L$1) -> 55724
A22: male | B22: 6 | C22: 10282 | D22: 10462 | E22: 10525 | F22: 10432 | G22: 10534 | H22: 10139 | I22: 9802 | J22: 9818 | K22: 9970 | L22: 10213 | M22: 10346 | N22: 10929 | O22: 11228 | P22: 11447 | Q22: 11531 | R22: 11756 | S22: 12222 | T22: 12447 | U22: 12100 | V22: 11986 | W22: 12054.21594 | X22: 12189.25373 | Y22: 12183.23152 | Z22: 12046.69212 | AA22: 11823.06661 | AB22: 11626.53266 | AC22: 11779.72674 | AD22: 11835.82097 | AE22: 11877.11893 | AF22: 11948.23089 | AG22: 12040.90978 | AH22: 12149.79279 | AI22: 12261.71995 | AJ22: 12355.90409 | AK22: 12465.39584 | AL22: 12583.97279 | AM22: 12717.92152 | AN22: 12858.62585 | AO22: 12994.4832 | AP22: 13136.15619 | AR22: 6 | AS22: 68511 | AT22: 69705 | AU22: 71145 | AV22: 72550 | AW22: 74197 | AX22: 75837 | AY22: 77726 | AZ22: 78716 | BA22: 79370 | BB22: 79896 | BC22: 80474 | BD22: 80815 | BE22: 80788 | BF22: 80077 | BG22: 79217 | BH22: 78878.37236 | BI22: 78462.15186 | BJ22: 78034.59312 | BK22: 77769.91862 | BL22: 77939.50559 | BM22: 78422.04912 | BN22: 79150.77302 | BO22: 79854.01908 | BP22: 80587.78421 | BQ22: 81423.34133 | BR22: 82279.70285 | BS22: 83104.28131 | BT22: 83959.1461 | BU22: 84844.11483 | BV22: 85780.28396 | BW22: 86734.31879 | BX22: 87729.00307 | BY22: 88738.63786 | BZ22: 89763.4298 | CA22: 90791.92355 | CC22: Males | CD22: 30-34 | CF22: =SUM(L46:L50) -> 48233 | CG22: 49136 | CH22: 50010 | CI22: 50839 | CJ22: 50933 | CK22: 51641 | CL22: 52718 | CM22: 53815 | CN22: 55090 | CO22: 56234 | CP22: 56388 | CQ22: 57350.77174 | CR22: 58563.29026 | CS22: 58992.61521 | CT22: 59829.32209 | CU22: 60099.80882 | CV22: 60145.41703 | CW22: 59992.03773 | CX22: 60197.54274 | CY22: 60049.11766 | CZ22: 60084.13858 | DA22: 59554.83556 | DB22: 58705.14602 | DC22: 58203.62751 | DD22: 58116.3202 | DE22: 58571.80615 | DF22: 59819.21064 | DG22: 61588.09435 | DH22: 63509.04672 | DI22: 65034.43727 | DJ22: 66410.66361 | DL22: =INDEX(CG22:DJ22,'Population Pyramid'!$L$1) -> 56388
A23: male | B23: 7 | C23: 10835 | D23: 10396 | E23: 10627 | F23: 10659 | G23: 10550 | H23: 10621 | I23: 10270 | J23: 9927 | K23: 9905 | L23: 10051 | M23: 10310 | N23: 10394 | O23: 11039 | P23: 11344 | Q23: 11605 | R23: 11689 | S23: 11929 | T23: 12406 | U23: 12656 | V23: 12214 | W23: 12182.0881 | X23: 12247.1967 | Y23: 12401.53602 | Z23: 12400.66322 | AA23: 12276.27207 | AB23: 12032.98118 | AC23: 11835.6799 | AD23: 11985.45651 | AE23: 12032.57969 | AF23: 12073.13978 | AG23: 12136.90241 | AH23: 12219.38791 | AI23: 12328.05432 | AJ23: 12439.37688 | AK23: 12533.49186 | AL23: 12639.85381 | AM23: 12758.97899 | AN23: 12891.98452 | AO23: 13033.57843 | AP23: 13171.02391 | AR23: 7 | AS23: 79132 | AT23: 79975 | AU23: 81072 | AV23: 82455 | AW23: 84248 | AX23: 86147 | AY23: 88120 | AZ23: 89755 | BA23: 90714 | BB23: 91501 | BC23: 92163 | BD23: 92744 | BE23: 93194 | BF23: 92733 | BG23: 91431 | BH23: 91060.46046 | BI23: 90709.34857 | BJ23: 90436.12914 | BK23: 90170.58184 | BL23: 90215.77766 | BM23: 90455.0303 | BN23: 90986.45293 | BO23: 91839.47559 | BP23: 92620.3639 | BQ23: 93496.48112 | BR23: 94416.60526 | BS23: 95323.66922 | BT23: 96287.20042 | BU23: 97283.4917 | BV23: 98313.77583 | BW23: 99374.1726 | BX23: 100487.9821 | BY23: 101630.6224 | BZ23: 102797.0082 | CA23: 103962.9475 | CC23: Males | CD23: 35-39 | CF23: =SUM(L51:L55) -> 55053 | CG23: 52915 | CH23: 51009 | CI23: 49909 | CJ23: 50077 | CK23: 51066 | CL23: 52744 | CM23: 54153 | CN23: 55273 | CO23: 55513 | CP23: 55509 | CQ23: 56626.4947 | CR23: 57712.46218 | CS23: 59303.88948 | CT23: 60947.41997 | CU23: 62386.20028 | CV23: 63746.16495 | CW23: 65125.63144 | CX23: 65663.23653 | CY23: 66355.88953 | CZ23: 66348.60444 | DA23: 66114.34742 | DB23: 65830.65599 | DC23: 65812.44745 | DD23: 65515.82649 | DE23: 65345.76742 | DF23: 64662.96996 | DG23: 63752.66388 | DH23: 63214.10064 | DI23: 63100.00329 | DJ23: 63559.86035 | DL23: =INDEX(CG23:DJ23,'Population Pyramid'!$L$1) -> 55509
A24: male | B24: 8 | C24: 10949 | D24: 11030 | E24: 10550 | F24: 10759 | G24: 10741 | H24: 10695 | I24: 10744 | J24: 10354 | K24: 10052 | L24: 9993 | M24: 10082 | N24: 10444 | O24: 10532 | P24: 11191 | Q24: 11502 | R24: 11756 | S24: 11835 | T24: 12138 | U24: 12555 | V24: 12791 | W24: 12414.06337 | X24: 12372.02098 | Y24: 12455.66271 | Z24: 12627.86748 | AA24: 12635.4409 | AB24: 12493.16918 | AC24: 12228.79519 | AD24: 12042.88884 | AE24: 12181.82229 | AF24: 12226.55108 | AG24: 12259.06706 | AH24: 12313.29884 | AI24: 12396.49676 | AJ24: 12504.61044 | AK24: 12615.20813 | AL24: 12706.14336 | AM24: 12812.82324 | AN24: 12930.83574 | AO24: 13064.38389 | AP24: 13206.84503 | AR24: 8 | AS24: 89827 | AT24: 90719 | AU24: 91426 | AV24: 92507 | AW24: 94241 | AX24: 96229 | AY24: 98564 | AZ24: 100287 | BA24: 101905 | BB24: 103003 | BC24: 103919 | BD24: 104579 | BE24: 105332 | BF24: 105288 | BG24: 104222 | BH24: 103474.5238 | BI24: 103081.3695 | BJ24: 102891.7918 | BK24: 102798.4493 | BL24: 102851.2186 | BM24: 102948.1995 | BN24: 103215.2481 | BO24: 103882.3644 | BP24: 104802.1862 | BQ24: 105723.0322 | BR24: 106675.6723 | BS24: 107636.9681 | BT24: 108683.6972 | BU24: 109788.1021 | BV24: 110928.984 | BW24: 112080.316 | BX24: 113300.8053 | BY24: 114561.4581 | BZ24: 115861.3921 | CA24: 117169.7925 | CC24: Males | CD24: 40-44 | CF24: =SUM(L56:L60) -> 63567 | CG24: 62967 | CH24: 62008 | CI24: 60635 | CJ24: 59191 | CK24: 57861 | CL24: 55866 | CM24: 54317 | CN24: 53428 | CO24: 54075 | CP24: 54665 | CQ24: 56391.35999 | CR24: 57956.58643 | CS24: 59414.07195 | CT24: 60137.84261 | CU24: 61238.46495 | CV24: 62543.0586 | CW24: 63762.43791 | CX24: 65403.96712 | CY24: 66964.06091 | CZ24: 68155.4555 | DA24: 69345.13361 | DB24: 70485.34953 | DC24: 70789.96024 | DD24: 71259.98318 | DE24: 71065.37634 | DF24: 70686.2147 | DG24: 70446.35068 | DH24: 70404.87977 | DI24: 70103.68039 | DJ24: 69891.71555 | DL24: =INDEX(CG24:DJ24,'Population Pyramid'!$L$1) -> 54665
A25: male | B25: 9 | C25: 11252 | D25: 11065 | E25: 11166 | F25: 10680 | G25: 10861 | H25: 10841 | I25: 10819 | J25: 10840 | K25: 10469 | L25: 10175 | M25: 10084 | N25: 10211 | O25: 10522 | P25: 10650 | Q25: 11268 | R25: 11635 | S25: 11926 | T25: 11976 | U25: 12298 | V25: 12712 | W25: 12964.14026 | X25: 12588.66331 | Y25: 12558.1511 | Z25: 12657.33725 | AA25: 12850.51395 | AB25: 12835.3065 | AC25: 12673.83334 | AD25: 12401.28464 | AE25: 12219.45662 | AF25: 12355.3627 | AG25: 12391.30966 | AH25: 12414.21715 | AI25: 12470.01224 | AJ25: 12553.45504 | AK25: 12660.89486 | AL25: 12767.79055 | AM25: 12859.02469 | AN25: 12964.42197 | AO25: 13082.77499 | AP25: 13216.78873 | AR25: 9 | AS25: 100668 | AT25: 101538 | AU25: 102266 | AV25: 102976 | AW25: 104416 | AX25: 106313 | AY25: 108775 | AZ25: 110809 | BA25: 112555 | BB25: 114271 | BC25: 115554 | BD25: 116505 | BE25: 117308 | BF25: 117586 | BG25: 116934 | BH25: 116438.6641 | BI25: 115670.0329 | BJ25: 115449.9429 | BK25: 115455.7866 | BL25: 115701.7325 | BM25: 115783.506 | BN25: 115889.0814 | BO25: 116283.6491 | BP25: 117021.6428 | BQ25: 118078.3949 | BR25: 119066.982 | BS25: 120051.1852 | BT25: 121153.7094 | BU25: 122341.5572 | BV25: 123589.8788 | BW25: 124848.1065 | BX25: 126159.83 | BY25: 127525.8801 | BZ25: 128944.1671 | CA25: 130386.5812 | CC25: Males | CD25: 45-49 | CF25: =SUM(L61:L65) -> 63311 | CG25: 64670 | CH25: 65379 | CI25: 65738 | CJ25: 65827 | CK25: 65189 | CL25: 64841 | CM25: 63935 | CN25: 62882 | CO25: 61336 | CP25: 60027 | CQ25: 58109.51183 | CR25: 56659.71077 | CS25: 56044.91082 | CT25: 56894.90392 | CU25: 58444.47072 | CV25: 60433.80463 | CW25: 62243.59929 | CX25: 63871.62092 | CY25: 64613.89876 | CZ25: 65538.76746 | DA25: 66628.76032 | DB25: 67626.49589 | DC25: 69051.77553 | DD25: 70426.19591 | DE25: 71463.6989 | DF25: 72569.52769 | DG25: 73665.89178 | DH25: 73925.91736 | DI25: 74347.26281 | DJ25: 74124.45832 | DL25: =INDEX(CG25:DJ25,'Population Pyramid'!$L$1) -> 60027
A26: male | B26: 10 | C26: 11204 | D26: 11345 | E26: 11217 | F26: 11326 | G26: 10786 | H26: 10986 | I26: 10960 | J26: 10920 | K26: 10944 | L26: 10579 | M26: 10297 | N26: 10174 | O26: 10322 | P26: 10621 | Q26: 10784 | R26: 11412 | S26: 11810 | T26: 12052 | U26: 12153 | V26: 12440 | W26: 12897.13196 | X26: 13149.73639 | Y26: 12791.95381 | Z26: 12767.97136 | AA26: 12886.65052 | AB26: 13072.19204 | AC26: 13032.33159 | AD26: 12866.30328 | AE26: 12584.34358 | AF26: 12411.50115 | AG26: 12535.71502 | AH26: 12558.59264 | AI26: 12581.28769 | AJ26: 12635.63241 | AK26: 12718.52895 | AL26: 12821.78338 | AM26: 12928.12511 | AN26: 13018.35926 | AO26: 13124.38143 | AP26: 13243.68088 | AR26: 10 | AS26: 111654 | AT26: 112498 | AU26: 113186 | AV26: 113920 | AW26: 114995 | AX26: 116610 | AY26: 118949 | AZ26: 121131 | BA26: 123176 | BB26: 125055 | BC26: 126966 | BD26: 128315 | BE26: 129360 | BF26: 129739 | BG26: 129374 | BH26: 129335.796 | BI26: 128819.7692 | BJ26: 128241.8968 | BK26: 128223.7579 | BL26: 128588.383 | BM26: 128855.698 | BN26: 128921.413 | BO26: 129149.9523 | BP26: 129605.9864 | BQ26: 130489.896 | BR26: 131602.697 | BS26: 132609.7779 | BT26: 133734.9971 | BU26: 134977.1896 | BV26: 136308.4078 | BW26: 137669.8899 | BX26: 139087.9551 | BY26: 140544.2393 | BZ26: 142068.5485 | CA26: 143630.2621 | CC26: Males | CD26: 50-54 | CF26: =SUM(L66:L70) -> 54590 | CG26: 56308 | CH26: 58195 | CI26: 59977 | CJ26: 61798 | CK26: 64004 | CL26: 65738 | CM26: 66411 | CN26: 66791 | CO26: 66701 | CP26: 65871 | CQ26: 65531.34932 | CR26: 64803.66855 | CS26: 63940.10969 | CT26: 62767.94307 | CU26: 61951.57577 | CV26: 60335.36794 | CW26: 59075.36497 | CX26: 58581.13977 | CY26: 59481.34815 | CZ26: 60988.25828 | DA26: 62880.82061 | DB26: 64600.46069 | DC26: 66138.66801 | DD26: 66791.95825 | DE26: 67587.31252 | DF26: 68547.18298 | DG26: 69467.31805 | DH26: 70810.15118 | DI26: 72114.67711 | DJ26: 73116.87687 | DL26: =INDEX(CG26:DJ26,'Population Pyramid'!$L$1) -> 65871
A27: male | B27: 11 | C27: 11012 | D27: 11329 | E27: 11452 | F27: 11313 | G27: 11422 | H27: 10849 | I27: 11092 | J27: 11035 | K27: 11056 | L27: 11051 | M27: 10662 | N27: 10393 | O27: 10228 | P27: 10401 | Q27: 10770 | R27: 10918 | S27: 11587 | T27: 11970 | U27: 12206 | V27: 12372 | W27: 12611.12134 | X27: 13067.47558 | Y27: 13340.22795 | Z27: 12997.39078 | AA27: 12989.10835 | AB27: 13096.79113 | AC27: 13269.48164 | AD27: 13222.22107 | AE27: 13048.36872 | AF27: 12758.23483 | AG27: 12587.72469 | AH27: 12696.39031 | AI27: 12718.00075 | AJ27: 12738.66123 | AK27: 12793.25561 | AL27: 12872.70753 | AM27: 12975.48525 | AN27: 13080.23927 | AO27: 13171.06149 | AP27: 13277.89569 | AR27: 11 | AS27: 122503 | AT27: 123590 | AU27: 124221 | AV27: 124976 | AW27: 126046 | AX27: 127272 | AY27: 129342 | AZ27: 131359 | BA27: 133577 | BB27: 135825 | BC27: 137884 | BD27: 139902 | BE27: 141330 | BF27: 141945 | BG27: 141746 | BH27: 141946.9174 | BI27: 141887.2448 | BJ27: 141582.1247 | BK27: 141221.1487 | BL27: 141577.4914 | BM27: 141952.4891 | BN27: 142190.8947 | BO27: 142372.1734 | BP27: 142654.3551 | BQ27: 143248.1309 | BR27: 144190.4217 | BS27: 145306.1682 | BT27: 146452.9979 | BU27: 147715.8508 | BV27: 149101.6634 | BW27: 150542.5974 | BX27: 152063.4404 | BY27: 153624.4786 | BZ27: 155239.61 | CA27: 156908.1578 | CC27: Males | CD27: 55-59 | CF27: =SUM(L71:L75) -> 49256 | CG27: 49579 | CH27: 50835 | CI27: 51690 | CJ27: 53056 | CK27: 54380 | CL27: 56163 | CM27: 58089 | CN27: 59931 | CO27: 61546 | CP27: 63545 | CQ27: 65147.08392 | CR27: 66132.0666 | CS27: 66685.76732 | CT27: 66939.80938 | CU27: 66618.96533 | CV27: 66602.54368 | CW27: 66116.38718 | CX27: 65403.03273 | CY27: 64272.16516 | CZ27: 63367.48421 | DA27: 61720.97905 | DB27: 60401.19769 | DC27: 59844.84115 | DD27: 60697.55757 | DE27: 62164.64246 | DF27: 63985.86503 | DG27: 65715.7768 | DH27: 67258.66798 | DI27: 67913.94917 | DJ27: 68681.75924 | DL27: =INDEX(CG27:DJ27,'Population Pyramid'!$L$1) -> 63545
A28: male | B28: 12 | C28: 11012 | D28: 11134 | E28: 11514 | F28: 11580 | G28: 11396 | H28: 11547 | I28: 10979 | J28: 11226 | K28: 11209 | L28: 11194 | M28: 11137 | N28: 10719 | O28: 10477 | P28: 10310 | Q28: 10474 | R28: 10874 | S28: 11075 | T28: 11759 | U28: 12122 | V28: 12360 | W28: 12546.81865 | X28: 12785.86968 | Y28: 13258.30745 | Z28: 13548.88636 | AA28: 13227.44653 | AB28: 13204.48703 | AC28: 13294.62341 | AD28: 13473.3515 | AE28: 13412.43428 | AF28: 13231.32185 | AG28: 12926.70624 | AH28: 12754.19276 | AI28: 12859.90608 | AJ28: 12878.04724 | AK28: 12898.39149 | AL28: 12950.43199 | AM28: 13030.06954 | AN28: 13131.6223 | AO28: 13236.405 | AP28: 13327.9704 | AR28: 12 | AS28: 134050 | AT28: 134569 | AU28: 135447 | AV28: 136185 | AW28: 137240 | AX28: 138409 | AY28: 140061 | AZ28: 141836 | BA28: 143887 | BB28: 146299 | BC28: 148758 | BD28: 150977 | BE28: 153089 | BF28: 154067 | BG28: 154106 | BH28: 154493.736 | BI28: 154673.1145 | BJ28: 154840.4322 | BK28: 154770.0351 | BL28: 154804.9379 | BM28: 155156.9762 | BN28: 155485.5181 | BO28: 155845.5249 | BP28: 156066.7894 | BQ28: 156479.4527 | BR28: 157117.1279 | BS28: 158060.3609 | BT28: 159312.9039 | BU28: 160593.8981 | BV28: 162000.0549 | BW28: 163493.0294 | BX28: 165093.5099 | BY28: 166756.1009 | BZ28: 168476.015 | CA28: 170236.1282 | CC28: Males | CD28: 60-64 | CF28: =SUM(L76:L80) -> 54772 | CG28: 54332 | CH28: 50888 | CI28: 49193 | CJ28: 48613 | CK28: 48503 | CL28: 48843 | CM28: 49863 | CN28: 50744 | CO28: 52027 | CP28: 53136 | CQ28: 54930.871 | CR28: 56800.53208 | CS28: 58730.84864 | CT28: 60709.58662 | CU28: 63134.81399 | CV28: 64890.94247 | CW28: 66030.9601 | CX28: 66676.93098 | CY28: 66954.57372 | CZ28: 66575.75776 | DA28: 66523.53224 | DB28: 66015.12152 | DC28: 65270.60669 | DD28: 64119.80173 | DE28: 63181.73838 | DF28: 61587.43376 | DG28: 60351.67601 | DH28: 59854.35318 | DI28: 60739.71451 | DJ28: 62241.52865 | DL28: =INDEX(CG28:DJ28,'Population Pyramid'!$L$1) -> 53136
A29: male | B29: 13 | C29: 11126 | D29: 11100 | E29: 11217 | F29: 11580 | G29: 11664 | H29: 11450 | I29: 11675 | J29: 11068 | K29: 11328 | L29: 11313 | M29: 11341 | N29: 11228 | O29: 10798 | P29: 10589 | Q29: 10380 | R29: 10562 | S29: 11035 | T29: 11159 | U29: 11852 | V29: 12233 | W29: 12535.93604 | X29: 12716.01389 | Y29: 12969.32858 | Z29: 13456.52419 | AA29: 13772.60291 | AB29: 13441.85088 | AC29: 13400.95731 | AD29: 13489.94015 | AE29: 13670.42326 | AF29: 13598.85883 | AG29: 13405.22286 | AH29: 13082.04889 | AI29: 12918.3447 | AJ29: 13019.67348 | AK29: 13036.28577 | AL29: 13053.6813 | AM29: 13106.80762 | AN29: 13186.25517 | AO29: 13287.86134 | AP29: 13392.68984 | AR29: 13 | AS29: 145500 | AT29: 146244 | AU29: 146515 | AV29: 147513 | AW29: 148553 | AX29: 149750 | AY29: 151289 | AZ29: 152634 | BA29: 154476 | BB29: 156679 | BC29: 159320 | BD29: 162012 | BE29: 164248 | BF29: 165919 | BG29: 166339 | BH29: 167029.6721 | BI29: 167389.1284 | BJ29: 167809.7607 | BK29: 168226.5593 | BL29: 168577.5408 | BM29: 168598.8271 | BN29: 168886.4754 | BO29: 169335.4651 | BP29: 169737.2126 | BQ29: 170078.3116 | BR29: 170522.3508 | BS29: 171142.4098 | BT29: 172231.2486 | BU29: 173613.5715 | BV29: 175036.3406 | BW29: 176546.7107 | BX29: 178200.3175 | BY29: 179942.3561 | BZ29: 181763.8764 | CA29: 183628.818 | CC29: Males | CD29: 65-69 | CF29: =SUM(L81:L85) -> 41379 | CG29: 44045 | CH29: 48767 | CI29: 51415 | CJ29: 52513 | CK29: 52965 | CL29: 52671 | CM29: 49155 | CN29: 47311 | CO29: 46633 | CP29: 46255 | CQ29: 46655.75478 | CR29: 47837.80619 | CS29: 48883.71859 | CT29: 50284.50253 | CU29: 51763.68551 | CV29: 53697.57918 | CW29: 55667.56062 | CX29: 57638.33542 | CY29: 59600.70832 | CZ29: 61846.62953 | DA29: 63438.47913 | DB29: 64473.63101 | DC29: 65026.50257 | DD29: 65244.84635 | DE29: 64855.67053 | DF29: 64822.26284 | DG29: 64408.61884 | DH29: 63755.60461 | DI29: 62704.88316 | DJ29: 61850.65226 | DL29: =INDEX(CG29:DJ29,'Population Pyramid'!$L$1) -> 46255
A30: male | B30: 14 | C30: 10867 | D30: 11236 | E30: 11248 | F30: 11343 | G30: 11685 | H30: 11797 | I30: 11541 | J30: 11848 | K30: 11234 | L30: 11499 | M30: 11464 | N30: 11502 | O30: 11352 | P30: 10944 | Q30: 10707 | R30: 10533 | S30: 10699 | T30: 11132 | U30: 11295 | V30: 11977 | W30: 12386.20161 | X30: 12697.02831 | Y30: 12890.28135 | Z30: 13160.19695 | AA30: 13674.42399 | AB30: 13986.77595 | AC30: 13639.02464 | AD30: 13600.22177 | AE30: 13682.43792 | AF30: 13865.6555 | AG30: 13775.4906 | AH30: 13559.17891 | AI30: 13230.28437 | AJ30: 13075.01411 | AK30: 13173.80033 | AL30: 13185.92168 | AM30: 13204.09596 | AN30: 13258.01552 | AO30: 13338.26806 | AP30: 13440.13228 | AR30: 14 | AS30: 157297 | AT30: 157785 | AU30: 158363 | AV30: 158747 | AW30: 160052 | AX30: 161214 | AY30: 162791 | AZ30: 163986 | BA30: 165420 | BB30: 167386 | BC30: 169853 | BD30: 172711 | BE30: 175380 | BF30: 177214 | BG30: 178316 | BH30: 179415.8737 | BI30: 180086.1567 | BJ30: 180700.0421 | BK30: 181386.7562 | BL30: 182251.9648 | BM30: 182585.603 | BN30: 182525.5 | BO30: 182935.6868 | BP30: 183419.6506 | BQ30: 183943.9671 | BR30: 184297.8414 | BS30: 184701.5887 | BT30: 185461.533 | BU30: 186688.5857 | BV30: 188210.141 | BW30: 189732.6324 | BX30: 191404.4135 | BY30: 193200.3716 | BZ30: 195102.1444 | CA30: 197068.9503 | CC30: Males | CD30: 70-74 | CF30: =SUM(L86:L90) -> 33210 | CG30: 33101 | CH30: 33802 | CI30: 35037 | CJ30: 36746 | CK30: 38431 | CL30: 40803 | CM30: 45223 | CN30: 47709 | CO30: 48483 | CP30: 48691 | CQ30: 48397.92836 | CR30: 45337.50809 | CS30: 43778.42456 | CT30: 43354.58989 | CU30: 43382.97939 | CV30: 43938.88544 | CW30: 45174.28043 | CX30: 46285.83001 | CY30: 47662.66244 | CZ30: 49066.44851 | DA30: 50860.26587 | DB30: 52697.64488 | DC30: 54515.02857 | DD30: 56342.83243 | DE30: 58394.35901 | DF30: 59855.05686 | DG30: 60871.63111 | DH30: 61427.20152 | DI30: 61683.02427 | DJ30: 61385.58461 | DL30: =INDEX(CG30:DJ30,'Population Pyramid'!$L$1) -> 48691
A31: male | B31: 15 | C31: 10728 | D31: 10804 | E31: 11258 | F31: 11299 | G31: 11392 | H31: 11823 | I31: 11952 | J31: 11650 | K31: 12009 | L31: 11425 | M31: 11665 | N31: 11549 | O31: 11595 | P31: 11474 | Q31: 11038 | R31: 10769 | S31: 10669 | T31: 10758 | U31: 11188 | V31: 11371 | W31: 12068.97506 | X31: 12476.30905 | Y31: 12804.56399 | Z31: 13005.51113 | AA31: 13293.74469 | AB31: 13802.74671 | AC31: 14104.89053 | AD31: 13760.60974 | AE31: 13714.18928 | AF31: 13794.69206 | AG31: 13971.9035 | AH31: 13863.26843 | AI31: 13646.08096 | AJ31: 13317.01112 | AK31: 13167.61328 | AL31: 13262.18278 | AM31: 13272.20375 | AN31: 13291.27229 | AO31: 13342.41488 | AP31: 13422.99081 | AR31: 15 | AS31: 169120 | AT31: 169737 | AU31: 170013 | AV31: 170756 | AW31: 171477 | AX31: 172879 | AY31: 174340 | AZ31: 175581 | BA31: 176894 | BB31: 178424 | BC31: 180622 | BD31: 183380 | BE31: 186138 | BF31: 188402 | BG31: 189687 | BH31: 191484.8487 | BI31: 192562.4658 | BJ31: 193504.6061 | BK31: 194392.2673 | BL31: 195545.7095 | BM31: 196388.3497 | BN31: 196630.3906 | BO31: 196696.2966 | BP31: 197133.8398 | BQ31: 197738.6591 | BR31: 198269.7449 | BS31: 198564.8572 | BT31: 199107.614 | BU31: 200005.5968 | BV31: 201377.7543 | BW31: 202994.8152 | BX31: 204676.6172 | BY31: 206491.6439 | BZ31: 208444.5593 | CA31: 210491.9411 | CC31: Males | CD31: 75-79 | CF31: =SUM(L91:L95) -> 25429 | CG31: 25901 | CH31: 26462 | CI31: 27290 | CJ31: 28214 | CK31: 28725 | CL31: 28784 | CM31: 29268 | CN31: 30366 | CO31: 31905 | CP31: 33254 | CQ31: 35272.16144 | CR31: 39225.24214 | CS31: 41533.1196 | CT31: 42320.7341 | CU31: 42724.63048 | CV31: 42604.18822 | CW31: 40156.23819 | CX31: 38978.67135 | CY31: 38710.14902 | CZ31: 38770.99962 | DA31: 39292.35748 | DB31: 40395.32499 | DC31: 41417.10293 | DD31: 42661.30222 | DE31: 43935.19911 | DF31: 45556.28859 | DG31: 47266.66744 | DH31: 48948.21206 | DI31: 50646.12001 | DJ31: 52508.72859 | DL31: =INDEX(CG31:DJ31,'Population Pyramid'!$L$1) -> 33254
A32: male | B32: 16 | C32: 10936 | D32: 10704 | E32: 10774 | F32: 11281 | G32: 11363 | H32: 11436 | I32: 11922 | J32: 12019 | K32: 11718 | L32: 12175 | M32: 11525 | N32: 11712 | O32: 11640 | P32: 11659 | Q32: 11572 | R32: 11075 | S32: 10822 | T32: 10749 | U32: 10832 | V32: 11200 | W32: 11461.04317 | X32: 12153.82489 | Y32: 12573.7204 | Z32: 12921.19319 | AA32: 13135.3186 | AB32: 13419.06004 | AC32: 13911.4686 | AD32: 14219.9695 | AE32: 13872.06648 | AF32: 13823.09775 | AG32: 13894.24693 | AH32: 14059.82714 | AI32: 13948.0082 | AJ32: 13730.16512 | AK32: 13399.42967 | AL32: 13253.36674 | AM32: 13343.80191 | AN32: 13353.77913 | AO32: 13369.53088 | AP32: 13422.23351 | AR32: 16 | AS32: 180556 | AT32: 181659 | AU32: 182032 | AV32: 182474 | AW32: 183652 | AX32: 184404 | AY32: 186052 | AZ32: 187221 | BA32: 188553 | BB32: 189996 | BC32: 191697 | BD32: 194202 | BE32: 196887 | BF32: 199234 | BG32: 200887 | BH32: 202945.8919 | BI32: 204716.2907 | BJ32: 206078.3265 | BK32: 207313.4605 | BL32: 208681.0281 | BM32: 209807.4098 | BN32: 210541.8592 | BO32: 210916.2661 | BP32: 211005.9063 | BQ32: 211561.7569 | BR32: 212163.9918 | BS32: 212624.6843 | BT32: 213055.6222 | BU32: 213735.7619 | BV32: 214777.1839 | BW32: 216248.1819 | BX32: 218020.4191 | BY32: 219845.423 | BZ32: 221814.0902 | CA32: 223914.1746 | CC32: Males | CD32: 80-84 | CF32: =SUM(L96:L100) -> 17379 | CG32: 18054 | CH32: 18600 | CI32: 19001 | CJ32: 19319 | CK32: 19676 | CL32: 20053 | CM32: 20575 | CN32: 21103 | CO32: 21817 | CP32: 22200 | CQ32: 22294.36457 | CR32: 22842.55512 | CS32: 23829.35031 | CT32: 25159.65852 | CU32: 26493.10646 | CV32: 28182.64017 | CW32: 31478.91883 | CX32: 33382.0389 | CY32: 34053.80876 | CZ32: 34359.6922 | DA32: 34248.15894 | DB32: 32420.70442 | DC32: 31598.50809 | DD32: 31470.22084 | DE32: 31585.94752 | DF32: 32076.52037 | DG32: 33046.5168 | DH32: 33972.04539 | DI32: 35079.36901 | DJ32: 36213.53329 | DL32: =INDEX(CG32:DJ32,'Population Pyramid'!$L$1) -> 22200
A33: male | B33: 17 | C33: 10286 | D33: 10828 | E33: 10686 | F33: 10732 | G33: 11242 | H33: 11425 | I33: 11505 | J33: 11982 | K33: 12077 | L33: 11864 | M33: 12295 | N33: 11546 | O33: 11713 | P33: 11773 | Q33: 11739 | R33: 11693 | S33: 11100 | T33: 10858 | U33: 10793 | V33: 10838 | W33: 11244.42169 | X33: 11504.38651 | Y33: 12205.14789 | Z33: 12640.28777 | AA33: 13018.26499 | AB33: 13219.81363 | AC33: 13487.3353 | AD33: 13976.04549 | AE33: 14280.09815 | AF33: 13935.07931 | AG33: 13875.02865 | AH33: 13924.86417 | AI33: 14091.80023 | AJ33: 13978.06408 | AK33: 13758.89477 | AL33: 13426.35686 | AM33: 13286.75863 | AN33: 13373.58273 | AO33: 13378.32647 | AP33: 13396.35836 | AR33: 17 | AS33: 191981 | AT33: 193164 | AU33: 194014 | AV33: 194551 | AW33: 195516 | AX33: 196699 | AY33: 197598 | AZ33: 198934 | BA33: 200326 | BB33: 201735 | BC33: 203390 | BD33: 205302 | BE33: 207745 | BF33: 210027 | BG33: 211725 | BH33: 214190.3136 | BI33: 216220.6772 | BJ33: 218283.4744 | BK33: 219953.7483 | BL33: 221699.2931 | BM33: 223027.2234 | BN33: 224029.1945 | BO33: 224892.3116 | BP33: 225286.0045 | BQ33: 225496.8362 | BR33: 226039.0205 | BS33: 226549.5485 | BT33: 227147.4224 | BU33: 227713.826 | BV33: 228536.0787 | BW33: 229674.5388 | BX33: 231307.1778 | BY33: 233219.0058 | BZ33: 235192.4167 | CA33: 237310.533 | CC33: Males | CD33: 85+ | CF33: =SUM(L101:L106) -> 12865 | CG33: 13323 | CH33: 13989 | CI33: 14528 | CJ33: 15257 | CK33: 15737 | CL33: 16398 | CM33: 16930 | CN33: 17335 | CO33: 17751 | CP33: 18023 | CQ33: 18639.18198 | CR33: 19283.8295 | CS33: 19955.29827 | CT33: 20778.73016 | CU33: 21503.54503 | CV33: 21926.75222 | CW33: 22683.7912 | CX33: 23761.58764 | CY33: 25138.23993 | CZ33: 26373.43133 | DA33: 27627.73023 | DB33: 30287.64846 | DC33: 32095.94414 | DD33: 33208.80516 | DE33: 33959.31009 | DF33: 34449.70069 | DG33: 34776.71139 | DH33: 35252.30413 | DI33: 35769.35674 | DJ33: 36242.70478 | DL33: =INDEX(CG33:DJ33,'Population Pyramid'!$L$1) -> 18023
A34: male | B34: 18 | C34: 9547 | D34: 10100 | E34: 10770 | F34: 10661 | G34: 10678 | H34: 11216 | I34: 11468 | J34: 11527 | K34: 12026 | L34: 12158 | M34: 11929 | N34: 12207 | O34: 11525 | P34: 11653 | Q34: 11676 | R34: 11602 | S34: 11503 | T34: 11043 | U34: 10717 | V34: 10613 | W34: 10750.36099 | X34: 11144.12958 | Y34: 11426.8095 | Z34: 12138.32019 | AA34: 12602.16626 | AB34: 12969.56888 | AC34: 13142.91319 | AD34: 13411.35583 | AE34: 13881.58201 | AF34: 14180.73806 | AG34: 13828.68384 | AH34: 13735.47769 | AI34: 13782.69843 | AJ34: 13956.31773 | AK34: 13834.7634 | AL34: 13609.7808 | AM34: 13280.29325 | AN34: 13160.02542 | AO34: 13232.43467 | AP34: 13239.34157 | AR34: 18 | AS34: 203197 | AT34: 204632 | AU34: 205541 | AV34: 206577 | AW34: 207674 | AX34: 208628 | AY34: 209805 | AZ34: 210459 | BA34: 211979 | BB34: 213411 | BC34: 214992 | BD34: 216805 | BE34: 218788 | BF34: 220744 | BG34: 222338 | BH34: 224940.6746 | BI34: 227364.8067 | BJ34: 229710.2839 | BK34: 232092.0685 | BL34: 234301.4594 | BM34: 235996.7923 | BN34: 237172.1077 | BO34: 238303.6674 | BP34: 239167.5865 | BQ34: 239677.5743 | BR34: 239867.7043 | BS34: 240285.0262 | BT34: 240930.1208 | BU34: 241670.1437 | BV34: 242370.8421 | BW34: 243284.3196 | BX34: 244587.471 | BY34: 246379.0312 | BZ34: 248424.8513 | CA34: 250549.8746 | DL34: =INDEX(CG34:DJ34,'Population Pyramid'!$L$1) -> 0
A35: male | B35: 19 | C35: 8593 | D35: 8683 | E35: 9165 | F35: 9896 | G35: 9759 | H35: 9868 | I35: 10458 | J35: 10504 | K35: 10841 | L35: 11488 | M35: 11625 | N35: 11077 | O35: 11545 | P35: 11047 | Q35: 10970 | R35: 10842 | S35: 10568 | T35: 10480 | U35: 10026 | V35: 9703 | W35: 9607.379556 | X35: 9702.735215 | Y35: 10153.81612 | Z35: 10516.31416 | AA35: 11274.1442 | AB35: 11620.57842 | AC35: 11917.08642 | AD35: 12078.1721 | AE35: 12297.48069 | AF35: 12705.31674 | AG35: 12947.48436 | AH35: 12500.20484 | AI35: 12457.14376 | AJ35: 12484.64331 | AK35: 12675.92945 | AL35: 12507.69083 | AM35: 12289.43508 | AN35: 12015.73335 | AO35: 11914.72881 | AP35: 11983.78655 | AR35: 19 | AS35: 213065 | AT35: 215090 | AU35: 216045 | AV35: 217418 | AW35: 219162 | AX35: 220253 | AY35: 220882 | AZ35: 222004 | BA35: 223026 | BB35: 224381 | BC35: 225834 | BD35: 227373 | BE35: 229268 | BF35: 230770 | BG35: 232041 | BH35: 234548.0542 | BI35: 237067.542 | BJ35: 239864.1 | BK35: 242608.3826 | BL35: 245575.6036 | BM35: 247617.3707 | BN35: 249089.1941 | BO35: 250381.8395 | BP35: 251465.0672 | BQ35: 252382.891 | BR35: 252815.1887 | BS35: 252785.231 | BT35: 253387.2646 | BU35: 254154.787 | BV35: 255046.7716 | BW35: 255792.0104 | BX35: 256876.9061 | BY35: 258394.7645 | BZ35: 260339.5801 | CA35: 262533.6611 | CC35: Females | CD35: All Ages | CF35: =L200 -> 875090 | CG35: 882749 | CH35: 891123 | CI35: 898421 | CJ35: 907489 | CK35: 915198 | CL35: 924326 | CM35: 931339 | CN35: 938807 | CO35: 945356 | CP35: 950166 | CQ35: 958876.536 | CR35: 967199.2919 | CS35: 977268.7259 | CT35: 988953.2123 | CU35: 1003030.283 | CV35: 1016005.311 | CW35: 1027442.878 | CX35: 1038996.589 | CY35: 1050044.2 | CZ35: 1060974.768 | DA35: 1070931 | DB35: 1079152.145 | DC35: 1087521.563 | DD35: 1095859.782 | DE35: 1104227.869 | DF35: 1112151.423 | DG35: 1120205.87 | DH35: 1128276.423 | DI35: 1136457.394 | DJ35: 1144745.449 | DL35: =INDEX(CG35:DJ35,'Population Pyramid'!$L$1) -> 950166
A36: male | B36: 20 | C36: 8903 | D36: 8186 | E36: 8279 | F36: 8718 | G36: 9503 | H36: 9615 | I36: 9779 | J36: 10222 | K36: 10178 | L36: 10698 | M36: 11231 | N36: 11389 | O36: 11154 | P36: 11475 | Q36: 10659 | R36: 10869 | S36: 10595 | T36: 10352 | U36: 10347 | V36: 9973 | W36: 9632.876243 | X36: 9508.958312 | Y36: 9660.148579 | Z36: 10141.02881 | AA36: 10573.85862 | AB36: 11282.62502 | AC36: 11597.88031 | AD36: 11925.99287 | AE36: 12067.01827 | AF36: 12281.57851 | AG36: 12651.1383 | AH36: 12815.51717 | AI36: 12395.25875 | AJ36: 12337.45368 | AK36: 12345.5599 | AL36: 12519.69965 | AM36: 12342.29431 | AN36: 12120.27767 | AO36: 11856.9614 | AP36: 11777.90376 | AR36: 20 | AS36: 222680 | AT36: 224869 | AU36: 226267 | AV36: 227596 | AW36: 229860 | AX36: 231484 | AY36: 232271 | AZ36: 233158 | BA36: 234501 | BB36: 235040 | BC36: 236703 | BD36: 237968 | BE36: 239620 | BF36: 241117 | BG36: 242014 | BH36: 244180.9304 | BI36: 246576.5003 | BJ36: 249524.2486 | BK36: 252749.4115 | BL36: 256149.4622 | BM36: 258899.9957 | BN36: 260687.0744 | BO36: 262307.8324 | BP36: 263532.0854 | BQ36: 264664.4695 | BR36: 265466.327 | BS36: 265600.7482 | BT36: 265782.5233 | BU36: 266492.2407 | BV36: 267392.3315 | BW36: 268311.71 | BX36: 269219.2004 | BY36: 270515.0422 | BZ36: 272196.5415 | CA36: 274311.5649 | CC36: Females | CD36: 0-4 | CF36: =SUM(L109:L113) -> 51097 | CG36: 51944 | CH36: 52955 | CI36: 53109 | CJ36: 53490 | CK36: 53654 | CL36: 53872 | CM36: 53648 | CN36: 53562 | CO36: 53105 | CP36: 52242 | CQ36: 51859.61792 | CR36: 51390.74518 | CS36: 51203.7954 | CT36: 51479.87638 | CU36: 52085.40744 | CV36: 52581.41743 | CW36: 53073.56208 | CX36: 53645.13408 | CY36: 54240.01571 | CZ36: 54872.95999 | DA36: 55481.39995 | DB36: 56054.0451 | DC36: 56670.49673 | DD36: 57319.23101 | DE36: 57989.91734 | DF36: 58657.65732 | DG36: 59341.30425 | DH36: 60039.76012 | DI36: 60752.03194 | DJ36: 61456.67448 | DL36: =INDEX(CG36:DJ36,'Population Pyramid'!$L$1) -> 52242
A37: male | B37: 21 | C37: 8746 | D37: 8902 | E37: 8181 | F37: 8336 | G37: 8713 | H37: 9533 | I37: 9760 | J37: 9822 | K37: 10090 | L37: 10346 | M37: 10824 | N37: 11275 | O37: 11463 | P37: 11203 | Q37: 11454 | R37: 10830 | S37: 10965 | T37: 10563 | U37: 10521 | V37: 10560 | W37: 10137.073 | X37: 9764.835657 | Y37: 9630.652836 | Z37: 9832.082804 | AA37: 10379.20267 | AB37: 10792.36961 | AC37: 11462.98441 | AD37: 11803.42289 | AE37: 12153.40722 | AF37: 12276.85346 | AG37: 12470.55619 | AH37: 12766.71793 | AI37: 12937.72469 | AJ37: 12535.62656 | AK37: 12456.0194 | AL37: 12449.19365 | AM37: 12619.3319 | AN37: 12430.70464 | AO37: 12213.86173 | AP37: 11944.11286 | AR37: 21 | AS37: 232213 | AT37: 234629 | AU37: 236089 | AV37: 237686 | AW37: 240206 | AX37: 242308 | AY37: 243546 | AZ37: 244621 | BA37: 245704 | BB37: 246494 | BC37: 247533 | BD37: 248933 | BE37: 250183 | BF37: 251638 | BG37: 252574 | BH37: 254318.0034 | BI37: 256341.3359 | BJ37: 259154.9014 | BK37: 262581.4943 | BL37: 266528.6648 | BM37: 269692.3653 | BN37: 272150.0588 | BO37: 274111.2552 | BP37: 275685.4927 | BQ37: 276941.323 | BR37: 277936.8832 | BS37: 278367.4661 | BT37: 278720.248 | BU37: 279027.8672 | BV37: 279848.3509 | BW37: 280760.9037 | BX37: 281838.5323 | BY37: 282945.7468 | BZ37: 284410.4033 | CA37: 286255.6777 | CC37: Females | CD37: 5-9 | CF37: =SUM(L114:L118) -> 48172 | CG37: 48959 | CH37: 50276 | CI37: 51715 | CJ37: 53001 | CK37: 54643 | CL37: 55864 | CM37: 57077 | CN37: 57493 | CO37: 58053 | CP37: 58073 | CQ37: 58142.35802 | CR37: 57926.5293 | CS37: 57911.89939 | CT37: 57513.28828 | CU37: 57048.67347 | CV37: 56766.52972 | CW37: 56429.27038 | CX37: 56313.25337 | CY37: 56574.72105 | CZ37: 56988.10516 | DA37: 57327.13211 | DB37: 57696.18467 | DC37: 58134.70863 | DD37: 58620.0902 | DE37: 59138.81864 | DF37: 59666.81555 | DG37: 60229.56573 | DH37: 60828.67451 | DI37: 61464.09735 | DJ37: 62128.17216 | DL37: =INDEX(CG37:DJ37,'Population Pyramid'!$L$1) -> 58073
